Workbook

Sheet select_site
A1: Data Path | B1: \\dhex8\disk8\WestJump_vis\table\final | K1: Site | L1: Site Name | M1: Note
A2: Site | B2: CACR1 | C2: File | D2: =B2&"_IMPROVE_westjump_psat_camx.tsv" -> CACR1_IMPROVE_westjump_psat_camx.tsv | K2: AGTI1 | L2: =VLOOKUP(K2,SITE_STATE!$B$2:$C$249,2,FALSE) -> Agua Tibia
A3: State | B3: =VLOOKUP(B2,SITE_STATE!B2:E249,4,FALSE) -> AR | K3: ARCH1 | L3: =VLOOKUP(K3,SITE_STATE!$B$2:$C$249,2,FALSE) -> Arches NP | M3: No Measurement
K4: BADL1 | L4: =VLOOKUP(K4,SITE_STATE!$B$2:$C$249,2,FALSE) -> Badlands NP
K5: BALD1 | L5: =VLOOKUP(K5,SITE_STATE!$B$2:$C$249,2,FALSE) -> Mount Baldy
K6: BAND1 | L6: =VLOOKUP(K6,SITE_STATE!$B$2:$C$249,2,FALSE) -> Bandelier NM
K7: BIBE1 | L7: =VLOOKUP(K7,SITE_STATE!$B$2:$C$249,2,FALSE) -> Big Bend NP
B8: Direction | K8: BLIS1 | L8: =VLOOKUP(K8,SITE_STATE!$B$2:$C$249,2,FALSE) -> Bliss SP (TRPA)
B9: Choose Class I area from a drop-down menu (Cell B2). | K9: BLMO1 | L9: =VLOOKUP(K9,SITE_STATE!$B$2:$C$249,2,FALSE) -> Blue Mounds
B10: Once selected, the spreadsheet will automatically load PSAT modeling results and update plots | K10: BOAP1 | L10: =VLOOKUP(K10,SITE_STATE!$B$2:$C$249,2,FALSE) -> Bosque del Apache
B11: If the spreadsheet does not load automatically, Click "IMPORT SITE DATA' (green) button to proceed. | K11: BRCA1 | L11: =VLOOKUP(K11,SITE_STATE!$B$2:$C$249,2,FALSE) -> Bryce Canyon NP
K12: BRID1 | L12: =VLOOKUP(K12,SITE_STATE!$B$2:$C$249,2,FALSE) -> Bridger Wilderness
K13: BRLA1 | L13: =VLOOKUP(K13,SITE_STATE!$B$2:$C$249,2,FALSE) -> Brooklyn Lake | M13: No Measurement
K14: CABI1 | L14: =VLOOKUP(K14,SITE_STATE!$B$2:$C$249,2,FALSE) -> Cabinet Mountains
K15: CACR1 | L15: =VLOOKUP(K15,SITE_STATE!$B$2:$C$249,2,FALSE) -> Caney Creek
K16: CANY1 | L16: =VLOOKUP(K16,SITE_STATE!$B$2:$C$249,2,FALSE) -> Canyonlands NP
K17: CAPI1 | L17: =VLOOKUP(K17,SITE_STATE!$B$2:$C$249,2,FALSE) -> Capitol Reef NP
K18: CARE1 | L18: =VLOOKUP(K18,SITE_STATE!$B$2:$C$249,2,FALSE) ->  | M18: No Measurement
K19: CEBL1 | L19: =VLOOKUP(K19,SITE_STATE!$B$2:$C$249,2,FALSE) -> Cedar Bluff
K20: CHER1 | L20: =VLOOKUP(K20,SITE_STATE!$B$2:$C$249,2,FALSE) -> Cherokee Nation | M20: No Measurement
K21: CHIR1 | L21: =VLOOKUP(K21,SITE_STATE!$B$2:$C$249,2,FALSE) -> Chiricahua NM
K22: CLPE1 | L22: =VLOOKUP(K22,SITE_STATE!$B$2:$C$249,2,FALSE) -> Cloud Peak
K23: COGO1 | L23: =VLOOKUP(K23,SITE_STATE!$B$2:$C$249,2,FALSE) -> Columbia Gorge #1
K24: CORI1 | L24: =VLOOKUP(K24,SITE_STATE!$B$2:$C$249,2,FALSE) -> Columbia River Gorge
K25: CRES1 | L25: =VLOOKUP(K25,SITE_STATE!$B$2:$C$249,2,FALSE) -> Crescent Lake
K26: CRLA1 | L26: =VLOOKUP(K26,SITE_STATE!$B$2:$C$249,2,FALSE) -> Crater Lake NP
K27: CRMO1 | L27: =VLOOKUP(K27,SITE_STATE!$B$2:$C$249,2,FALSE) -> Craters of the Moon NM
K28: DEVA1 | L28: =VLOOKUP(K28,SITE_STATE!$B$2:$C$249,2,FALSE) -> Death Valley NP
K29: DOLA1 | L29: =VLOOKUP(K29,SITE_STATE!$B$2:$C$249,2,FALSE) -> Dome Lands Wilderness | M29: No Measurement
K30: DOME1 | L30: =VLOOKUP(K30,SITE_STATE!$B$2:$C$249,2,FALSE) -> Dome Lands Wilderness
K31: DOUG1 | L31: =VLOOKUP(K31,SITE_STATE!$B$2:$C$249,2,FALSE) -> Douglas
... 38 more rows

Sheet FileKey
A1: Site Specific Extinction calculation spreadsheets
A2: Last modified: 9/19/2016
A3: v1 (20160919) | B3: Template from WAQS2011 (090616) and updated with 2008 model data
A6: FILE KEY
A8: Mass/Exintciton
B9: WAQS mass | C9: IMPROVE mass | D9: IMPROVE extinction
A10: Ammonium Sulfate | B10: 1.375*[SO4] | C10: AmmSO4 | D10: EAmmSO4
A11: Ammonium Nitrate | B11: 1.29*[NO3] | C11: AmmNO3 | D11: EAmmNO3
A12: Organic Mass | B12: [POA] + [SOAA] + [SOAB] | C12: OMC | D12: EOMC
A13: Elemental Carbon | B13: [EC] | C13: LAC | D13: ELAC
A14: Soil | B14: [OPM25] | C14: Soil | D14: ESoil
A15: Coarse Mass | B15: [PMC] | C15: CM | D15: ECM
A16: Sea Salt | B16: [SSA] | C16: SeaSalt | D16: ESeaSalt
A17: *NO2 is not considered
A19: Sources
A20: Source | B20: Source_ID | C20: SRC CAT
A21: Natural | B21: 1NAT | C21: 1
A22: Wild Fire | B22: 2WF | C22: 2
A23: Prescribed Fire | B23: 3RXF | C23: 3
A24: Agricultural Fire | B24: 4AGF | C24: 4
A25: Anthropogenic | B25: 5ANT | C25: 5
A26: BC | B26: BC | C26: BC
A27: IC | B27: IC | C27: IC
A28: TOTAL | B28: TOTAL | C28: TOTAL
A30: Regions
A31: Region | B31: Region_ID | C31: SRC REGION
... 34 more rows

Sheet Mass2008
A1: State | B1: SITE | C1: JDAY | D1: Date | E1: Month | F1: ss_rayleigh | G1: fsrh | H1: flrh | I1: fssrh | J1: IMP_Group | K1: IMP_AmmSO4 | L1: IMP_AmmNO3 | M1: IMP_LAC | N1: IMP_OMC | O1: IMP_Soil | P1: IMP_CM | Q1: IMP_SeaSalt | R1: WJ_SO4 | S1: WJ_NO3 | T1: WJ_NH4 | U1: WJ_EC | V1: WJ_POA | W1: WJ_OPM25 | X1: WJ_PMC | Y1: WJ_RGN | Z1: WJ_NO2 | AA1: WJ_SSA | AB1: WJ_SOAA | AC1: WJ_SOAB | AD1: __SO4 | AE1: 1NAT_01EA_SO4 | AF1: 1NAT_02AZ_SO4 | AG1: 1NAT_03CA_SO4 | AH1: 1NAT_04CO_SO4 | AI1: 1NAT_05KS_SO4 | AJ1: 1NAT_06ID_SO4 | AK1: 1NAT_07MT_SO4 | AL1: 1NAT_08OK_SO4 | AM1: 1NAT_09OR_SO4 | AN1: 1NAT_10WA_SO4 | AO1: 1NAT_11WY_SO4 | AP1: 1NAT_12ND_SO4 | AQ1: 1NAT_13SD_SO4 | AR1: 1NAT_14NE_SO4 | AS1: 1NAT_15NV_SO4 | AT1: 1NAT_16UT_SO4 | AU1: 1NAT_17TX_SO4 | AV1: 1NAT_18NM_SO4 | AW1: 1NAT_19CN_SO4 | AX1: 1NAT_20MX_SO4 | AY1: 1NAT_21ON_SO4 | AZ1: 2AGF_01EA_SO4 | BA1: 2AGF_02AZ_SO4 | BB1: 2AGF_03CA_SO4 | BC1: 2AGF_04CO_SO4 | BD1: 2AGF_05KS_SO4 | BE1: 2AGF_06ID_SO4 | BF1: 2AGF_07MT_SO4 | BG1: 2AGF_08OK_SO4 | BH1: 2AGF_09OR_SO4 | BI1: 2AGF_10WA_SO4 | BJ1: 2AGF_11WY_SO4 | BK1: 2AGF_12ND_SO4 | BL1: 2AGF_13SD_SO4 | BM1: 2AGF_14NE_SO4 | BN1: 2AGF_15NV_SO4 | BO1: 2AGF_16UT_SO4 | BP1: 2AGF_17TX_SO4 | BQ1: 2AGF_18NM_SO4 | BR1: 2AGF_19CN_SO4 | BS1: 2AGF_20MX_SO4 | BT1: 2AGF_21ON_SO4 | BU1: 3RXF_01EA_SO4 | BV1: 3RXF_02AZ_SO4 | BW1: 3RXF_03CA_SO4 | BX1: 3RXF_04CO_SO4 | BY1: 3RXF_05KS_SO4 | BZ1: 3RXF_06ID_SO4 | CA1: 3RXF_07MT_SO4 | CB1: 3RXF_08OK_SO4 | CC1: 3RXF_09OR_SO4 | CD1: 3RXF_10WA_SO4 | CE1: 3RXF_11WY_SO4 | CF1: 3RXF_12ND_SO4 | CG1: 3RXF_13SD_SO4 | CH1: 3RXF_14NE_SO4 | CI1: 3RXF_15NV_SO4 | CJ1: 3RXF_16UT_SO4 | CK1: 3RXF_17TX_SO4 | CL1: 3RXF_18NM_SO4 | CM1: 3RXF_19CN_SO4 | CN1: 3RXF_20MX_SO4 | CO1: 3RXF_21ON_SO4 | CP1: 4WLF_01EA_SO4 | CQ1: 4WLF_02AZ_SO4 | CR1: 4WLF_03CA_SO4 | CS1: 4WLF_04CO_SO4 | CT1: 4WLF_05KS_SO4 | CU1: 4WLF_06ID_SO4 | CV1: 4WLF_07MT_SO4 | CW1: 4WLF_08OK_SO4 | CX1: 4WLF_09OR_SO4 | CY1: 4WLF_10WA_SO4 | CZ1: 4WLF_11WY_SO4 | DA1: 4WLF_12ND_SO4 | DB1: 4WLF_13SD_SO4 | DC1: 4WLF_14NE_SO4 | DD1: 4WLF_15NV_SO4 | DE1: 4WLF_16UT_SO4 | DF1: 4WLF_17TX_SO4 | DG1: 4WLF_18NM_SO4 | DH1: 4WLF_19CN_SO4 | DI1: 4WLF_20MX_SO4 | DJ1: 4WLF_21ON_SO4 | DK1: 5ANT_01EA_SO4 | DL1: 5ANT_02AZ_SO4 | DM1: 5ANT_03CA_SO4 | DN1: 5ANT_04CO_SO4 | DO1: 5ANT_05KS_SO4 | DP1: 5ANT_06ID_SO4 | DQ1: 5ANT_07MT_SO4 | DR1: 5ANT_08OK_SO4 | DS1: 5ANT_09OR_SO4 | DT1: 5ANT_10WA_SO4 | DU1: 5ANT_11WY_SO4 | DV1: 5ANT_12ND_SO4 | DW1: 5ANT_13SD_SO4 | DX1: 5ANT_14NE_SO4 | DY1: 5ANT_15NV_SO4 | DZ1: 5ANT_16UT_SO4 | EA1: 5ANT_17TX_SO4 | EB1: 5ANT_18NM_SO4 | EC1: 5ANT_19CN_SO4 | ED1: 5ANT_20MX_SO4 | EE1: 5ANT_21ON_SO4 | EF1: BC_SO4 | EG1: IC_SO4 | EH1: __NO3 | EI1: 1NAT_01EA_NO3 | EJ1: 1NAT_02AZ_NO3 | EK1: 1NAT_03CA_NO3 | EL1: 1NAT_04CO_NO3 | EM1: 1NAT_05KS_NO3 | EN1: 1NAT_06ID_NO3 | EO1: 1NAT_07MT_NO3 | EP1: 1NAT_08OK_NO3 | EQ1: 1NAT_09OR_NO3 | ER1: 1NAT_10WA_NO3 | ES1: 1NAT_11WY_NO3 | ET1: 1NAT_12ND_NO3 | EU1: 1NAT_13SD_NO3 | EV1: 1NAT_14NE_NO3 | EW1: 1NAT_15NV_NO3 | EX1: 1NAT_16UT_NO3 | EY1: 1NAT_17TX_NO3 | EZ1: 1NAT_18NM_NO3 | FA1: 1NAT_19CN_NO3 | FB1: 1NAT_20MX_NO3 | FC1: 1NAT_21ON_NO3 | FD1: 2AGF_01EA_NO3 | FE1: 2AGF_02AZ_NO3 | FF1: 2AGF_03CA_NO3 | FG1: 2AGF_04CO_NO3 | FH1: 2AGF_05KS_NO3 | FI1: 2AGF_06ID_NO3 | FJ1: 2AGF_07MT_NO3 | FK1: 2AGF_08OK_NO3 | FL1: 2AGF_09OR_NO3 | FM1: 2AGF_10WA_NO3 | FN1: 2AGF_11WY_NO3 | FO1: 2AGF_12ND_NO3 | FP1: 2AGF_13SD_NO3 | FQ1: 2AGF_14NE_NO3 | FR1: 2AGF_15NV_NO3 | FS1: 2AGF_16UT_NO3 | FT1: 2AGF_17TX_NO3 | FU1: 2AGF_18NM_NO3 | FV1: 2AGF_19CN_NO3 | FW1: 2AGF_20MX_NO3 | FX1: 2AGF_21ON_NO3 | FY1: 3RXF_01EA_NO3 | FZ1: 3RXF_02AZ_NO3 | GA1: 3RXF_03CA_NO3 | GB1: 3RXF_04CO_NO3 | GC1: 3RXF_05KS_NO3 | GD1: 3RXF_06ID_NO3 | GE1: 3RXF_07MT_NO3 | GF1: 3RXF_08OK_NO3 | GG1: 3RXF_09OR_NO3 | GH1: 3RXF_10WA_NO3 | GI1: 3RXF_11WY_NO3 | GJ1: 3RXF_12ND_NO3 | GK1: 3RXF_13SD_NO3 | GL1: 3RXF_14NE_NO3 | GM1: 3RXF_15NV_NO3 | GN1: 3RXF_16UT_NO3 | GO1: 3RXF_17TX_NO3 | GP1: 3RXF_18NM_NO3 | GQ1: 3RXF_19CN_NO3 | GR1: 3RXF_20MX_NO3 | GS1: 3RXF_21ON_NO3 | GT1: 4WLF_01EA_NO3 | GU1: 4WLF_02AZ_NO3 | GV1: 4WLF_03CA_NO3 | GW1: 4WLF_04CO_NO3 | GX1: 4WLF_05KS_NO3 | GY1: 4WLF_06ID_NO3 | GZ1: 4WLF_07MT_NO3 | HA1: 4WLF_08OK_NO3 | HB1: 4WLF_09OR_NO3 | HC1: 4WLF_10WA_NO3 | HD1: 4WLF_11WY_NO3 | HE1: 4WLF_12ND_NO3 | HF1: 4WLF_13SD_NO3 | HG1: 4WLF_14NE_NO3 | HH1: 4WLF_15NV_NO3 | HI1: 4WLF_16UT_NO3 | HJ1: 4WLF_17TX_NO3 | HK1: 4WLF_18NM_NO3 | HL1: 4WLF_19CN_NO3 | HM1: 4WLF_20MX_NO3 | HN1: 4WLF_21ON_NO3 | HO1: 5ANT_01EA_NO3 | HP1: 5ANT_02AZ_NO3 | HQ1: 5ANT_03CA_NO3 | HR1: 5ANT_04CO_NO3 | HS1: 5ANT_05KS_NO3 | HT1: 5ANT_06ID_NO3 | HU1: 5ANT_07MT_NO3 | HV1: 5ANT_08OK_NO3 | HW1: 5ANT_09OR_NO3 | HX1: 5ANT_10WA_NO3 | HY1: 5ANT_11WY_NO3 | HZ1: 5ANT_12ND_NO3 | IA1: 5ANT_13SD_NO3 | IB1: 5ANT_14NE_NO3 | IC1: 5ANT_15NV_NO3 | ID1: 5ANT_16UT_NO3 | IE1: 5ANT_17TX_NO3 | IF1: 5ANT_18NM_NO3 | IG1: 5ANT_19CN_NO3 | IH1: 5ANT_20MX_NO3 | II1: 5ANT_21ON_NO3 | IJ1: BC_NO3 | IK1: IC_NO3 | IL1: __POA | IM1: 1NAT_01EA_POA | IN1: 1NAT_02AZ_POA | IO1: 1NAT_03CA_POA | IP1: 1NAT_04CO_POA | IQ1: 1NAT_05KS_POA | IR1: 1NAT_06ID_POA | IS1: 1NAT_07MT_POA | IT1: 1NAT_08OK_POA | IU1: 1NAT_09OR_POA | IV1: 1NAT_10WA_POA | IW1: 1NAT_11WY_POA | IX1: 1NAT_12ND_POA | IY1: 1NAT_13SD_POA | IZ1: 1NAT_14NE_POA | JA1: 1NAT_15NV_POA | JB1: 1NAT_16UT_POA | JC1: 1NAT_17TX_POA | JD1: 1NAT_18NM_POA | JE1: 1NAT_19CN_POA | JF1: 1NAT_20MX_POA | JG1: 1NAT_21ON_POA | JH1: 2AGF_01EA_POA | JI1: 2AGF_02AZ_POA | JJ1: 2AGF_03CA_POA | JK1: 2AGF_04CO_POA | JL1: 2AGF_05KS_POA | JM1: 2AGF_06ID_POA | JN1: 2AGF_07MT_POA | JO1: 2AGF_08OK_POA | JP1: 2AGF_09OR_POA | JQ1: 2AGF_10WA_POA | JR1: 2AGF_11WY_POA | JS1: 2AGF_12ND_POA | JT1: 2AGF_13SD_POA | JU1: 2AGF_14NE_POA | JV1: 2AGF_15NV_POA | JW1: 2AGF_16UT_POA | JX1: 2AGF_17TX_POA | JY1: 2AGF_18NM_POA | JZ1: 2AGF_19CN_POA | KA1: 2AGF_20MX_POA | KB1: 2AGF_21ON_POA | KC1: 3RXF_01EA_POA | KD1: 3RXF_02AZ_POA | KE1: 3RXF_03CA_POA | KF1: 3RXF_04CO_POA | KG1: 3RXF_05KS_POA | KH1: 3RXF_06ID_POA | KI1: 3RXF_07MT_POA | KJ1: 3RXF_08OK_POA | KK1: 3RXF_09OR_POA | KL1: 3RXF_10WA_POA | KM1: 3RXF_11WY_POA | KN1: 3RXF_12ND_POA | KO1: 3RXF_13SD_POA | KP1: 3RXF_14NE_POA | KQ1: 3RXF_15NV_POA | KR1: 3RXF_16UT_POA | KS1: 3RXF_17TX_POA | KT1: 3RXF_18NM_POA | KU1: 3RXF_19CN_POA | KV1: 3RXF_20MX_POA | KW1: 3RXF_21ON_POA | KX1: 4WLF_01EA_POA | KY1: 4WLF_02AZ_POA | KZ1: 4WLF_03CA_POA | LA1: 4WLF_04CO_POA | LB1: 4WLF_05KS_POA | LC1: 4WLF_06ID_POA | LD1: 4WLF_07MT_POA | LE1: 4WLF_08OK_POA | LF1: 4WLF_09OR_POA | LG1: 4WLF_10WA_POA | LH1: 4WLF_11WY_POA | LI1: 4WLF_12ND_POA | LJ1: 4WLF_13SD_POA | LK1: 4WLF_14NE_POA | LL1: 4WLF_15NV_POA | LM1: 4WLF_16UT_POA | LN1: 4WLF_17TX_POA | LO1: 4WLF_18NM_POA | LP1: 4WLF_19CN_POA | LQ1: 4WLF_20MX_POA | LR1: 4WLF_21ON_POA | LS1: 5ANT_01EA_POA | LT1: 5ANT_02AZ_POA | LU1: 5ANT_03CA_POA | LV1: 5ANT_04CO_POA | LW1: 5ANT_05KS_POA | LX1: 5ANT_06ID_POA | LY1: 5ANT_07MT_POA | LZ1: 5ANT_08OK_POA | MA1: 5ANT_09OR_POA | MB1: 5ANT_10WA_POA | MC1: 5ANT_11WY_POA | MD1: 5ANT_12ND_POA | ME1: 5ANT_13SD_POA | MF1: 5ANT_14NE_POA | MG1: 5ANT_15NV_POA | MH1: 5ANT_16UT_POA | MI1: 5ANT_17TX_POA | MJ1: 5ANT_18NM_POA | MK1: 5ANT_19CN_POA | ML1: 5ANT_20MX_POA | MM1: 5ANT_21ON_POA | MN1: BC_POA | MO1: IC_POA | MP1: __EC | MQ1: 1NAT_01EA_EC | MR1: 1NAT_02AZ_EC | MS1: 1NAT_03CA_EC | MT1: 1NAT_04CO_EC | MU1: 1NAT_05KS_EC | MV1: 1NAT_06ID_EC | MW1: 1NAT_07MT_EC | MX1: 1NAT_08OK_EC | MY1: 1NAT_09OR_EC | MZ1: 1NAT_10WA_EC | NA1: 1NAT_11WY_EC | NB1: 1NAT_12ND_EC | NC1: 1NAT_13SD_EC | ND1: 1NAT_14NE_EC | NE1: 1NAT_15NV_EC | NF1: 1NAT_16UT_EC | NG1: 1NAT_17TX_EC | NH1: 1NAT_18NM_EC | NI1: 1NAT_19CN_EC | NJ1: 1NAT_20MX_EC | NK1: 1NAT_21ON_EC | NL1: 2AGF_01EA_EC | NM1: 2AGF_02AZ_EC | NN1: 2AGF_03CA_EC | NO1: 2AGF_04CO_EC | NP1: 2AGF_05KS_EC | NQ1: 2AGF_06ID_EC | NR1: 2AGF_07MT_EC | NS1: 2AGF_08OK_EC | NT1: 2AGF_09OR_EC | NU1: 2AGF_10WA_EC | NV1: 2AGF_11WY_EC | NW1: 2AGF_12ND_EC | NX1: 2AGF_13SD_EC | NY1: 2AGF_14NE_EC | NZ1: 2AGF_15NV_EC | OA1: 2AGF_16UT_EC | OB1: 2AGF_17TX_EC | OC1: 2AGF_18NM_EC | OD1: 2AGF_19CN_EC | OE1: 2AGF_20MX_EC | OF1: 2AGF_21ON_EC | OG1: 3RXF_01EA_EC | OH1: 3RXF_02AZ_EC | OI1: 3RXF_03CA_EC | OJ1: 3RXF_04CO_EC | OK1: 3RXF_05KS_EC | OL1: 3RXF_06ID_EC | OM1: 3RXF_07MT_EC | ON1: 3RXF_08OK_EC | OO1: 3RXF_09OR_EC | OP1: 3RXF_10WA_EC | OQ1: 3RXF_11WY_EC | OR1: 3RXF_12ND_EC | OS1: 3RXF_13SD_EC | OT1: 3RXF_14NE_EC | OU1: 3RXF_15NV_EC | OV1: 3RXF_16UT_EC | OW1: 3RXF_17TX_EC | OX1: 3RXF_18NM_EC | OY1: 3RXF_19CN_EC | OZ1: 3RXF_20MX_EC | PA1: 3RXF_21ON_EC | PB1: 4WLF_01EA_EC | PC1: 4WLF_02AZ_EC | PD1: 4WLF_03CA_EC | PE1: 4WLF_04CO_EC | PF1: 4WLF_05KS_EC | PG1: 4WLF_06ID_EC | PH1: 4WLF_07MT_EC | PI1: 4WLF_08OK_EC | PJ1: 4WLF_09OR_EC | PK1: 4WLF_10WA_EC | PL1: 4WLF_11WY_EC | PM1: 4WLF_12ND_EC | PN1: 4WLF_13SD_EC | PO1: 4WLF_14NE_EC | PP1: 4WLF_15NV_EC | PQ1: 4WLF_16UT_EC | PR1: 4WLF_17TX_EC | PS1: 4WLF_18NM_EC | PT1: 4WLF_19CN_EC | PU1: 4WLF_20MX_EC | PV1: 4WLF_21ON_EC | PW1: 5ANT_01EA_EC | PX1: 5ANT_02AZ_EC | PY1: 5ANT_03CA_EC | PZ1: 5ANT_04CO_EC | QA1: 5ANT_05KS_EC | QB1: 5ANT_06ID_EC | QC1: 5ANT_07MT_EC | QD1: 5ANT_08OK_EC | QE1: 5ANT_09OR_EC | QF1: 5ANT_10WA_EC | QG1: 5ANT_11WY_EC | QH1: 5ANT_12ND_EC | QI1: 5ANT_13SD_EC | QJ1: 5ANT_14NE_EC | QK1: 5ANT_15NV_EC | QL1: 5ANT_16UT_EC | QM1: 5ANT_17TX_EC | QN1: 5ANT_18NM_EC | QO1: 5ANT_19CN_EC | QP1: 5ANT_20MX_EC | QQ1: 5ANT_21ON_EC | QR1: BC_EC | QS1: IC_EC | QT1: __OPM25 | QU1: 1NAT_01EA_OPM25 | QV1: 1NAT_02AZ_OPM25 | QW1: 1NAT_03CA_OPM25 | QX1: 1NAT_04CO_OPM25 | QY1: 1NAT_05KS_OPM25 | QZ1: 1NAT_06ID_OPM25 | RA1: 1NAT_07MT_OPM25 | RB1: 1NAT_08OK_OPM25 | RC1: 1NAT_09OR_OPM25 | RD1: 1NAT_10WA_OPM25 | RE1: 1NAT_11WY_OPM25 | RF1: 1NAT_12ND_OPM25 | RG1: 1NAT_13SD_OPM25 | RH1: 1NAT_14NE_OPM25 | RI1: 1NAT_15NV_OPM25 | RJ1: 1NAT_16UT_OPM25 | RK1: 1NAT_17TX_OPM25 | RL1: 1NAT_18NM_OPM25 | RM1: 1NAT_19CN_OPM25 | RN1: 1NAT_20MX_OPM25 | RO1: 1NAT_21ON_OPM25 | RP1: 2AGF_01EA_OPM25 | RQ1: 2AGF_02AZ_OPM25 | RR1: 2AGF_03CA_OPM25 | RS1: 2AGF_04CO_OPM25 | RT1: 2AGF_05KS_OPM25 | RU1: 2AGF_06ID_OPM25 | RV1: 2AGF_07MT_OPM25 | RW1: 2AGF_08OK_OPM25 | RX1: 2AGF_09OR_OPM25 | RY1: 2AGF_10WA_OPM25 | RZ1: 2AGF_11WY_OPM25 | SA1: 2AGF_12ND_OPM25 | SB1: 2AGF_13SD_OPM25 | SC1: 2AGF_14NE_OPM25 | SD1: 2AGF_15NV_OPM25 | SE1: 2AGF_16UT_OPM25 | SF1: 2AGF_17TX_OPM25 | SG1: 2AGF_18NM_OPM25 | SH1: 2AGF_19CN_OPM25 | SI1: 2AGF_20MX_OPM25 | SJ1: 2AGF_21ON_OPM25 | SK1: 3RXF_01EA_OPM25 | SL1: 3RXF_02AZ_OPM25 | SM1: 3RXF_03CA_OPM25 | SN1: 3RXF_04CO_OPM25 | SO1: 3RXF_05KS_OPM25 | SP1: 3RXF_06ID_OPM25 | SQ1: 3RXF_07MT_OPM25 | SR1: 3RXF_08OK_OPM25 | SS1: 3RXF_09OR_OPM25 | ST1: 3RXF_10WA_OPM25 | SU1: 3RXF_11WY_OPM25 | SV1: 3RXF_12ND_OPM25 | SW1: 3RXF_13SD_OPM25 | SX1: 3RXF_14NE_OPM25 | SY1: 3RXF_15NV_OPM25 | SZ1: 3RXF_16UT_OPM25 | TA1: 3RXF_17TX_OPM25 | TB1: 3RXF_18NM_OPM25 | TC1: 3RXF_19CN_OPM25 | TD1: 3RXF_20MX_OPM25 | TE1: 3RXF_21ON_OPM25 | TF1: 4WLF_01EA_OPM25 | TG1: 4WLF_02AZ_OPM25 | TH1: 4WLF_03CA_OPM25 | TI1: 4WLF_04CO_OPM25 | TJ1: 4WLF_05KS_OPM25 | TK1: 4WLF_06ID_OPM25 | TL1: 4WLF_07MT_OPM25 | TM1: 4WLF_08OK_OPM25 | TN1: 4WLF_09OR_OPM25 | TO1: 4WLF_10WA_OPM25 | TP1: 4WLF_11WY_OPM25 | TQ1: 4WLF_12ND_OPM25 | TR1: 4WLF_13SD_OPM25 | TS1: 4WLF_14NE_OPM25 | TT1: 4WLF_15NV_OPM25 | TU1: 4WLF_16UT_OPM25 | TV1: 4WLF_17TX_OPM25 | TW1: 4WLF_18NM_OPM25 | TX1: 4WLF_19CN_OPM25 | TY1: 4WLF_20MX_OPM25 | TZ1: 4WLF_21ON_OPM25 | UA1: 5ANT_01EA_OPM25 | UB1: 5ANT_02AZ_OPM25 | UC1: 5ANT_03CA_OPM25 | UD1: 5ANT_04CO_OPM25 | UE1: 5ANT_05KS_OPM25 | UF1: 5ANT_06ID_OPM25 | UG1: 5ANT_07MT_OPM25 | UH1: 5ANT_08OK_OPM25 | UI1: 5ANT_09OR_OPM25 | UJ1: 5ANT_10WA_OPM25 | UK1: 5ANT_11WY_OPM25 | UL1: 5ANT_12ND_OPM25 | UM1: 5ANT_13SD_OPM25 | UN1: 5ANT_14NE_OPM25 | UO1: 5ANT_15NV_OPM25 | UP1: 5ANT_16UT_OPM25 | UQ1: 5ANT_17TX_OPM25 | UR1: 5ANT_18NM_OPM25 | US1: 5ANT_19CN_OPM25 | UT1: 5ANT_20MX_OPM25 | UU1: 5ANT_21ON_OPM25 | UV1: BC_OPM25 | UW1: IC_OPM25 | UX1: __PMC | UY1: 1NAT_01EA_PMC | UZ1: 1NAT_02AZ_PMC | VA1: 1NAT_03CA_PMC | VB1: 1NAT_04CO_PMC | VC1: 1NAT_05KS_PMC | VD1: 1NAT_06ID_PMC | VE1: 1NAT_07MT_PMC | VF1: 1NAT_08OK_PMC | VG1: 1NAT_09OR_PMC | VH1: 1NAT_10WA_PMC | VI1: 1NAT_11WY_PMC | VJ1: 1NAT_12ND_PMC | VK1: 1NAT_13SD_PMC | VL1: 1NAT_14NE_PMC | VM1: 1NAT_15NV_PMC | VN1: 1NAT_16UT_PMC | VO1: 1NAT_17TX_PMC | VP1: 1NAT_18NM_PMC | VQ1: 1NAT_19CN_PMC | VR1: 1NAT_20MX_PMC | VS1: 1NAT_21ON_PMC | VT1: 2AGF_01EA_PMC | VU1: 2AGF_02AZ_PMC | VV1: 2AGF_03CA_PMC | VW1: 2AGF_04CO_PMC | VX1: 2AGF_05KS_PMC | VY1: 2AGF_06ID_PMC | VZ1: 2AGF_07MT_PMC | WA1: 2AGF_08OK_PMC | WB1: 2AGF_09OR_PMC | WC1: 2AGF_10WA_PMC | WD1: 2AGF_11WY_PMC | WE1: 2AGF_12ND_PMC | WF1: 2AGF_13SD_PMC | WG1: 2AGF_14NE_PMC | WH1: 2AGF_15NV_PMC | WI1: 2AGF_16UT_PMC | WJ1: 2AGF_17TX_PMC | WK1: 2AGF_18NM_PMC | WL1: 2AGF_19CN_PMC | WM1: 2AGF_20MX_PMC | WN1: 2AGF_21ON_PMC | WO1: 3RXF_01EA_PMC | WP1: 3RXF_02AZ_PMC | WQ1: 3RXF_03CA_PMC | WR1: 3RXF_04CO_PMC | WS1: 3RXF_05KS_PMC | WT1: 3RXF_06ID_PMC | WU1: 3RXF_07MT_PMC | WV1: 3RXF_08OK_PMC | WW1: 3RXF_09OR_PMC | WX1: 3RXF_10WA_PMC | WY1: 3RXF_11WY_PMC | WZ1: 3RXF_12ND_PMC | XA1: 3RXF_13SD_PMC | XB1: 3RXF_14NE_PMC | XC1: 3RXF_15NV_PMC | XD1: 3RXF_16UT_PMC | XE1: 3RXF_17TX_PMC | XF1: 3RXF_18NM_PMC | XG1: 3RXF_19CN_PMC | XH1: 3RXF_20MX_PMC | XI1: 3RXF_21ON_PMC | XJ1: 4WLF_01EA_PMC | XK1: 4WLF_02AZ_PMC | XL1: 4WLF_03CA_PMC | XM1: 4WLF_04CO_PMC | XN1: 4WLF_05KS_PMC | XO1: 4WLF_06ID_PMC | XP1: 4WLF_07MT_PMC | XQ1: 4WLF_08OK_PMC | XR1: 4WLF_09OR_PMC | XS1: 4WLF_10WA_PMC | XT1: 4WLF_11WY_PMC | XU1: 4WLF_12ND_PMC | XV1: 4WLF_13SD_PMC | XW1: 4WLF_14NE_PMC | XX1: 4WLF_15NV_PMC | XY1: 4WLF_16UT_PMC | XZ1: 4WLF_17TX_PMC | YA1: 4WLF_18NM_PMC | YB1: 4WLF_19CN_PMC | YC1: 4WLF_20MX_PMC | YD1: 4WLF_21ON_PMC | YE1: 5ANT_01EA_PMC | YF1: 5ANT_02AZ_PMC | YG1: 5ANT_03CA_PMC | YH1: 5ANT_04CO_PMC | YI1: 5ANT_05KS_PMC | YJ1: 5ANT_06ID_PMC | YK1: 5ANT_07MT_PMC | YL1: 5ANT_08OK_PMC | YM1: 5ANT_09OR_PMC | YN1: 5ANT_10WA_PMC | YO1: 5ANT_11WY_PMC | YP1: 5ANT_12ND_PMC | YQ1: 5ANT_13SD_PMC | YR1: 5ANT_14NE_PMC | YS1: 5ANT_15NV_PMC | YT1: 5ANT_16UT_PMC | YU1: 5ANT_17TX_PMC | YV1: 5ANT_18NM_PMC | YW1: 5ANT_19CN_PMC | YX1: 5ANT_20MX_PMC | YY1: 5ANT_21ON_PMC | YZ1: BC_PMC | ZA1: IC_PMC
A2: =VLOOKUP(B2,ClassIareas_Mass2008!A:B,2,FALSE) -> AR | B2: =CMAQ_2008!A2 -> CACR1 | C2: 2008001 | D2: 2008-01-01 | E2: 1 | F2: =VLOOKUP(B2&"_"&E2,ClassIareas_Mass2008!F:L,4,FALSE) -> 11 | G2: =VLOOKUP(B2&"_"&E2,ClassIareas_Mass2008!F:L,5,FALSE) -> 3.85 | H2: =VLOOKUP(B2&"_"&E2,ClassIareas_Mass2008!F:L,6,FALSE) -> 2.77 | I2: =VLOOKUP(B2&"_"&E2,ClassIareas_Mass2008!F:L,7,FALSE) -> 3.9 | J2: =IFERROR(VLOOKUP(B2&"_"&C2,ClassIareas_Mass2008!H:T,6,FALSE),"") -> 10 | K2: =IFERROR(VLOOKUP(B2&"_"&C2,ClassIareas_Mass2008!H:T,7,FALSE),"") -> 0.54912 | L2: =IFERROR(VLOOKUP(B2&"_"&C2,ClassIareas_Mass2008!H:T,8,FALSE),"") -> 0.85875 | M2: =IFERROR(VLOOKUP(B2&"_"&C2,ClassIareas_Mass2008!H:T,9,FALSE),"") -> 0.08 | N2: =IFERROR(VLOOKUP(B2&"_"&C2,ClassIareas_Mass2008!H:T,10,FALSE),"") -> 0.51012 | O2: =IFERROR(VLOOKUP(B2&"_"&C2,ClassIareas_Mass2008!H:T,11,FALSE),"") -> 0.13665 | P2: =IFERROR(VLOOKUP(B2&"_"&C2,ClassIareas_Mass2008!H:T,12,FALSE),"") -> 2.4363 | Q2: =IFERROR(VLOOKUP(B2&"_"&C2,ClassIareas_Mass2008!H:T,13,FALSE),"") -> 0.02088 | R2: =GETPIVOTDATA("Sum of SO4",CMAQ_2008!$R$10,"JDAY",$C2,"SRC CAT","TOTAL","SRC REGION","TOTAL") -> 0.53872 | S2: =GETPIVOTDATA("Sum of NO3",CMAQ_2008!$R$10,"JDAY",$C2,"SRC CAT","TOTAL","SRC REGION","TOTAL") -> 0.87772 | T2: =GETPIVOTDATA("Sum of NH4",CMAQ_2008!$R$10,"JDAY",$C2,"SRC CAT","TOTAL","SRC REGION","TOTAL") -> 0.40761 | U2: =GETPIVOTDATA("Sum of EC",CMAQ_2008!$R$10,"JDAY",$C2,"SRC CAT","TOTAL","SRC REGION","TOTAL") -> 0.13468 | V2: =GETPIVOTDATA("Sum of POA",CMAQ_2008!$R$10,"JDAY",$C2,"SRC CAT","TOTAL","SRC REGION","TOTAL") -> 0.42365 | W2: =GETPIVOTDATA("Sum of OPM25",CMAQ_2008!$R$10,"JDAY",$C2,"SRC CAT","TOTAL","SRC REGION","TOTAL") -> 1.3735 | X2: =GETPIVOTDATA("Sum of PMC",CMAQ_2008!$R$10,"JDAY",$C2,"SRC CAT","TOTAL","SRC REGION","TOTAL") -> 3.6218 | AA2: =GETPIVOTDATA("Sum of SSA",CMAQ_2008!$R$10,"JDAY",$C2,"SRC CAT","TOTAL","SRC REGION","TOTAL") -> 0.056084 | AB2: =GETPIVOTDATA("Sum of SOAA",CMAQ_2008!$R$10,"JDAY",$C2,"SRC CAT","TOTAL","SRC REGION","TOTAL") -> 0.0073373 | AC2: =GETPIVOTDATA("Sum of SOAB",CMAQ_2008!$R$10,"JDAY",$C2,"SRC CAT","TOTAL","SRC REGION","TOTAL") -> 0.034806 | AE2: =GETPIVOTDATA("Sum of SO4",CMAQ_2008!$R$10,"JDAY",$C2,"SRC CAT",CMAQ_2008!AF$3,"SRC REGION",CMAQ_2008!AF$4) -> 4.2953e-08 | AF2: =GETPIVOTDATA("Sum of SO4",CMAQ_2008!$R$10,"JDAY",$C2,"SRC CAT",CMAQ_2008!AG$3,"SRC REGION",CMAQ_2008!AG$4) -> 1.0432e-13 | AG2: =GETPIVOTDATA("Sum of SO4",CMAQ_2008!$R$10,"JDAY",$C2,"SRC CAT",CMAQ_2008!AH$3,"SRC REGION",CMAQ_2008!AH$4) -> 9.4974e-07 | AH2: =GETPIVOTDATA("Sum of SO4",CMAQ_2008!$R$10,"JDAY",$C2,"SRC CAT",CMAQ_2008!AI$3,"SRC REGION",CMAQ_2008!AI$4) -> 1.0432e-13 | AI2: =GETPIVOTDATA("Sum of SO4",CMAQ_2008!$R$10,"JDAY",$C2,"SRC CAT",CMAQ_2008!AJ$3,"SRC REGION",CMAQ_2008!AJ$4) -> 1.0432e-13 | AJ2: =GETPIVOTDATA("Sum of SO4",CMAQ_2008!$R$10,"JDAY",$C2,"SRC CAT",CMAQ_2008!AK$3,"SRC REGION",CMAQ_2008!AK$4) -> 1.0432e-13 | AK2: =GETPIVOTDATA("Sum of SO4",CMAQ_2008!$R$10,"JDAY",$C2,"SRC CAT",CMAQ_2008!AL$3,"SRC REGION",CMAQ_2008!AL$4) -> 1.0432e-13 | AL2: =GETPIVOTDATA("Sum of SO4",CMAQ_2008!$R$10,"JDAY",$C2,"SRC CAT",CMAQ_2008!AM$3,"SRC REGION",CMAQ_2008!AM$4) -> 1.0432e-13 | AM2: =GETPIVOTDATA("Sum of SO4",CMAQ_2008!$R$10,"JDAY",$C2,"SRC CAT",CMAQ_2008!AN$3,"SRC REGION",CMAQ_2008!AN$4) -> 5.6831e-05 | AN2: =GETPIVOTDATA("Sum of SO4",CMAQ_2008!$R$10,"JDAY",$C2,"SRC CAT",CMAQ_2008!AO$3,"SRC REGION",CMAQ_2008!AO$4) -> 0.00010273 | AO2: =GETPIVOTDATA("Sum of SO4",CMAQ_2008!$R$10,"JDAY",$C2,"SRC CAT",CMAQ_2008!AP$3,"SRC REGION",CMAQ_2008!AP$4) -> 1.0432e-13 | AP2: =GETPIVOTDATA("Sum of SO4",CMAQ_2008!$R$10,"JDAY",$C2,"SRC CAT",CMAQ_2008!AQ$3,"SRC REGION",CMAQ_2008!AQ$4) -> 1.0432e-13 | AQ2: =GETPIVOTDATA("Sum of SO4",CMAQ_2008!$R$10,"JDAY",$C2,"SRC CAT",CMAQ_2008!AR$3,"SRC REGION",CMAQ_2008!AR$4) -> 1.0432e-13 | AR2: =GETPIVOTDATA("Sum of SO4",CMAQ_2008!$R$10,"JDAY",$C2,"SRC CAT",CMAQ_2008!AS$3,"SRC REGION",CMAQ_2008!AS$4) -> 1.0432e-13 | AS2: =GETPIVOTDATA("Sum of SO4",CMAQ_2008!$R$10,"JDAY",$C2,"SRC CAT",CMAQ_2008!AT$3,"SRC REGION",CMAQ_2008!AT$4) -> 1.0432e-13 | AT2: =GETPIVOTDATA("Sum of SO4",CMAQ_2008!$R$10,"JDAY",$C2,"SRC CAT",CMAQ_2008!AU$3,"SRC REGION",CMAQ_2008!AU$4) -> 1.5308e-07 | AU2: =GETPIVOTDATA("Sum of SO4",CMAQ_2008!$R$10,"JDAY",$C2,"SRC CAT",CMAQ_2008!AV$3,"SRC REGION",CMAQ_2008!AV$4) -> 1.2614e-09 | AV2: =GETPIVOTDATA("Sum of SO4",CMAQ_2008!$R$10,"JDAY",$C2,"SRC CAT",CMAQ_2008!AW$3,"SRC REGION",CMAQ_2008!AW$4) -> 1.0432e-13 | AW2: =GETPIVOTDATA("Sum of SO4",CMAQ_2008!$R$10,"JDAY",$C2,"SRC CAT",CMAQ_2008!AX$3,"SRC REGION",CMAQ_2008!AX$4) -> 0.00083288 | AX2: =GETPIVOTDATA("Sum of SO4",CMAQ_2008!$R$10,"JDAY",$C2,"SRC CAT",CMAQ_2008!AY$3,"SRC REGION",CMAQ_2008!AY$4) -> 6.4951e-10 | AY2: =GETPIVOTDATA("Sum of SO4",CMAQ_2008!$R$10,"JDAY",$C2,"SRC CAT",CMAQ_2008!AZ$3,"SRC REGION",CMAQ_2008!AZ$4) -> 0.010737 | AZ2: =GETPIVOTDATA("Sum of SO4",CMAQ_2008!$R$10,"JDAY",$C2,"SRC CAT",CMAQ_2008!BA$3,"SRC REGION",CMAQ_2008!BA$4) -> 1.4277e-05 | BA2: =GETPIVOTDATA("Sum of SO4",CMAQ_2008!$R$10,"JDAY",$C2,"SRC CAT",CMAQ_2008!BB$3,"SRC REGION",CMAQ_2008!BB$4) -> 1.0432e-13 | BB2: =GETPIVOTDATA("Sum of SO4",CMAQ_2008!$R$10,"JDAY",$C2,"SRC CAT",CMAQ_2008!BC$3,"SRC REGION",CMAQ_2008!BC$4) -> 8.3728e-09 | BC2: =GETPIVOTDATA("Sum of SO4",CMAQ_2008!$R$10,"JDAY",$C2,"SRC CAT",CMAQ_2008!BD$3,"SRC REGION",CMAQ_2008!BD$4) -> 7.8429e-07 | BD2: =GETPIVOTDATA("Sum of SO4",CMAQ_2008!$R$10,"JDAY",$C2,"SRC CAT",CMAQ_2008!BE$3,"SRC REGION",CMAQ_2008!BE$4) -> 4.9133e-05 | BE2: =GETPIVOTDATA("Sum of SO4",CMAQ_2008!$R$10,"JDAY",$C2,"SRC CAT",CMAQ_2008!BF$3,"SRC REGION",CMAQ_2008!BF$4) -> 1.0432e-13 | BF2: =GETPIVOTDATA("Sum of SO4",CMAQ_2008!$R$10,"JDAY",$C2,"SRC CAT",CMAQ_2008!BG$3,"SRC REGION",CMAQ_2008!BG$4) -> 1.0432e-13 | BG2: =GETPIVOTDATA("Sum of SO4",CMAQ_2008!$R$10,"JDAY",$C2,"SRC CAT",CMAQ_2008!BH$3,"SRC REGION",CMAQ_2008!BH$4) -> 0.0001555 | BH2: =GETPIVOTDATA("Sum of SO4",CMAQ_2008!$R$10,"JDAY",$C2,"SRC CAT",CMAQ_2008!BI$3,"SRC REGION",CMAQ_2008!BI$4) -> 1.0432e-13 | BI2: =GETPIVOTDATA("Sum of SO4",CMAQ_2008!$R$10,"JDAY",$C2,"SRC CAT",CMAQ_2008!BJ$3,"SRC REGION",CMAQ_2008!BJ$4) -> 1.0432e-13 | BJ2: =GETPIVOTDATA("Sum of SO4",CMAQ_2008!$R$10,"JDAY",$C2,"SRC CAT",CMAQ_2008!BK$3,"SRC REGION",CMAQ_2008!BK$4) -> 1.0432e-13 | BK2: =GETPIVOTDATA("Sum of SO4",CMAQ_2008!$R$10,"JDAY",$C2,"SRC CAT",CMAQ_2008!BL$3,"SRC REGION",CMAQ_2008!BL$4) -> 7.8006e-06 | BL2: =GETPIVOTDATA("Sum of SO4",CMAQ_2008!$R$10,"JDAY",$C2,"SRC CAT",CMAQ_2008!BM$3,"SRC REGION",CMAQ_2008!BM$4) -> 1.734e-06 | BM2: =GETPIVOTDATA("Sum of SO4",CMAQ_2008!$R$10,"JDAY",$C2,"SRC CAT",CMAQ_2008!BN$3,"SRC REGION",CMAQ_2008!BN$4) -> 1.2628e-05 | BN2: =GETPIVOTDATA("Sum of SO4",CMAQ_2008!$R$10,"JDAY",$C2,"SRC CAT",CMAQ_2008!BO$3,"SRC REGION",CMAQ_2008!BO$4) -> 1.0432e-13 | BO2: =GETPIVOTDATA("Sum of SO4",CMAQ_2008!$R$10,"JDAY",$C2,"SRC CAT",CMAQ_2008!BP$3,"SRC REGION",CMAQ_2008!BP$4) -> 1.0432e-13 | BP2: =GETPIVOTDATA("Sum of SO4",CMAQ_2008!$R$10,"JDAY",$C2,"SRC CAT",CMAQ_2008!BQ$3,"SRC REGION",CMAQ_2008!BQ$4) -> 1.4374e-08 | BQ2: =GETPIVOTDATA("Sum of SO4",CMAQ_2008!$R$10,"JDAY",$C2,"SRC CAT",CMAQ_2008!BR$3,"SRC REGION",CMAQ_2008!BR$4) -> 1.0432e-13 | BR2: =GETPIVOTDATA("Sum of SO4",CMAQ_2008!$R$10,"JDAY",$C2,"SRC CAT",CMAQ_2008!BS$3,"SRC REGION",CMAQ_2008!BS$4) -> 0.00014828 | BS2: =GETPIVOTDATA("Sum of SO4",CMAQ_2008!$R$10,"JDAY",$C2,"SRC CAT",CMAQ_2008!BT$3,"SRC REGION",CMAQ_2008!BT$4) -> 1.0432e-13 | BT2: =GETPIVOTDATA("Sum of SO4",CMAQ_2008!$R$10,"JDAY",$C2,"SRC CAT",CMAQ_2008!BU$3,"SRC REGION",CMAQ_2008!BU$4) -> 1.0432e-13 | BU2: =GETPIVOTDATA("Sum of SO4",CMAQ_2008!$R$10,"JDAY",$C2,"SRC CAT",CMAQ_2008!BV$3,"SRC REGION",CMAQ_2008!BV$4) -> 4.1406e-08 | BV2: =GETPIVOTDATA("Sum of SO4",CMAQ_2008!$R$10,"JDAY",$C2,"SRC CAT",CMAQ_2008!BW$3,"SRC REGION",CMAQ_2008!BW$4) -> 1.2983e-08 | BW2: =GETPIVOTDATA("Sum of SO4",CMAQ_2008!$R$10,"JDAY",$C2,"SRC CAT",CMAQ_2008!BX$3,"SRC REGION",CMAQ_2008!BX$4) -> 2.9158e-07 | BX2: =GETPIVOTDATA("Sum of SO4",CMAQ_2008!$R$10,"JDAY",$C2,"SRC CAT",CMAQ_2008!BY$3,"SRC REGION",CMAQ_2008!BY$4) -> 7.8751e-06 | BY2: =GETPIVOTDATA("Sum of SO4",CMAQ_2008!$R$10,"JDAY",$C2,"SRC CAT",CMAQ_2008!BZ$3,"SRC REGION",CMAQ_2008!BZ$4) -> 1.0432e-13 | BZ2: =GETPIVOTDATA("Sum of SO4",CMAQ_2008!$R$10,"JDAY",$C2,"SRC CAT",CMAQ_2008!CA$3,"SRC REGION",CMAQ_2008!CA$4) -> 1.0432e-13 | CA2: =GETPIVOTDATA("Sum of SO4",CMAQ_2008!$R$10,"JDAY",$C2,"SRC CAT",CMAQ_2008!CB$3,"SRC REGION",CMAQ_2008!CB$4) -> 0.00040808 | CB2: =GETPIVOTDATA("Sum of SO4",CMAQ_2008!$R$10,"JDAY",$C2,"SRC CAT",CMAQ_2008!CC$3,"SRC REGION",CMAQ_2008!CC$4) -> 0.00083938 | CC2: =GETPIVOTDATA("Sum of SO4",CMAQ_2008!$R$10,"JDAY",$C2,"SRC CAT",CMAQ_2008!CD$3,"SRC REGION",CMAQ_2008!CD$4) -> 1.0432e-13 | CD2: =GETPIVOTDATA("Sum of SO4",CMAQ_2008!$R$10,"JDAY",$C2,"SRC CAT",CMAQ_2008!CE$3,"SRC REGION",CMAQ_2008!CE$4) -> 1.0432e-13 | CE2: =GETPIVOTDATA("Sum of SO4",CMAQ_2008!$R$10,"JDAY",$C2,"SRC CAT",CMAQ_2008!CF$3,"SRC REGION",CMAQ_2008!CF$4) -> 7.51e-05 | CF2: =GETPIVOTDATA("Sum of SO4",CMAQ_2008!$R$10,"JDAY",$C2,"SRC CAT",CMAQ_2008!CG$3,"SRC REGION",CMAQ_2008!CG$4) -> 1.2818e-05 | CG2: =GETPIVOTDATA("Sum of SO4",CMAQ_2008!$R$10,"JDAY",$C2,"SRC CAT",CMAQ_2008!CH$3,"SRC REGION",CMAQ_2008!CH$4) -> 3.1175e-05 | CH2: =GETPIVOTDATA("Sum of SO4",CMAQ_2008!$R$10,"JDAY",$C2,"SRC CAT",CMAQ_2008!CI$3,"SRC REGION",CMAQ_2008!CI$4) -> 6.8666e-07 | CI2: =GETPIVOTDATA("Sum of SO4",CMAQ_2008!$R$10,"JDAY",$C2,"SRC CAT",CMAQ_2008!CJ$3,"SRC REGION",CMAQ_2008!CJ$4) -> 1.0432e-13 | CJ2: =GETPIVOTDATA("Sum of SO4",CMAQ_2008!$R$10,"JDAY",$C2,"SRC CAT",CMAQ_2008!CK$3,"SRC REGION",CMAQ_2008!CK$4) -> 1.0432e-13 | CK2: =GETPIVOTDATA("Sum of SO4",CMAQ_2008!$R$10,"JDAY",$C2,"SRC CAT",CMAQ_2008!CL$3,"SRC REGION",CMAQ_2008!CL$4) -> 2.6496e-08 | CL2: =GETPIVOTDATA("Sum of SO4",CMAQ_2008!$R$10,"JDAY",$C2,"SRC CAT",CMAQ_2008!CM$3,"SRC REGION",CMAQ_2008!CM$4) -> 1.3611e-07 | CM2: =GETPIVOTDATA("Sum of SO4",CMAQ_2008!$R$10,"JDAY",$C2,"SRC CAT",CMAQ_2008!CN$3,"SRC REGION",CMAQ_2008!CN$4) -> 1.0432e-13 | CN2: =GETPIVOTDATA("Sum of SO4",CMAQ_2008!$R$10,"JDAY",$C2,"SRC CAT",CMAQ_2008!CO$3,"SRC REGION",CMAQ_2008!CO$4) -> 1.0432e-13 | CO2: =GETPIVOTDATA("Sum of SO4",CMAQ_2008!$R$10,"JDAY",$C2,"SRC CAT",CMAQ_2008!CP$3,"SRC REGION",CMAQ_2008!CP$4) -> 1.0432e-13 | CP2: =GETPIVOTDATA("Sum of SO4",CMAQ_2008!$R$10,"JDAY",$C2,"SRC CAT",CMAQ_2008!CQ$3,"SRC REGION",CMAQ_2008!CQ$4) -> 8.9387e-05 | CQ2: =GETPIVOTDATA("Sum of SO4",CMAQ_2008!$R$10,"JDAY",$C2,"SRC CAT",CMAQ_2008!CR$3,"SRC REGION",CMAQ_2008!CR$4) -> 1.0432e-13 | CR2: =GETPIVOTDATA("Sum of SO4",CMAQ_2008!$R$10,"JDAY",$C2,"SRC CAT",CMAQ_2008!CS$3,"SRC REGION",CMAQ_2008!CS$4) -> 5.9163e-07 | CS2: =GETPIVOTDATA("Sum of SO4",CMAQ_2008!$R$10,"JDAY",$C2,"SRC CAT",CMAQ_2008!CT$3,"SRC REGION",CMAQ_2008!CT$4) -> 9.2404e-07 | CT2: =GETPIVOTDATA("Sum of SO4",CMAQ_2008!$R$10,"JDAY",$C2,"SRC CAT",CMAQ_2008!CU$3,"SRC REGION",CMAQ_2008!CU$4) -> 1.0432e-13 | CU2: =GETPIVOTDATA("Sum of SO4",CMAQ_2008!$R$10,"JDAY",$C2,"SRC CAT",CMAQ_2008!CV$3,"SRC REGION",CMAQ_2008!CV$4) -> 1.0432e-13 | CV2: =GETPIVOTDATA("Sum of SO4",CMAQ_2008!$R$10,"JDAY",$C2,"SRC CAT",CMAQ_2008!CW$3,"SRC REGION",CMAQ_2008!CW$4) -> 1.6779e-05 | CW2: =GETPIVOTDATA("Sum of SO4",CMAQ_2008!$R$10,"JDAY",$C2,"SRC CAT",CMAQ_2008!CX$3,"SRC REGION",CMAQ_2008!CX$4) -> 0.00010785 | CX2: =GETPIVOTDATA("Sum of SO4",CMAQ_2008!$R$10,"JDAY",$C2,"SRC CAT",CMAQ_2008!CY$3,"SRC REGION",CMAQ_2008!CY$4) -> 1.0432e-13 | CY2: =GETPIVOTDATA("Sum of SO4",CMAQ_2008!$R$10,"JDAY",$C2,"SRC CAT",CMAQ_2008!CZ$3,"SRC REGION",CMAQ_2008!CZ$4) -> 1.0432e-13 | CZ2: =GETPIVOTDATA("Sum of SO4",CMAQ_2008!$R$10,"JDAY",$C2,"SRC CAT",CMAQ_2008!DA$3,"SRC REGION",CMAQ_2008!DA$4) -> 8.6211e-06 | DA2: =GETPIVOTDATA("Sum of SO4",CMAQ_2008!$R$10,"JDAY",$C2,"SRC CAT",CMAQ_2008!DB$3,"SRC REGION",CMAQ_2008!DB$4) -> 1.0432e-13 | DB2: =GETPIVOTDATA("Sum of SO4",CMAQ_2008!$R$10,"JDAY",$C2,"SRC CAT",CMAQ_2008!DC$3,"SRC REGION",CMAQ_2008!DC$4) -> 1.0544e-05 | DC2: =GETPIVOTDATA("Sum of SO4",CMAQ_2008!$R$10,"JDAY",$C2,"SRC CAT",CMAQ_2008!DD$3,"SRC REGION",CMAQ_2008!DD$4) -> 1.0432e-13 | DD2: =GETPIVOTDATA("Sum of SO4",CMAQ_2008!$R$10,"JDAY",$C2,"SRC CAT",CMAQ_2008!DE$3,"SRC REGION",CMAQ_2008!DE$4) -> 4.3119e-08 | DE2: =GETPIVOTDATA("Sum of SO4",CMAQ_2008!$R$10,"JDAY",$C2,"SRC CAT",CMAQ_2008!DF$3,"SRC REGION",CMAQ_2008!DF$4) -> 1.0432e-13 | DF2: =GETPIVOTDATA("Sum of SO4",CMAQ_2008!$R$10,"JDAY",$C2,"SRC CAT",CMAQ_2008!DG$3,"SRC REGION",CMAQ_2008!DG$4) -> 2.491e-09 | DG2: =GETPIVOTDATA("Sum of SO4",CMAQ_2008!$R$10,"JDAY",$C2,"SRC CAT",CMAQ_2008!DH$3,"SRC REGION",CMAQ_2008!DH$4) -> 1.0432e-13 | DH2: =GETPIVOTDATA("Sum of SO4",CMAQ_2008!$R$10,"JDAY",$C2,"SRC CAT",CMAQ_2008!DI$3,"SRC REGION",CMAQ_2008!DI$4) -> 0.0021779 | DI2: =GETPIVOTDATA("Sum of SO4",CMAQ_2008!$R$10,"JDAY",$C2,"SRC CAT",CMAQ_2008!DJ$3,"SRC REGION",CMAQ_2008!DJ$4) -> 1.0889e-11 | DJ2: =GETPIVOTDATA("Sum of SO4",CMAQ_2008!$R$10,"JDAY",$C2,"SRC CAT",CMAQ_2008!DK$3,"SRC REGION",CMAQ_2008!DK$4) -> 1.0432e-13 | DK2: =GETPIVOTDATA("Sum of SO4",CMAQ_2008!$R$10,"JDAY",$C2,"SRC CAT",CMAQ_2008!DL$3,"SRC REGION",CMAQ_2008!DL$4) -> 0.0035366 | DL2: =GETPIVOTDATA("Sum of SO4",CMAQ_2008!$R$10,"JDAY",$C2,"SRC CAT",CMAQ_2008!DM$3,"SRC REGION",CMAQ_2008!DM$4) -> 3.0803e-05 | DM2: =GETPIVOTDATA("Sum of SO4",CMAQ_2008!$R$10,"JDAY",$C2,"SRC CAT",CMAQ_2008!DN$3,"SRC REGION",CMAQ_2008!DN$4) -> 4.829e-05 | DN2: =GETPIVOTDATA("Sum of SO4",CMAQ_2008!$R$10,"JDAY",$C2,"SRC CAT",CMAQ_2008!DO$3,"SRC REGION",CMAQ_2008!DO$4) -> 0.0023762 | DO2: =GETPIVOTDATA("Sum of SO4",CMAQ_2008!$R$10,"JDAY",$C2,"SRC CAT",CMAQ_2008!DP$3,"SRC REGION",CMAQ_2008!DP$4) -> 0.01326 | DP2: =GETPIVOTDATA("Sum of SO4",CMAQ_2008!$R$10,"JDAY",$C2,"SRC CAT",CMAQ_2008!DQ$3,"SRC REGION",CMAQ_2008!DQ$4) -> 0.0048299 | DQ2: =GETPIVOTDATA("Sum of SO4",CMAQ_2008!$R$10,"JDAY",$C2,"SRC CAT",CMAQ_2008!DR$3,"SRC REGION",CMAQ_2008!DR$4) -> 0.048 | DR2: =GETPIVOTDATA("Sum of SO4",CMAQ_2008!$R$10,"JDAY",$C2,"SRC CAT",CMAQ_2008!DS$3,"SRC REGION",CMAQ_2008!DS$4) -> 0.063806 | DS2: =GETPIVOTDATA("Sum of SO4",CMAQ_2008!$R$10,"JDAY",$C2,"SRC CAT",CMAQ_2008!DT$3,"SRC REGION",CMAQ_2008!DT$4) -> 0.0099127 | DT2: =GETPIVOTDATA("Sum of SO4",CMAQ_2008!$R$10,"JDAY",$C2,"SRC CAT",CMAQ_2008!DU$3,"SRC REGION",CMAQ_2008!DU$4) -> 0.016239 | DU2: =GETPIVOTDATA("Sum of SO4",CMAQ_2008!$R$10,"JDAY",$C2,"SRC CAT",CMAQ_2008!DV$3,"SRC REGION",CMAQ_2008!DV$4) -> 0.030725 | DV2: =GETPIVOTDATA("Sum of SO4",CMAQ_2008!$R$10,"JDAY",$C2,"SRC CAT",CMAQ_2008!DW$3,"SRC REGION",CMAQ_2008!DW$4) -> 0.013804 | DW2: =GETPIVOTDATA("Sum of SO4",CMAQ_2008!$R$10,"JDAY",$C2,"SRC CAT",CMAQ_2008!DX$3,"SRC REGION",CMAQ_2008!DX$4) -> 0.00053274 | DX2: =GETPIVOTDATA("Sum of SO4",CMAQ_2008!$R$10,"JDAY",$C2,"SRC CAT",CMAQ_2008!DY$3,"SRC REGION",CMAQ_2008!DY$4) -> 0.013813 | DY2: =GETPIVOTDATA("Sum of SO4",CMAQ_2008!$R$10,"JDAY",$C2,"SRC CAT",CMAQ_2008!DZ$3,"SRC REGION",CMAQ_2008!DZ$4) -> 0.00012703 | DZ2: =GETPIVOTDATA("Sum of SO4",CMAQ_2008!$R$10,"JDAY",$C2,"SRC CAT",CMAQ_2008!EA$3,"SRC REGION",CMAQ_2008!EA$4) -> 0.00068709 | EA2: =GETPIVOTDATA("Sum of SO4",CMAQ_2008!$R$10,"JDAY",$C2,"SRC CAT",CMAQ_2008!EB$3,"SRC REGION",CMAQ_2008!EB$4) -> 1.9119e-05 | EB2: =GETPIVOTDATA("Sum of SO4",CMAQ_2008!$R$10,"JDAY",$C2,"SRC CAT",CMAQ_2008!EC$3,"SRC REGION",CMAQ_2008!EC$4) -> 1.5152e-05 | EC2: =GETPIVOTDATA("Sum of SO4",CMAQ_2008!$R$10,"JDAY",$C2,"SRC CAT",CMAQ_2008!ED$3,"SRC REGION",CMAQ_2008!ED$4) -> 0.21796 | ED2: =GETPIVOTDATA("Sum of SO4",CMAQ_2008!$R$10,"JDAY",$C2,"SRC CAT",CMAQ_2008!EE$3,"SRC REGION",CMAQ_2008!EE$4) -> 4.4561e-07 | EE2: =GETPIVOTDATA("Sum of SO4",CMAQ_2008!$R$10,"JDAY",$C2,"SRC CAT",CMAQ_2008!EF$3,"SRC REGION",CMAQ_2008!EF$4) -> 0.0010152 | EF2: =GETPIVOTDATA("Sum of SO4",CMAQ_2008!$R$10,"JDAY",$C2,"SRC CAT",CMAQ_2008!EG$3,"SRC REGION",CMAQ_2008!EG$4) -> 0.082041 | EG2: =GETPIVOTDATA("Sum of SO4",CMAQ_2008!$R$10,"JDAY",$C2,"SRC CAT",CMAQ_2008!EH$3,"SRC REGION",CMAQ_2008!EH$4) -> 2.5135e-05 | EI2: =GETPIVOTDATA("Sum of NO3",CMAQ_2008!$R$10,"JDAY",$C2,"SRC CAT",CMAQ_2008!EJ$3,"SRC REGION",CMAQ_2008!EJ$4) -> 0.00011197 | EJ2: =GETPIVOTDATA("Sum of NO3",CMAQ_2008!$R$10,"JDAY",$C2,"SRC CAT",CMAQ_2008!EK$3,"SRC REGION",CMAQ_2008!EK$4) -> 1.381e-08 | EK2: =GETPIVOTDATA("Sum of NO3",CMAQ_2008!$R$10,"JDAY",$C2,"SRC CAT",CMAQ_2008!EL$3,"SRC REGION",CMAQ_2008!EL$4) -> 1.6483e-06 | EL2: =GETPIVOTDATA("Sum of NO3",CMAQ_2008!$R$10,"JDAY",$C2,"SRC CAT",CMAQ_2008!EM$3,"SRC REGION",CMAQ_2008!EM$4) -> 4.3148e-08 | EM2: =GETPIVOTDATA("Sum of NO3",CMAQ_2008!$R$10,"JDAY",$C2,"SRC CAT",CMAQ_2008!EN$3,"SRC REGION",CMAQ_2008!EN$4) -> 0.00017836 | EN2: =GETPIVOTDATA("Sum of NO3",CMAQ_2008!$R$10,"JDAY",$C2,"SRC CAT",CMAQ_2008!EO$3,"SRC REGION",CMAQ_2008!EO$4) -> 8.7113e-07 | EO2: =GETPIVOTDATA("Sum of NO3",CMAQ_2008!$R$10,"JDAY",$C2,"SRC CAT",CMAQ_2008!EP$3,"SRC REGION",CMAQ_2008!EP$4) -> 2.4794e-05 | EP2: =GETPIVOTDATA("Sum of NO3",CMAQ_2008!$R$10,"JDAY",$C2,"SRC CAT",CMAQ_2008!EQ$3,"SRC REGION",CMAQ_2008!EQ$4) -> 0.00024312 | EQ2: =GETPIVOTDATA("Sum of NO3",CMAQ_2008!$R$10,"JDAY",$C2,"SRC CAT",CMAQ_2008!ER$3,"SRC REGION",CMAQ_2008!ER$4) -> 1.4385e-05 | ER2: =GETPIVOTDATA("Sum of NO3",CMAQ_2008!$R$10,"JDAY",$C2,"SRC CAT",CMAQ_2008!ES$3,"SRC REGION",CMAQ_2008!ES$4) -> 1.8738e-05 | ES2: =GETPIVOTDATA("Sum of NO3",CMAQ_2008!$R$10,"JDAY",$C2,"SRC CAT",CMAQ_2008!ET$3,"SRC REGION",CMAQ_2008!ET$4) -> 6.4965e-07 | ET2: =GETPIVOTDATA("Sum of NO3",CMAQ_2008!$R$10,"JDAY",$C2,"SRC CAT",CMAQ_2008!EU$3,"SRC REGION",CMAQ_2008!EU$4) -> 1.1376e-14 | EU2: =GETPIVOTDATA("Sum of NO3",CMAQ_2008!$R$10,"JDAY",$C2,"SRC CAT",CMAQ_2008!EV$3,"SRC REGION",CMAQ_2008!EV$4) -> 2.181e-06 | EV2: =GETPIVOTDATA("Sum of NO3",CMAQ_2008!$R$10,"JDAY",$C2,"SRC CAT",CMAQ_2008!EW$3,"SRC REGION",CMAQ_2008!EW$4) -> 6.0507e-06 | EW2: =GETPIVOTDATA("Sum of NO3",CMAQ_2008!$R$10,"JDAY",$C2,"SRC CAT",CMAQ_2008!EX$3,"SRC REGION",CMAQ_2008!EX$4) -> 6.0916e-08 | EX2: =GETPIVOTDATA("Sum of NO3",CMAQ_2008!$R$10,"JDAY",$C2,"SRC CAT",CMAQ_2008!EY$3,"SRC REGION",CMAQ_2008!EY$4) -> 2.7095e-08 | EY2: =GETPIVOTDATA("Sum of NO3",CMAQ_2008!$R$10,"JDAY",$C2,"SRC CAT",CMAQ_2008!EZ$3,"SRC REGION",CMAQ_2008!EZ$4) -> 1.083e-07 | EZ2: =GETPIVOTDATA("Sum of NO3",CMAQ_2008!$R$10,"JDAY",$C2,"SRC CAT",CMAQ_2008!FA$3,"SRC REGION",CMAQ_2008!FA$4) -> 6.2134e-09 | FA2: =GETPIVOTDATA("Sum of NO3",CMAQ_2008!$R$10,"JDAY",$C2,"SRC CAT",CMAQ_2008!FB$3,"SRC REGION",CMAQ_2008!FB$4) -> 6.0166e-05 | FB2: =GETPIVOTDATA("Sum of NO3",CMAQ_2008!$R$10,"JDAY",$C2,"SRC CAT",CMAQ_2008!FC$3,"SRC REGION",CMAQ_2008!FC$4) -> 2.6955e-10 | FC2: =GETPIVOTDATA("Sum of NO3",CMAQ_2008!$R$10,"JDAY",$C2,"SRC CAT",CMAQ_2008!FD$3,"SRC REGION",CMAQ_2008!FD$4) -> 0.0047159 | FD2: =GETPIVOTDATA("Sum of NO3",CMAQ_2008!$R$10,"JDAY",$C2,"SRC CAT",CMAQ_2008!FE$3,"SRC REGION",CMAQ_2008!FE$4) -> 1.7959e-05 | FE2: =GETPIVOTDATA("Sum of NO3",CMAQ_2008!$R$10,"JDAY",$C2,"SRC CAT",CMAQ_2008!FF$3,"SRC REGION",CMAQ_2008!FF$4) -> 1.1376e-14 | FF2: =GETPIVOTDATA("Sum of NO3",CMAQ_2008!$R$10,"JDAY",$C2,"SRC CAT",CMAQ_2008!FG$3,"SRC REGION",CMAQ_2008!FG$4) -> 7.7706e-09 | FG2: =GETPIVOTDATA("Sum of NO3",CMAQ_2008!$R$10,"JDAY",$C2,"SRC CAT",CMAQ_2008!FH$3,"SRC REGION",CMAQ_2008!FH$4) -> 4.4141e-06 | FH2: =GETPIVOTDATA("Sum of NO3",CMAQ_2008!$R$10,"JDAY",$C2,"SRC CAT",CMAQ_2008!FI$3,"SRC REGION",CMAQ_2008!FI$4) -> 0.00033474 | FI2: =GETPIVOTDATA("Sum of NO3",CMAQ_2008!$R$10,"JDAY",$C2,"SRC CAT",CMAQ_2008!FJ$3,"SRC REGION",CMAQ_2008!FJ$4) -> 1.1376e-14 | FJ2: =GETPIVOTDATA("Sum of NO3",CMAQ_2008!$R$10,"JDAY",$C2,"SRC CAT",CMAQ_2008!FK$3,"SRC REGION",CMAQ_2008!FK$4) -> 1.1376e-14 | FK2: =GETPIVOTDATA("Sum of NO3",CMAQ_2008!$R$10,"JDAY",$C2,"SRC CAT",CMAQ_2008!FL$3,"SRC REGION",CMAQ_2008!FL$4) -> 0.00025422 | FL2: =GETPIVOTDATA("Sum of NO3",CMAQ_2008!$R$10,"JDAY",$C2,"SRC CAT",CMAQ_2008!FM$3,"SRC REGION",CMAQ_2008!FM$4) -> 1.1376e-14 | FM2: =GETPIVOTDATA("Sum of NO3",CMAQ_2008!$R$10,"JDAY",$C2,"SRC CAT",CMAQ_2008!FN$3,"SRC REGION",CMAQ_2008!FN$4) -> 1.1376e-14 | FN2: =GETPIVOTDATA("Sum of NO3",CMAQ_2008!$R$10,"JDAY",$C2,"SRC CAT",CMAQ_2008!FO$3,"SRC REGION",CMAQ_2008!FO$4) -> 1.1376e-14 | FO2: =GETPIVOTDATA("Sum of NO3",CMAQ_2008!$R$10,"JDAY",$C2,"SRC CAT",CMAQ_2008!FP$3,"SRC REGION",CMAQ_2008!FP$4) -> 3.8511e-05 | FP2: =GETPIVOTDATA("Sum of NO3",CMAQ_2008!$R$10,"JDAY",$C2,"SRC CAT",CMAQ_2008!FQ$3,"SRC REGION",CMAQ_2008!FQ$4) -> 1.1272e-05 | FQ2: =GETPIVOTDATA("Sum of NO3",CMAQ_2008!$R$10,"JDAY",$C2,"SRC CAT",CMAQ_2008!FR$3,"SRC REGION",CMAQ_2008!FR$4) -> 6.623e-05 | FR2: =GETPIVOTDATA("Sum of NO3",CMAQ_2008!$R$10,"JDAY",$C2,"SRC CAT",CMAQ_2008!FS$3,"SRC REGION",CMAQ_2008!FS$4) -> 1.1376e-14 | FS2: =GETPIVOTDATA("Sum of NO3",CMAQ_2008!$R$10,"JDAY",$C2,"SRC CAT",CMAQ_2008!FT$3,"SRC REGION",CMAQ_2008!FT$4) -> 1.1376e-14 | FT2: =GETPIVOTDATA("Sum of NO3",CMAQ_2008!$R$10,"JDAY",$C2,"SRC CAT",CMAQ_2008!FU$3,"SRC REGION",CMAQ_2008!FU$4) -> 2.7489e-08 | FU2: =GETPIVOTDATA("Sum of NO3",CMAQ_2008!$R$10,"JDAY",$C2,"SRC CAT",CMAQ_2008!FV$3,"SRC REGION",CMAQ_2008!FV$4) -> 1.1376e-14 | FV2: =GETPIVOTDATA("Sum of NO3",CMAQ_2008!$R$10,"JDAY",$C2,"SRC CAT",CMAQ_2008!FW$3,"SRC REGION",CMAQ_2008!FW$4) -> 0.00030227 | FW2: =GETPIVOTDATA("Sum of NO3",CMAQ_2008!$R$10,"JDAY",$C2,"SRC CAT",CMAQ_2008!FX$3,"SRC REGION",CMAQ_2008!FX$4) -> 1.1376e-14 | FX2: =GETPIVOTDATA("Sum of NO3",CMAQ_2008!$R$10,"JDAY",$C2,"SRC CAT",CMAQ_2008!FY$3,"SRC REGION",CMAQ_2008!FY$4) -> 1.1376e-14 | FY2: =GETPIVOTDATA("Sum of NO3",CMAQ_2008!$R$10,"JDAY",$C2,"SRC CAT",CMAQ_2008!FZ$3,"SRC REGION",CMAQ_2008!FZ$4) -> 7.7223e-08 | FZ2: =GETPIVOTDATA("Sum of NO3",CMAQ_2008!$R$10,"JDAY",$C2,"SRC CAT",CMAQ_2008!GA$3,"SRC REGION",CMAQ_2008!GA$4) -> 3.6367e-09 | GA2: =GETPIVOTDATA("Sum of NO3",CMAQ_2008!$R$10,"JDAY",$C2,"SRC CAT",CMAQ_2008!GB$3,"SRC REGION",CMAQ_2008!GB$4) -> 6.0668e-07 | GB2: =GETPIVOTDATA("Sum of NO3",CMAQ_2008!$R$10,"JDAY",$C2,"SRC CAT",CMAQ_2008!GC$3,"SRC REGION",CMAQ_2008!GC$4) -> 1.1006e-05 | GC2: =GETPIVOTDATA("Sum of NO3",CMAQ_2008!$R$10,"JDAY",$C2,"SRC CAT",CMAQ_2008!GD$3,"SRC REGION",CMAQ_2008!GD$4) -> 1.1376e-14 | GD2: =GETPIVOTDATA("Sum of NO3",CMAQ_2008!$R$10,"JDAY",$C2,"SRC CAT",CMAQ_2008!GE$3,"SRC REGION",CMAQ_2008!GE$4) -> 1.1376e-14 | GE2: =GETPIVOTDATA("Sum of NO3",CMAQ_2008!$R$10,"JDAY",$C2,"SRC CAT",CMAQ_2008!GF$3,"SRC REGION",CMAQ_2008!GF$4) -> 0.00080298 | GF2: =GETPIVOTDATA("Sum of NO3",CMAQ_2008!$R$10,"JDAY",$C2,"SRC CAT",CMAQ_2008!GG$3,"SRC REGION",CMAQ_2008!GG$4) -> 0.00089847 | GG2: =GETPIVOTDATA("Sum of NO3",CMAQ_2008!$R$10,"JDAY",$C2,"SRC CAT",CMAQ_2008!GH$3,"SRC REGION",CMAQ_2008!GH$4) -> 1.1376e-14 | GH2: =GETPIVOTDATA("Sum of NO3",CMAQ_2008!$R$10,"JDAY",$C2,"SRC CAT",CMAQ_2008!GI$3,"SRC REGION",CMAQ_2008!GI$4) -> 1.1376e-14 | GI2: =GETPIVOTDATA("Sum of NO3",CMAQ_2008!$R$10,"JDAY",$C2,"SRC CAT",CMAQ_2008!GJ$3,"SRC REGION",CMAQ_2008!GJ$4) -> 0.00015548 | GJ2: =GETPIVOTDATA("Sum of NO3",CMAQ_2008!$R$10,"JDAY",$C2,"SRC CAT",CMAQ_2008!GK$3,"SRC REGION",CMAQ_2008!GK$4) -> 7.9131e-05 | GK2: =GETPIVOTDATA("Sum of NO3",CMAQ_2008!$R$10,"JDAY",$C2,"SRC CAT",CMAQ_2008!GL$3,"SRC REGION",CMAQ_2008!GL$4) -> 0.0001748 | GL2: =GETPIVOTDATA("Sum of NO3",CMAQ_2008!$R$10,"JDAY",$C2,"SRC CAT",CMAQ_2008!GM$3,"SRC REGION",CMAQ_2008!GM$4) -> 7.4426e-06 | GM2: =GETPIVOTDATA("Sum of NO3",CMAQ_2008!$R$10,"JDAY",$C2,"SRC CAT",CMAQ_2008!GN$3,"SRC REGION",CMAQ_2008!GN$4) -> 1.1376e-14 | GN2: =GETPIVOTDATA("Sum of NO3",CMAQ_2008!$R$10,"JDAY",$C2,"SRC CAT",CMAQ_2008!GO$3,"SRC REGION",CMAQ_2008!GO$4) -> 1.1376e-14 | GO2: =GETPIVOTDATA("Sum of NO3",CMAQ_2008!$R$10,"JDAY",$C2,"SRC CAT",CMAQ_2008!GP$3,"SRC REGION",CMAQ_2008!GP$4) -> 4.231e-08 | GP2: =GETPIVOTDATA("Sum of NO3",CMAQ_2008!$R$10,"JDAY",$C2,"SRC CAT",CMAQ_2008!GQ$3,"SRC REGION",CMAQ_2008!GQ$4) -> 1.4635e-07 | GQ2: =GETPIVOTDATA("Sum of NO3",CMAQ_2008!$R$10,"JDAY",$C2,"SRC CAT",CMAQ_2008!GR$3,"SRC REGION",CMAQ_2008!GR$4) -> 1.1376e-14 | GR2: =GETPIVOTDATA("Sum of NO3",CMAQ_2008!$R$10,"JDAY",$C2,"SRC CAT",CMAQ_2008!GS$3,"SRC REGION",CMAQ_2008!GS$4) -> 1.1376e-14 | GS2: =GETPIVOTDATA("Sum of NO3",CMAQ_2008!$R$10,"JDAY",$C2,"SRC CAT",CMAQ_2008!GT$3,"SRC REGION",CMAQ_2008!GT$4) -> 1.1376e-14 | GT2: =GETPIVOTDATA("Sum of NO3",CMAQ_2008!$R$10,"JDAY",$C2,"SRC CAT",CMAQ_2008!GU$3,"SRC REGION",CMAQ_2008!GU$4) -> 2.6167e-05 | GU2: =GETPIVOTDATA("Sum of NO3",CMAQ_2008!$R$10,"JDAY",$C2,"SRC CAT",CMAQ_2008!GV$3,"SRC REGION",CMAQ_2008!GV$4) -> 1.1376e-14 | GV2: =GETPIVOTDATA("Sum of NO3",CMAQ_2008!$R$10,"JDAY",$C2,"SRC CAT",CMAQ_2008!GW$3,"SRC REGION",CMAQ_2008!GW$4) -> 4.0728e-07 | GW2: =GETPIVOTDATA("Sum of NO3",CMAQ_2008!$R$10,"JDAY",$C2,"SRC CAT",CMAQ_2008!GX$3,"SRC REGION",CMAQ_2008!GX$4) -> 1.5485e-06 | GX2: =GETPIVOTDATA("Sum of NO3",CMAQ_2008!$R$10,"JDAY",$C2,"SRC CAT",CMAQ_2008!GY$3,"SRC REGION",CMAQ_2008!GY$4) -> 1.1376e-14 | GY2: =GETPIVOTDATA("Sum of NO3",CMAQ_2008!$R$10,"JDAY",$C2,"SRC CAT",CMAQ_2008!GZ$3,"SRC REGION",CMAQ_2008!GZ$4) -> 1.1376e-14 | GZ2: =GETPIVOTDATA("Sum of NO3",CMAQ_2008!$R$10,"JDAY",$C2,"SRC CAT",CMAQ_2008!HA$3,"SRC REGION",CMAQ_2008!HA$4) -> 8.6168e-05 | HA2: =GETPIVOTDATA("Sum of NO3",CMAQ_2008!$R$10,"JDAY",$C2,"SRC CAT",CMAQ_2008!HB$3,"SRC REGION",CMAQ_2008!HB$4) -> 0.00011083 | HB2: =GETPIVOTDATA("Sum of NO3",CMAQ_2008!$R$10,"JDAY",$C2,"SRC CAT",CMAQ_2008!HC$3,"SRC REGION",CMAQ_2008!HC$4) -> 1.1376e-14 | HC2: =GETPIVOTDATA("Sum of NO3",CMAQ_2008!$R$10,"JDAY",$C2,"SRC CAT",CMAQ_2008!HD$3,"SRC REGION",CMAQ_2008!HD$4) -> 1.1376e-14 | HD2: =GETPIVOTDATA("Sum of NO3",CMAQ_2008!$R$10,"JDAY",$C2,"SRC CAT",CMAQ_2008!HE$3,"SRC REGION",CMAQ_2008!HE$4) -> 3.1734e-05 | HE2: =GETPIVOTDATA("Sum of NO3",CMAQ_2008!$R$10,"JDAY",$C2,"SRC CAT",CMAQ_2008!HF$3,"SRC REGION",CMAQ_2008!HF$4) -> 1.1376e-14 | HF2: =GETPIVOTDATA("Sum of NO3",CMAQ_2008!$R$10,"JDAY",$C2,"SRC CAT",CMAQ_2008!HG$3,"SRC REGION",CMAQ_2008!HG$4) -> 5.8089e-05 | HG2: =GETPIVOTDATA("Sum of NO3",CMAQ_2008!$R$10,"JDAY",$C2,"SRC CAT",CMAQ_2008!HH$3,"SRC REGION",CMAQ_2008!HH$4) -> 1.1376e-14 | HH2: =GETPIVOTDATA("Sum of NO3",CMAQ_2008!$R$10,"JDAY",$C2,"SRC CAT",CMAQ_2008!HI$3,"SRC REGION",CMAQ_2008!HI$4) -> 5.0298e-08 | HI2: =GETPIVOTDATA("Sum of NO3",CMAQ_2008!$R$10,"JDAY",$C2,"SRC CAT",CMAQ_2008!HJ$3,"SRC REGION",CMAQ_2008!HJ$4) -> 1.1376e-14 | HJ2: =GETPIVOTDATA("Sum of NO3",CMAQ_2008!$R$10,"JDAY",$C2,"SRC CAT",CMAQ_2008!HK$3,"SRC REGION",CMAQ_2008!HK$4) -> 3.0706e-09 | HK2: =GETPIVOTDATA("Sum of NO3",CMAQ_2008!$R$10,"JDAY",$C2,"SRC CAT",CMAQ_2008!HL$3,"SRC REGION",CMAQ_2008!HL$4) -> 1.1376e-14 | HL2: =GETPIVOTDATA("Sum of NO3",CMAQ_2008!$R$10,"JDAY",$C2,"SRC CAT",CMAQ_2008!HM$3,"SRC REGION",CMAQ_2008!HM$4) -> 0.0027937 | HM2: =GETPIVOTDATA("Sum of NO3",CMAQ_2008!$R$10,"JDAY",$C2,"SRC CAT",CMAQ_2008!HN$3,"SRC REGION",CMAQ_2008!HN$4) -> 6.0339e-12 | HN2: =GETPIVOTDATA("Sum of NO3",CMAQ_2008!$R$10,"JDAY",$C2,"SRC CAT",CMAQ_2008!HO$3,"SRC REGION",CMAQ_2008!HO$4) -> 1.1376e-14 | HO2: =GETPIVOTDATA("Sum of NO3",CMAQ_2008!$R$10,"JDAY",$C2,"SRC CAT",CMAQ_2008!HP$3,"SRC REGION",CMAQ_2008!HP$4) -> 0.034473 | HP2: =GETPIVOTDATA("Sum of NO3",CMAQ_2008!$R$10,"JDAY",$C2,"SRC CAT",CMAQ_2008!HQ$3,"SRC REGION",CMAQ_2008!HQ$4) -> 2.4211e-05 | HQ2: =GETPIVOTDATA("Sum of NO3",CMAQ_2008!$R$10,"JDAY",$C2,"SRC CAT",CMAQ_2008!HR$3,"SRC REGION",CMAQ_2008!HR$4) -> 0.00023929 | HR2: =GETPIVOTDATA("Sum of NO3",CMAQ_2008!$R$10,"JDAY",$C2,"SRC CAT",CMAQ_2008!HS$3,"SRC REGION",CMAQ_2008!HS$4) -> 0.011582 | HS2: =GETPIVOTDATA("Sum of NO3",CMAQ_2008!$R$10,"JDAY",$C2,"SRC CAT",CMAQ_2008!HT$3,"SRC REGION",CMAQ_2008!HT$4) -> 0.11133 | HT2: =GETPIVOTDATA("Sum of NO3",CMAQ_2008!$R$10,"JDAY",$C2,"SRC CAT",CMAQ_2008!HU$3,"SRC REGION",CMAQ_2008!HU$4) -> 0.0077944 | HU2: =GETPIVOTDATA("Sum of NO3",CMAQ_2008!$R$10,"JDAY",$C2,"SRC CAT",CMAQ_2008!HV$3,"SRC REGION",CMAQ_2008!HV$4) -> 0.046162 | HV2: =GETPIVOTDATA("Sum of NO3",CMAQ_2008!$R$10,"JDAY",$C2,"SRC CAT",CMAQ_2008!HW$3,"SRC REGION",CMAQ_2008!HW$4) -> 0.25264 | HW2: =GETPIVOTDATA("Sum of NO3",CMAQ_2008!$R$10,"JDAY",$C2,"SRC CAT",CMAQ_2008!HX$3,"SRC REGION",CMAQ_2008!HX$4) -> 0.012688 | HX2: =GETPIVOTDATA("Sum of NO3",CMAQ_2008!$R$10,"JDAY",$C2,"SRC CAT",CMAQ_2008!HY$3,"SRC REGION",CMAQ_2008!HY$4) -> 0.036331 | HY2: =GETPIVOTDATA("Sum of NO3",CMAQ_2008!$R$10,"JDAY",$C2,"SRC CAT",CMAQ_2008!HZ$3,"SRC REGION",CMAQ_2008!HZ$4) -> 0.058737 | HZ2: =GETPIVOTDATA("Sum of NO3",CMAQ_2008!$R$10,"JDAY",$C2,"SRC CAT",CMAQ_2008!IA$3,"SRC REGION",CMAQ_2008!IA$4) -> 0.015268 | IA2: =GETPIVOTDATA("Sum of NO3",CMAQ_2008!$R$10,"JDAY",$C2,"SRC CAT",CMAQ_2008!IB$3,"SRC REGION",CMAQ_2008!IB$4) -> 0.008211 | IB2: =GETPIVOTDATA("Sum of NO3",CMAQ_2008!$R$10,"JDAY",$C2,"SRC CAT",CMAQ_2008!IC$3,"SRC REGION",CMAQ_2008!IC$4) -> 0.065855 | IC2: =GETPIVOTDATA("Sum of NO3",CMAQ_2008!$R$10,"JDAY",$C2,"SRC CAT",CMAQ_2008!ID$3,"SRC REGION",CMAQ_2008!ID$4) -> 0.00010113 | ID2: =GETPIVOTDATA("Sum of NO3",CMAQ_2008!$R$10,"JDAY",$C2,"SRC CAT",CMAQ_2008!IE$3,"SRC REGION",CMAQ_2008!IE$4) -> 0.0013483 | IE2: =GETPIVOTDATA("Sum of NO3",CMAQ_2008!$R$10,"JDAY",$C2,"SRC CAT",CMAQ_2008!IF$3,"SRC REGION",CMAQ_2008!IF$4) -> 7.3724e-05 | IF2: =GETPIVOTDATA("Sum of NO3",CMAQ_2008!$R$10,"JDAY",$C2,"SRC CAT",CMAQ_2008!IG$3,"SRC REGION",CMAQ_2008!IG$4) -> 1.6701e-05 | IG2: =GETPIVOTDATA("Sum of NO3",CMAQ_2008!$R$10,"JDAY",$C2,"SRC CAT",CMAQ_2008!IH$3,"SRC REGION",CMAQ_2008!IH$4) -> 0.18107 | IH2: =GETPIVOTDATA("Sum of NO3",CMAQ_2008!$R$10,"JDAY",$C2,"SRC CAT",CMAQ_2008!II$3,"SRC REGION",CMAQ_2008!II$4) -> 5.2024e-08 | II2: =GETPIVOTDATA("Sum of NO3",CMAQ_2008!$R$10,"JDAY",$C2,"SRC CAT",CMAQ_2008!IJ$3,"SRC REGION",CMAQ_2008!IJ$4) -> 0.0023684 | IJ2: =GETPIVOTDATA("Sum of NO3",CMAQ_2008!$R$10,"JDAY",$C2,"SRC CAT",CMAQ_2008!IK$3,"SRC REGION",CMAQ_2008!IK$4) -> 0.019752 | IK2: =GETPIVOTDATA("Sum of NO3",CMAQ_2008!$R$10,"JDAY",$C2,"SRC CAT",CMAQ_2008!IL$3,"SRC REGION",CMAQ_2008!IL$4) -> 1.2816e-05 | IM2: =GETPIVOTDATA("Sum of POA",CMAQ_2008!$R$10,"JDAY",$C2,"SRC CAT",CMAQ_2008!IN$3,"SRC REGION",CMAQ_2008!IN$4) -> 1.7514e-16 | IN2: =GETPIVOTDATA("Sum of POA",CMAQ_2008!$R$10,"JDAY",$C2,"SRC CAT",CMAQ_2008!IO$3,"SRC REGION",CMAQ_2008!IO$4) -> 1.7514e-16 | IO2: =GETPIVOTDATA("Sum of POA",CMAQ_2008!$R$10,"JDAY",$C2,"SRC CAT",CMAQ_2008!IP$3,"SRC REGION",CMAQ_2008!IP$4) -> 1.7514e-16 | IP2: =GETPIVOTDATA("Sum of POA",CMAQ_2008!$R$10,"JDAY",$C2,"SRC CAT",CMAQ_2008!IQ$3,"SRC REGION",CMAQ_2008!IQ$4) -> 1.7514e-16 | IQ2: =GETPIVOTDATA("Sum of POA",CMAQ_2008!$R$10,"JDAY",$C2,"SRC CAT",CMAQ_2008!IR$3,"SRC REGION",CMAQ_2008!IR$4) -> 1.7514e-16 | IR2: =GETPIVOTDATA("Sum of POA",CMAQ_2008!$R$10,"JDAY",$C2,"SRC CAT",CMAQ_2008!IS$3,"SRC REGION",CMAQ_2008!IS$4) -> 1.7514e-16 | IS2: =GETPIVOTDATA("Sum of POA",CMAQ_2008!$R$10,"JDAY",$C2,"SRC CAT",CMAQ_2008!IT$3,"SRC REGION",CMAQ_2008!IT$4) -> 1.7514e-16 | IT2: =GETPIVOTDATA("Sum of POA",CMAQ_2008!$R$10,"JDAY",$C2,"SRC CAT",CMAQ_2008!IU$3,"SRC REGION",CMAQ_2008!IU$4) -> 1.7514e-16 | IU2: =GETPIVOTDATA("Sum of POA",CMAQ_2008!$R$10,"JDAY",$C2,"SRC CAT",CMAQ_2008!IV$3,"SRC REGION",CMAQ_2008!IV$4) -> 1.7514e-16 | IV2: =GETPIVOTDATA("Sum of POA",CMAQ_2008!$R$10,"JDAY",$C2,"SRC CAT",CMAQ_2008!IW$3,"SRC REGION",CMAQ_2008!IW$4) -> 1.7514e-16 | IW2: =GETPIVOTDATA("Sum of POA",CMAQ_2008!$R$10,"JDAY",$C2,"SRC CAT",CMAQ_2008!IX$3,"SRC REGION",CMAQ_2008!IX$4) -> 1.7514e-16 | IX2: =GETPIVOTDATA("Sum of POA",CMAQ_2008!$R$10,"JDAY",$C2,"SRC CAT",CMAQ_2008!IY$3,"SRC REGION",CMAQ_2008!IY$4) -> 1.7514e-16 | IY2: =GETPIVOTDATA("Sum of POA",CMAQ_2008!$R$10,"JDAY",$C2,"SRC CAT",CMAQ_2008!IZ$3,"SRC REGION",CMAQ_2008!IZ$4) -> 1.7514e-16 | IZ2: =GETPIVOTDATA("Sum of POA",CMAQ_2008!$R$10,"JDAY",$C2,"SRC CAT",CMAQ_2008!JA$3,"SRC REGION",CMAQ_2008!JA$4) -> 1.7514e-16 | JA2: =GETPIVOTDATA("Sum of POA",CMAQ_2008!$R$10,"JDAY",$C2,"SRC CAT",CMAQ_2008!JB$3,"SRC REGION",CMAQ_2008!JB$4) -> 1.7514e-16 | JB2: =GETPIVOTDATA("Sum of POA",CMAQ_2008!$R$10,"JDAY",$C2,"SRC CAT",CMAQ_2008!JC$3,"SRC REGION",CMAQ_2008!JC$4) -> 1.7514e-16 | JC2: =GETPIVOTDATA("Sum of POA",CMAQ_2008!$R$10,"JDAY",$C2,"SRC CAT",CMAQ_2008!JD$3,"SRC REGION",CMAQ_2008!JD$4) -> 1.7514e-16 | JD2: =GETPIVOTDATA("Sum of POA",CMAQ_2008!$R$10,"JDAY",$C2,"SRC CAT",CMAQ_2008!JE$3,"SRC REGION",CMAQ_2008!JE$4) -> 1.7514e-16 | JE2: =GETPIVOTDATA("Sum of POA",CMAQ_2008!$R$10,"JDAY",$C2,"SRC CAT",CMAQ_2008!JF$3,"SRC REGION",CMAQ_2008!JF$4) -> 1.7514e-16 | JF2: =GETPIVOTDATA("Sum of POA",CMAQ_2008!$R$10,"JDAY",$C2,"SRC CAT",CMAQ_2008!JG$3,"SRC REGION",CMAQ_2008!JG$4) -> 1.7514e-16 | JG2: =GETPIVOTDATA("Sum of POA",CMAQ_2008!$R$10,"JDAY",$C2,"SRC CAT",CMAQ_2008!JH$3,"SRC REGION",CMAQ_2008!JH$4) -> 1.7514e-16 | JH2: =GETPIVOTDATA("Sum of POA",CMAQ_2008!$R$10,"JDAY",$C2,"SRC CAT",CMAQ_2008!JI$3,"SRC REGION",CMAQ_2008!JI$4) -> 0.0011717 | JI2: =GETPIVOTDATA("Sum of POA",CMAQ_2008!$R$10,"JDAY",$C2,"SRC CAT",CMAQ_2008!JJ$3,"SRC REGION",CMAQ_2008!JJ$4) -> 1.7514e-16 | JJ2: =GETPIVOTDATA("Sum of POA",CMAQ_2008!$R$10,"JDAY",$C2,"SRC CAT",CMAQ_2008!JK$3,"SRC REGION",CMAQ_2008!JK$4) -> 4.062e-08 | JK2: =GETPIVOTDATA("Sum of POA",CMAQ_2008!$R$10,"JDAY",$C2,"SRC CAT",CMAQ_2008!JL$3,"SRC REGION",CMAQ_2008!JL$4) -> 3.5526e-05 | JL2: =GETPIVOTDATA("Sum of POA",CMAQ_2008!$R$10,"JDAY",$C2,"SRC CAT",CMAQ_2008!JM$3,"SRC REGION",CMAQ_2008!JM$4) -> 0.0016247 | JM2: =GETPIVOTDATA("Sum of POA",CMAQ_2008!$R$10,"JDAY",$C2,"SRC CAT",CMAQ_2008!JN$3,"SRC REGION",CMAQ_2008!JN$4) -> 1.7514e-16 | JN2: =GETPIVOTDATA("Sum of POA",CMAQ_2008!$R$10,"JDAY",$C2,"SRC CAT",CMAQ_2008!JO$3,"SRC REGION",CMAQ_2008!JO$4) -> 1.7514e-16 | JO2: =GETPIVOTDATA("Sum of POA",CMAQ_2008!$R$10,"JDAY",$C2,"SRC CAT",CMAQ_2008!JP$3,"SRC REGION",CMAQ_2008!JP$4) -> 0.011151 | JP2: =GETPIVOTDATA("Sum of POA",CMAQ_2008!$R$10,"JDAY",$C2,"SRC CAT",CMAQ_2008!JQ$3,"SRC REGION",CMAQ_2008!JQ$4) -> 1.7514e-16 | JQ2: =GETPIVOTDATA("Sum of POA",CMAQ_2008!$R$10,"JDAY",$C2,"SRC CAT",CMAQ_2008!JR$3,"SRC REGION",CMAQ_2008!JR$4) -> 1.7514e-16 | JR2: =GETPIVOTDATA("Sum of POA",CMAQ_2008!$R$10,"JDAY",$C2,"SRC CAT",CMAQ_2008!JS$3,"SRC REGION",CMAQ_2008!JS$4) -> 1.7514e-16 | JS2: =GETPIVOTDATA("Sum of POA",CMAQ_2008!$R$10,"JDAY",$C2,"SRC CAT",CMAQ_2008!JT$3,"SRC REGION",CMAQ_2008!JT$4) -> 0.00015083 | JT2: =GETPIVOTDATA("Sum of POA",CMAQ_2008!$R$10,"JDAY",$C2,"SRC CAT",CMAQ_2008!JU$3,"SRC REGION",CMAQ_2008!JU$4) -> 8.3428e-05 | JU2: =GETPIVOTDATA("Sum of POA",CMAQ_2008!$R$10,"JDAY",$C2,"SRC CAT",CMAQ_2008!JV$3,"SRC REGION",CMAQ_2008!JV$4) -> 0.00038405 | JV2: =GETPIVOTDATA("Sum of POA",CMAQ_2008!$R$10,"JDAY",$C2,"SRC CAT",CMAQ_2008!JW$3,"SRC REGION",CMAQ_2008!JW$4) -> 1.7514e-16 | JW2: =GETPIVOTDATA("Sum of POA",CMAQ_2008!$R$10,"JDAY",$C2,"SRC CAT",CMAQ_2008!JX$3,"SRC REGION",CMAQ_2008!JX$4) -> 1.7514e-16 | JX2: =GETPIVOTDATA("Sum of POA",CMAQ_2008!$R$10,"JDAY",$C2,"SRC CAT",CMAQ_2008!JY$3,"SRC REGION",CMAQ_2008!JY$4) -> 7.9406e-07 | JY2: =GETPIVOTDATA("Sum of POA",CMAQ_2008!$R$10,"JDAY",$C2,"SRC CAT",CMAQ_2008!JZ$3,"SRC REGION",CMAQ_2008!JZ$4) -> 1.7514e-16 | JZ2: =GETPIVOTDATA("Sum of POA",CMAQ_2008!$R$10,"JDAY",$C2,"SRC CAT",CMAQ_2008!KA$3,"SRC REGION",CMAQ_2008!KA$4) -> 0.004023 | KA2: =GETPIVOTDATA("Sum of POA",CMAQ_2008!$R$10,"JDAY",$C2,"SRC CAT",CMAQ_2008!KB$3,"SRC REGION",CMAQ_2008!KB$4) -> 1.7514e-16 | KB2: =GETPIVOTDATA("Sum of POA",CMAQ_2008!$R$10,"JDAY",$C2,"SRC CAT",CMAQ_2008!KC$3,"SRC REGION",CMAQ_2008!KC$4) -> 1.7514e-16 | KC2: =GETPIVOTDATA("Sum of POA",CMAQ_2008!$R$10,"JDAY",$C2,"SRC CAT",CMAQ_2008!KD$3,"SRC REGION",CMAQ_2008!KD$4) -> 5.4071e-07 | KD2: =GETPIVOTDATA("Sum of POA",CMAQ_2008!$R$10,"JDAY",$C2,"SRC CAT",CMAQ_2008!KE$3,"SRC REGION",CMAQ_2008!KE$4) -> 1.0198e-07 | KE2: =GETPIVOTDATA("Sum of POA",CMAQ_2008!$R$10,"JDAY",$C2,"SRC CAT",CMAQ_2008!KF$3,"SRC REGION",CMAQ_2008!KF$4) -> 1.7764e-06 | KF2: =GETPIVOTDATA("Sum of POA",CMAQ_2008!$R$10,"JDAY",$C2,"SRC CAT",CMAQ_2008!KG$3,"SRC REGION",CMAQ_2008!KG$4) -> 0.00014087 | KG2: =GETPIVOTDATA("Sum of POA",CMAQ_2008!$R$10,"JDAY",$C2,"SRC CAT",CMAQ_2008!KH$3,"SRC REGION",CMAQ_2008!KH$4) -> 1.7514e-16 | KH2: =GETPIVOTDATA("Sum of POA",CMAQ_2008!$R$10,"JDAY",$C2,"SRC CAT",CMAQ_2008!KI$3,"SRC REGION",CMAQ_2008!KI$4) -> 1.7514e-16 | KI2: =GETPIVOTDATA("Sum of POA",CMAQ_2008!$R$10,"JDAY",$C2,"SRC CAT",CMAQ_2008!KJ$3,"SRC REGION",CMAQ_2008!KJ$4) -> 0.0057288 | KJ2: =GETPIVOTDATA("Sum of POA",CMAQ_2008!$R$10,"JDAY",$C2,"SRC CAT",CMAQ_2008!KK$3,"SRC REGION",CMAQ_2008!KK$4) -> 0.021568 | KK2: =GETPIVOTDATA("Sum of POA",CMAQ_2008!$R$10,"JDAY",$C2,"SRC CAT",CMAQ_2008!KL$3,"SRC REGION",CMAQ_2008!KL$4) -> 1.7514e-16 | KL2: =GETPIVOTDATA("Sum of POA",CMAQ_2008!$R$10,"JDAY",$C2,"SRC CAT",CMAQ_2008!KM$3,"SRC REGION",CMAQ_2008!KM$4) -> 1.7514e-16 | KM2: =GETPIVOTDATA("Sum of POA",CMAQ_2008!$R$10,"JDAY",$C2,"SRC CAT",CMAQ_2008!KN$3,"SRC REGION",CMAQ_2008!KN$4) -> 0.0010981 | KN2: =GETPIVOTDATA("Sum of POA",CMAQ_2008!$R$10,"JDAY",$C2,"SRC CAT",CMAQ_2008!KO$3,"SRC REGION",CMAQ_2008!KO$4) -> 0.00030817 | KO2: =GETPIVOTDATA("Sum of POA",CMAQ_2008!$R$10,"JDAY",$C2,"SRC CAT",CMAQ_2008!KP$3,"SRC REGION",CMAQ_2008!KP$4) -> 0.00038831 | KP2: =GETPIVOTDATA("Sum of POA",CMAQ_2008!$R$10,"JDAY",$C2,"SRC CAT",CMAQ_2008!KQ$3,"SRC REGION",CMAQ_2008!KQ$4) -> 3.0295e-05 | KQ2: =GETPIVOTDATA("Sum of POA",CMAQ_2008!$R$10,"JDAY",$C2,"SRC CAT",CMAQ_2008!KR$3,"SRC REGION",CMAQ_2008!KR$4) -> 1.7514e-16 | KR2: =GETPIVOTDATA("Sum of POA",CMAQ_2008!$R$10,"JDAY",$C2,"SRC CAT",CMAQ_2008!KS$3,"SRC REGION",CMAQ_2008!KS$4) -> 1.7514e-16 | KS2: =GETPIVOTDATA("Sum of POA",CMAQ_2008!$R$10,"JDAY",$C2,"SRC CAT",CMAQ_2008!KT$3,"SRC REGION",CMAQ_2008!KT$4) -> 6.4553e-07 | KT2: =GETPIVOTDATA("Sum of POA",CMAQ_2008!$R$10,"JDAY",$C2,"SRC CAT",CMAQ_2008!KU$3,"SRC REGION",CMAQ_2008!KU$4) -> 2.135e-06 | KU2: =GETPIVOTDATA("Sum of POA",CMAQ_2008!$R$10,"JDAY",$C2,"SRC CAT",CMAQ_2008!KV$3,"SRC REGION",CMAQ_2008!KV$4) -> 1.7514e-16 | KV2: =GETPIVOTDATA("Sum of POA",CMAQ_2008!$R$10,"JDAY",$C2,"SRC CAT",CMAQ_2008!KW$3,"SRC REGION",CMAQ_2008!KW$4) -> 1.7514e-16 | KW2: =GETPIVOTDATA("Sum of POA",CMAQ_2008!$R$10,"JDAY",$C2,"SRC CAT",CMAQ_2008!KX$3,"SRC REGION",CMAQ_2008!KX$4) -> 1.7514e-16 | KX2: =GETPIVOTDATA("Sum of POA",CMAQ_2008!$R$10,"JDAY",$C2,"SRC CAT",CMAQ_2008!KY$3,"SRC REGION",CMAQ_2008!KY$4) -> 0.002128 | KY2: =GETPIVOTDATA("Sum of POA",CMAQ_2008!$R$10,"JDAY",$C2,"SRC CAT",CMAQ_2008!KZ$3,"SRC REGION",CMAQ_2008!KZ$4) -> 1.7514e-16 | KZ2: =GETPIVOTDATA("Sum of POA",CMAQ_2008!$R$10,"JDAY",$C2,"SRC CAT",CMAQ_2008!LA$3,"SRC REGION",CMAQ_2008!LA$4) -> 3.6056e-06 | LA2: =GETPIVOTDATA("Sum of POA",CMAQ_2008!$R$10,"JDAY",$C2,"SRC CAT",CMAQ_2008!LB$3,"SRC REGION",CMAQ_2008!LB$4) -> 1.5556e-05 | LB2: =GETPIVOTDATA("Sum of POA",CMAQ_2008!$R$10,"JDAY",$C2,"SRC CAT",CMAQ_2008!LC$3,"SRC REGION",CMAQ_2008!LC$4) -> 1.7514e-16 | LC2: =GETPIVOTDATA("Sum of POA",CMAQ_2008!$R$10,"JDAY",$C2,"SRC CAT",CMAQ_2008!LD$3,"SRC REGION",CMAQ_2008!LD$4) -> 1.7514e-16 | LD2: =GETPIVOTDATA("Sum of POA",CMAQ_2008!$R$10,"JDAY",$C2,"SRC CAT",CMAQ_2008!LE$3,"SRC REGION",CMAQ_2008!LE$4) -> 0.00032093 | LE2: =GETPIVOTDATA("Sum of POA",CMAQ_2008!$R$10,"JDAY",$C2,"SRC CAT",CMAQ_2008!LF$3,"SRC REGION",CMAQ_2008!LF$4) -> 0.0026081 | LF2: =GETPIVOTDATA("Sum of POA",CMAQ_2008!$R$10,"JDAY",$C2,"SRC CAT",CMAQ_2008!LG$3,"SRC REGION",CMAQ_2008!LG$4) -> 1.7514e-16 | LG2: =GETPIVOTDATA("Sum of POA",CMAQ_2008!$R$10,"JDAY",$C2,"SRC CAT",CMAQ_2008!LH$3,"SRC REGION",CMAQ_2008!LH$4) -> 1.7514e-16 | LH2: =GETPIVOTDATA("Sum of POA",CMAQ_2008!$R$10,"JDAY",$C2,"SRC CAT",CMAQ_2008!LI$3,"SRC REGION",CMAQ_2008!LI$4) -> 0.00041762 | LI2: =GETPIVOTDATA("Sum of POA",CMAQ_2008!$R$10,"JDAY",$C2,"SRC CAT",CMAQ_2008!LJ$3,"SRC REGION",CMAQ_2008!LJ$4) -> 1.7514e-16 | LJ2: =GETPIVOTDATA("Sum of POA",CMAQ_2008!$R$10,"JDAY",$C2,"SRC CAT",CMAQ_2008!LK$3,"SRC REGION",CMAQ_2008!LK$4) -> 0.00013318 | LK2: =GETPIVOTDATA("Sum of POA",CMAQ_2008!$R$10,"JDAY",$C2,"SRC CAT",CMAQ_2008!LL$3,"SRC REGION",CMAQ_2008!LL$4) -> 1.7514e-16 | LL2: =GETPIVOTDATA("Sum of POA",CMAQ_2008!$R$10,"JDAY",$C2,"SRC CAT",CMAQ_2008!LM$3,"SRC REGION",CMAQ_2008!LM$4) -> 2.5634e-07 | LM2: =GETPIVOTDATA("Sum of POA",CMAQ_2008!$R$10,"JDAY",$C2,"SRC CAT",CMAQ_2008!LN$3,"SRC REGION",CMAQ_2008!LN$4) -> 1.7514e-16 | LN2: =GETPIVOTDATA("Sum of POA",CMAQ_2008!$R$10,"JDAY",$C2,"SRC CAT",CMAQ_2008!LO$3,"SRC REGION",CMAQ_2008!LO$4) -> 4.6729e-08 | LO2: =GETPIVOTDATA("Sum of POA",CMAQ_2008!$R$10,"JDAY",$C2,"SRC CAT",CMAQ_2008!LP$3,"SRC REGION",CMAQ_2008!LP$4) -> 1.7514e-16 | LP2: =GETPIVOTDATA("Sum of POA",CMAQ_2008!$R$10,"JDAY",$C2,"SRC CAT",CMAQ_2008!LQ$3,"SRC REGION",CMAQ_2008!LQ$4) -> 0.020522 | LQ2: =GETPIVOTDATA("Sum of POA",CMAQ_2008!$R$10,"JDAY",$C2,"SRC CAT",CMAQ_2008!LR$3,"SRC REGION",CMAQ_2008!LR$4) -> 1.9651e-10 | LR2: =GETPIVOTDATA("Sum of POA",CMAQ_2008!$R$10,"JDAY",$C2,"SRC CAT",CMAQ_2008!LS$3,"SRC REGION",CMAQ_2008!LS$4) -> 1.7514e-16 | LS2: =GETPIVOTDATA("Sum of POA",CMAQ_2008!$R$10,"JDAY",$C2,"SRC CAT",CMAQ_2008!LT$3,"SRC REGION",CMAQ_2008!LT$4) -> 0.067365 | LT2: =GETPIVOTDATA("Sum of POA",CMAQ_2008!$R$10,"JDAY",$C2,"SRC CAT",CMAQ_2008!LU$3,"SRC REGION",CMAQ_2008!LU$4) -> 4.4824e-06 | LU2: =GETPIVOTDATA("Sum of POA",CMAQ_2008!$R$10,"JDAY",$C2,"SRC CAT",CMAQ_2008!LV$3,"SRC REGION",CMAQ_2008!LV$4) -> 0.0001618 | LV2: =GETPIVOTDATA("Sum of POA",CMAQ_2008!$R$10,"JDAY",$C2,"SRC CAT",CMAQ_2008!LW$3,"SRC REGION",CMAQ_2008!LW$4) -> 0.0031082 | LW2: =GETPIVOTDATA("Sum of POA",CMAQ_2008!$R$10,"JDAY",$C2,"SRC CAT",CMAQ_2008!LX$3,"SRC REGION",CMAQ_2008!LX$4) -> 0.053576 | LX2: =GETPIVOTDATA("Sum of POA",CMAQ_2008!$R$10,"JDAY",$C2,"SRC CAT",CMAQ_2008!LY$3,"SRC REGION",CMAQ_2008!LY$4) -> 0.0032859 | LY2: =GETPIVOTDATA("Sum of POA",CMAQ_2008!$R$10,"JDAY",$C2,"SRC CAT",CMAQ_2008!LZ$3,"SRC REGION",CMAQ_2008!LZ$4) -> 0.010107 | LZ2: =GETPIVOTDATA("Sum of POA",CMAQ_2008!$R$10,"JDAY",$C2,"SRC CAT",CMAQ_2008!MA$3,"SRC REGION",CMAQ_2008!MA$4) -> 0.12233 | MA2: =GETPIVOTDATA("Sum of POA",CMAQ_2008!$R$10,"JDAY",$C2,"SRC CAT",CMAQ_2008!MB$3,"SRC REGION",CMAQ_2008!MB$4) -> 0.0033398 | MB2: =GETPIVOTDATA("Sum of POA",CMAQ_2008!$R$10,"JDAY",$C2,"SRC CAT",CMAQ_2008!MC$3,"SRC REGION",CMAQ_2008!MC$4) -> 0.0083953 | MC2: =GETPIVOTDATA("Sum of POA",CMAQ_2008!$R$10,"JDAY",$C2,"SRC CAT",CMAQ_2008!MD$3,"SRC REGION",CMAQ_2008!MD$4) -> 0.0096781 | MD2: =GETPIVOTDATA("Sum of POA",CMAQ_2008!$R$10,"JDAY",$C2,"SRC CAT",CMAQ_2008!ME$3,"SRC REGION",CMAQ_2008!ME$4) -> 0.0016971 | ME2: =GETPIVOTDATA("Sum of POA",CMAQ_2008!$R$10,"JDAY",$C2,"SRC CAT",CMAQ_2008!MF$3,"SRC REGION",CMAQ_2008!MF$4) -> 0.0036491 | MF2: =GETPIVOTDATA("Sum of POA",CMAQ_2008!$R$10,"JDAY",$C2,"SRC CAT",CMAQ_2008!MG$3,"SRC REGION",CMAQ_2008!MG$4) -> 0.013261 | MG2: =GETPIVOTDATA("Sum of POA",CMAQ_2008!$R$10,"JDAY",$C2,"SRC CAT",CMAQ_2008!MH$3,"SRC REGION",CMAQ_2008!MH$4) -> 2.6849e-05 | MH2: =GETPIVOTDATA("Sum of POA",CMAQ_2008!$R$10,"JDAY",$C2,"SRC CAT",CMAQ_2008!MI$3,"SRC REGION",CMAQ_2008!MI$4) -> 0.00037115 | MI2: =GETPIVOTDATA("Sum of POA",CMAQ_2008!$R$10,"JDAY",$C2,"SRC CAT",CMAQ_2008!MJ$3,"SRC REGION",CMAQ_2008!MJ$4) -> 1.5067e-05 | MJ2: =GETPIVOTDATA("Sum of POA",CMAQ_2008!$R$10,"JDAY",$C2,"SRC CAT",CMAQ_2008!MK$3,"SRC REGION",CMAQ_2008!MK$4) -> 5.5176e-06 | MK2: =GETPIVOTDATA("Sum of POA",CMAQ_2008!$R$10,"JDAY",$C2,"SRC CAT",CMAQ_2008!ML$3,"SRC REGION",CMAQ_2008!ML$4) -> 0.040772 | ML2: =GETPIVOTDATA("Sum of POA",CMAQ_2008!$R$10,"JDAY",$C2,"SRC CAT",CMAQ_2008!MM$3,"SRC REGION",CMAQ_2008!MM$4) -> 3.9188e-08 | MM2: =GETPIVOTDATA("Sum of POA",CMAQ_2008!$R$10,"JDAY",$C2,"SRC CAT",CMAQ_2008!MN$3,"SRC REGION",CMAQ_2008!MN$4) -> 2.8817e-05 | MN2: =GETPIVOTDATA("Sum of POA",CMAQ_2008!$R$10,"JDAY",$C2,"SRC CAT",CMAQ_2008!MO$3,"SRC REGION",CMAQ_2008!MO$4) -> 0.0084271 | MO2: =GETPIVOTDATA("Sum of POA",CMAQ_2008!$R$10,"JDAY",$C2,"SRC CAT",CMAQ_2008!MP$3,"SRC REGION",CMAQ_2008!MP$4) -> 3.3931e-06 | MQ2: =GETPIVOTDATA("Sum of EC",CMAQ_2008!$R$10,"JDAY",$C2,"SRC CAT",CMAQ_2008!MR$3,"SRC REGION",CMAQ_2008!MR$4) -> 1.6116e-16 | MR2: =GETPIVOTDATA("Sum of EC",CMAQ_2008!$R$10,"JDAY",$C2,"SRC CAT",CMAQ_2008!MS$3,"SRC REGION",CMAQ_2008!MS$4) -> 1.6116e-16 | MS2: =GETPIVOTDATA("Sum of EC",CMAQ_2008!$R$10,"JDAY",$C2,"SRC CAT",CMAQ_2008!MT$3,"SRC REGION",CMAQ_2008!MT$4) -> 1.6116e-16 | MT2: =GETPIVOTDATA("Sum of EC",CMAQ_2008!$R$10,"JDAY",$C2,"SRC CAT",CMAQ_2008!MU$3,"SRC REGION",CMAQ_2008!MU$4) -> 1.6116e-16 | MU2: =GETPIVOTDATA("Sum of EC",CMAQ_2008!$R$10,"JDAY",$C2,"SRC CAT",CMAQ_2008!MV$3,"SRC REGION",CMAQ_2008!MV$4) -> 1.6116e-16 | MV2: =GETPIVOTDATA("Sum of EC",CMAQ_2008!$R$10,"JDAY",$C2,"SRC CAT",CMAQ_2008!MW$3,"SRC REGION",CMAQ_2008!MW$4) -> 1.6116e-16 | MW2: =GETPIVOTDATA("Sum of EC",CMAQ_2008!$R$10,"JDAY",$C2,"SRC CAT",CMAQ_2008!MX$3,"SRC REGION",CMAQ_2008!MX$4) -> 1.6116e-16 | MX2: =GETPIVOTDATA("Sum of EC",CMAQ_2008!$R$10,"JDAY",$C2,"SRC CAT",CMAQ_2008!MY$3,"SRC REGION",CMAQ_2008!MY$4) -> 1.6116e-16 | MY2: =GETPIVOTDATA("Sum of EC",CMAQ_2008!$R$10,"JDAY",$C2,"SRC CAT",CMAQ_2008!MZ$3,"SRC REGION",CMAQ_2008!MZ$4) -> 1.6116e-16 | MZ2: =GETPIVOTDATA("Sum of EC",CMAQ_2008!$R$10,"JDAY",$C2,"SRC CAT",CMAQ_2008!NA$3,"SRC REGION",CMAQ_2008!NA$4) -> 1.6116e-16 | NA2: =GETPIVOTDATA("Sum of EC",CMAQ_2008!$R$10,"JDAY",$C2,"SRC CAT",CMAQ_2008!NB$3,"SRC REGION",CMAQ_2008!NB$4) -> 1.6116e-16 | NB2: =GETPIVOTDATA("Sum of EC",CMAQ_2008!$R$10,"JDAY",$C2,"SRC CAT",CMAQ_2008!NC$3,"SRC REGION",CMAQ_2008!NC$4) -> 1.6116e-16 | NC2: =GETPIVOTDATA("Sum of EC",CMAQ_2008!$R$10,"JDAY",$C2,"SRC CAT",CMAQ_2008!ND$3,"SRC REGION",CMAQ_2008!ND$4) -> 1.6116e-16 | ND2: =GETPIVOTDATA("Sum of EC",CMAQ_2008!$R$10,"JDAY",$C2,"SRC CAT",CMAQ_2008!NE$3,"SRC REGION",CMAQ_2008!NE$4) -> 1.6116e-16 | NE2: =GETPIVOTDATA("Sum of EC",CMAQ_2008!$R$10,"JDAY",$C2,"SRC CAT",CMAQ_2008!NF$3,"SRC REGION",CMAQ_2008!NF$4) -> 1.6116e-16 | NF2: =GETPIVOTDATA("Sum of EC",CMAQ_2008!$R$10,"JDAY",$C2,"SRC CAT",CMAQ_2008!NG$3,"SRC REGION",CMAQ_2008!NG$4) -> 1.6116e-16 | NG2: =GETPIVOTDATA("Sum of EC",CMAQ_2008!$R$10,"JDAY",$C2,"SRC CAT",CMAQ_2008!NH$3,"SRC REGION",CMAQ_2008!NH$4) -> 1.6116e-16 | NH2: =GETPIVOTDATA("Sum of EC",CMAQ_2008!$R$10,"JDAY",$C2,"SRC CAT",CMAQ_2008!NI$3,"SRC REGION",CMAQ_2008!NI$4) -> 1.6116e-16 | NI2: =GETPIVOTDATA("Sum of EC",CMAQ_2008!$R$10,"JDAY",$C2,"SRC CAT",CMAQ_2008!NJ$3,"SRC REGION",CMAQ_2008!NJ$4) -> 1.6116e-16 | NJ2: =GETPIVOTDATA("Sum of EC",CMAQ_2008!$R$10,"JDAY",$C2,"SRC CAT",CMAQ_2008!NK$3,"SRC REGION",CMAQ_2008!NK$4) -> 1.6116e-16 | NK2: =GETPIVOTDATA("Sum of EC",CMAQ_2008!$R$10,"JDAY",$C2,"SRC CAT",CMAQ_2008!NL$3,"SRC REGION",CMAQ_2008!NL$4) -> 1.6116e-16 | NL2: =GETPIVOTDATA("Sum of EC",CMAQ_2008!$R$10,"JDAY",$C2,"SRC CAT",CMAQ_2008!NM$3,"SRC REGION",CMAQ_2008!NM$4) -> 0.00022311 | NM2: =GETPIVOTDATA("Sum of EC",CMAQ_2008!$R$10,"JDAY",$C2,"SRC CAT",CMAQ_2008!NN$3,"SRC REGION",CMAQ_2008!NN$4) -> 1.6116e-16 | NN2: =GETPIVOTDATA("Sum of EC",CMAQ_2008!$R$10,"JDAY",$C2,"SRC CAT",CMAQ_2008!NO$3,"SRC REGION",CMAQ_2008!NO$4) -> 8.0495e-09 | NO2: =GETPIVOTDATA("Sum of EC",CMAQ_2008!$R$10,"JDAY",$C2,"SRC CAT",CMAQ_2008!NP$3,"SRC REGION",CMAQ_2008!NP$4) -> 7.0379e-06 | NP2: =GETPIVOTDATA("Sum of EC",CMAQ_2008!$R$10,"JDAY",$C2,"SRC CAT",CMAQ_2008!NQ$3,"SRC REGION",CMAQ_2008!NQ$4) -> 0.00031204 | NQ2: =GETPIVOTDATA("Sum of EC",CMAQ_2008!$R$10,"JDAY",$C2,"SRC CAT",CMAQ_2008!NR$3,"SRC REGION",CMAQ_2008!NR$4) -> 1.6116e-16 | NR2: =GETPIVOTDATA("Sum of EC",CMAQ_2008!$R$10,"JDAY",$C2,"SRC CAT",CMAQ_2008!NS$3,"SRC REGION",CMAQ_2008!NS$4) -> 1.6116e-16 | NS2: =GETPIVOTDATA("Sum of EC",CMAQ_2008!$R$10,"JDAY",$C2,"SRC CAT",CMAQ_2008!NT$3,"SRC REGION",CMAQ_2008!NT$4) -> 0.002149 | NT2: =GETPIVOTDATA("Sum of EC",CMAQ_2008!$R$10,"JDAY",$C2,"SRC CAT",CMAQ_2008!NU$3,"SRC REGION",CMAQ_2008!NU$4) -> 1.6116e-16 | NU2: =GETPIVOTDATA("Sum of EC",CMAQ_2008!$R$10,"JDAY",$C2,"SRC CAT",CMAQ_2008!NV$3,"SRC REGION",CMAQ_2008!NV$4) -> 1.6116e-16 | NV2: =GETPIVOTDATA("Sum of EC",CMAQ_2008!$R$10,"JDAY",$C2,"SRC CAT",CMAQ_2008!NW$3,"SRC REGION",CMAQ_2008!NW$4) -> 1.6116e-16 | NW2: =GETPIVOTDATA("Sum of EC",CMAQ_2008!$R$10,"JDAY",$C2,"SRC CAT",CMAQ_2008!NX$3,"SRC REGION",CMAQ_2008!NX$4) -> 2.8336e-05 | NX2: =GETPIVOTDATA("Sum of EC",CMAQ_2008!$R$10,"JDAY",$C2,"SRC CAT",CMAQ_2008!NY$3,"SRC REGION",CMAQ_2008!NY$4) -> 1.4928e-05 | NY2: =GETPIVOTDATA("Sum of EC",CMAQ_2008!$R$10,"JDAY",$C2,"SRC CAT",CMAQ_2008!NZ$3,"SRC REGION",CMAQ_2008!NZ$4) -> 7.3364e-05 | NZ2: =GETPIVOTDATA("Sum of EC",CMAQ_2008!$R$10,"JDAY",$C2,"SRC CAT",CMAQ_2008!OA$3,"SRC REGION",CMAQ_2008!OA$4) -> 1.6116e-16 | OA2: =GETPIVOTDATA("Sum of EC",CMAQ_2008!$R$10,"JDAY",$C2,"SRC CAT",CMAQ_2008!OB$3,"SRC REGION",CMAQ_2008!OB$4) -> 1.6116e-16 | OB2: =GETPIVOTDATA("Sum of EC",CMAQ_2008!$R$10,"JDAY",$C2,"SRC CAT",CMAQ_2008!OC$3,"SRC REGION",CMAQ_2008!OC$4) -> 1.5959e-07 | OC2: =GETPIVOTDATA("Sum of EC",CMAQ_2008!$R$10,"JDAY",$C2,"SRC CAT",CMAQ_2008!OD$3,"SRC REGION",CMAQ_2008!OD$4) -> 1.6116e-16 | OD2: =GETPIVOTDATA("Sum of EC",CMAQ_2008!$R$10,"JDAY",$C2,"SRC CAT",CMAQ_2008!OE$3,"SRC REGION",CMAQ_2008!OE$4) -> 0.00072267 | OE2: =GETPIVOTDATA("Sum of EC",CMAQ_2008!$R$10,"JDAY",$C2,"SRC CAT",CMAQ_2008!OF$3,"SRC REGION",CMAQ_2008!OF$4) -> 1.6116e-16 | OF2: =GETPIVOTDATA("Sum of EC",CMAQ_2008!$R$10,"JDAY",$C2,"SRC CAT",CMAQ_2008!OG$3,"SRC REGION",CMAQ_2008!OG$4) -> 1.6116e-16 | OG2: =GETPIVOTDATA("Sum of EC",CMAQ_2008!$R$10,"JDAY",$C2,"SRC CAT",CMAQ_2008!OH$3,"SRC REGION",CMAQ_2008!OH$4) -> 1.0652e-07 | OH2: =GETPIVOTDATA("Sum of EC",CMAQ_2008!$R$10,"JDAY",$C2,"SRC CAT",CMAQ_2008!OI$3,"SRC REGION",CMAQ_2008!OI$4) -> 2.1916e-08 | OI2: =GETPIVOTDATA("Sum of EC",CMAQ_2008!$R$10,"JDAY",$C2,"SRC CAT",CMAQ_2008!OJ$3,"SRC REGION",CMAQ_2008!OJ$4) -> 3.4972e-07 | OJ2: =GETPIVOTDATA("Sum of EC",CMAQ_2008!$R$10,"JDAY",$C2,"SRC CAT",CMAQ_2008!OK$3,"SRC REGION",CMAQ_2008!OK$4) -> 2.8913e-05 | OK2: =GETPIVOTDATA("Sum of EC",CMAQ_2008!$R$10,"JDAY",$C2,"SRC CAT",CMAQ_2008!OL$3,"SRC REGION",CMAQ_2008!OL$4) -> 1.6116e-16 | OL2: =GETPIVOTDATA("Sum of EC",CMAQ_2008!$R$10,"JDAY",$C2,"SRC CAT",CMAQ_2008!OM$3,"SRC REGION",CMAQ_2008!OM$4) -> 1.6116e-16 | OM2: =GETPIVOTDATA("Sum of EC",CMAQ_2008!$R$10,"JDAY",$C2,"SRC CAT",CMAQ_2008!ON$3,"SRC REGION",CMAQ_2008!ON$4) -> 0.0010855 | ON2: =GETPIVOTDATA("Sum of EC",CMAQ_2008!$R$10,"JDAY",$C2,"SRC CAT",CMAQ_2008!OO$3,"SRC REGION",CMAQ_2008!OO$4) -> 0.0041561 | OO2: =GETPIVOTDATA("Sum of EC",CMAQ_2008!$R$10,"JDAY",$C2,"SRC CAT",CMAQ_2008!OP$3,"SRC REGION",CMAQ_2008!OP$4) -> 1.6116e-16 | OP2: =GETPIVOTDATA("Sum of EC",CMAQ_2008!$R$10,"JDAY",$C2,"SRC CAT",CMAQ_2008!OQ$3,"SRC REGION",CMAQ_2008!OQ$4) -> 1.6116e-16 | OQ2: =GETPIVOTDATA("Sum of EC",CMAQ_2008!$R$10,"JDAY",$C2,"SRC CAT",CMAQ_2008!OR$3,"SRC REGION",CMAQ_2008!OR$4) -> 0.00020529 | OR2: =GETPIVOTDATA("Sum of EC",CMAQ_2008!$R$10,"JDAY",$C2,"SRC CAT",CMAQ_2008!OS$3,"SRC REGION",CMAQ_2008!OS$4) -> 5.7861e-05 | OS2: =GETPIVOTDATA("Sum of EC",CMAQ_2008!$R$10,"JDAY",$C2,"SRC CAT",CMAQ_2008!OT$3,"SRC REGION",CMAQ_2008!OT$4) -> 7.3113e-05 | OT2: =GETPIVOTDATA("Sum of EC",CMAQ_2008!$R$10,"JDAY",$C2,"SRC CAT",CMAQ_2008!OU$3,"SRC REGION",CMAQ_2008!OU$4) -> 5.6019e-06 | OU2: =GETPIVOTDATA("Sum of EC",CMAQ_2008!$R$10,"JDAY",$C2,"SRC CAT",CMAQ_2008!OV$3,"SRC REGION",CMAQ_2008!OV$4) -> 1.6116e-16 | OV2: =GETPIVOTDATA("Sum of EC",CMAQ_2008!$R$10,"JDAY",$C2,"SRC CAT",CMAQ_2008!OW$3,"SRC REGION",CMAQ_2008!OW$4) -> 1.6116e-16 | OW2: =GETPIVOTDATA("Sum of EC",CMAQ_2008!$R$10,"JDAY",$C2,"SRC CAT",CMAQ_2008!OX$3,"SRC REGION",CMAQ_2008!OX$4) -> 1.2922e-07 | OX2: =GETPIVOTDATA("Sum of EC",CMAQ_2008!$R$10,"JDAY",$C2,"SRC CAT",CMAQ_2008!OY$3,"SRC REGION",CMAQ_2008!OY$4) -> 4.3676e-07 | OY2: =GETPIVOTDATA("Sum of EC",CMAQ_2008!$R$10,"JDAY",$C2,"SRC CAT",CMAQ_2008!OZ$3,"SRC REGION",CMAQ_2008!OZ$4) -> 1.6116e-16 | OZ2: =GETPIVOTDATA("Sum of EC",CMAQ_2008!$R$10,"JDAY",$C2,"SRC CAT",CMAQ_2008!PA$3,"SRC REGION",CMAQ_2008!PA$4) -> 1.6116e-16 | PA2: =GETPIVOTDATA("Sum of EC",CMAQ_2008!$R$10,"JDAY",$C2,"SRC CAT",CMAQ_2008!PB$3,"SRC REGION",CMAQ_2008!PB$4) -> 1.6116e-16 | PB2: =GETPIVOTDATA("Sum of EC",CMAQ_2008!$R$10,"JDAY",$C2,"SRC CAT",CMAQ_2008!PC$3,"SRC REGION",CMAQ_2008!PC$4) -> 0.00040852 | PC2: =GETPIVOTDATA("Sum of EC",CMAQ_2008!$R$10,"JDAY",$C2,"SRC CAT",CMAQ_2008!PD$3,"SRC REGION",CMAQ_2008!PD$4) -> 1.6116e-16 | PD2: =GETPIVOTDATA("Sum of EC",CMAQ_2008!$R$10,"JDAY",$C2,"SRC CAT",CMAQ_2008!PE$3,"SRC REGION",CMAQ_2008!PE$4) -> 6.9092e-07 | PE2: =GETPIVOTDATA("Sum of EC",CMAQ_2008!$R$10,"JDAY",$C2,"SRC CAT",CMAQ_2008!PF$3,"SRC REGION",CMAQ_2008!PF$4) -> 3.1882e-06 | PF2: =GETPIVOTDATA("Sum of EC",CMAQ_2008!$R$10,"JDAY",$C2,"SRC CAT",CMAQ_2008!PG$3,"SRC REGION",CMAQ_2008!PG$4) -> 1.6116e-16 | PG2: =GETPIVOTDATA("Sum of EC",CMAQ_2008!$R$10,"JDAY",$C2,"SRC CAT",CMAQ_2008!PH$3,"SRC REGION",CMAQ_2008!PH$4) -> 1.6116e-16 | PH2: =GETPIVOTDATA("Sum of EC",CMAQ_2008!$R$10,"JDAY",$C2,"SRC CAT",CMAQ_2008!PI$3,"SRC REGION",CMAQ_2008!PI$4) -> 5.8569e-05 | PI2: =GETPIVOTDATA("Sum of EC",CMAQ_2008!$R$10,"JDAY",$C2,"SRC CAT",CMAQ_2008!PJ$3,"SRC REGION",CMAQ_2008!PJ$4) -> 0.00050736 | PJ2: =GETPIVOTDATA("Sum of EC",CMAQ_2008!$R$10,"JDAY",$C2,"SRC CAT",CMAQ_2008!PK$3,"SRC REGION",CMAQ_2008!PK$4) -> 1.6116e-16 | PK2: =GETPIVOTDATA("Sum of EC",CMAQ_2008!$R$10,"JDAY",$C2,"SRC CAT",CMAQ_2008!PL$3,"SRC REGION",CMAQ_2008!PL$4) -> 1.6116e-16 | PL2: =GETPIVOTDATA("Sum of EC",CMAQ_2008!$R$10,"JDAY",$C2,"SRC CAT",CMAQ_2008!PM$3,"SRC REGION",CMAQ_2008!PM$4) -> 7.795e-05 | PM2: =GETPIVOTDATA("Sum of EC",CMAQ_2008!$R$10,"JDAY",$C2,"SRC CAT",CMAQ_2008!PN$3,"SRC REGION",CMAQ_2008!PN$4) -> 1.6116e-16 | PN2: =GETPIVOTDATA("Sum of EC",CMAQ_2008!$R$10,"JDAY",$C2,"SRC CAT",CMAQ_2008!PO$3,"SRC REGION",CMAQ_2008!PO$4) -> 2.5085e-05 | PO2: =GETPIVOTDATA("Sum of EC",CMAQ_2008!$R$10,"JDAY",$C2,"SRC CAT",CMAQ_2008!PP$3,"SRC REGION",CMAQ_2008!PP$4) -> 1.6116e-16 | PP2: =GETPIVOTDATA("Sum of EC",CMAQ_2008!$R$10,"JDAY",$C2,"SRC CAT",CMAQ_2008!PQ$3,"SRC REGION",CMAQ_2008!PQ$4) -> 4.6649e-08 | PQ2: =GETPIVOTDATA("Sum of EC",CMAQ_2008!$R$10,"JDAY",$C2,"SRC CAT",CMAQ_2008!PR$3,"SRC REGION",CMAQ_2008!PR$4) -> 1.6116e-16 | PR2: =GETPIVOTDATA("Sum of EC",CMAQ_2008!$R$10,"JDAY",$C2,"SRC CAT",CMAQ_2008!PS$3,"SRC REGION",CMAQ_2008!PS$4) -> 9.1299e-09 | PS2: =GETPIVOTDATA("Sum of EC",CMAQ_2008!$R$10,"JDAY",$C2,"SRC CAT",CMAQ_2008!PT$3,"SRC REGION",CMAQ_2008!PT$4) -> 1.6116e-16 | PT2: =GETPIVOTDATA("Sum of EC",CMAQ_2008!$R$10,"JDAY",$C2,"SRC CAT",CMAQ_2008!PU$3,"SRC REGION",CMAQ_2008!PU$4) -> 0.0037957 | PU2: =GETPIVOTDATA("Sum of EC",CMAQ_2008!$R$10,"JDAY",$C2,"SRC CAT",CMAQ_2008!PV$3,"SRC REGION",CMAQ_2008!PV$4) -> 4.1106e-11 | PV2: =GETPIVOTDATA("Sum of EC",CMAQ_2008!$R$10,"JDAY",$C2,"SRC CAT",CMAQ_2008!PW$3,"SRC REGION",CMAQ_2008!PW$4) -> 1.6116e-16 | PW2: =GETPIVOTDATA("Sum of EC",CMAQ_2008!$R$10,"JDAY",$C2,"SRC CAT",CMAQ_2008!PX$3,"SRC REGION",CMAQ_2008!PX$4) -> 0.022742 | PX2: =GETPIVOTDATA("Sum of EC",CMAQ_2008!$R$10,"JDAY",$C2,"SRC CAT",CMAQ_2008!PY$3,"SRC REGION",CMAQ_2008!PY$4) -> 1.8585e-06 | PY2: =GETPIVOTDATA("Sum of EC",CMAQ_2008!$R$10,"JDAY",$C2,"SRC CAT",CMAQ_2008!PZ$3,"SRC REGION",CMAQ_2008!PZ$4) -> 1.5335e-05 | PZ2: =GETPIVOTDATA("Sum of EC",CMAQ_2008!$R$10,"JDAY",$C2,"SRC CAT",CMAQ_2008!QA$3,"SRC REGION",CMAQ_2008!QA$4) -> 0.0012584 | QA2: =GETPIVOTDATA("Sum of EC",CMAQ_2008!$R$10,"JDAY",$C2,"SRC CAT",CMAQ_2008!QB$3,"SRC REGION",CMAQ_2008!QB$4) -> 0.017984 | QB2: =GETPIVOTDATA("Sum of EC",CMAQ_2008!$R$10,"JDAY",$C2,"SRC CAT",CMAQ_2008!QC$3,"SRC REGION",CMAQ_2008!QC$4) -> 0.00086533 | QC2: =GETPIVOTDATA("Sum of EC",CMAQ_2008!$R$10,"JDAY",$C2,"SRC CAT",CMAQ_2008!QD$3,"SRC REGION",CMAQ_2008!QD$4) -> 0.0032951 | QD2: =GETPIVOTDATA("Sum of EC",CMAQ_2008!$R$10,"JDAY",$C2,"SRC CAT",CMAQ_2008!QE$3,"SRC REGION",CMAQ_2008!QE$4) -> 0.044158 | QE2: =GETPIVOTDATA("Sum of EC",CMAQ_2008!$R$10,"JDAY",$C2,"SRC CAT",CMAQ_2008!QF$3,"SRC REGION",CMAQ_2008!QF$4) -> 0.00075612 | QF2: =GETPIVOTDATA("Sum of EC",CMAQ_2008!$R$10,"JDAY",$C2,"SRC CAT",CMAQ_2008!QG$3,"SRC REGION",CMAQ_2008!QG$4) -> 0.0021027 | QG2: =GETPIVOTDATA("Sum of EC",CMAQ_2008!$R$10,"JDAY",$C2,"SRC CAT",CMAQ_2008!QH$3,"SRC REGION",CMAQ_2008!QH$4) -> 0.0035429 | QH2: =GETPIVOTDATA("Sum of EC",CMAQ_2008!$R$10,"JDAY",$C2,"SRC CAT",CMAQ_2008!QI$3,"SRC REGION",CMAQ_2008!QI$4) -> 0.00064618 | QI2: =GETPIVOTDATA("Sum of EC",CMAQ_2008!$R$10,"JDAY",$C2,"SRC CAT",CMAQ_2008!QJ$3,"SRC REGION",CMAQ_2008!QJ$4) -> 0.0013514 | QJ2: =GETPIVOTDATA("Sum of EC",CMAQ_2008!$R$10,"JDAY",$C2,"SRC CAT",CMAQ_2008!QK$3,"SRC REGION",CMAQ_2008!QK$4) -> 0.0081721 | QK2: =GETPIVOTDATA("Sum of EC",CMAQ_2008!$R$10,"JDAY",$C2,"SRC CAT",CMAQ_2008!QL$3,"SRC REGION",CMAQ_2008!QL$4) -> 1.1211e-05 | QL2: =GETPIVOTDATA("Sum of EC",CMAQ_2008!$R$10,"JDAY",$C2,"SRC CAT",CMAQ_2008!QM$3,"SRC REGION",CMAQ_2008!QM$4) -> 0.00011629 | QM2: =GETPIVOTDATA("Sum of EC",CMAQ_2008!$R$10,"JDAY",$C2,"SRC CAT",CMAQ_2008!QN$3,"SRC REGION",CMAQ_2008!QN$4) -> 6.2713e-06 | QN2: =GETPIVOTDATA("Sum of EC",CMAQ_2008!$R$10,"JDAY",$C2,"SRC CAT",CMAQ_2008!QO$3,"SRC REGION",CMAQ_2008!QO$4) -> 1.438e-06 | QO2: =GETPIVOTDATA("Sum of EC",CMAQ_2008!$R$10,"JDAY",$C2,"SRC CAT",CMAQ_2008!QP$3,"SRC REGION",CMAQ_2008!QP$4) -> 0.01004 | QP2: =GETPIVOTDATA("Sum of EC",CMAQ_2008!$R$10,"JDAY",$C2,"SRC CAT",CMAQ_2008!QQ$3,"SRC REGION",CMAQ_2008!QQ$4) -> 2.2491e-08 | QQ2: =GETPIVOTDATA("Sum of EC",CMAQ_2008!$R$10,"JDAY",$C2,"SRC CAT",CMAQ_2008!QR$3,"SRC REGION",CMAQ_2008!QR$4) -> 1.9277e-05 | QR2: =GETPIVOTDATA("Sum of EC",CMAQ_2008!$R$10,"JDAY",$C2,"SRC CAT",CMAQ_2008!QS$3,"SRC REGION",CMAQ_2008!QS$4) -> 0.003575 | QS2: =GETPIVOTDATA("Sum of EC",CMAQ_2008!$R$10,"JDAY",$C2,"SRC CAT",CMAQ_2008!QT$3,"SRC REGION",CMAQ_2008!QT$4) -> 1.3352e-06 | QU2: =GETPIVOTDATA("Sum of OPM25",CMAQ_2008!$R$10,"JDAY",$C2,"SRC CAT",CMAQ_2008!QV$3,"SRC REGION",CMAQ_2008!QV$4) -> 0.0065653 | QV2: =GETPIVOTDATA("Sum of OPM25",CMAQ_2008!$R$10,"JDAY",$C2,"SRC CAT",CMAQ_2008!QW$3,"SRC REGION",CMAQ_2008!QW$4) -> 3.4184e-06 | QW2: =GETPIVOTDATA("Sum of OPM25",CMAQ_2008!$R$10,"JDAY",$C2,"SRC CAT",CMAQ_2008!QX$3,"SRC REGION",CMAQ_2008!QX$4) -> 4.818e-06 | QX2: =GETPIVOTDATA("Sum of OPM25",CMAQ_2008!$R$10,"JDAY",$C2,"SRC CAT",CMAQ_2008!QY$3,"SRC REGION",CMAQ_2008!QY$4) -> 7.2171e-07 | QY2: =GETPIVOTDATA("Sum of OPM25",CMAQ_2008!$R$10,"JDAY",$C2,"SRC CAT",CMAQ_2008!QZ$3,"SRC REGION",CMAQ_2008!QZ$4) -> 0.00025617 | QZ2: =GETPIVOTDATA("Sum of OPM25",CMAQ_2008!$R$10,"JDAY",$C2,"SRC CAT",CMAQ_2008!RA$3,"SRC REGION",CMAQ_2008!RA$4) -> 4.2619e-16 | RA2: =GETPIVOTDATA("Sum of OPM25",CMAQ_2008!$R$10,"JDAY",$C2,"SRC CAT",CMAQ_2008!RB$3,"SRC REGION",CMAQ_2008!RB$4) -> 4.2619e-16 | RB2: =GETPIVOTDATA("Sum of OPM25",CMAQ_2008!$R$10,"JDAY",$C2,"SRC CAT",CMAQ_2008!RC$3,"SRC REGION",CMAQ_2008!RC$4) -> 0.017833 | RC2: =GETPIVOTDATA("Sum of OPM25",CMAQ_2008!$R$10,"JDAY",$C2,"SRC CAT",CMAQ_2008!RD$3,"SRC REGION",CMAQ_2008!RD$4) -> 4.7133e-08 | RD2: =GETPIVOTDATA("Sum of OPM25",CMAQ_2008!$R$10,"JDAY",$C2,"SRC CAT",CMAQ_2008!RE$3,"SRC REGION",CMAQ_2008!RE$4) -> 1.5696e-05 | RE2: =GETPIVOTDATA("Sum of OPM25",CMAQ_2008!$R$10,"JDAY",$C2,"SRC CAT",CMAQ_2008!RF$3,"SRC REGION",CMAQ_2008!RF$4) -> 4.2619e-16 | RF2: =GETPIVOTDATA("Sum of OPM25",CMAQ_2008!$R$10,"JDAY",$C2,"SRC CAT",CMAQ_2008!RG$3,"SRC REGION",CMAQ_2008!RG$4) -> 4.2619e-16 | RG2: =GETPIVOTDATA("Sum of OPM25",CMAQ_2008!$R$10,"JDAY",$C2,"SRC CAT",CMAQ_2008!RH$3,"SRC REGION",CMAQ_2008!RH$4) -> 4.2619e-16 | RH2: =GETPIVOTDATA("Sum of OPM25",CMAQ_2008!$R$10,"JDAY",$C2,"SRC CAT",CMAQ_2008!RI$3,"SRC REGION",CMAQ_2008!RI$4) -> 4.2619e-16 | RI2: =GETPIVOTDATA("Sum of OPM25",CMAQ_2008!$R$10,"JDAY",$C2,"SRC CAT",CMAQ_2008!RJ$3,"SRC REGION",CMAQ_2008!RJ$4) -> 1.8822e-05 | RJ2: =GETPIVOTDATA("Sum of OPM25",CMAQ_2008!$R$10,"JDAY",$C2,"SRC CAT",CMAQ_2008!RK$3,"SRC REGION",CMAQ_2008!RK$4) -> 4.3586e-07 | RK2: =GETPIVOTDATA("Sum of OPM25",CMAQ_2008!$R$10,"JDAY",$C2,"SRC CAT",CMAQ_2008!RL$3,"SRC REGION",CMAQ_2008!RL$4) -> 2.4616e-07 | RL2: =GETPIVOTDATA("Sum of OPM25",CMAQ_2008!$R$10,"JDAY",$C2,"SRC CAT",CMAQ_2008!RM$3,"SRC REGION",CMAQ_2008!RM$4) -> 8.8602e-08 | RM2: =GETPIVOTDATA("Sum of OPM25",CMAQ_2008!$R$10,"JDAY",$C2,"SRC CAT",CMAQ_2008!RN$3,"SRC REGION",CMAQ_2008!RN$4) -> 5.664e-05 | RN2: =GETPIVOTDATA("Sum of OPM25",CMAQ_2008!$R$10,"JDAY",$C2,"SRC CAT",CMAQ_2008!RO$3,"SRC REGION",CMAQ_2008!RO$4) -> 1.0334e-08 | RO2: =GETPIVOTDATA("Sum of OPM25",CMAQ_2008!$R$10,"JDAY",$C2,"SRC CAT",CMAQ_2008!RP$3,"SRC REGION",CMAQ_2008!RP$4) -> 4.3039e-16 | RP2: =GETPIVOTDATA("Sum of OPM25",CMAQ_2008!$R$10,"JDAY",$C2,"SRC CAT",CMAQ_2008!RQ$3,"SRC REGION",CMAQ_2008!RQ$4) -> 0.00047256 | RQ2: =GETPIVOTDATA("Sum of OPM25",CMAQ_2008!$R$10,"JDAY",$C2,"SRC CAT",CMAQ_2008!RR$3,"SRC REGION",CMAQ_2008!RR$4) -> 4.2619e-16 | RR2: =GETPIVOTDATA("Sum of OPM25",CMAQ_2008!$R$10,"JDAY",$C2,"SRC CAT",CMAQ_2008!RS$3,"SRC REGION",CMAQ_2008!RS$4) -> 2.1125e-08 | RS2: =GETPIVOTDATA("Sum of OPM25",CMAQ_2008!$R$10,"JDAY",$C2,"SRC CAT",CMAQ_2008!RT$3,"SRC REGION",CMAQ_2008!RT$4) -> 1.626e-05 | RT2: =GETPIVOTDATA("Sum of OPM25",CMAQ_2008!$R$10,"JDAY",$C2,"SRC CAT",CMAQ_2008!RU$3,"SRC REGION",CMAQ_2008!RU$4) -> 0.0006597 | RU2: =GETPIVOTDATA("Sum of OPM25",CMAQ_2008!$R$10,"JDAY",$C2,"SRC CAT",CMAQ_2008!RV$3,"SRC REGION",CMAQ_2008!RV$4) -> 4.2619e-16 | RV2: =GETPIVOTDATA("Sum of OPM25",CMAQ_2008!$R$10,"JDAY",$C2,"SRC CAT",CMAQ_2008!RW$3,"SRC REGION",CMAQ_2008!RW$4) -> 4.2619e-16 | RW2: =GETPIVOTDATA("Sum of OPM25",CMAQ_2008!$R$10,"JDAY",$C2,"SRC CAT",CMAQ_2008!RX$3,"SRC REGION",CMAQ_2008!RX$4) -> 0.0044236 | RX2: =GETPIVOTDATA("Sum of OPM25",CMAQ_2008!$R$10,"JDAY",$C2,"SRC CAT",CMAQ_2008!RY$3,"SRC REGION",CMAQ_2008!RY$4) -> 4.2619e-16 | RY2: =GETPIVOTDATA("Sum of OPM25",CMAQ_2008!$R$10,"JDAY",$C2,"SRC CAT",CMAQ_2008!RZ$3,"SRC REGION",CMAQ_2008!RZ$4) -> 4.2619e-16 | RZ2: =GETPIVOTDATA("Sum of OPM25",CMAQ_2008!$R$10,"JDAY",$C2,"SRC CAT",CMAQ_2008!SA$3,"SRC REGION",CMAQ_2008!SA$4) -> 4.2619e-16 | SA2: =GETPIVOTDATA("Sum of OPM25",CMAQ_2008!$R$10,"JDAY",$C2,"SRC CAT",CMAQ_2008!SB$3,"SRC REGION",CMAQ_2008!SB$4) -> 5.6522e-05 | SB2: =GETPIVOTDATA("Sum of OPM25",CMAQ_2008!$R$10,"JDAY",$C2,"SRC CAT",CMAQ_2008!SC$3,"SRC REGION",CMAQ_2008!SC$4) -> 3.0191e-05 | SC2: =GETPIVOTDATA("Sum of OPM25",CMAQ_2008!$R$10,"JDAY",$C2,"SRC CAT",CMAQ_2008!SD$3,"SRC REGION",CMAQ_2008!SD$4) -> 0.00015758 | SD2: =GETPIVOTDATA("Sum of OPM25",CMAQ_2008!$R$10,"JDAY",$C2,"SRC CAT",CMAQ_2008!SE$3,"SRC REGION",CMAQ_2008!SE$4) -> 4.2619e-16 | SE2: =GETPIVOTDATA("Sum of OPM25",CMAQ_2008!$R$10,"JDAY",$C2,"SRC CAT",CMAQ_2008!SF$3,"SRC REGION",CMAQ_2008!SF$4) -> 4.2619e-16 | SF2: =GETPIVOTDATA("Sum of OPM25",CMAQ_2008!$R$10,"JDAY",$C2,"SRC CAT",CMAQ_2008!SG$3,"SRC REGION",CMAQ_2008!SG$4) -> 3.8094e-07 | SG2: =GETPIVOTDATA("Sum of OPM25",CMAQ_2008!$R$10,"JDAY",$C2,"SRC CAT",CMAQ_2008!SH$3,"SRC REGION",CMAQ_2008!SH$4) -> 4.2619e-16 | SH2: =GETPIVOTDATA("Sum of OPM25",CMAQ_2008!$R$10,"JDAY",$C2,"SRC CAT",CMAQ_2008!SI$3,"SRC REGION",CMAQ_2008!SI$4) -> 0.0014911 | SI2: =GETPIVOTDATA("Sum of OPM25",CMAQ_2008!$R$10,"JDAY",$C2,"SRC CAT",CMAQ_2008!SJ$3,"SRC REGION",CMAQ_2008!SJ$4) -> 4.2619e-16 | SJ2: =GETPIVOTDATA("Sum of OPM25",CMAQ_2008!$R$10,"JDAY",$C2,"SRC CAT",CMAQ_2008!SK$3,"SRC REGION",CMAQ_2008!SK$4) -> 4.2619e-16 | SK2: =GETPIVOTDATA("Sum of OPM25",CMAQ_2008!$R$10,"JDAY",$C2,"SRC CAT",CMAQ_2008!SL$3,"SRC REGION",CMAQ_2008!SL$4) -> 1.9518e-07 | SL2: =GETPIVOTDATA("Sum of OPM25",CMAQ_2008!$R$10,"JDAY",$C2,"SRC CAT",CMAQ_2008!SM$3,"SRC REGION",CMAQ_2008!SM$4) -> 5.295e-08 | SM2: =GETPIVOTDATA("Sum of OPM25",CMAQ_2008!$R$10,"JDAY",$C2,"SRC CAT",CMAQ_2008!SN$3,"SRC REGION",CMAQ_2008!SN$4) -> 7.2263e-07 | SN2: =GETPIVOTDATA("Sum of OPM25",CMAQ_2008!$R$10,"JDAY",$C2,"SRC CAT",CMAQ_2008!SO$3,"SRC REGION",CMAQ_2008!SO$4) -> 8.28e-05 | SO2: =GETPIVOTDATA("Sum of OPM25",CMAQ_2008!$R$10,"JDAY",$C2,"SRC CAT",CMAQ_2008!SP$3,"SRC REGION",CMAQ_2008!SP$4) -> 4.2619e-16 | SP2: =GETPIVOTDATA("Sum of OPM25",CMAQ_2008!$R$10,"JDAY",$C2,"SRC CAT",CMAQ_2008!SQ$3,"SRC REGION",CMAQ_2008!SQ$4) -> 4.2619e-16 | SQ2: =GETPIVOTDATA("Sum of OPM25",CMAQ_2008!$R$10,"JDAY",$C2,"SRC CAT",CMAQ_2008!SR$3,"SRC REGION",CMAQ_2008!SR$4) -> 0.0021081 | SR2: =GETPIVOTDATA("Sum of OPM25",CMAQ_2008!$R$10,"JDAY",$C2,"SRC CAT",CMAQ_2008!SS$3,"SRC REGION",CMAQ_2008!SS$4) -> 0.0080116 | SS2: =GETPIVOTDATA("Sum of OPM25",CMAQ_2008!$R$10,"JDAY",$C2,"SRC CAT",CMAQ_2008!ST$3,"SRC REGION",CMAQ_2008!ST$4) -> 4.2619e-16 | ST2: =GETPIVOTDATA("Sum of OPM25",CMAQ_2008!$R$10,"JDAY",$C2,"SRC CAT",CMAQ_2008!SU$3,"SRC REGION",CMAQ_2008!SU$4) -> 4.2619e-16 | SU2: =GETPIVOTDATA("Sum of OPM25",CMAQ_2008!$R$10,"JDAY",$C2,"SRC CAT",CMAQ_2008!SV$3,"SRC REGION",CMAQ_2008!SV$4) -> 0.00038934 | SV2: =GETPIVOTDATA("Sum of OPM25",CMAQ_2008!$R$10,"JDAY",$C2,"SRC CAT",CMAQ_2008!SW$3,"SRC REGION",CMAQ_2008!SW$4) -> 0.00011807 | SW2: =GETPIVOTDATA("Sum of OPM25",CMAQ_2008!$R$10,"JDAY",$C2,"SRC CAT",CMAQ_2008!SX$3,"SRC REGION",CMAQ_2008!SX$4) -> 0.00015069 | SX2: =GETPIVOTDATA("Sum of OPM25",CMAQ_2008!$R$10,"JDAY",$C2,"SRC CAT",CMAQ_2008!SY$3,"SRC REGION",CMAQ_2008!SY$4) -> 1.207e-05 | SY2: =GETPIVOTDATA("Sum of OPM25",CMAQ_2008!$R$10,"JDAY",$C2,"SRC CAT",CMAQ_2008!SZ$3,"SRC REGION",CMAQ_2008!SZ$4) -> 4.2619e-16 | SZ2: =GETPIVOTDATA("Sum of OPM25",CMAQ_2008!$R$10,"JDAY",$C2,"SRC CAT",CMAQ_2008!TA$3,"SRC REGION",CMAQ_2008!TA$4) -> 4.2619e-16 | TA2: =GETPIVOTDATA("Sum of OPM25",CMAQ_2008!$R$10,"JDAY",$C2,"SRC CAT",CMAQ_2008!TB$3,"SRC REGION",CMAQ_2008!TB$4) -> 3.0364e-07 | TB2: =GETPIVOTDATA("Sum of OPM25",CMAQ_2008!$R$10,"JDAY",$C2,"SRC CAT",CMAQ_2008!TC$3,"SRC REGION",CMAQ_2008!TC$4) -> 9.1973e-07 | TC2: =GETPIVOTDATA("Sum of OPM25",CMAQ_2008!$R$10,"JDAY",$C2,"SRC CAT",CMAQ_2008!TD$3,"SRC REGION",CMAQ_2008!TD$4) -> 4.2619e-16 | TD2: =GETPIVOTDATA("Sum of OPM25",CMAQ_2008!$R$10,"JDAY",$C2,"SRC CAT",CMAQ_2008!TE$3,"SRC REGION",CMAQ_2008!TE$4) -> 4.2619e-16 | TE2: =GETPIVOTDATA("Sum of OPM25",CMAQ_2008!$R$10,"JDAY",$C2,"SRC CAT",CMAQ_2008!TF$3,"SRC REGION",CMAQ_2008!TF$4) -> 4.2619e-16 | TF2: =GETPIVOTDATA("Sum of OPM25",CMAQ_2008!$R$10,"JDAY",$C2,"SRC CAT",CMAQ_2008!TG$3,"SRC REGION",CMAQ_2008!TG$4) -> 0.00076982 | TG2: =GETPIVOTDATA("Sum of OPM25",CMAQ_2008!$R$10,"JDAY",$C2,"SRC CAT",CMAQ_2008!TH$3,"SRC REGION",CMAQ_2008!TH$4) -> 4.2619e-16 | TH2: =GETPIVOTDATA("Sum of OPM25",CMAQ_2008!$R$10,"JDAY",$C2,"SRC CAT",CMAQ_2008!TI$3,"SRC REGION",CMAQ_2008!TI$4) -> 1.6685e-06 | TI2: =GETPIVOTDATA("Sum of OPM25",CMAQ_2008!$R$10,"JDAY",$C2,"SRC CAT",CMAQ_2008!TJ$3,"SRC REGION",CMAQ_2008!TJ$4) -> 9.5525e-06 | TJ2: =GETPIVOTDATA("Sum of OPM25",CMAQ_2008!$R$10,"JDAY",$C2,"SRC CAT",CMAQ_2008!TK$3,"SRC REGION",CMAQ_2008!TK$4) -> 4.2619e-16 | TK2: =GETPIVOTDATA("Sum of OPM25",CMAQ_2008!$R$10,"JDAY",$C2,"SRC CAT",CMAQ_2008!TL$3,"SRC REGION",CMAQ_2008!TL$4) -> 4.2619e-16 | TL2: =GETPIVOTDATA("Sum of OPM25",CMAQ_2008!$R$10,"JDAY",$C2,"SRC CAT",CMAQ_2008!TM$3,"SRC REGION",CMAQ_2008!TM$4) -> 0.00012208 | TM2: =GETPIVOTDATA("Sum of OPM25",CMAQ_2008!$R$10,"JDAY",$C2,"SRC CAT",CMAQ_2008!TN$3,"SRC REGION",CMAQ_2008!TN$4) -> 0.000954 | TN2: =GETPIVOTDATA("Sum of OPM25",CMAQ_2008!$R$10,"JDAY",$C2,"SRC CAT",CMAQ_2008!TO$3,"SRC REGION",CMAQ_2008!TO$4) -> 4.2619e-16 | TO2: =GETPIVOTDATA("Sum of OPM25",CMAQ_2008!$R$10,"JDAY",$C2,"SRC CAT",CMAQ_2008!TP$3,"SRC REGION",CMAQ_2008!TP$4) -> 4.2619e-16 | TP2: =GETPIVOTDATA("Sum of OPM25",CMAQ_2008!$R$10,"JDAY",$C2,"SRC CAT",CMAQ_2008!TQ$3,"SRC REGION",CMAQ_2008!TQ$4) -> 0.00016965 | TQ2: =GETPIVOTDATA("Sum of OPM25",CMAQ_2008!$R$10,"JDAY",$C2,"SRC CAT",CMAQ_2008!TR$3,"SRC REGION",CMAQ_2008!TR$4) -> 4.2619e-16 | TR2: =GETPIVOTDATA("Sum of OPM25",CMAQ_2008!$R$10,"JDAY",$C2,"SRC CAT",CMAQ_2008!TS$3,"SRC REGION",CMAQ_2008!TS$4) -> 5.1815e-05 | TS2: =GETPIVOTDATA("Sum of OPM25",CMAQ_2008!$R$10,"JDAY",$C2,"SRC CAT",CMAQ_2008!TT$3,"SRC REGION",CMAQ_2008!TT$4) -> 4.2619e-16 | TT2: =GETPIVOTDATA("Sum of OPM25",CMAQ_2008!$R$10,"JDAY",$C2,"SRC CAT",CMAQ_2008!TU$3,"SRC REGION",CMAQ_2008!TU$4) -> 1.1764e-07 | TU2: =GETPIVOTDATA("Sum of OPM25",CMAQ_2008!$R$10,"JDAY",$C2,"SRC CAT",CMAQ_2008!TV$3,"SRC REGION",CMAQ_2008!TV$4) -> 4.2619e-16 | TV2: =GETPIVOTDATA("Sum of OPM25",CMAQ_2008!$R$10,"JDAY",$C2,"SRC CAT",CMAQ_2008!TW$3,"SRC REGION",CMAQ_2008!TW$4) -> 1.9243e-08 | TW2: =GETPIVOTDATA("Sum of OPM25",CMAQ_2008!$R$10,"JDAY",$C2,"SRC CAT",CMAQ_2008!TX$3,"SRC REGION",CMAQ_2008!TX$4) -> 4.2619e-16 | TX2: =GETPIVOTDATA("Sum of OPM25",CMAQ_2008!$R$10,"JDAY",$C2,"SRC CAT",CMAQ_2008!TY$3,"SRC REGION",CMAQ_2008!TY$4) -> 0.0070893 | TY2: =GETPIVOTDATA("Sum of OPM25",CMAQ_2008!$R$10,"JDAY",$C2,"SRC CAT",CMAQ_2008!TZ$3,"SRC REGION",CMAQ_2008!TZ$4) -> 1.408e-10 | TZ2: =GETPIVOTDATA("Sum of OPM25",CMAQ_2008!$R$10,"JDAY",$C2,"SRC CAT",CMAQ_2008!UA$3,"SRC REGION",CMAQ_2008!UA$4) -> 4.2619e-16 | UA2: =GETPIVOTDATA("Sum of OPM25",CMAQ_2008!$R$10,"JDAY",$C2,"SRC CAT",CMAQ_2008!UB$3,"SRC REGION",CMAQ_2008!UB$4) -> 0.040524 | UB2: =GETPIVOTDATA("Sum of OPM25",CMAQ_2008!$R$10,"JDAY",$C2,"SRC CAT",CMAQ_2008!UC$3,"SRC REGION",CMAQ_2008!UC$4) -> 2.3567e-05 | UC2: =GETPIVOTDATA("Sum of OPM25",CMAQ_2008!$R$10,"JDAY",$C2,"SRC CAT",CMAQ_2008!UD$3,"SRC REGION",CMAQ_2008!UD$4) -> 3.2416e-05 | UD2: =GETPIVOTDATA("Sum of OPM25",CMAQ_2008!$R$10,"JDAY",$C2,"SRC CAT",CMAQ_2008!UE$3,"SRC REGION",CMAQ_2008!UE$4) -> 0.006521 | UE2: =GETPIVOTDATA("Sum of OPM25",CMAQ_2008!$R$10,"JDAY",$C2,"SRC CAT",CMAQ_2008!UF$3,"SRC REGION",CMAQ_2008!UF$4) -> 0.19324 | UF2: =GETPIVOTDATA("Sum of OPM25",CMAQ_2008!$R$10,"JDAY",$C2,"SRC CAT",CMAQ_2008!UG$3,"SRC REGION",CMAQ_2008!UG$4) -> 0.0034109 | UG2: =GETPIVOTDATA("Sum of OPM25",CMAQ_2008!$R$10,"JDAY",$C2,"SRC CAT",CMAQ_2008!UH$3,"SRC REGION",CMAQ_2008!UH$4) -> 0.021711 | UH2: =GETPIVOTDATA("Sum of OPM25",CMAQ_2008!$R$10,"JDAY",$C2,"SRC CAT",CMAQ_2008!UI$3,"SRC REGION",CMAQ_2008!UI$4) -> 0.26456 | UI2: =GETPIVOTDATA("Sum of OPM25",CMAQ_2008!$R$10,"JDAY",$C2,"SRC CAT",CMAQ_2008!UJ$3,"SRC REGION",CMAQ_2008!UJ$4) -> 0.0015178 | UJ2: =GETPIVOTDATA("Sum of OPM25",CMAQ_2008!$R$10,"JDAY",$C2,"SRC CAT",CMAQ_2008!UK$3,"SRC REGION",CMAQ_2008!UK$4) -> 0.0041696 | UK2: =GETPIVOTDATA("Sum of OPM25",CMAQ_2008!$R$10,"JDAY",$C2,"SRC CAT",CMAQ_2008!UL$3,"SRC REGION",CMAQ_2008!UL$4) -> 0.073051 | UL2: =GETPIVOTDATA("Sum of OPM25",CMAQ_2008!$R$10,"JDAY",$C2,"SRC CAT",CMAQ_2008!UM$3,"SRC REGION",CMAQ_2008!UM$4) -> 0.0045192 | UM2: =GETPIVOTDATA("Sum of OPM25",CMAQ_2008!$R$10,"JDAY",$C2,"SRC CAT",CMAQ_2008!UN$3,"SRC REGION",CMAQ_2008!UN$4) -> 0.0074576 | UN2: =GETPIVOTDATA("Sum of OPM25",CMAQ_2008!$R$10,"JDAY",$C2,"SRC CAT",CMAQ_2008!UO$3,"SRC REGION",CMAQ_2008!UO$4) -> 0.052027 | UO2: =GETPIVOTDATA("Sum of OPM25",CMAQ_2008!$R$10,"JDAY",$C2,"SRC CAT",CMAQ_2008!UP$3,"SRC REGION",CMAQ_2008!UP$4) -> 5.7696e-05 | UP2: =GETPIVOTDATA("Sum of OPM25",CMAQ_2008!$R$10,"JDAY",$C2,"SRC CAT",CMAQ_2008!UQ$3,"SRC REGION",CMAQ_2008!UQ$4) -> 0.00064462 | UQ2: =GETPIVOTDATA("Sum of OPM25",CMAQ_2008!$R$10,"JDAY",$C2,"SRC CAT",CMAQ_2008!UR$3,"SRC REGION",CMAQ_2008!UR$4) -> 6.2879e-05 | UR2: =GETPIVOTDATA("Sum of OPM25",CMAQ_2008!$R$10,"JDAY",$C2,"SRC CAT",CMAQ_2008!US$3,"SRC REGION",CMAQ_2008!US$4) -> 2.9924e-05 | US2: =GETPIVOTDATA("Sum of OPM25",CMAQ_2008!$R$10,"JDAY",$C2,"SRC CAT",CMAQ_2008!UT$3,"SRC REGION",CMAQ_2008!UT$4) -> 0.07625 | UT2: =GETPIVOTDATA("Sum of OPM25",CMAQ_2008!$R$10,"JDAY",$C2,"SRC CAT",CMAQ_2008!UU$3,"SRC REGION",CMAQ_2008!UU$4) -> 7.4491e-08 | UU2: =GETPIVOTDATA("Sum of OPM25",CMAQ_2008!$R$10,"JDAY",$C2,"SRC CAT",CMAQ_2008!UV$3,"SRC REGION",CMAQ_2008!UV$4) -> 6.1982e-05 | UV2: =GETPIVOTDATA("Sum of OPM25",CMAQ_2008!$R$10,"JDAY",$C2,"SRC CAT",CMAQ_2008!UW$3,"SRC REGION",CMAQ_2008!UW$4) -> 0.51538 | UW2: =GETPIVOTDATA("Sum of OPM25",CMAQ_2008!$R$10,"JDAY",$C2,"SRC CAT",CMAQ_2008!UX$3,"SRC REGION",CMAQ_2008!UX$4) -> 2.0658e-05 | UY2: =GETPIVOTDATA("Sum of PMC",CMAQ_2008!$R$10,"JDAY",$C2,"SRC CAT",CMAQ_2008!UZ$3,"SRC REGION",CMAQ_2008!UZ$4) -> 0.048976 | UZ2: =GETPIVOTDATA("Sum of PMC",CMAQ_2008!$R$10,"JDAY",$C2,"SRC CAT",CMAQ_2008!VA$3,"SRC REGION",CMAQ_2008!VA$4) -> 5.5533e-06 | VA2: =GETPIVOTDATA("Sum of PMC",CMAQ_2008!$R$10,"JDAY",$C2,"SRC CAT",CMAQ_2008!VB$3,"SRC REGION",CMAQ_2008!VB$4) -> 8.286e-06 | VB2: =GETPIVOTDATA("Sum of PMC",CMAQ_2008!$R$10,"JDAY",$C2,"SRC CAT",CMAQ_2008!VC$3,"SRC REGION",CMAQ_2008!VC$4) -> 2.7294e-06 | VC2: =GETPIVOTDATA("Sum of PMC",CMAQ_2008!$R$10,"JDAY",$C2,"SRC CAT",CMAQ_2008!VD$3,"SRC REGION",CMAQ_2008!VD$4) -> 0.0022775 | VD2: =GETPIVOTDATA("Sum of PMC",CMAQ_2008!$R$10,"JDAY",$C2,"SRC CAT",CMAQ_2008!VE$3,"SRC REGION",CMAQ_2008!VE$4) -> 3.616e-16 | VE2: =GETPIVOTDATA("Sum of PMC",CMAQ_2008!$R$10,"JDAY",$C2,"SRC CAT",CMAQ_2008!VF$3,"SRC REGION",CMAQ_2008!VF$4) -> 3.616e-16 | VF2: =GETPIVOTDATA("Sum of PMC",CMAQ_2008!$R$10,"JDAY",$C2,"SRC CAT",CMAQ_2008!VG$3,"SRC REGION",CMAQ_2008!VG$4) -> 0.12624 | VG2: =GETPIVOTDATA("Sum of PMC",CMAQ_2008!$R$10,"JDAY",$C2,"SRC CAT",CMAQ_2008!VH$3,"SRC REGION",CMAQ_2008!VH$4) -> 1.3022e-07 | VH2: =GETPIVOTDATA("Sum of PMC",CMAQ_2008!$R$10,"JDAY",$C2,"SRC CAT",CMAQ_2008!VI$3,"SRC REGION",CMAQ_2008!VI$4) -> 6.7857e-05 | VI2: =GETPIVOTDATA("Sum of PMC",CMAQ_2008!$R$10,"JDAY",$C2,"SRC CAT",CMAQ_2008!VJ$3,"SRC REGION",CMAQ_2008!VJ$4) -> 3.616e-16 | VJ2: =GETPIVOTDATA("Sum of PMC",CMAQ_2008!$R$10,"JDAY",$C2,"SRC CAT",CMAQ_2008!VK$3,"SRC REGION",CMAQ_2008!VK$4) -> 3.616e-16 | VK2: =GETPIVOTDATA("Sum of PMC",CMAQ_2008!$R$10,"JDAY",$C2,"SRC CAT",CMAQ_2008!VL$3,"SRC REGION",CMAQ_2008!VL$4) -> 3.616e-16 | VL2: =GETPIVOTDATA("Sum of PMC",CMAQ_2008!$R$10,"JDAY",$C2,"SRC CAT",CMAQ_2008!VM$3,"SRC REGION",CMAQ_2008!VM$4) -> 3.616e-16 | VM2: =GETPIVOTDATA("Sum of PMC",CMAQ_2008!$R$10,"JDAY",$C2,"SRC CAT",CMAQ_2008!VN$3,"SRC REGION",CMAQ_2008!VN$4) -> 2.8997e-05 | VN2: =GETPIVOTDATA("Sum of PMC",CMAQ_2008!$R$10,"JDAY",$C2,"SRC CAT",CMAQ_2008!VO$3,"SRC REGION",CMAQ_2008!VO$4) -> 7.15e-07 | VO2: =GETPIVOTDATA("Sum of PMC",CMAQ_2008!$R$10,"JDAY",$C2,"SRC CAT",CMAQ_2008!VP$3,"SRC REGION",CMAQ_2008!VP$4) -> 6.2262e-07 | VP2: =GETPIVOTDATA("Sum of PMC",CMAQ_2008!$R$10,"JDAY",$C2,"SRC CAT",CMAQ_2008!VQ$3,"SRC REGION",CMAQ_2008!VQ$4) -> 1.7047e-07 | VQ2: =GETPIVOTDATA("Sum of PMC",CMAQ_2008!$R$10,"JDAY",$C2,"SRC CAT",CMAQ_2008!VR$3,"SRC REGION",CMAQ_2008!VR$4) -> 0.00028438 | VR2: =GETPIVOTDATA("Sum of PMC",CMAQ_2008!$R$10,"JDAY",$C2,"SRC CAT",CMAQ_2008!VS$3,"SRC REGION",CMAQ_2008!VS$4) -> 2.0084e-08 | VS2: =GETPIVOTDATA("Sum of PMC",CMAQ_2008!$R$10,"JDAY",$C2,"SRC CAT",CMAQ_2008!VT$3,"SRC REGION",CMAQ_2008!VT$4) -> 3.6261e-16 | VT2: =GETPIVOTDATA("Sum of PMC",CMAQ_2008!$R$10,"JDAY",$C2,"SRC CAT",CMAQ_2008!VU$3,"SRC REGION",CMAQ_2008!VU$4) -> 8.1226e-05 | VU2: =GETPIVOTDATA("Sum of PMC",CMAQ_2008!$R$10,"JDAY",$C2,"SRC CAT",CMAQ_2008!VV$3,"SRC REGION",CMAQ_2008!VV$4) -> 3.616e-16 | VV2: =GETPIVOTDATA("Sum of PMC",CMAQ_2008!$R$10,"JDAY",$C2,"SRC CAT",CMAQ_2008!VW$3,"SRC REGION",CMAQ_2008!VW$4) -> 1.2243e-09 | VW2: =GETPIVOTDATA("Sum of PMC",CMAQ_2008!$R$10,"JDAY",$C2,"SRC CAT",CMAQ_2008!VX$3,"SRC REGION",CMAQ_2008!VX$4) -> 2.6369e-06 | VX2: =GETPIVOTDATA("Sum of PMC",CMAQ_2008!$R$10,"JDAY",$C2,"SRC CAT",CMAQ_2008!VY$3,"SRC REGION",CMAQ_2008!VY$4) -> 0.00010945 | VY2: =GETPIVOTDATA("Sum of PMC",CMAQ_2008!$R$10,"JDAY",$C2,"SRC CAT",CMAQ_2008!VZ$3,"SRC REGION",CMAQ_2008!VZ$4) -> 3.616e-16 | VZ2: =GETPIVOTDATA("Sum of PMC",CMAQ_2008!$R$10,"JDAY",$C2,"SRC CAT",CMAQ_2008!WA$3,"SRC REGION",CMAQ_2008!WA$4) -> 3.616e-16 | WA2: =GETPIVOTDATA("Sum of PMC",CMAQ_2008!$R$10,"JDAY",$C2,"SRC CAT",CMAQ_2008!WB$3,"SRC REGION",CMAQ_2008!WB$4) -> 0.00073649 | WB2: =GETPIVOTDATA("Sum of PMC",CMAQ_2008!$R$10,"JDAY",$C2,"SRC CAT",CMAQ_2008!WC$3,"SRC REGION",CMAQ_2008!WC$4) -> 3.616e-16 | WC2: =GETPIVOTDATA("Sum of PMC",CMAQ_2008!$R$10,"JDAY",$C2,"SRC CAT",CMAQ_2008!WD$3,"SRC REGION",CMAQ_2008!WD$4) -> 3.616e-16 | WD2: =GETPIVOTDATA("Sum of PMC",CMAQ_2008!$R$10,"JDAY",$C2,"SRC CAT",CMAQ_2008!WE$3,"SRC REGION",CMAQ_2008!WE$4) -> 3.616e-16 | WE2: =GETPIVOTDATA("Sum of PMC",CMAQ_2008!$R$10,"JDAY",$C2,"SRC CAT",CMAQ_2008!WF$3,"SRC REGION",CMAQ_2008!WF$4) -> 9.8132e-06 | WF2: =GETPIVOTDATA("Sum of PMC",CMAQ_2008!$R$10,"JDAY",$C2,"SRC CAT",CMAQ_2008!WG$3,"SRC REGION",CMAQ_2008!WG$4) -> 5.5793e-06 | WG2: =GETPIVOTDATA("Sum of PMC",CMAQ_2008!$R$10,"JDAY",$C2,"SRC CAT",CMAQ_2008!WH$3,"SRC REGION",CMAQ_2008!WH$4) -> 1.9664e-05 | WH2: =GETPIVOTDATA("Sum of PMC",CMAQ_2008!$R$10,"JDAY",$C2,"SRC CAT",CMAQ_2008!WI$3,"SRC REGION",CMAQ_2008!WI$4) -> 3.616e-16 | WI2: =GETPIVOTDATA("Sum of PMC",CMAQ_2008!$R$10,"JDAY",$C2,"SRC CAT",CMAQ_2008!WJ$3,"SRC REGION",CMAQ_2008!WJ$4) -> 3.616e-16 | WJ2: =GETPIVOTDATA("Sum of PMC",CMAQ_2008!$R$10,"JDAY",$C2,"SRC CAT",CMAQ_2008!WK$3,"SRC REGION",CMAQ_2008!WK$4) -> 4.0744e-08 | WK2: =GETPIVOTDATA("Sum of PMC",CMAQ_2008!$R$10,"JDAY",$C2,"SRC CAT",CMAQ_2008!WL$3,"SRC REGION",CMAQ_2008!WL$4) -> 3.616e-16 | WL2: =GETPIVOTDATA("Sum of PMC",CMAQ_2008!$R$10,"JDAY",$C2,"SRC CAT",CMAQ_2008!WM$3,"SRC REGION",CMAQ_2008!WM$4) -> 0.00014483 | WM2: =GETPIVOTDATA("Sum of PMC",CMAQ_2008!$R$10,"JDAY",$C2,"SRC CAT",CMAQ_2008!WN$3,"SRC REGION",CMAQ_2008!WN$4) -> 3.616e-16 | WN2: =GETPIVOTDATA("Sum of PMC",CMAQ_2008!$R$10,"JDAY",$C2,"SRC CAT",CMAQ_2008!WO$3,"SRC REGION",CMAQ_2008!WO$4) -> 3.616e-16 | WO2: =GETPIVOTDATA("Sum of PMC",CMAQ_2008!$R$10,"JDAY",$C2,"SRC CAT",CMAQ_2008!WP$3,"SRC REGION",CMAQ_2008!WP$4) -> 4.0402e-08 | WP2: =GETPIVOTDATA("Sum of PMC",CMAQ_2008!$R$10,"JDAY",$C2,"SRC CAT",CMAQ_2008!WQ$3,"SRC REGION",CMAQ_2008!WQ$4) -> 6.1534e-09 | WQ2: =GETPIVOTDATA("Sum of PMC",CMAQ_2008!$R$10,"JDAY",$C2,"SRC CAT",CMAQ_2008!WR$3,"SRC REGION",CMAQ_2008!WR$4) -> 7.9188e-08 | WR2: =GETPIVOTDATA("Sum of PMC",CMAQ_2008!$R$10,"JDAY",$C2,"SRC CAT",CMAQ_2008!WS$3,"SRC REGION",CMAQ_2008!WS$4) -> 2.7027e-05 | WS2: =GETPIVOTDATA("Sum of PMC",CMAQ_2008!$R$10,"JDAY",$C2,"SRC CAT",CMAQ_2008!WT$3,"SRC REGION",CMAQ_2008!WT$4) -> 3.616e-16 | WT2: =GETPIVOTDATA("Sum of PMC",CMAQ_2008!$R$10,"JDAY",$C2,"SRC CAT",CMAQ_2008!WU$3,"SRC REGION",CMAQ_2008!WU$4) -> 3.616e-16 | WU2: =GETPIVOTDATA("Sum of PMC",CMAQ_2008!$R$10,"JDAY",$C2,"SRC CAT",CMAQ_2008!WV$3,"SRC REGION",CMAQ_2008!WV$4) -> 0.0009252 | WV2: =GETPIVOTDATA("Sum of PMC",CMAQ_2008!$R$10,"JDAY",$C2,"SRC CAT",CMAQ_2008!WW$3,"SRC REGION",CMAQ_2008!WW$4) -> 0.0072966 | WW2: =GETPIVOTDATA("Sum of PMC",CMAQ_2008!$R$10,"JDAY",$C2,"SRC CAT",CMAQ_2008!WX$3,"SRC REGION",CMAQ_2008!WX$4) -> 3.616e-16 | WX2: =GETPIVOTDATA("Sum of PMC",CMAQ_2008!$R$10,"JDAY",$C2,"SRC CAT",CMAQ_2008!WY$3,"SRC REGION",CMAQ_2008!WY$4) -> 3.616e-16 | WY2: =GETPIVOTDATA("Sum of PMC",CMAQ_2008!$R$10,"JDAY",$C2,"SRC CAT",CMAQ_2008!WZ$3,"SRC REGION",CMAQ_2008!WZ$4) -> 0.00039324 | WZ2: =GETPIVOTDATA("Sum of PMC",CMAQ_2008!$R$10,"JDAY",$C2,"SRC CAT",CMAQ_2008!XA$3,"SRC REGION",CMAQ_2008!XA$4) -> 0.00032699 | XA2: =GETPIVOTDATA("Sum of PMC",CMAQ_2008!$R$10,"JDAY",$C2,"SRC CAT",CMAQ_2008!XB$3,"SRC REGION",CMAQ_2008!XB$4) -> 0.0010868 | XB2: =GETPIVOTDATA("Sum of PMC",CMAQ_2008!$R$10,"JDAY",$C2,"SRC CAT",CMAQ_2008!XC$3,"SRC REGION",CMAQ_2008!XC$4) -> 7.3298e-05 | XC2: =GETPIVOTDATA("Sum of PMC",CMAQ_2008!$R$10,"JDAY",$C2,"SRC CAT",CMAQ_2008!XD$3,"SRC REGION",CMAQ_2008!XD$4) -> 3.616e-16 | XD2: =GETPIVOTDATA("Sum of PMC",CMAQ_2008!$R$10,"JDAY",$C2,"SRC CAT",CMAQ_2008!XE$3,"SRC REGION",CMAQ_2008!XE$4) -> 3.616e-16 | XE2: =GETPIVOTDATA("Sum of PMC",CMAQ_2008!$R$10,"JDAY",$C2,"SRC CAT",CMAQ_2008!XF$3,"SRC REGION",CMAQ_2008!XF$4) -> 2.1593e-07 | XF2: =GETPIVOTDATA("Sum of PMC",CMAQ_2008!$R$10,"JDAY",$C2,"SRC CAT",CMAQ_2008!XG$3,"SRC REGION",CMAQ_2008!XG$4) -> 1.1306e-07 | XG2: =GETPIVOTDATA("Sum of PMC",CMAQ_2008!$R$10,"JDAY",$C2,"SRC CAT",CMAQ_2008!XH$3,"SRC REGION",CMAQ_2008!XH$4) -> 3.616e-16 | XH2: =GETPIVOTDATA("Sum of PMC",CMAQ_2008!$R$10,"JDAY",$C2,"SRC CAT",CMAQ_2008!XI$3,"SRC REGION",CMAQ_2008!XI$4) -> 3.616e-16 | XI2: =GETPIVOTDATA("Sum of PMC",CMAQ_2008!$R$10,"JDAY",$C2,"SRC CAT",CMAQ_2008!XJ$3,"SRC REGION",CMAQ_2008!XJ$4) -> 3.616e-16 | XJ2: =GETPIVOTDATA("Sum of PMC",CMAQ_2008!$R$10,"JDAY",$C2,"SRC CAT",CMAQ_2008!XK$3,"SRC REGION",CMAQ_2008!XK$4) -> 0.00039706 | XK2: =GETPIVOTDATA("Sum of PMC",CMAQ_2008!$R$10,"JDAY",$C2,"SRC CAT",CMAQ_2008!XL$3,"SRC REGION",CMAQ_2008!XL$4) -> 3.616e-16 | XL2: =GETPIVOTDATA("Sum of PMC",CMAQ_2008!$R$10,"JDAY",$C2,"SRC CAT",CMAQ_2008!XM$3,"SRC REGION",CMAQ_2008!XM$4) -> 1.6044e-07 | XM2: =GETPIVOTDATA("Sum of PMC",CMAQ_2008!$R$10,"JDAY",$C2,"SRC CAT",CMAQ_2008!XN$3,"SRC REGION",CMAQ_2008!XN$4) -> 4.0106e-06 | XN2: =GETPIVOTDATA("Sum of PMC",CMAQ_2008!$R$10,"JDAY",$C2,"SRC CAT",CMAQ_2008!XO$3,"SRC REGION",CMAQ_2008!XO$4) -> 3.616e-16 | XO2: =GETPIVOTDATA("Sum of PMC",CMAQ_2008!$R$10,"JDAY",$C2,"SRC CAT",CMAQ_2008!XP$3,"SRC REGION",CMAQ_2008!XP$4) -> 3.616e-16 | XP2: =GETPIVOTDATA("Sum of PMC",CMAQ_2008!$R$10,"JDAY",$C2,"SRC CAT",CMAQ_2008!XQ$3,"SRC REGION",CMAQ_2008!XQ$4) -> 0.00040096 | XQ2: =GETPIVOTDATA("Sum of PMC",CMAQ_2008!$R$10,"JDAY",$C2,"SRC CAT",CMAQ_2008!XR$3,"SRC REGION",CMAQ_2008!XR$4) -> 0.00041999 | XR2: =GETPIVOTDATA("Sum of PMC",CMAQ_2008!$R$10,"JDAY",$C2,"SRC CAT",CMAQ_2008!XS$3,"SRC REGION",CMAQ_2008!XS$4) -> 3.616e-16 | XS2: =GETPIVOTDATA("Sum of PMC",CMAQ_2008!$R$10,"JDAY",$C2,"SRC CAT",CMAQ_2008!XT$3,"SRC REGION",CMAQ_2008!XT$4) -> 3.616e-16 | XT2: =GETPIVOTDATA("Sum of PMC",CMAQ_2008!$R$10,"JDAY",$C2,"SRC CAT",CMAQ_2008!XU$3,"SRC REGION",CMAQ_2008!XU$4) -> 6.672e-05 | XU2: =GETPIVOTDATA("Sum of PMC",CMAQ_2008!$R$10,"JDAY",$C2,"SRC CAT",CMAQ_2008!XV$3,"SRC REGION",CMAQ_2008!XV$4) -> 3.616e-16 | XV2: =GETPIVOTDATA("Sum of PMC",CMAQ_2008!$R$10,"JDAY",$C2,"SRC CAT",CMAQ_2008!XW$3,"SRC REGION",CMAQ_2008!XW$4) -> 0.00036612 | XW2: =GETPIVOTDATA("Sum of PMC",CMAQ_2008!$R$10,"JDAY",$C2,"SRC CAT",CMAQ_2008!XX$3,"SRC REGION",CMAQ_2008!XX$4) -> 3.616e-16 | XX2: =GETPIVOTDATA("Sum of PMC",CMAQ_2008!$R$10,"JDAY",$C2,"SRC CAT",CMAQ_2008!XY$3,"SRC REGION",CMAQ_2008!XY$4) -> 3.344e-08 | XY2: =GETPIVOTDATA("Sum of PMC",CMAQ_2008!$R$10,"JDAY",$C2,"SRC CAT",CMAQ_2008!XZ$3,"SRC REGION",CMAQ_2008!XZ$4) -> 3.616e-16 | XZ2: =GETPIVOTDATA("Sum of PMC",CMAQ_2008!$R$10,"JDAY",$C2,"SRC CAT",CMAQ_2008!YA$3,"SRC REGION",CMAQ_2008!YA$4) -> 1.4341e-08 | YA2: =GETPIVOTDATA("Sum of PMC",CMAQ_2008!$R$10,"JDAY",$C2,"SRC CAT",CMAQ_2008!YB$3,"SRC REGION",CMAQ_2008!YB$4) -> 3.616e-16 | YB2: =GETPIVOTDATA("Sum of PMC",CMAQ_2008!$R$10,"JDAY",$C2,"SRC CAT",CMAQ_2008!YC$3,"SRC REGION",CMAQ_2008!YC$4) -> 0.0022481 | YC2: =GETPIVOTDATA("Sum of PMC",CMAQ_2008!$R$10,"JDAY",$C2,"SRC CAT",CMAQ_2008!YD$3,"SRC REGION",CMAQ_2008!YD$4) -> 3.7875e-11 | YD2: =GETPIVOTDATA("Sum of PMC",CMAQ_2008!$R$10,"JDAY",$C2,"SRC CAT",CMAQ_2008!YE$3,"SRC REGION",CMAQ_2008!YE$4) -> 3.616e-16 | YE2: =GETPIVOTDATA("Sum of PMC",CMAQ_2008!$R$10,"JDAY",$C2,"SRC CAT",CMAQ_2008!YF$3,"SRC REGION",CMAQ_2008!YF$4) -> 0.23947 | YF2: =GETPIVOTDATA("Sum of PMC",CMAQ_2008!$R$10,"JDAY",$C2,"SRC CAT",CMAQ_2008!YG$3,"SRC REGION",CMAQ_2008!YG$4) -> 1.0715e-05 | YG2: =GETPIVOTDATA("Sum of PMC",CMAQ_2008!$R$10,"JDAY",$C2,"SRC CAT",CMAQ_2008!YH$3,"SRC REGION",CMAQ_2008!YH$4) -> 4.6207e-05 | YH2: =GETPIVOTDATA("Sum of PMC",CMAQ_2008!$R$10,"JDAY",$C2,"SRC CAT",CMAQ_2008!YI$3,"SRC REGION",CMAQ_2008!YI$4) -> 0.020122 | YI2: =GETPIVOTDATA("Sum of PMC",CMAQ_2008!$R$10,"JDAY",$C2,"SRC CAT",CMAQ_2008!YJ$3,"SRC REGION",CMAQ_2008!YJ$4) -> 0.90029 | YJ2: =GETPIVOTDATA("Sum of PMC",CMAQ_2008!$R$10,"JDAY",$C2,"SRC CAT",CMAQ_2008!YK$3,"SRC REGION",CMAQ_2008!YK$4) -> 0.010834 | YK2: =GETPIVOTDATA("Sum of PMC",CMAQ_2008!$R$10,"JDAY",$C2,"SRC CAT",CMAQ_2008!YL$3,"SRC REGION",CMAQ_2008!YL$4) -> 0.087994 | YL2: =GETPIVOTDATA("Sum of PMC",CMAQ_2008!$R$10,"JDAY",$C2,"SRC CAT",CMAQ_2008!YM$3,"SRC REGION",CMAQ_2008!YM$4) -> 1.3499 | YM2: =GETPIVOTDATA("Sum of PMC",CMAQ_2008!$R$10,"JDAY",$C2,"SRC CAT",CMAQ_2008!YN$3,"SRC REGION",CMAQ_2008!YN$4) -> 0.0029748 | YN2: =GETPIVOTDATA("Sum of PMC",CMAQ_2008!$R$10,"JDAY",$C2,"SRC CAT",CMAQ_2008!YO$3,"SRC REGION",CMAQ_2008!YO$4) -> 0.0089779 | YO2: =GETPIVOTDATA("Sum of PMC",CMAQ_2008!$R$10,"JDAY",$C2,"SRC CAT",CMAQ_2008!YP$3,"SRC REGION",CMAQ_2008!YP$4) -> 0.24758 | YP2: =GETPIVOTDATA("Sum of PMC",CMAQ_2008!$R$10,"JDAY",$C2,"SRC CAT",CMAQ_2008!YQ$3,"SRC REGION",CMAQ_2008!YQ$4) -> 0.014664 | YQ2: =GETPIVOTDATA("Sum of PMC",CMAQ_2008!$R$10,"JDAY",$C2,"SRC CAT",CMAQ_2008!YR$3,"SRC REGION",CMAQ_2008!YR$4) -> 0.029529 | YR2: =GETPIVOTDATA("Sum of PMC",CMAQ_2008!$R$10,"JDAY",$C2,"SRC CAT",CMAQ_2008!YS$3,"SRC REGION",CMAQ_2008!YS$4) -> 0.24541 | YS2: =GETPIVOTDATA("Sum of PMC",CMAQ_2008!$R$10,"JDAY",$C2,"SRC CAT",CMAQ_2008!YT$3,"SRC REGION",CMAQ_2008!YT$4) -> 9.919e-05 | YT2: =GETPIVOTDATA("Sum of PMC",CMAQ_2008!$R$10,"JDAY",$C2,"SRC CAT",CMAQ_2008!YU$3,"SRC REGION",CMAQ_2008!YU$4) -> 0.0018689 | YU2: =GETPIVOTDATA("Sum of PMC",CMAQ_2008!$R$10,"JDAY",$C2,"SRC CAT",CMAQ_2008!YV$3,"SRC REGION",CMAQ_2008!YV$4) -> 0.00017133 | YV2: =GETPIVOTDATA("Sum of PMC",CMAQ_2008!$R$10,"JDAY",$C2,"SRC CAT",CMAQ_2008!YW$3,"SRC REGION",CMAQ_2008!YW$4) -> 6.2033e-05 | YW2: =GETPIVOTDATA("Sum of PMC",CMAQ_2008!$R$10,"JDAY",$C2,"SRC CAT",CMAQ_2008!YX$3,"SRC REGION",CMAQ_2008!YX$4) -> 0.1835 | YX2: =GETPIVOTDATA("Sum of PMC",CMAQ_2008!$R$10,"JDAY",$C2,"SRC CAT",CMAQ_2008!YY$3,"SRC REGION",CMAQ_2008!YY$4) -> 1.7429e-08 | YY2: =GETPIVOTDATA("Sum of PMC",CMAQ_2008!$R$10,"JDAY",$C2,"SRC CAT",CMAQ_2008!YZ$3,"SRC REGION",CMAQ_2008!YZ$4) -> 5.1104e-06 | YZ2: =GETPIVOTDATA("Sum of PMC",CMAQ_2008!$R$10,"JDAY",$C2,"SRC CAT",CMAQ_2008!ZA$3,"SRC REGION",CMAQ_2008!ZA$4) -> 0.085264 | ZA2: =GETPIVOTDATA("Sum of PMC",CMAQ_2008!$R$10,"JDAY",$C2,"SRC CAT",CMAQ_2008!ZB$3,"SRC REGION",CMAQ_2008!ZB$4) -> 3.13e-07
A3: =VLOOKUP(B3,ClassIareas_Mass2008!A:B,2,FALSE) -> AR | B3: =B2 -> CACR1 | C3: 2008002 | D3: 2008-01-02 | E3: 1 | F3: =VLOOKUP(B3&"_"&E3,ClassIareas_Mass2008!F:L,4,FALSE) -> 11 | G3: =VLOOKUP(B3&"_"&E3,ClassIareas_Mass2008!F:L,5,FALSE) -> 3.85 | H3: =VLOOKUP(B3&"_"&E3,ClassIareas_Mass2008!F:L,6,FALSE) -> 2.77 | I3: =VLOOKUP(B3&"_"&E3,ClassIareas_Mass2008!F:L,7,FALSE) -> 3.9 | J3: =IFERROR(VLOOKUP(B3&"_"&C3,ClassIareas_Mass2008!H:T,6,FALSE),"") ->  | K3: =IFERROR(VLOOKUP(B3&"_"&C3,ClassIareas_Mass2008!H:T,7,FALSE),"") ->  | L3: =IFERROR(VLOOKUP(B3&"_"&C3,ClassIareas_Mass2008!H:T,8,FALSE),"") ->  | M3: =IFERROR(VLOOKUP(B3&"_"&C3,ClassIareas_Mass2008!H:T,9,FALSE),"") ->  | N3: =IFERROR(VLOOKUP(B3&"_"&C3,ClassIareas_Mass2008!H:T,10,FALSE),"") ->  | O3: =IFERROR(VLOOKUP(B3&"_"&C3,ClassIareas_Mass2008!H:T,11,FALSE),"") ->  | P3: =IFERROR(VLOOKUP(B3&"_"&C3,ClassIareas_Mass2008!H:T,12,FALSE),"") ->  | Q3: =IFERROR(VLOOKUP(B3&"_"&C3,ClassIareas_Mass2008!H:T,13,FALSE),"") ->  | R3: =GETPIVOTDATA("Sum of SO4",CMAQ_2008!$R$10,"JDAY",$C3,"SRC CAT","TOTAL","SRC REGION","TOTAL") -> 0.80601 | S3: =GETPIVOTDATA("Sum of NO3",CMAQ_2008!$R$10,"JDAY",$C3,"SRC CAT","TOTAL","SRC REGION","TOTAL") -> 1.9131 | T3: =GETPIVOTDATA("Sum of NH4",CMAQ_2008!$R$10,"JDAY",$C3,"SRC CAT","TOTAL","SRC REGION","TOTAL") -> 0.7759 | U3: =GETPIVOTDATA("Sum of EC",CMAQ_2008!$R$10,"JDAY",$C3,"SRC CAT","TOTAL","SRC REGION","TOTAL") -> 0.15013 | V3: =GETPIVOTDATA("Sum of POA",CMAQ_2008!$R$10,"JDAY",$C3,"SRC CAT","TOTAL","SRC REGION","TOTAL") -> 0.40199 | W3: =GETPIVOTDATA("Sum of OPM25",CMAQ_2008!$R$10,"JDAY",$C3,"SRC CAT","TOTAL","SRC REGION","TOTAL") -> 1.8733 | X3: =GETPIVOTDATA("Sum of PMC",CMAQ_2008!$R$10,"JDAY",$C3,"SRC CAT","TOTAL","SRC REGION","TOTAL") -> 2.9124 | AA3: =GETPIVOTDATA("Sum of SSA",CMAQ_2008!$R$10,"JDAY",$C3,"SRC CAT","TOTAL","SRC REGION","TOTAL") -> 0.088331 | AB3: =GETPIVOTDATA("Sum of SOAA",CMAQ_2008!$R$10,"JDAY",$C3,"SRC CAT","TOTAL","SRC REGION","TOTAL") -> 0.01115 | AC3: =GETPIVOTDATA("Sum of SOAB",CMAQ_2008!$R$10,"JDAY",$C3,"SRC CAT","TOTAL","SRC REGION","TOTAL") -> 0.055922 | AE3: =GETPIVOTDATA("Sum of SO4",CMAQ_2008!$R$10,"JDAY",$C3,"SRC CAT",CMAQ_2008!AF$3,"SRC REGION",CMAQ_2008!AF$4) -> 0.00010874 | AF3: =GETPIVOTDATA("Sum of SO4",CMAQ_2008!$R$10,"JDAY",$C3,"SRC CAT",CMAQ_2008!AG$3,"SRC REGION",CMAQ_2008!AG$4) -> 5.0003e-14 | AG3: =GETPIVOTDATA("Sum of SO4",CMAQ_2008!$R$10,"JDAY",$C3,"SRC CAT",CMAQ_2008!AH$3,"SRC REGION",CMAQ_2008!AH$4) -> 1.0295e-07 | AH3: =GETPIVOTDATA("Sum of SO4",CMAQ_2008!$R$10,"JDAY",$C3,"SRC CAT",CMAQ_2008!AI$3,"SRC REGION",CMAQ_2008!AI$4) -> 5.0003e-14 | AI3: =GETPIVOTDATA("Sum of SO4",CMAQ_2008!$R$10,"JDAY",$C3,"SRC CAT",CMAQ_2008!AJ$3,"SRC REGION",CMAQ_2008!AJ$4) -> 5.0003e-14 | AJ3: =GETPIVOTDATA("Sum of SO4",CMAQ_2008!$R$10,"JDAY",$C3,"SRC CAT",CMAQ_2008!AK$3,"SRC REGION",CMAQ_2008!AK$4) -> 5.0003e-14 | AK3: =GETPIVOTDATA("Sum of SO4",CMAQ_2008!$R$10,"JDAY",$C3,"SRC CAT",CMAQ_2008!AL$3,"SRC REGION",CMAQ_2008!AL$4) -> 5.0003e-14 | AL3: =GETPIVOTDATA("Sum of SO4",CMAQ_2008!$R$10,"JDAY",$C3,"SRC CAT",CMAQ_2008!AM$3,"SRC REGION",CMAQ_2008!AM$4) -> 5.0003e-14 | AM3: =GETPIVOTDATA("Sum of SO4",CMAQ_2008!$R$10,"JDAY",$C3,"SRC CAT",CMAQ_2008!AN$3,"SRC REGION",CMAQ_2008!AN$4) -> 1.5227e-05 | AN3: =GETPIVOTDATA("Sum of SO4",CMAQ_2008!$R$10,"JDAY",$C3,"SRC CAT",CMAQ_2008!AO$3,"SRC REGION",CMAQ_2008!AO$4) -> 5.3352e-05 | AO3: =GETPIVOTDATA("Sum of SO4",CMAQ_2008!$R$10,"JDAY",$C3,"SRC CAT",CMAQ_2008!AP$3,"SRC REGION",CMAQ_2008!AP$4) -> 5.0003e-14 | AP3: =GETPIVOTDATA("Sum of SO4",CMAQ_2008!$R$10,"JDAY",$C3,"SRC CAT",CMAQ_2008!AQ$3,"SRC REGION",CMAQ_2008!AQ$4) -> 5.0003e-14 | AQ3: =GETPIVOTDATA("Sum of SO4",CMAQ_2008!$R$10,"JDAY",$C3,"SRC CAT",CMAQ_2008!AR$3,"SRC REGION",CMAQ_2008!AR$4) -> 5.0003e-14 | AR3: =GETPIVOTDATA("Sum of SO4",CMAQ_2008!$R$10,"JDAY",$C3,"SRC CAT",CMAQ_2008!AS$3,"SRC REGION",CMAQ_2008!AS$4) -> 5.0003e-14 | AS3: =GETPIVOTDATA("Sum of SO4",CMAQ_2008!$R$10,"JDAY",$C3,"SRC CAT",CMAQ_2008!AT$3,"SRC REGION",CMAQ_2008!AT$4) -> 5.0003e-14 | AT3: =GETPIVOTDATA("Sum of SO4",CMAQ_2008!$R$10,"JDAY",$C3,"SRC CAT",CMAQ_2008!AU$3,"SRC REGION",CMAQ_2008!AU$4) -> 1.5122e-07 | AU3: =GETPIVOTDATA("Sum of SO4",CMAQ_2008!$R$10,"JDAY",$C3,"SRC CAT",CMAQ_2008!AV$3,"SRC REGION",CMAQ_2008!AV$4) -> 2.1582e-08 | AV3: =GETPIVOTDATA("Sum of SO4",CMAQ_2008!$R$10,"JDAY",$C3,"SRC CAT",CMAQ_2008!AW$3,"SRC REGION",CMAQ_2008!AW$4) -> 5.0003e-14 | AW3: =GETPIVOTDATA("Sum of SO4",CMAQ_2008!$R$10,"JDAY",$C3,"SRC CAT",CMAQ_2008!AX$3,"SRC REGION",CMAQ_2008!AX$4) -> 0.0011558 | AX3: =GETPIVOTDATA("Sum of SO4",CMAQ_2008!$R$10,"JDAY",$C3,"SRC CAT",CMAQ_2008!AY$3,"SRC REGION",CMAQ_2008!AY$4) -> 2.1819e-09 | AY3: =GETPIVOTDATA("Sum of SO4",CMAQ_2008!$R$10,"JDAY",$C3,"SRC CAT",CMAQ_2008!AZ$3,"SRC REGION",CMAQ_2008!AZ$4) -> 0.0073826 | AZ3: =GETPIVOTDATA("Sum of SO4",CMAQ_2008!$R$10,"JDAY",$C3,"SRC CAT",CMAQ_2008!BA$3,"SRC REGION",CMAQ_2008!BA$4) -> 8.0865e-06 | BA3: =GETPIVOTDATA("Sum of SO4",CMAQ_2008!$R$10,"JDAY",$C3,"SRC CAT",CMAQ_2008!BB$3,"SRC REGION",CMAQ_2008!BB$4) -> 5.0003e-14 | BB3: =GETPIVOTDATA("Sum of SO4",CMAQ_2008!$R$10,"JDAY",$C3,"SRC CAT",CMAQ_2008!BC$3,"SRC REGION",CMAQ_2008!BC$4) -> 2.9639e-10 | BC3: =GETPIVOTDATA("Sum of SO4",CMAQ_2008!$R$10,"JDAY",$C3,"SRC CAT",CMAQ_2008!BD$3,"SRC REGION",CMAQ_2008!BD$4) -> 2.3987e-07 | BD3: =GETPIVOTDATA("Sum of SO4",CMAQ_2008!$R$10,"JDAY",$C3,"SRC CAT",CMAQ_2008!BE$3,"SRC REGION",CMAQ_2008!BE$4) -> 2.6852e-05 | BE3: =GETPIVOTDATA("Sum of SO4",CMAQ_2008!$R$10,"JDAY",$C3,"SRC CAT",CMAQ_2008!BF$3,"SRC REGION",CMAQ_2008!BF$4) -> 5.0003e-14 | BF3: =GETPIVOTDATA("Sum of SO4",CMAQ_2008!$R$10,"JDAY",$C3,"SRC CAT",CMAQ_2008!BG$3,"SRC REGION",CMAQ_2008!BG$4) -> 5.0003e-14 | BG3: =GETPIVOTDATA("Sum of SO4",CMAQ_2008!$R$10,"JDAY",$C3,"SRC CAT",CMAQ_2008!BH$3,"SRC REGION",CMAQ_2008!BH$4) -> 5.1788e-05 | BH3: =GETPIVOTDATA("Sum of SO4",CMAQ_2008!$R$10,"JDAY",$C3,"SRC CAT",CMAQ_2008!BI$3,"SRC REGION",CMAQ_2008!BI$4) -> 5.0003e-14 | BI3: =GETPIVOTDATA("Sum of SO4",CMAQ_2008!$R$10,"JDAY",$C3,"SRC CAT",CMAQ_2008!BJ$3,"SRC REGION",CMAQ_2008!BJ$4) -> 5.0003e-14 | BJ3: =GETPIVOTDATA("Sum of SO4",CMAQ_2008!$R$10,"JDAY",$C3,"SRC CAT",CMAQ_2008!BK$3,"SRC REGION",CMAQ_2008!BK$4) -> 5.0003e-14 | BK3: =GETPIVOTDATA("Sum of SO4",CMAQ_2008!$R$10,"JDAY",$C3,"SRC CAT",CMAQ_2008!BL$3,"SRC REGION",CMAQ_2008!BL$4) -> 3.8576e-06 | BL3: =GETPIVOTDATA("Sum of SO4",CMAQ_2008!$R$10,"JDAY",$C3,"SRC CAT",CMAQ_2008!BM$3,"SRC REGION",CMAQ_2008!BM$4) -> 1.1373e-05 | BM3: =GETPIVOTDATA("Sum of SO4",CMAQ_2008!$R$10,"JDAY",$C3,"SRC CAT",CMAQ_2008!BN$3,"SRC REGION",CMAQ_2008!BN$4) -> 1.931e-05 | BN3: =GETPIVOTDATA("Sum of SO4",CMAQ_2008!$R$10,"JDAY",$C3,"SRC CAT",CMAQ_2008!BO$3,"SRC REGION",CMAQ_2008!BO$4) -> 5.0003e-14 | BO3: =GETPIVOTDATA("Sum of SO4",CMAQ_2008!$R$10,"JDAY",$C3,"SRC CAT",CMAQ_2008!BP$3,"SRC REGION",CMAQ_2008!BP$4) -> 5.0003e-14 | BP3: =GETPIVOTDATA("Sum of SO4",CMAQ_2008!$R$10,"JDAY",$C3,"SRC CAT",CMAQ_2008!BQ$3,"SRC REGION",CMAQ_2008!BQ$4) -> 4.7657e-07 | BQ3: =GETPIVOTDATA("Sum of SO4",CMAQ_2008!$R$10,"JDAY",$C3,"SRC CAT",CMAQ_2008!BR$3,"SRC REGION",CMAQ_2008!BR$4) -> 5.0003e-14 | BR3: =GETPIVOTDATA("Sum of SO4",CMAQ_2008!$R$10,"JDAY",$C3,"SRC CAT",CMAQ_2008!BS$3,"SRC REGION",CMAQ_2008!BS$4) -> 0.00018478 | BS3: =GETPIVOTDATA("Sum of SO4",CMAQ_2008!$R$10,"JDAY",$C3,"SRC CAT",CMAQ_2008!BT$3,"SRC REGION",CMAQ_2008!BT$4) -> 5.0003e-14 | BT3: =GETPIVOTDATA("Sum of SO4",CMAQ_2008!$R$10,"JDAY",$C3,"SRC CAT",CMAQ_2008!BU$3,"SRC REGION",CMAQ_2008!BU$4) -> 5.0003e-14 | BU3: =GETPIVOTDATA("Sum of SO4",CMAQ_2008!$R$10,"JDAY",$C3,"SRC CAT",CMAQ_2008!BV$3,"SRC REGION",CMAQ_2008!BV$4) -> 8.7383e-05 | BV3: =GETPIVOTDATA("Sum of SO4",CMAQ_2008!$R$10,"JDAY",$C3,"SRC CAT",CMAQ_2008!BW$3,"SRC REGION",CMAQ_2008!BW$4) -> 4.0454e-10 | BW3: =GETPIVOTDATA("Sum of SO4",CMAQ_2008!$R$10,"JDAY",$C3,"SRC CAT",CMAQ_2008!BX$3,"SRC REGION",CMAQ_2008!BX$4) -> 2.5235e-08 | BX3: =GETPIVOTDATA("Sum of SO4",CMAQ_2008!$R$10,"JDAY",$C3,"SRC CAT",CMAQ_2008!BY$3,"SRC REGION",CMAQ_2008!BY$4) -> 2.8975e-06 | BY3: =GETPIVOTDATA("Sum of SO4",CMAQ_2008!$R$10,"JDAY",$C3,"SRC CAT",CMAQ_2008!BZ$3,"SRC REGION",CMAQ_2008!BZ$4) -> 5.0003e-14 | BZ3: =GETPIVOTDATA("Sum of SO4",CMAQ_2008!$R$10,"JDAY",$C3,"SRC CAT",CMAQ_2008!CA$3,"SRC REGION",CMAQ_2008!CA$4) -> 5.0003e-14 | CA3: =GETPIVOTDATA("Sum of SO4",CMAQ_2008!$R$10,"JDAY",$C3,"SRC CAT",CMAQ_2008!CB$3,"SRC REGION",CMAQ_2008!CB$4) -> 0.00019489 | CB3: =GETPIVOTDATA("Sum of SO4",CMAQ_2008!$R$10,"JDAY",$C3,"SRC CAT",CMAQ_2008!CC$3,"SRC REGION",CMAQ_2008!CC$4) -> 0.00058155 | CC3: =GETPIVOTDATA("Sum of SO4",CMAQ_2008!$R$10,"JDAY",$C3,"SRC CAT",CMAQ_2008!CD$3,"SRC REGION",CMAQ_2008!CD$4) -> 5.0003e-14 | CD3: =GETPIVOTDATA("Sum of SO4",CMAQ_2008!$R$10,"JDAY",$C3,"SRC CAT",CMAQ_2008!CE$3,"SRC REGION",CMAQ_2008!CE$4) -> 5.0003e-14 | CE3: =GETPIVOTDATA("Sum of SO4",CMAQ_2008!$R$10,"JDAY",$C3,"SRC CAT",CMAQ_2008!CF$3,"SRC REGION",CMAQ_2008!CF$4) -> 2.1338e-05 | CF3: =GETPIVOTDATA("Sum of SO4",CMAQ_2008!$R$10,"JDAY",$C3,"SRC CAT",CMAQ_2008!CG$3,"SRC REGION",CMAQ_2008!CG$4) -> 6.7992e-06 | CG3: =GETPIVOTDATA("Sum of SO4",CMAQ_2008!$R$10,"JDAY",$C3,"SRC CAT",CMAQ_2008!CH$3,"SRC REGION",CMAQ_2008!CH$4) -> 1.5356e-05 | CH3: =GETPIVOTDATA("Sum of SO4",CMAQ_2008!$R$10,"JDAY",$C3,"SRC CAT",CMAQ_2008!CI$3,"SRC REGION",CMAQ_2008!CI$4) -> 1.3664e-06 | CI3: =GETPIVOTDATA("Sum of SO4",CMAQ_2008!$R$10,"JDAY",$C3,"SRC CAT",CMAQ_2008!CJ$3,"SRC REGION",CMAQ_2008!CJ$4) -> 5.0003e-14 | CJ3: =GETPIVOTDATA("Sum of SO4",CMAQ_2008!$R$10,"JDAY",$C3,"SRC CAT",CMAQ_2008!CK$3,"SRC REGION",CMAQ_2008!CK$4) -> 5.0003e-14 | CK3: =GETPIVOTDATA("Sum of SO4",CMAQ_2008!$R$10,"JDAY",$C3,"SRC CAT",CMAQ_2008!CL$3,"SRC REGION",CMAQ_2008!CL$4) -> 8.3536e-07 | CL3: =GETPIVOTDATA("Sum of SO4",CMAQ_2008!$R$10,"JDAY",$C3,"SRC CAT",CMAQ_2008!CM$3,"SRC REGION",CMAQ_2008!CM$4) -> 1.4919e-07 | CM3: =GETPIVOTDATA("Sum of SO4",CMAQ_2008!$R$10,"JDAY",$C3,"SRC CAT",CMAQ_2008!CN$3,"SRC REGION",CMAQ_2008!CN$4) -> 5.0003e-14 | CN3: =GETPIVOTDATA("Sum of SO4",CMAQ_2008!$R$10,"JDAY",$C3,"SRC CAT",CMAQ_2008!CO$3,"SRC REGION",CMAQ_2008!CO$4) -> 5.0003e-14 | CO3: =GETPIVOTDATA("Sum of SO4",CMAQ_2008!$R$10,"JDAY",$C3,"SRC CAT",CMAQ_2008!CP$3,"SRC REGION",CMAQ_2008!CP$4) -> 5.0003e-14 | CP3: =GETPIVOTDATA("Sum of SO4",CMAQ_2008!$R$10,"JDAY",$C3,"SRC CAT",CMAQ_2008!CQ$3,"SRC REGION",CMAQ_2008!CQ$4) -> 0.00050309 | CQ3: =GETPIVOTDATA("Sum of SO4",CMAQ_2008!$R$10,"JDAY",$C3,"SRC CAT",CMAQ_2008!CR$3,"SRC REGION",CMAQ_2008!CR$4) -> 5.0003e-14 | CR3: =GETPIVOTDATA("Sum of SO4",CMAQ_2008!$R$10,"JDAY",$C3,"SRC CAT",CMAQ_2008!CS$3,"SRC REGION",CMAQ_2008!CS$4) -> 5.7234e-08 | CS3: =GETPIVOTDATA("Sum of SO4",CMAQ_2008!$R$10,"JDAY",$C3,"SRC CAT",CMAQ_2008!CT$3,"SRC REGION",CMAQ_2008!CT$4) -> 2.2726e-07 | CT3: =GETPIVOTDATA("Sum of SO4",CMAQ_2008!$R$10,"JDAY",$C3,"SRC CAT",CMAQ_2008!CU$3,"SRC REGION",CMAQ_2008!CU$4) -> 5.0003e-14 | CU3: =GETPIVOTDATA("Sum of SO4",CMAQ_2008!$R$10,"JDAY",$C3,"SRC CAT",CMAQ_2008!CV$3,"SRC REGION",CMAQ_2008!CV$4) -> 5.0003e-14 | CV3: =GETPIVOTDATA("Sum of SO4",CMAQ_2008!$R$10,"JDAY",$C3,"SRC CAT",CMAQ_2008!CW$3,"SRC REGION",CMAQ_2008!CW$4) -> 1.3747e-05 | CW3: =GETPIVOTDATA("Sum of SO4",CMAQ_2008!$R$10,"JDAY",$C3,"SRC CAT",CMAQ_2008!CX$3,"SRC REGION",CMAQ_2008!CX$4) -> 3.9507e-05 | CX3: =GETPIVOTDATA("Sum of SO4",CMAQ_2008!$R$10,"JDAY",$C3,"SRC CAT",CMAQ_2008!CY$3,"SRC REGION",CMAQ_2008!CY$4) -> 5.0003e-14 | CY3: =GETPIVOTDATA("Sum of SO4",CMAQ_2008!$R$10,"JDAY",$C3,"SRC CAT",CMAQ_2008!CZ$3,"SRC REGION",CMAQ_2008!CZ$4) -> 5.0003e-14 | CZ3: =GETPIVOTDATA("Sum of SO4",CMAQ_2008!$R$10,"JDAY",$C3,"SRC CAT",CMAQ_2008!DA$3,"SRC REGION",CMAQ_2008!DA$4) -> 6.3689e-06 | DA3: =GETPIVOTDATA("Sum of SO4",CMAQ_2008!$R$10,"JDAY",$C3,"SRC CAT",CMAQ_2008!DB$3,"SRC REGION",CMAQ_2008!DB$4) -> 5.0003e-14 | DB3: =GETPIVOTDATA("Sum of SO4",CMAQ_2008!$R$10,"JDAY",$C3,"SRC CAT",CMAQ_2008!DC$3,"SRC REGION",CMAQ_2008!DC$4) -> 5.2393e-06 | DC3: =GETPIVOTDATA("Sum of SO4",CMAQ_2008!$R$10,"JDAY",$C3,"SRC CAT",CMAQ_2008!DD$3,"SRC REGION",CMAQ_2008!DD$4) -> 5.0003e-14 | DD3: =GETPIVOTDATA("Sum of SO4",CMAQ_2008!$R$10,"JDAY",$C3,"SRC CAT",CMAQ_2008!DE$3,"SRC REGION",CMAQ_2008!DE$4) -> 3.4673e-08 | DE3: =GETPIVOTDATA("Sum of SO4",CMAQ_2008!$R$10,"JDAY",$C3,"SRC CAT",CMAQ_2008!DF$3,"SRC REGION",CMAQ_2008!DF$4) -> 5.0003e-14 | DF3: =GETPIVOTDATA("Sum of SO4",CMAQ_2008!$R$10,"JDAY",$C3,"SRC CAT",CMAQ_2008!DG$3,"SRC REGION",CMAQ_2008!DG$4) -> 2.3915e-08 | DG3: =GETPIVOTDATA("Sum of SO4",CMAQ_2008!$R$10,"JDAY",$C3,"SRC CAT",CMAQ_2008!DH$3,"SRC REGION",CMAQ_2008!DH$4) -> 5.0003e-14 | DH3: =GETPIVOTDATA("Sum of SO4",CMAQ_2008!$R$10,"JDAY",$C3,"SRC CAT",CMAQ_2008!DI$3,"SRC REGION",CMAQ_2008!DI$4) -> 0.0016733 | DI3: =GETPIVOTDATA("Sum of SO4",CMAQ_2008!$R$10,"JDAY",$C3,"SRC CAT",CMAQ_2008!DJ$3,"SRC REGION",CMAQ_2008!DJ$4) -> 3.0707e-10 | DJ3: =GETPIVOTDATA("Sum of SO4",CMAQ_2008!$R$10,"JDAY",$C3,"SRC CAT",CMAQ_2008!DK$3,"SRC REGION",CMAQ_2008!DK$4) -> 5.0003e-14 | DK3: =GETPIVOTDATA("Sum of SO4",CMAQ_2008!$R$10,"JDAY",$C3,"SRC CAT",CMAQ_2008!DL$3,"SRC REGION",CMAQ_2008!DL$4) -> 0.035405 | DL3: =GETPIVOTDATA("Sum of SO4",CMAQ_2008!$R$10,"JDAY",$C3,"SRC CAT",CMAQ_2008!DM$3,"SRC REGION",CMAQ_2008!DM$4) -> 4.1937e-06 | DM3: =GETPIVOTDATA("Sum of SO4",CMAQ_2008!$R$10,"JDAY",$C3,"SRC CAT",CMAQ_2008!DN$3,"SRC REGION",CMAQ_2008!DN$4) -> 2.7532e-06 | DN3: =GETPIVOTDATA("Sum of SO4",CMAQ_2008!$R$10,"JDAY",$C3,"SRC CAT",CMAQ_2008!DO$3,"SRC REGION",CMAQ_2008!DO$4) -> 0.0014654 | DO3: =GETPIVOTDATA("Sum of SO4",CMAQ_2008!$R$10,"JDAY",$C3,"SRC CAT",CMAQ_2008!DP$3,"SRC REGION",CMAQ_2008!DP$4) -> 0.02162 | DP3: =GETPIVOTDATA("Sum of SO4",CMAQ_2008!$R$10,"JDAY",$C3,"SRC CAT",CMAQ_2008!DQ$3,"SRC REGION",CMAQ_2008!DQ$4) -> 0.0022884 | DQ3: =GETPIVOTDATA("Sum of SO4",CMAQ_2008!$R$10,"JDAY",$C3,"SRC CAT",CMAQ_2008!DR$3,"SRC REGION",CMAQ_2008!DR$4) -> 0.022273 | DR3: =GETPIVOTDATA("Sum of SO4",CMAQ_2008!$R$10,"JDAY",$C3,"SRC CAT",CMAQ_2008!DS$3,"SRC REGION",CMAQ_2008!DS$4) -> 0.041979 | DS3: =GETPIVOTDATA("Sum of SO4",CMAQ_2008!$R$10,"JDAY",$C3,"SRC CAT",CMAQ_2008!DT$3,"SRC REGION",CMAQ_2008!DT$4) -> 0.0033201 | DT3: =GETPIVOTDATA("Sum of SO4",CMAQ_2008!$R$10,"JDAY",$C3,"SRC CAT",CMAQ_2008!DU$3,"SRC REGION",CMAQ_2008!DU$4) -> 0.008945 | DU3: =GETPIVOTDATA("Sum of SO4",CMAQ_2008!$R$10,"JDAY",$C3,"SRC CAT",CMAQ_2008!DV$3,"SRC REGION",CMAQ_2008!DV$4) -> 0.012671 | DV3: =GETPIVOTDATA("Sum of SO4",CMAQ_2008!$R$10,"JDAY",$C3,"SRC CAT",CMAQ_2008!DW$3,"SRC REGION",CMAQ_2008!DW$4) -> 0.038007 | DW3: =GETPIVOTDATA("Sum of SO4",CMAQ_2008!$R$10,"JDAY",$C3,"SRC CAT",CMAQ_2008!DX$3,"SRC REGION",CMAQ_2008!DX$4) -> 0.00042784 | DX3: =GETPIVOTDATA("Sum of SO4",CMAQ_2008!$R$10,"JDAY",$C3,"SRC CAT",CMAQ_2008!DY$3,"SRC REGION",CMAQ_2008!DY$4) -> 0.0076654 | DY3: =GETPIVOTDATA("Sum of SO4",CMAQ_2008!$R$10,"JDAY",$C3,"SRC CAT",CMAQ_2008!DZ$3,"SRC REGION",CMAQ_2008!DZ$4) -> 0.0001 | DZ3: =GETPIVOTDATA("Sum of SO4",CMAQ_2008!$R$10,"JDAY",$C3,"SRC CAT",CMAQ_2008!EA$3,"SRC REGION",CMAQ_2008!EA$4) -> 0.00030482 | EA3: =GETPIVOTDATA("Sum of SO4",CMAQ_2008!$R$10,"JDAY",$C3,"SRC CAT",CMAQ_2008!EB$3,"SRC REGION",CMAQ_2008!EB$4) -> 0.00034898 | EB3: =GETPIVOTDATA("Sum of SO4",CMAQ_2008!$R$10,"JDAY",$C3,"SRC CAT",CMAQ_2008!EC$3,"SRC REGION",CMAQ_2008!EC$4) -> 1.8664e-05 | EC3: =GETPIVOTDATA("Sum of SO4",CMAQ_2008!$R$10,"JDAY",$C3,"SRC CAT",CMAQ_2008!ED$3,"SRC REGION",CMAQ_2008!ED$4) -> 0.30393 | ED3: =GETPIVOTDATA("Sum of SO4",CMAQ_2008!$R$10,"JDAY",$C3,"SRC CAT",CMAQ_2008!EE$3,"SRC REGION",CMAQ_2008!EE$4) -> 5.0537e-05 | EE3: =GETPIVOTDATA("Sum of SO4",CMAQ_2008!$R$10,"JDAY",$C3,"SRC CAT",CMAQ_2008!EF$3,"SRC REGION",CMAQ_2008!EF$4) -> 0.000441 | EF3: =GETPIVOTDATA("Sum of SO4",CMAQ_2008!$R$10,"JDAY",$C3,"SRC CAT",CMAQ_2008!EG$3,"SRC REGION",CMAQ_2008!EG$4) -> 0.29147 | EG3: =GETPIVOTDATA("Sum of SO4",CMAQ_2008!$R$10,"JDAY",$C3,"SRC CAT",CMAQ_2008!EH$3,"SRC REGION",CMAQ_2008!EH$4) -> 0.0010921 | EI3: =GETPIVOTDATA("Sum of NO3",CMAQ_2008!$R$10,"JDAY",$C3,"SRC CAT",CMAQ_2008!EJ$3,"SRC REGION",CMAQ_2008!EJ$4) -> 0.0002027 | EJ3: =GETPIVOTDATA("Sum of NO3",CMAQ_2008!$R$10,"JDAY",$C3,"SRC CAT",CMAQ_2008!EK$3,"SRC REGION",CMAQ_2008!EK$4) -> 5.3711e-09 | EK3: =GETPIVOTDATA("Sum of NO3",CMAQ_2008!$R$10,"JDAY",$C3,"SRC CAT",CMAQ_2008!EL$3,"SRC REGION",CMAQ_2008!EL$4) -> 6.3131e-07 | EL3: =GETPIVOTDATA("Sum of NO3",CMAQ_2008!$R$10,"JDAY",$C3,"SRC CAT",CMAQ_2008!EM$3,"SRC REGION",CMAQ_2008!EM$4) -> 1.8895e-08 | EM3: =GETPIVOTDATA("Sum of NO3",CMAQ_2008!$R$10,"JDAY",$C3,"SRC CAT",CMAQ_2008!EN$3,"SRC REGION",CMAQ_2008!EN$4) -> 8.327e-05 | EN3: =GETPIVOTDATA("Sum of NO3",CMAQ_2008!$R$10,"JDAY",$C3,"SRC CAT",CMAQ_2008!EO$3,"SRC REGION",CMAQ_2008!EO$4) -> 4.4221e-07 | EO3: =GETPIVOTDATA("Sum of NO3",CMAQ_2008!$R$10,"JDAY",$C3,"SRC CAT",CMAQ_2008!EP$3,"SRC REGION",CMAQ_2008!EP$4) -> 2.3712e-05 | EP3: =GETPIVOTDATA("Sum of NO3",CMAQ_2008!$R$10,"JDAY",$C3,"SRC CAT",CMAQ_2008!EQ$3,"SRC REGION",CMAQ_2008!EQ$4) -> 0.00011439 | EQ3: =GETPIVOTDATA("Sum of NO3",CMAQ_2008!$R$10,"JDAY",$C3,"SRC CAT",CMAQ_2008!ER$3,"SRC REGION",CMAQ_2008!ER$4) -> 7.6105e-06 | ER3: =GETPIVOTDATA("Sum of NO3",CMAQ_2008!$R$10,"JDAY",$C3,"SRC CAT",CMAQ_2008!ES$3,"SRC REGION",CMAQ_2008!ES$4) -> 1.5905e-05 | ES3: =GETPIVOTDATA("Sum of NO3",CMAQ_2008!$R$10,"JDAY",$C3,"SRC CAT",CMAQ_2008!ET$3,"SRC REGION",CMAQ_2008!ET$4) -> 4.32e-07 | ET3: =GETPIVOTDATA("Sum of NO3",CMAQ_2008!$R$10,"JDAY",$C3,"SRC CAT",CMAQ_2008!EU$3,"SRC REGION",CMAQ_2008!EU$4) -> 2.7977e-13 | EU3: =GETPIVOTDATA("Sum of NO3",CMAQ_2008!$R$10,"JDAY",$C3,"SRC CAT",CMAQ_2008!EV$3,"SRC REGION",CMAQ_2008!EV$4) -> 9.8974e-07 | EV3: =GETPIVOTDATA("Sum of NO3",CMAQ_2008!$R$10,"JDAY",$C3,"SRC CAT",CMAQ_2008!EW$3,"SRC REGION",CMAQ_2008!EW$4) -> 2.9353e-06 | EW3: =GETPIVOTDATA("Sum of NO3",CMAQ_2008!$R$10,"JDAY",$C3,"SRC CAT",CMAQ_2008!EX$3,"SRC REGION",CMAQ_2008!EX$4) -> 7.0345e-08 | EX3: =GETPIVOTDATA("Sum of NO3",CMAQ_2008!$R$10,"JDAY",$C3,"SRC CAT",CMAQ_2008!EY$3,"SRC REGION",CMAQ_2008!EY$4) -> 1.4229e-08 | EY3: =GETPIVOTDATA("Sum of NO3",CMAQ_2008!$R$10,"JDAY",$C3,"SRC CAT",CMAQ_2008!EZ$3,"SRC REGION",CMAQ_2008!EZ$4) -> 6.4174e-07 | EZ3: =GETPIVOTDATA("Sum of NO3",CMAQ_2008!$R$10,"JDAY",$C3,"SRC CAT",CMAQ_2008!FA$3,"SRC REGION",CMAQ_2008!FA$4) -> 5.2499e-08 | FA3: =GETPIVOTDATA("Sum of NO3",CMAQ_2008!$R$10,"JDAY",$C3,"SRC CAT",CMAQ_2008!FB$3,"SRC REGION",CMAQ_2008!FB$4) -> 0.00015727 | FB3: =GETPIVOTDATA("Sum of NO3",CMAQ_2008!$R$10,"JDAY",$C3,"SRC CAT",CMAQ_2008!FC$3,"SRC REGION",CMAQ_2008!FC$4) -> 6.7742e-08 | FC3: =GETPIVOTDATA("Sum of NO3",CMAQ_2008!$R$10,"JDAY",$C3,"SRC CAT",CMAQ_2008!FD$3,"SRC REGION",CMAQ_2008!FD$4) -> 0.0037947 | FD3: =GETPIVOTDATA("Sum of NO3",CMAQ_2008!$R$10,"JDAY",$C3,"SRC CAT",CMAQ_2008!FE$3,"SRC REGION",CMAQ_2008!FE$4) -> 3.4845e-05 | FE3: =GETPIVOTDATA("Sum of NO3",CMAQ_2008!$R$10,"JDAY",$C3,"SRC CAT",CMAQ_2008!FF$3,"SRC REGION",CMAQ_2008!FF$4) -> 2.7977e-13 | FF3: =GETPIVOTDATA("Sum of NO3",CMAQ_2008!$R$10,"JDAY",$C3,"SRC CAT",CMAQ_2008!FG$3,"SRC REGION",CMAQ_2008!FG$4) -> 9.6349e-10 | FG3: =GETPIVOTDATA("Sum of NO3",CMAQ_2008!$R$10,"JDAY",$C3,"SRC CAT",CMAQ_2008!FH$3,"SRC REGION",CMAQ_2008!FH$4) -> 1.7669e-06 | FH3: =GETPIVOTDATA("Sum of NO3",CMAQ_2008!$R$10,"JDAY",$C3,"SRC CAT",CMAQ_2008!FI$3,"SRC REGION",CMAQ_2008!FI$4) -> 0.0004744 | FI3: =GETPIVOTDATA("Sum of NO3",CMAQ_2008!$R$10,"JDAY",$C3,"SRC CAT",CMAQ_2008!FJ$3,"SRC REGION",CMAQ_2008!FJ$4) -> 2.7977e-13 | FJ3: =GETPIVOTDATA("Sum of NO3",CMAQ_2008!$R$10,"JDAY",$C3,"SRC CAT",CMAQ_2008!FK$3,"SRC REGION",CMAQ_2008!FK$4) -> 2.7977e-13 | FK3: =GETPIVOTDATA("Sum of NO3",CMAQ_2008!$R$10,"JDAY",$C3,"SRC CAT",CMAQ_2008!FL$3,"SRC REGION",CMAQ_2008!FL$4) -> 0.00026335 | FL3: =GETPIVOTDATA("Sum of NO3",CMAQ_2008!$R$10,"JDAY",$C3,"SRC CAT",CMAQ_2008!FM$3,"SRC REGION",CMAQ_2008!FM$4) -> 2.7977e-13 | FM3: =GETPIVOTDATA("Sum of NO3",CMAQ_2008!$R$10,"JDAY",$C3,"SRC CAT",CMAQ_2008!FN$3,"SRC REGION",CMAQ_2008!FN$4) -> 2.7977e-13 | FN3: =GETPIVOTDATA("Sum of NO3",CMAQ_2008!$R$10,"JDAY",$C3,"SRC CAT",CMAQ_2008!FO$3,"SRC REGION",CMAQ_2008!FO$4) -> 2.7977e-13 | FO3: =GETPIVOTDATA("Sum of NO3",CMAQ_2008!$R$10,"JDAY",$C3,"SRC CAT",CMAQ_2008!FP$3,"SRC REGION",CMAQ_2008!FP$4) -> 3.269e-05 | FP3: =GETPIVOTDATA("Sum of NO3",CMAQ_2008!$R$10,"JDAY",$C3,"SRC CAT",CMAQ_2008!FQ$3,"SRC REGION",CMAQ_2008!FQ$4) -> 0.0001144 | FQ3: =GETPIVOTDATA("Sum of NO3",CMAQ_2008!$R$10,"JDAY",$C3,"SRC CAT",CMAQ_2008!FR$3,"SRC REGION",CMAQ_2008!FR$4) -> 0.00032946 | FR3: =GETPIVOTDATA("Sum of NO3",CMAQ_2008!$R$10,"JDAY",$C3,"SRC CAT",CMAQ_2008!FS$3,"SRC REGION",CMAQ_2008!FS$4) -> 2.7977e-13 | FS3: =GETPIVOTDATA("Sum of NO3",CMAQ_2008!$R$10,"JDAY",$C3,"SRC CAT",CMAQ_2008!FT$3,"SRC REGION",CMAQ_2008!FT$4) -> 2.7977e-13 | FT3: =GETPIVOTDATA("Sum of NO3",CMAQ_2008!$R$10,"JDAY",$C3,"SRC CAT",CMAQ_2008!FU$3,"SRC REGION",CMAQ_2008!FU$4) -> 1.1774e-06 | FU3: =GETPIVOTDATA("Sum of NO3",CMAQ_2008!$R$10,"JDAY",$C3,"SRC CAT",CMAQ_2008!FV$3,"SRC REGION",CMAQ_2008!FV$4) -> 2.7977e-13 | FV3: =GETPIVOTDATA("Sum of NO3",CMAQ_2008!$R$10,"JDAY",$C3,"SRC CAT",CMAQ_2008!FW$3,"SRC REGION",CMAQ_2008!FW$4) -> 0.00089626 | FW3: =GETPIVOTDATA("Sum of NO3",CMAQ_2008!$R$10,"JDAY",$C3,"SRC CAT",CMAQ_2008!FX$3,"SRC REGION",CMAQ_2008!FX$4) -> 2.7977e-13 | FX3: =GETPIVOTDATA("Sum of NO3",CMAQ_2008!$R$10,"JDAY",$C3,"SRC CAT",CMAQ_2008!FY$3,"SRC REGION",CMAQ_2008!FY$4) -> 2.7977e-13 | FY3: =GETPIVOTDATA("Sum of NO3",CMAQ_2008!$R$10,"JDAY",$C3,"SRC CAT",CMAQ_2008!FZ$3,"SRC REGION",CMAQ_2008!FZ$4) -> 0.0003034 | FZ3: =GETPIVOTDATA("Sum of NO3",CMAQ_2008!$R$10,"JDAY",$C3,"SRC CAT",CMAQ_2008!GA$3,"SRC REGION",CMAQ_2008!GA$4) -> 1.0746e-09 | GA3: =GETPIVOTDATA("Sum of NO3",CMAQ_2008!$R$10,"JDAY",$C3,"SRC CAT",CMAQ_2008!GB$3,"SRC REGION",CMAQ_2008!GB$4) -> 3.1176e-07 | GB3: =GETPIVOTDATA("Sum of NO3",CMAQ_2008!$R$10,"JDAY",$C3,"SRC CAT",CMAQ_2008!GC$3,"SRC REGION",CMAQ_2008!GC$4) -> 8.3502e-06 | GC3: =GETPIVOTDATA("Sum of NO3",CMAQ_2008!$R$10,"JDAY",$C3,"SRC CAT",CMAQ_2008!GD$3,"SRC REGION",CMAQ_2008!GD$4) -> 2.7977e-13 | GD3: =GETPIVOTDATA("Sum of NO3",CMAQ_2008!$R$10,"JDAY",$C3,"SRC CAT",CMAQ_2008!GE$3,"SRC REGION",CMAQ_2008!GE$4) -> 2.7977e-13 | GE3: =GETPIVOTDATA("Sum of NO3",CMAQ_2008!$R$10,"JDAY",$C3,"SRC CAT",CMAQ_2008!GF$3,"SRC REGION",CMAQ_2008!GF$4) -> 0.00076408 | GF3: =GETPIVOTDATA("Sum of NO3",CMAQ_2008!$R$10,"JDAY",$C3,"SRC CAT",CMAQ_2008!GG$3,"SRC REGION",CMAQ_2008!GG$4) -> 0.0011061 | GG3: =GETPIVOTDATA("Sum of NO3",CMAQ_2008!$R$10,"JDAY",$C3,"SRC CAT",CMAQ_2008!GH$3,"SRC REGION",CMAQ_2008!GH$4) -> 2.7977e-13 | GH3: =GETPIVOTDATA("Sum of NO3",CMAQ_2008!$R$10,"JDAY",$C3,"SRC CAT",CMAQ_2008!GI$3,"SRC REGION",CMAQ_2008!GI$4) -> 2.7977e-13 | GI3: =GETPIVOTDATA("Sum of NO3",CMAQ_2008!$R$10,"JDAY",$C3,"SRC CAT",CMAQ_2008!GJ$3,"SRC REGION",CMAQ_2008!GJ$4) -> 9.4465e-05 | GJ3: =GETPIVOTDATA("Sum of NO3",CMAQ_2008!$R$10,"JDAY",$C3,"SRC CAT",CMAQ_2008!GK$3,"SRC REGION",CMAQ_2008!GK$4) -> 7.0938e-05 | GK3: =GETPIVOTDATA("Sum of NO3",CMAQ_2008!$R$10,"JDAY",$C3,"SRC CAT",CMAQ_2008!GL$3,"SRC REGION",CMAQ_2008!GL$4) -> 0.00014715 | GL3: =GETPIVOTDATA("Sum of NO3",CMAQ_2008!$R$10,"JDAY",$C3,"SRC CAT",CMAQ_2008!GM$3,"SRC REGION",CMAQ_2008!GM$4) -> 4.6389e-05 | GM3: =GETPIVOTDATA("Sum of NO3",CMAQ_2008!$R$10,"JDAY",$C3,"SRC CAT",CMAQ_2008!GN$3,"SRC REGION",CMAQ_2008!GN$4) -> 2.7977e-13 | GN3: =GETPIVOTDATA("Sum of NO3",CMAQ_2008!$R$10,"JDAY",$C3,"SRC CAT",CMAQ_2008!GO$3,"SRC REGION",CMAQ_2008!GO$4) -> 2.7977e-13 | GO3: =GETPIVOTDATA("Sum of NO3",CMAQ_2008!$R$10,"JDAY",$C3,"SRC CAT",CMAQ_2008!GP$3,"SRC REGION",CMAQ_2008!GP$4) -> 1.6411e-06 | GP3: =GETPIVOTDATA("Sum of NO3",CMAQ_2008!$R$10,"JDAY",$C3,"SRC CAT",CMAQ_2008!GQ$3,"SRC REGION",CMAQ_2008!GQ$4) -> 3.4599e-07 | GQ3: =GETPIVOTDATA("Sum of NO3",CMAQ_2008!$R$10,"JDAY",$C3,"SRC CAT",CMAQ_2008!GR$3,"SRC REGION",CMAQ_2008!GR$4) -> 2.7977e-13 | GR3: =GETPIVOTDATA("Sum of NO3",CMAQ_2008!$R$10,"JDAY",$C3,"SRC CAT",CMAQ_2008!GS$3,"SRC REGION",CMAQ_2008!GS$4) -> 2.7977e-13 | GS3: =GETPIVOTDATA("Sum of NO3",CMAQ_2008!$R$10,"JDAY",$C3,"SRC CAT",CMAQ_2008!GT$3,"SRC REGION",CMAQ_2008!GT$4) -> 2.7977e-13 | GT3: =GETPIVOTDATA("Sum of NO3",CMAQ_2008!$R$10,"JDAY",$C3,"SRC CAT",CMAQ_2008!GU$3,"SRC REGION",CMAQ_2008!GU$4) -> 0.00079394 | GU3: =GETPIVOTDATA("Sum of NO3",CMAQ_2008!$R$10,"JDAY",$C3,"SRC CAT",CMAQ_2008!GV$3,"SRC REGION",CMAQ_2008!GV$4) -> 2.7977e-13 | GV3: =GETPIVOTDATA("Sum of NO3",CMAQ_2008!$R$10,"JDAY",$C3,"SRC CAT",CMAQ_2008!GW$3,"SRC REGION",CMAQ_2008!GW$4) -> 1.6913e-07 | GW3: =GETPIVOTDATA("Sum of NO3",CMAQ_2008!$R$10,"JDAY",$C3,"SRC CAT",CMAQ_2008!GX$3,"SRC REGION",CMAQ_2008!GX$4) -> 8.0449e-07 | GX3: =GETPIVOTDATA("Sum of NO3",CMAQ_2008!$R$10,"JDAY",$C3,"SRC CAT",CMAQ_2008!GY$3,"SRC REGION",CMAQ_2008!GY$4) -> 2.7977e-13 | GY3: =GETPIVOTDATA("Sum of NO3",CMAQ_2008!$R$10,"JDAY",$C3,"SRC CAT",CMAQ_2008!GZ$3,"SRC REGION",CMAQ_2008!GZ$4) -> 2.7977e-13 | GZ3: =GETPIVOTDATA("Sum of NO3",CMAQ_2008!$R$10,"JDAY",$C3,"SRC CAT",CMAQ_2008!HA$3,"SRC REGION",CMAQ_2008!HA$4) -> 0.00025651 | HA3: =GETPIVOTDATA("Sum of NO3",CMAQ_2008!$R$10,"JDAY",$C3,"SRC CAT",CMAQ_2008!HB$3,"SRC REGION",CMAQ_2008!HB$4) -> 8.9769e-05 | HB3: =GETPIVOTDATA("Sum of NO3",CMAQ_2008!$R$10,"JDAY",$C3,"SRC CAT",CMAQ_2008!HC$3,"SRC REGION",CMAQ_2008!HC$4) -> 2.7977e-13 | HC3: =GETPIVOTDATA("Sum of NO3",CMAQ_2008!$R$10,"JDAY",$C3,"SRC CAT",CMAQ_2008!HD$3,"SRC REGION",CMAQ_2008!HD$4) -> 2.7977e-13 | HD3: =GETPIVOTDATA("Sum of NO3",CMAQ_2008!$R$10,"JDAY",$C3,"SRC CAT",CMAQ_2008!HE$3,"SRC REGION",CMAQ_2008!HE$4) -> 3.0373e-05 | HE3: =GETPIVOTDATA("Sum of NO3",CMAQ_2008!$R$10,"JDAY",$C3,"SRC CAT",CMAQ_2008!HF$3,"SRC REGION",CMAQ_2008!HF$4) -> 2.7977e-13 | HF3: =GETPIVOTDATA("Sum of NO3",CMAQ_2008!$R$10,"JDAY",$C3,"SRC CAT",CMAQ_2008!HG$3,"SRC REGION",CMAQ_2008!HG$4) -> 4.9088e-05 | HG3: =GETPIVOTDATA("Sum of NO3",CMAQ_2008!$R$10,"JDAY",$C3,"SRC CAT",CMAQ_2008!HH$3,"SRC REGION",CMAQ_2008!HH$4) -> 2.7977e-13 | HH3: =GETPIVOTDATA("Sum of NO3",CMAQ_2008!$R$10,"JDAY",$C3,"SRC CAT",CMAQ_2008!HI$3,"SRC REGION",CMAQ_2008!HI$4) -> 1.4282e-07 | HI3: =GETPIVOTDATA("Sum of NO3",CMAQ_2008!$R$10,"JDAY",$C3,"SRC CAT",CMAQ_2008!HJ$3,"SRC REGION",CMAQ_2008!HJ$4) -> 2.7977e-13 | HJ3: =GETPIVOTDATA("Sum of NO3",CMAQ_2008!$R$10,"JDAY",$C3,"SRC CAT",CMAQ_2008!HK$3,"SRC REGION",CMAQ_2008!HK$4) -> 6.2594e-08 | HK3: =GETPIVOTDATA("Sum of NO3",CMAQ_2008!$R$10,"JDAY",$C3,"SRC CAT",CMAQ_2008!HL$3,"SRC REGION",CMAQ_2008!HL$4) -> 2.7977e-13 | HL3: =GETPIVOTDATA("Sum of NO3",CMAQ_2008!$R$10,"JDAY",$C3,"SRC CAT",CMAQ_2008!HM$3,"SRC REGION",CMAQ_2008!HM$4) -> 0.0037927 | HM3: =GETPIVOTDATA("Sum of NO3",CMAQ_2008!$R$10,"JDAY",$C3,"SRC CAT",CMAQ_2008!HN$3,"SRC REGION",CMAQ_2008!HN$4) -> 1.2457e-09 | HN3: =GETPIVOTDATA("Sum of NO3",CMAQ_2008!$R$10,"JDAY",$C3,"SRC CAT",CMAQ_2008!HO$3,"SRC REGION",CMAQ_2008!HO$4) -> 2.7977e-13 | HO3: =GETPIVOTDATA("Sum of NO3",CMAQ_2008!$R$10,"JDAY",$C3,"SRC CAT",CMAQ_2008!HP$3,"SRC REGION",CMAQ_2008!HP$4) -> 0.21815 | HP3: =GETPIVOTDATA("Sum of NO3",CMAQ_2008!$R$10,"JDAY",$C3,"SRC CAT",CMAQ_2008!HQ$3,"SRC REGION",CMAQ_2008!HQ$4) -> 6.7255e-06 | HQ3: =GETPIVOTDATA("Sum of NO3",CMAQ_2008!$R$10,"JDAY",$C3,"SRC CAT",CMAQ_2008!HR$3,"SRC REGION",CMAQ_2008!HR$4) -> 7.6105e-05 | HR3: =GETPIVOTDATA("Sum of NO3",CMAQ_2008!$R$10,"JDAY",$C3,"SRC CAT",CMAQ_2008!HS$3,"SRC REGION",CMAQ_2008!HS$4) -> 0.0082376 | HS3: =GETPIVOTDATA("Sum of NO3",CMAQ_2008!$R$10,"JDAY",$C3,"SRC CAT",CMAQ_2008!HT$3,"SRC REGION",CMAQ_2008!HT$4) -> 0.19058 | HT3: =GETPIVOTDATA("Sum of NO3",CMAQ_2008!$R$10,"JDAY",$C3,"SRC CAT",CMAQ_2008!HU$3,"SRC REGION",CMAQ_2008!HU$4) -> 0.0065335 | HU3: =GETPIVOTDATA("Sum of NO3",CMAQ_2008!$R$10,"JDAY",$C3,"SRC CAT",CMAQ_2008!HV$3,"SRC REGION",CMAQ_2008!HV$4) -> 0.050967 | HV3: =GETPIVOTDATA("Sum of NO3",CMAQ_2008!$R$10,"JDAY",$C3,"SRC CAT",CMAQ_2008!HW$3,"SRC REGION",CMAQ_2008!HW$4) -> 0.25516 | HW3: =GETPIVOTDATA("Sum of NO3",CMAQ_2008!$R$10,"JDAY",$C3,"SRC CAT",CMAQ_2008!HX$3,"SRC REGION",CMAQ_2008!HX$4) -> 0.0069356 | HX3: =GETPIVOTDATA("Sum of NO3",CMAQ_2008!$R$10,"JDAY",$C3,"SRC CAT",CMAQ_2008!HY$3,"SRC REGION",CMAQ_2008!HY$4) -> 0.030191 | HY3: =GETPIVOTDATA("Sum of NO3",CMAQ_2008!$R$10,"JDAY",$C3,"SRC CAT",CMAQ_2008!HZ$3,"SRC REGION",CMAQ_2008!HZ$4) -> 0.040665 | HZ3: =GETPIVOTDATA("Sum of NO3",CMAQ_2008!$R$10,"JDAY",$C3,"SRC CAT",CMAQ_2008!IA$3,"SRC REGION",CMAQ_2008!IA$4) -> 0.060688 | IA3: =GETPIVOTDATA("Sum of NO3",CMAQ_2008!$R$10,"JDAY",$C3,"SRC CAT",CMAQ_2008!IB$3,"SRC REGION",CMAQ_2008!IB$4) -> 0.013689 | IB3: =GETPIVOTDATA("Sum of NO3",CMAQ_2008!$R$10,"JDAY",$C3,"SRC CAT",CMAQ_2008!IC$3,"SRC REGION",CMAQ_2008!IC$4) -> 0.11023 | IC3: =GETPIVOTDATA("Sum of NO3",CMAQ_2008!$R$10,"JDAY",$C3,"SRC CAT",CMAQ_2008!ID$3,"SRC REGION",CMAQ_2008!ID$4) -> 0.00021717 | ID3: =GETPIVOTDATA("Sum of NO3",CMAQ_2008!$R$10,"JDAY",$C3,"SRC CAT",CMAQ_2008!IE$3,"SRC REGION",CMAQ_2008!IE$4) -> 0.0017236 | IE3: =GETPIVOTDATA("Sum of NO3",CMAQ_2008!$R$10,"JDAY",$C3,"SRC CAT",CMAQ_2008!IF$3,"SRC REGION",CMAQ_2008!IF$4) -> 0.000294 | IF3: =GETPIVOTDATA("Sum of NO3",CMAQ_2008!$R$10,"JDAY",$C3,"SRC CAT",CMAQ_2008!IG$3,"SRC REGION",CMAQ_2008!IG$4) -> 3.6372e-05 | IG3: =GETPIVOTDATA("Sum of NO3",CMAQ_2008!$R$10,"JDAY",$C3,"SRC CAT",CMAQ_2008!IH$3,"SRC REGION",CMAQ_2008!IH$4) -> 0.63837 | IH3: =GETPIVOTDATA("Sum of NO3",CMAQ_2008!$R$10,"JDAY",$C3,"SRC CAT",CMAQ_2008!II$3,"SRC REGION",CMAQ_2008!II$4) -> 1.2551e-05 | II3: =GETPIVOTDATA("Sum of NO3",CMAQ_2008!$R$10,"JDAY",$C3,"SRC CAT",CMAQ_2008!IJ$3,"SRC REGION",CMAQ_2008!IJ$4) -> 0.0016007 | IJ3: =GETPIVOTDATA("Sum of NO3",CMAQ_2008!$R$10,"JDAY",$C3,"SRC CAT",CMAQ_2008!IK$3,"SRC REGION",CMAQ_2008!IK$4) -> 0.26412 | IK3: =GETPIVOTDATA("Sum of NO3",CMAQ_2008!$R$10,"JDAY",$C3,"SRC CAT",CMAQ_2008!IL$3,"SRC REGION",CMAQ_2008!IL$4) -> 0.00053635 | IM3: =GETPIVOTDATA("Sum of POA",CMAQ_2008!$R$10,"JDAY",$C3,"SRC CAT",CMAQ_2008!IN$3,"SRC REGION",CMAQ_2008!IN$4) -> 1.6531e-16 | IN3: =GETPIVOTDATA("Sum of POA",CMAQ_2008!$R$10,"JDAY",$C3,"SRC CAT",CMAQ_2008!IO$3,"SRC REGION",CMAQ_2008!IO$4) -> 1.6531e-16 | IO3: =GETPIVOTDATA("Sum of POA",CMAQ_2008!$R$10,"JDAY",$C3,"SRC CAT",CMAQ_2008!IP$3,"SRC REGION",CMAQ_2008!IP$4) -> 1.6531e-16 | IP3: =GETPIVOTDATA("Sum of POA",CMAQ_2008!$R$10,"JDAY",$C3,"SRC CAT",CMAQ_2008!IQ$3,"SRC REGION",CMAQ_2008!IQ$4) -> 1.6531e-16 | IQ3: =GETPIVOTDATA("Sum of POA",CMAQ_2008!$R$10,"JDAY",$C3,"SRC CAT",CMAQ_2008!IR$3,"SRC REGION",CMAQ_2008!IR$4) -> 1.6531e-16 | IR3: =GETPIVOTDATA("Sum of POA",CMAQ_2008!$R$10,"JDAY",$C3,"SRC CAT",CMAQ_2008!IS$3,"SRC REGION",CMAQ_2008!IS$4) -> 1.6531e-16 | IS3: =GETPIVOTDATA("Sum of POA",CMAQ_2008!$R$10,"JDAY",$C3,"SRC CAT",CMAQ_2008!IT$3,"SRC REGION",CMAQ_2008!IT$4) -> 1.6531e-16 | IT3: =GETPIVOTDATA("Sum of POA",CMAQ_2008!$R$10,"JDAY",$C3,"SRC CAT",CMAQ_2008!IU$3,"SRC REGION",CMAQ_2008!IU$4) -> 1.6531e-16 | IU3: =GETPIVOTDATA("Sum of POA",CMAQ_2008!$R$10,"JDAY",$C3,"SRC CAT",CMAQ_2008!IV$3,"SRC REGION",CMAQ_2008!IV$4) -> 1.6531e-16 | IV3: =GETPIVOTDATA("Sum of POA",CMAQ_2008!$R$10,"JDAY",$C3,"SRC CAT",CMAQ_2008!IW$3,"SRC REGION",CMAQ_2008!IW$4) -> 1.6531e-16 | IW3: =GETPIVOTDATA("Sum of POA",CMAQ_2008!$R$10,"JDAY",$C3,"SRC CAT",CMAQ_2008!IX$3,"SRC REGION",CMAQ_2008!IX$4) -> 1.6531e-16 | IX3: =GETPIVOTDATA("Sum of POA",CMAQ_2008!$R$10,"JDAY",$C3,"SRC CAT",CMAQ_2008!IY$3,"SRC REGION",CMAQ_2008!IY$4) -> 1.6531e-16 | IY3: =GETPIVOTDATA("Sum of POA",CMAQ_2008!$R$10,"JDAY",$C3,"SRC CAT",CMAQ_2008!IZ$3,"SRC REGION",CMAQ_2008!IZ$4) -> 1.6531e-16 | IZ3: =GETPIVOTDATA("Sum of POA",CMAQ_2008!$R$10,"JDAY",$C3,"SRC CAT",CMAQ_2008!JA$3,"SRC REGION",CMAQ_2008!JA$4) -> 1.6531e-16 | JA3: =GETPIVOTDATA("Sum of POA",CMAQ_2008!$R$10,"JDAY",$C3,"SRC CAT",CMAQ_2008!JB$3,"SRC REGION",CMAQ_2008!JB$4) -> 1.6531e-16 | JB3: =GETPIVOTDATA("Sum of POA",CMAQ_2008!$R$10,"JDAY",$C3,"SRC CAT",CMAQ_2008!JC$3,"SRC REGION",CMAQ_2008!JC$4) -> 1.6531e-16 | JC3: =GETPIVOTDATA("Sum of POA",CMAQ_2008!$R$10,"JDAY",$C3,"SRC CAT",CMAQ_2008!JD$3,"SRC REGION",CMAQ_2008!JD$4) -> 1.6531e-16 | JD3: =GETPIVOTDATA("Sum of POA",CMAQ_2008!$R$10,"JDAY",$C3,"SRC CAT",CMAQ_2008!JE$3,"SRC REGION",CMAQ_2008!JE$4) -> 1.6531e-16 | JE3: =GETPIVOTDATA("Sum of POA",CMAQ_2008!$R$10,"JDAY",$C3,"SRC CAT",CMAQ_2008!JF$3,"SRC REGION",CMAQ_2008!JF$4) -> 1.6531e-16 | JF3: =GETPIVOTDATA("Sum of POA",CMAQ_2008!$R$10,"JDAY",$C3,"SRC CAT",CMAQ_2008!JG$3,"SRC REGION",CMAQ_2008!JG$4) -> 1.6531e-16 | JG3: =GETPIVOTDATA("Sum of POA",CMAQ_2008!$R$10,"JDAY",$C3,"SRC CAT",CMAQ_2008!JH$3,"SRC REGION",CMAQ_2008!JH$4) -> 1.6531e-16 | JH3: =GETPIVOTDATA("Sum of POA",CMAQ_2008!$R$10,"JDAY",$C3,"SRC CAT",CMAQ_2008!JI$3,"SRC REGION",CMAQ_2008!JI$4) -> 0.00050946 | JI3: =GETPIVOTDATA("Sum of POA",CMAQ_2008!$R$10,"JDAY",$C3,"SRC CAT",CMAQ_2008!JJ$3,"SRC REGION",CMAQ_2008!JJ$4) -> 1.6531e-16 | JJ3: =GETPIVOTDATA("Sum of POA",CMAQ_2008!$R$10,"JDAY",$C3,"SRC CAT",CMAQ_2008!JK$3,"SRC REGION",CMAQ_2008!JK$4) -> 1.9584e-09 | JK3: =GETPIVOTDATA("Sum of POA",CMAQ_2008!$R$10,"JDAY",$C3,"SRC CAT",CMAQ_2008!JL$3,"SRC REGION",CMAQ_2008!JL$4) -> 4.4314e-06 | JL3: =GETPIVOTDATA("Sum of POA",CMAQ_2008!$R$10,"JDAY",$C3,"SRC CAT",CMAQ_2008!JM$3,"SRC REGION",CMAQ_2008!JM$4) -> 0.0013954 | JM3: =GETPIVOTDATA("Sum of POA",CMAQ_2008!$R$10,"JDAY",$C3,"SRC CAT",CMAQ_2008!JN$3,"SRC REGION",CMAQ_2008!JN$4) -> 1.6531e-16 | JN3: =GETPIVOTDATA("Sum of POA",CMAQ_2008!$R$10,"JDAY",$C3,"SRC CAT",CMAQ_2008!JO$3,"SRC REGION",CMAQ_2008!JO$4) -> 1.6531e-16 | JO3: =GETPIVOTDATA("Sum of POA",CMAQ_2008!$R$10,"JDAY",$C3,"SRC CAT",CMAQ_2008!JP$3,"SRC REGION",CMAQ_2008!JP$4) -> 0.003204 | JP3: =GETPIVOTDATA("Sum of POA",CMAQ_2008!$R$10,"JDAY",$C3,"SRC CAT",CMAQ_2008!JQ$3,"SRC REGION",CMAQ_2008!JQ$4) -> 1.6531e-16 | JQ3: =GETPIVOTDATA("Sum of POA",CMAQ_2008!$R$10,"JDAY",$C3,"SRC CAT",CMAQ_2008!JR$3,"SRC REGION",CMAQ_2008!JR$4) -> 1.6531e-16 | JR3: =GETPIVOTDATA("Sum of POA",CMAQ_2008!$R$10,"JDAY",$C3,"SRC CAT",CMAQ_2008!JS$3,"SRC REGION",CMAQ_2008!JS$4) -> 1.6531e-16 | JS3: =GETPIVOTDATA("Sum of POA",CMAQ_2008!$R$10,"JDAY",$C3,"SRC CAT",CMAQ_2008!JT$3,"SRC REGION",CMAQ_2008!JT$4) -> 4.9797e-05 | JT3: =GETPIVOTDATA("Sum of POA",CMAQ_2008!$R$10,"JDAY",$C3,"SRC CAT",CMAQ_2008!JU$3,"SRC REGION",CMAQ_2008!JU$4) -> 0.00032771 | JU3: =GETPIVOTDATA("Sum of POA",CMAQ_2008!$R$10,"JDAY",$C3,"SRC CAT",CMAQ_2008!JV$3,"SRC REGION",CMAQ_2008!JV$4) -> 0.00093073 | JV3: =GETPIVOTDATA("Sum of POA",CMAQ_2008!$R$10,"JDAY",$C3,"SRC CAT",CMAQ_2008!JW$3,"SRC REGION",CMAQ_2008!JW$4) -> 1.6531e-16 | JW3: =GETPIVOTDATA("Sum of POA",CMAQ_2008!$R$10,"JDAY",$C3,"SRC CAT",CMAQ_2008!JX$3,"SRC REGION",CMAQ_2008!JX$4) -> 1.6531e-16 | JX3: =GETPIVOTDATA("Sum of POA",CMAQ_2008!$R$10,"JDAY",$C3,"SRC CAT",CMAQ_2008!JY$3,"SRC REGION",CMAQ_2008!JY$4) -> 3.8715e-06 | JY3: =GETPIVOTDATA("Sum of POA",CMAQ_2008!$R$10,"JDAY",$C3,"SRC CAT",CMAQ_2008!JZ$3,"SRC REGION",CMAQ_2008!JZ$4) -> 1.6531e-16 | JZ3: =GETPIVOTDATA("Sum of POA",CMAQ_2008!$R$10,"JDAY",$C3,"SRC CAT",CMAQ_2008!KA$3,"SRC REGION",CMAQ_2008!KA$4) -> 0.003789 | KA3: =GETPIVOTDATA("Sum of POA",CMAQ_2008!$R$10,"JDAY",$C3,"SRC CAT",CMAQ_2008!KB$3,"SRC REGION",CMAQ_2008!KB$4) -> 1.6531e-16 | KB3: =GETPIVOTDATA("Sum of POA",CMAQ_2008!$R$10,"JDAY",$C3,"SRC CAT",CMAQ_2008!KC$3,"SRC REGION",CMAQ_2008!KC$4) -> 1.6531e-16 | KC3: =GETPIVOTDATA("Sum of POA",CMAQ_2008!$R$10,"JDAY",$C3,"SRC CAT",CMAQ_2008!KD$3,"SRC REGION",CMAQ_2008!KD$4) -> 0.0011905 | KD3: =GETPIVOTDATA("Sum of POA",CMAQ_2008!$R$10,"JDAY",$C3,"SRC CAT",CMAQ_2008!KE$3,"SRC REGION",CMAQ_2008!KE$4) -> 1.9888e-09 | KE3: =GETPIVOTDATA("Sum of POA",CMAQ_2008!$R$10,"JDAY",$C3,"SRC CAT",CMAQ_2008!KF$3,"SRC REGION",CMAQ_2008!KF$4) -> 1.2996e-07 | KF3: =GETPIVOTDATA("Sum of POA",CMAQ_2008!$R$10,"JDAY",$C3,"SRC CAT",CMAQ_2008!KG$3,"SRC REGION",CMAQ_2008!KG$4) -> 3.0365e-05 | KG3: =GETPIVOTDATA("Sum of POA",CMAQ_2008!$R$10,"JDAY",$C3,"SRC CAT",CMAQ_2008!KH$3,"SRC REGION",CMAQ_2008!KH$4) -> 1.6531e-16 | KH3: =GETPIVOTDATA("Sum of POA",CMAQ_2008!$R$10,"JDAY",$C3,"SRC CAT",CMAQ_2008!KI$3,"SRC REGION",CMAQ_2008!KI$4) -> 1.6531e-16 | KI3: =GETPIVOTDATA("Sum of POA",CMAQ_2008!$R$10,"JDAY",$C3,"SRC CAT",CMAQ_2008!KJ$3,"SRC REGION",CMAQ_2008!KJ$4) -> 0.0024615 | KJ3: =GETPIVOTDATA("Sum of POA",CMAQ_2008!$R$10,"JDAY",$C3,"SRC CAT",CMAQ_2008!KK$3,"SRC REGION",CMAQ_2008!KK$4) -> 0.013029 | KK3: =GETPIVOTDATA("Sum of POA",CMAQ_2008!$R$10,"JDAY",$C3,"SRC CAT",CMAQ_2008!KL$3,"SRC REGION",CMAQ_2008!KL$4) -> 1.6531e-16 | KL3: =GETPIVOTDATA("Sum of POA",CMAQ_2008!$R$10,"JDAY",$C3,"SRC CAT",CMAQ_2008!KM$3,"SRC REGION",CMAQ_2008!KM$4) -> 1.6531e-16 | KM3: =GETPIVOTDATA("Sum of POA",CMAQ_2008!$R$10,"JDAY",$C3,"SRC CAT",CMAQ_2008!KN$3,"SRC REGION",CMAQ_2008!KN$4) -> 0.00025925 | KN3: =GETPIVOTDATA("Sum of POA",CMAQ_2008!$R$10,"JDAY",$C3,"SRC CAT",CMAQ_2008!KO$3,"SRC REGION",CMAQ_2008!KO$4) -> 0.00011138 | KO3: =GETPIVOTDATA("Sum of POA",CMAQ_2008!$R$10,"JDAY",$C3,"SRC CAT",CMAQ_2008!KP$3,"SRC REGION",CMAQ_2008!KP$4) -> 0.00012866 | KP3: =GETPIVOTDATA("Sum of POA",CMAQ_2008!$R$10,"JDAY",$C3,"SRC CAT",CMAQ_2008!KQ$3,"SRC REGION",CMAQ_2008!KQ$4) -> 7.4452e-05 | KQ3: =GETPIVOTDATA("Sum of POA",CMAQ_2008!$R$10,"JDAY",$C3,"SRC CAT",CMAQ_2008!KR$3,"SRC REGION",CMAQ_2008!KR$4) -> 1.6531e-16 | KR3: =GETPIVOTDATA("Sum of POA",CMAQ_2008!$R$10,"JDAY",$C3,"SRC CAT",CMAQ_2008!KS$3,"SRC REGION",CMAQ_2008!KS$4) -> 1.6531e-16 | KS3: =GETPIVOTDATA("Sum of POA",CMAQ_2008!$R$10,"JDAY",$C3,"SRC CAT",CMAQ_2008!KT$3,"SRC REGION",CMAQ_2008!KT$4) -> 5.481e-06 | KT3: =GETPIVOTDATA("Sum of POA",CMAQ_2008!$R$10,"JDAY",$C3,"SRC CAT",CMAQ_2008!KU$3,"SRC REGION",CMAQ_2008!KU$4) -> 5.1946e-07 | KU3: =GETPIVOTDATA("Sum of POA",CMAQ_2008!$R$10,"JDAY",$C3,"SRC CAT",CMAQ_2008!KV$3,"SRC REGION",CMAQ_2008!KV$4) -> 1.6531e-16 | KV3: =GETPIVOTDATA("Sum of POA",CMAQ_2008!$R$10,"JDAY",$C3,"SRC CAT",CMAQ_2008!KW$3,"SRC REGION",CMAQ_2008!KW$4) -> 1.6531e-16 | KW3: =GETPIVOTDATA("Sum of POA",CMAQ_2008!$R$10,"JDAY",$C3,"SRC CAT",CMAQ_2008!KX$3,"SRC REGION",CMAQ_2008!KX$4) -> 1.6531e-16 | KX3: =GETPIVOTDATA("Sum of POA",CMAQ_2008!$R$10,"JDAY",$C3,"SRC CAT",CMAQ_2008!KY$3,"SRC REGION",CMAQ_2008!KY$4) -> 0.011381 | KY3: =GETPIVOTDATA("Sum of POA",CMAQ_2008!$R$10,"JDAY",$C3,"SRC CAT",CMAQ_2008!KZ$3,"SRC REGION",CMAQ_2008!KZ$4) -> 1.6531e-16 | KZ3: =GETPIVOTDATA("Sum of POA",CMAQ_2008!$R$10,"JDAY",$C3,"SRC CAT",CMAQ_2008!LA$3,"SRC REGION",CMAQ_2008!LA$4) -> 2.8279e-07 | LA3: =GETPIVOTDATA("Sum of POA",CMAQ_2008!$R$10,"JDAY",$C3,"SRC CAT",CMAQ_2008!LB$3,"SRC REGION",CMAQ_2008!LB$4) -> 2.1795e-06 | LB3: =GETPIVOTDATA("Sum of POA",CMAQ_2008!$R$10,"JDAY",$C3,"SRC CAT",CMAQ_2008!LC$3,"SRC REGION",CMAQ_2008!LC$4) -> 1.6531e-16 | LC3: =GETPIVOTDATA("Sum of POA",CMAQ_2008!$R$10,"JDAY",$C3,"SRC CAT",CMAQ_2008!LD$3,"SRC REGION",CMAQ_2008!LD$4) -> 1.6531e-16 | LD3: =GETPIVOTDATA("Sum of POA",CMAQ_2008!$R$10,"JDAY",$C3,"SRC CAT",CMAQ_2008!LE$3,"SRC REGION",CMAQ_2008!LE$4) -> 0.00026805 | LE3: =GETPIVOTDATA("Sum of POA",CMAQ_2008!$R$10,"JDAY",$C3,"SRC CAT",CMAQ_2008!LF$3,"SRC REGION",CMAQ_2008!LF$4) -> 0.00075678 | LF3: =GETPIVOTDATA("Sum of POA",CMAQ_2008!$R$10,"JDAY",$C3,"SRC CAT",CMAQ_2008!LG$3,"SRC REGION",CMAQ_2008!LG$4) -> 1.6531e-16 | LG3: =GETPIVOTDATA("Sum of POA",CMAQ_2008!$R$10,"JDAY",$C3,"SRC CAT",CMAQ_2008!LH$3,"SRC REGION",CMAQ_2008!LH$4) -> 1.6531e-16 | LH3: =GETPIVOTDATA("Sum of POA",CMAQ_2008!$R$10,"JDAY",$C3,"SRC CAT",CMAQ_2008!LI$3,"SRC REGION",CMAQ_2008!LI$4) -> 0.00010552 | LI3: =GETPIVOTDATA("Sum of POA",CMAQ_2008!$R$10,"JDAY",$C3,"SRC CAT",CMAQ_2008!LJ$3,"SRC REGION",CMAQ_2008!LJ$4) -> 1.6531e-16 | LJ3: =GETPIVOTDATA("Sum of POA",CMAQ_2008!$R$10,"JDAY",$C3,"SRC CAT",CMAQ_2008!LK$3,"SRC REGION",CMAQ_2008!LK$4) -> 4.4622e-05 | LK3: =GETPIVOTDATA("Sum of POA",CMAQ_2008!$R$10,"JDAY",$C3,"SRC CAT",CMAQ_2008!LL$3,"SRC REGION",CMAQ_2008!LL$4) -> 1.6531e-16 | LL3: =GETPIVOTDATA("Sum of POA",CMAQ_2008!$R$10,"JDAY",$C3,"SRC CAT",CMAQ_2008!LM$3,"SRC REGION",CMAQ_2008!LM$4) -> 2.1345e-07 | LM3: =GETPIVOTDATA("Sum of POA",CMAQ_2008!$R$10,"JDAY",$C3,"SRC CAT",CMAQ_2008!LN$3,"SRC REGION",CMAQ_2008!LN$4) -> 1.6531e-16 | LN3: =GETPIVOTDATA("Sum of POA",CMAQ_2008!$R$10,"JDAY",$C3,"SRC CAT",CMAQ_2008!LO$3,"SRC REGION",CMAQ_2008!LO$4) -> 5.3016e-08 | LO3: =GETPIVOTDATA("Sum of POA",CMAQ_2008!$R$10,"JDAY",$C3,"SRC CAT",CMAQ_2008!LP$3,"SRC REGION",CMAQ_2008!LP$4) -> 1.6531e-16 | LP3: =GETPIVOTDATA("Sum of POA",CMAQ_2008!$R$10,"JDAY",$C3,"SRC CAT",CMAQ_2008!LQ$3,"SRC REGION",CMAQ_2008!LQ$4) -> 0.010602 | LQ3: =GETPIVOTDATA("Sum of POA",CMAQ_2008!$R$10,"JDAY",$C3,"SRC CAT",CMAQ_2008!LR$3,"SRC REGION",CMAQ_2008!LR$4) -> 1.3285e-09 | LR3: =GETPIVOTDATA("Sum of POA",CMAQ_2008!$R$10,"JDAY",$C3,"SRC CAT",CMAQ_2008!LS$3,"SRC REGION",CMAQ_2008!LS$4) -> 1.6531e-16 | LS3: =GETPIVOTDATA("Sum of POA",CMAQ_2008!$R$10,"JDAY",$C3,"SRC CAT",CMAQ_2008!LT$3,"SRC REGION",CMAQ_2008!LT$4) -> 0.16817 | LT3: =GETPIVOTDATA("Sum of POA",CMAQ_2008!$R$10,"JDAY",$C3,"SRC CAT",CMAQ_2008!LU$3,"SRC REGION",CMAQ_2008!LU$4) -> 1.9762e-07 | LU3: =GETPIVOTDATA("Sum of POA",CMAQ_2008!$R$10,"JDAY",$C3,"SRC CAT",CMAQ_2008!LV$3,"SRC REGION",CMAQ_2008!LV$4) -> 1.4691e-05 | LV3: =GETPIVOTDATA("Sum of POA",CMAQ_2008!$R$10,"JDAY",$C3,"SRC CAT",CMAQ_2008!LW$3,"SRC REGION",CMAQ_2008!LW$4) -> 0.00083648 | LW3: =GETPIVOTDATA("Sum of POA",CMAQ_2008!$R$10,"JDAY",$C3,"SRC CAT",CMAQ_2008!LX$3,"SRC REGION",CMAQ_2008!LX$4) -> 0.029374 | LX3: =GETPIVOTDATA("Sum of POA",CMAQ_2008!$R$10,"JDAY",$C3,"SRC CAT",CMAQ_2008!LY$3,"SRC REGION",CMAQ_2008!LY$4) -> 0.0013619 | LY3: =GETPIVOTDATA("Sum of POA",CMAQ_2008!$R$10,"JDAY",$C3,"SRC CAT",CMAQ_2008!LZ$3,"SRC REGION",CMAQ_2008!LZ$4) -> 0.003684 | LZ3: =GETPIVOTDATA("Sum of POA",CMAQ_2008!$R$10,"JDAY",$C3,"SRC CAT",CMAQ_2008!MA$3,"SRC REGION",CMAQ_2008!MA$4) -> 0.055223 | MA3: =GETPIVOTDATA("Sum of POA",CMAQ_2008!$R$10,"JDAY",$C3,"SRC CAT",CMAQ_2008!MB$3,"SRC REGION",CMAQ_2008!MB$4) -> 0.00096058 | MB3: =GETPIVOTDATA("Sum of POA",CMAQ_2008!$R$10,"JDAY",$C3,"SRC CAT",CMAQ_2008!MC$3,"SRC REGION",CMAQ_2008!MC$4) -> 0.0038504 | MC3: =GETPIVOTDATA("Sum of POA",CMAQ_2008!$R$10,"JDAY",$C3,"SRC CAT",CMAQ_2008!MD$3,"SRC REGION",CMAQ_2008!MD$4) -> 0.0027603 | MD3: =GETPIVOTDATA("Sum of POA",CMAQ_2008!$R$10,"JDAY",$C3,"SRC CAT",CMAQ_2008!ME$3,"SRC REGION",CMAQ_2008!ME$4) -> 0.0021695 | ME3: =GETPIVOTDATA("Sum of POA",CMAQ_2008!$R$10,"JDAY",$C3,"SRC CAT",CMAQ_2008!MF$3,"SRC REGION",CMAQ_2008!MF$4) -> 0.0026855 | MF3: =GETPIVOTDATA("Sum of POA",CMAQ_2008!$R$10,"JDAY",$C3,"SRC CAT",CMAQ_2008!MG$3,"SRC REGION",CMAQ_2008!MG$4) -> 0.014087 | MG3: =GETPIVOTDATA("Sum of POA",CMAQ_2008!$R$10,"JDAY",$C3,"SRC CAT",CMAQ_2008!MH$3,"SRC REGION",CMAQ_2008!MH$4) -> 1.0179e-05 | MH3: =GETPIVOTDATA("Sum of POA",CMAQ_2008!$R$10,"JDAY",$C3,"SRC CAT",CMAQ_2008!MI$3,"SRC REGION",CMAQ_2008!MI$4) -> 0.00024134 | MI3: =GETPIVOTDATA("Sum of POA",CMAQ_2008!$R$10,"JDAY",$C3,"SRC CAT",CMAQ_2008!MJ$3,"SRC REGION",CMAQ_2008!MJ$4) -> 1.5205e-05 | MJ3: =GETPIVOTDATA("Sum of POA",CMAQ_2008!$R$10,"JDAY",$C3,"SRC CAT",CMAQ_2008!MK$3,"SRC REGION",CMAQ_2008!MK$4) -> 1.9081e-06 | MK3: =GETPIVOTDATA("Sum of POA",CMAQ_2008!$R$10,"JDAY",$C3,"SRC CAT",CMAQ_2008!ML$3,"SRC REGION",CMAQ_2008!ML$4) -> 0.043688 | ML3: =GETPIVOTDATA("Sum of POA",CMAQ_2008!$R$10,"JDAY",$C3,"SRC CAT",CMAQ_2008!MM$3,"SRC REGION",CMAQ_2008!MM$4) -> 3.0326e-07 | MM3: =GETPIVOTDATA("Sum of POA",CMAQ_2008!$R$10,"JDAY",$C3,"SRC CAT",CMAQ_2008!MN$3,"SRC REGION",CMAQ_2008!MN$4) -> 1.4424e-05 | MN3: =GETPIVOTDATA("Sum of POA",CMAQ_2008!$R$10,"JDAY",$C3,"SRC CAT",CMAQ_2008!MO$3,"SRC REGION",CMAQ_2008!MO$4) -> 0.022144 | MO3: =GETPIVOTDATA("Sum of POA",CMAQ_2008!$R$10,"JDAY",$C3,"SRC CAT",CMAQ_2008!MP$3,"SRC REGION",CMAQ_2008!MP$4) -> 2.8866e-05 | MQ3: =GETPIVOTDATA("Sum of EC",CMAQ_2008!$R$10,"JDAY",$C3,"SRC CAT",CMAQ_2008!MR$3,"SRC REGION",CMAQ_2008!MR$4) -> 1.4709e-16 | MR3: =GETPIVOTDATA("Sum of EC",CMAQ_2008!$R$10,"JDAY",$C3,"SRC CAT",CMAQ_2008!MS$3,"SRC REGION",CMAQ_2008!MS$4) -> 1.4709e-16 | MS3: =GETPIVOTDATA("Sum of EC",CMAQ_2008!$R$10,"JDAY",$C3,"SRC CAT",CMAQ_2008!MT$3,"SRC REGION",CMAQ_2008!MT$4) -> 1.4709e-16 | MT3: =GETPIVOTDATA("Sum of EC",CMAQ_2008!$R$10,"JDAY",$C3,"SRC CAT",CMAQ_2008!MU$3,"SRC REGION",CMAQ_2008!MU$4) -> 1.4709e-16 | MU3: =GETPIVOTDATA("Sum of EC",CMAQ_2008!$R$10,"JDAY",$C3,"SRC CAT",CMAQ_2008!MV$3,"SRC REGION",CMAQ_2008!MV$4) -> 1.4709e-16 | MV3: =GETPIVOTDATA("Sum of EC",CMAQ_2008!$R$10,"JDAY",$C3,"SRC CAT",CMAQ_2008!MW$3,"SRC REGION",CMAQ_2008!MW$4) -> 1.4709e-16 | MW3: =GETPIVOTDATA("Sum of EC",CMAQ_2008!$R$10,"JDAY",$C3,"SRC CAT",CMAQ_2008!MX$3,"SRC REGION",CMAQ_2008!MX$4) -> 1.4709e-16 | MX3: =GETPIVOTDATA("Sum of EC",CMAQ_2008!$R$10,"JDAY",$C3,"SRC CAT",CMAQ_2008!MY$3,"SRC REGION",CMAQ_2008!MY$4) -> 1.4709e-16 | MY3: =GETPIVOTDATA("Sum of EC",CMAQ_2008!$R$10,"JDAY",$C3,"SRC CAT",CMAQ_2008!MZ$3,"SRC REGION",CMAQ_2008!MZ$4) -> 1.4709e-16 | MZ3: =GETPIVOTDATA("Sum of EC",CMAQ_2008!$R$10,"JDAY",$C3,"SRC CAT",CMAQ_2008!NA$3,"SRC REGION",CMAQ_2008!NA$4) -> 1.4709e-16 | NA3: =GETPIVOTDATA("Sum of EC",CMAQ_2008!$R$10,"JDAY",$C3,"SRC CAT",CMAQ_2008!NB$3,"SRC REGION",CMAQ_2008!NB$4) -> 1.4709e-16 | NB3: =GETPIVOTDATA("Sum of EC",CMAQ_2008!$R$10,"JDAY",$C3,"SRC CAT",CMAQ_2008!NC$3,"SRC REGION",CMAQ_2008!NC$4) -> 1.4709e-16 | NC3: =GETPIVOTDATA("Sum of EC",CMAQ_2008!$R$10,"JDAY",$C3,"SRC CAT",CMAQ_2008!ND$3,"SRC REGION",CMAQ_2008!ND$4) -> 1.4709e-16 | ND3: =GETPIVOTDATA("Sum of EC",CMAQ_2008!$R$10,"JDAY",$C3,"SRC CAT",CMAQ_2008!NE$3,"SRC REGION",CMAQ_2008!NE$4) -> 1.4709e-16 | NE3: =GETPIVOTDATA("Sum of EC",CMAQ_2008!$R$10,"JDAY",$C3,"SRC CAT",CMAQ_2008!NF$3,"SRC REGION",CMAQ_2008!NF$4) -> 1.4709e-16 | NF3: =GETPIVOTDATA("Sum of EC",CMAQ_2008!$R$10,"JDAY",$C3,"SRC CAT",CMAQ_2008!NG$3,"SRC REGION",CMAQ_2008!NG$4) -> 1.4709e-16 | NG3: =GETPIVOTDATA("Sum of EC",CMAQ_2008!$R$10,"JDAY",$C3,"SRC CAT",CMAQ_2008!NH$3,"SRC REGION",CMAQ_2008!NH$4) -> 1.4709e-16 | NH3: =GETPIVOTDATA("Sum of EC",CMAQ_2008!$R$10,"JDAY",$C3,"SRC CAT",CMAQ_2008!NI$3,"SRC REGION",CMAQ_2008!NI$4) -> 1.4709e-16 | NI3: =GETPIVOTDATA("Sum of EC",CMAQ_2008!$R$10,"JDAY",$C3,"SRC CAT",CMAQ_2008!NJ$3,"SRC REGION",CMAQ_2008!NJ$4) -> 1.4709e-16 | NJ3: =GETPIVOTDATA("Sum of EC",CMAQ_2008!$R$10,"JDAY",$C3,"SRC CAT",CMAQ_2008!NK$3,"SRC REGION",CMAQ_2008!NK$4) -> 1.4709e-16 | NK3: =GETPIVOTDATA("Sum of EC",CMAQ_2008!$R$10,"JDAY",$C3,"SRC CAT",CMAQ_2008!NL$3,"SRC REGION",CMAQ_2008!NL$4) -> 1.4709e-16 | NL3: =GETPIVOTDATA("Sum of EC",CMAQ_2008!$R$10,"JDAY",$C3,"SRC CAT",CMAQ_2008!NM$3,"SRC REGION",CMAQ_2008!NM$4) -> 0.00010041 | NM3: =GETPIVOTDATA("Sum of EC",CMAQ_2008!$R$10,"JDAY",$C3,"SRC CAT",CMAQ_2008!NN$3,"SRC REGION",CMAQ_2008!NN$4) -> 1.4709e-16 | NN3: =GETPIVOTDATA("Sum of EC",CMAQ_2008!$R$10,"JDAY",$C3,"SRC CAT",CMAQ_2008!NO$3,"SRC REGION",CMAQ_2008!NO$4) -> 4.1544e-10 | NO3: =GETPIVOTDATA("Sum of EC",CMAQ_2008!$R$10,"JDAY",$C3,"SRC CAT",CMAQ_2008!NP$3,"SRC REGION",CMAQ_2008!NP$4) -> 8.8916e-07 | NP3: =GETPIVOTDATA("Sum of EC",CMAQ_2008!$R$10,"JDAY",$C3,"SRC CAT",CMAQ_2008!NQ$3,"SRC REGION",CMAQ_2008!NQ$4) -> 0.00027138 | NQ3: =GETPIVOTDATA("Sum of EC",CMAQ_2008!$R$10,"JDAY",$C3,"SRC CAT",CMAQ_2008!NR$3,"SRC REGION",CMAQ_2008!NR$4) -> 1.4709e-16 | NR3: =GETPIVOTDATA("Sum of EC",CMAQ_2008!$R$10,"JDAY",$C3,"SRC CAT",CMAQ_2008!NS$3,"SRC REGION",CMAQ_2008!NS$4) -> 1.4709e-16 | NS3: =GETPIVOTDATA("Sum of EC",CMAQ_2008!$R$10,"JDAY",$C3,"SRC CAT",CMAQ_2008!NT$3,"SRC REGION",CMAQ_2008!NT$4) -> 0.00064725 | NT3: =GETPIVOTDATA("Sum of EC",CMAQ_2008!$R$10,"JDAY",$C3,"SRC CAT",CMAQ_2008!NU$3,"SRC REGION",CMAQ_2008!NU$4) -> 1.4709e-16 | NU3: =GETPIVOTDATA("Sum of EC",CMAQ_2008!$R$10,"JDAY",$C3,"SRC CAT",CMAQ_2008!NV$3,"SRC REGION",CMAQ_2008!NV$4) -> 1.4709e-16 | NV3: =GETPIVOTDATA("Sum of EC",CMAQ_2008!$R$10,"JDAY",$C3,"SRC CAT",CMAQ_2008!NW$3,"SRC REGION",CMAQ_2008!NW$4) -> 1.4709e-16 | NW3: =GETPIVOTDATA("Sum of EC",CMAQ_2008!$R$10,"JDAY",$C3,"SRC CAT",CMAQ_2008!NX$3,"SRC REGION",CMAQ_2008!NX$4) -> 9.5158e-06 | NX3: =GETPIVOTDATA("Sum of EC",CMAQ_2008!$R$10,"JDAY",$C3,"SRC CAT",CMAQ_2008!NY$3,"SRC REGION",CMAQ_2008!NY$4) -> 6.3547e-05 | NY3: =GETPIVOTDATA("Sum of EC",CMAQ_2008!$R$10,"JDAY",$C3,"SRC CAT",CMAQ_2008!NZ$3,"SRC REGION",CMAQ_2008!NZ$4) -> 0.0001809 | NZ3: =GETPIVOTDATA("Sum of EC",CMAQ_2008!$R$10,"JDAY",$C3,"SRC CAT",CMAQ_2008!OA$3,"SRC REGION",CMAQ_2008!OA$4) -> 1.4709e-16 | OA3: =GETPIVOTDATA("Sum of EC",CMAQ_2008!$R$10,"JDAY",$C3,"SRC CAT",CMAQ_2008!OB$3,"SRC REGION",CMAQ_2008!OB$4) -> 1.4709e-16 | OB3: =GETPIVOTDATA("Sum of EC",CMAQ_2008!$R$10,"JDAY",$C3,"SRC CAT",CMAQ_2008!OC$3,"SRC REGION",CMAQ_2008!OC$4) -> 7.8335e-07 | OC3: =GETPIVOTDATA("Sum of EC",CMAQ_2008!$R$10,"JDAY",$C3,"SRC CAT",CMAQ_2008!OD$3,"SRC REGION",CMAQ_2008!OD$4) -> 1.4709e-16 | OD3: =GETPIVOTDATA("Sum of EC",CMAQ_2008!$R$10,"JDAY",$C3,"SRC CAT",CMAQ_2008!OE$3,"SRC REGION",CMAQ_2008!OE$4) -> 0.00072541 | OE3: =GETPIVOTDATA("Sum of EC",CMAQ_2008!$R$10,"JDAY",$C3,"SRC CAT",CMAQ_2008!OF$3,"SRC REGION",CMAQ_2008!OF$4) -> 1.4709e-16 | OF3: =GETPIVOTDATA("Sum of EC",CMAQ_2008!$R$10,"JDAY",$C3,"SRC CAT",CMAQ_2008!OG$3,"SRC REGION",CMAQ_2008!OG$4) -> 1.4709e-16 | OG3: =GETPIVOTDATA("Sum of EC",CMAQ_2008!$R$10,"JDAY",$C3,"SRC CAT",CMAQ_2008!OH$3,"SRC REGION",CMAQ_2008!OH$4) -> 0.00022909 | OH3: =GETPIVOTDATA("Sum of EC",CMAQ_2008!$R$10,"JDAY",$C3,"SRC CAT",CMAQ_2008!OI$3,"SRC REGION",CMAQ_2008!OI$4) -> 3.9105e-10 | OI3: =GETPIVOTDATA("Sum of EC",CMAQ_2008!$R$10,"JDAY",$C3,"SRC CAT",CMAQ_2008!OJ$3,"SRC REGION",CMAQ_2008!OJ$4) -> 2.6523e-08 | OJ3: =GETPIVOTDATA("Sum of EC",CMAQ_2008!$R$10,"JDAY",$C3,"SRC CAT",CMAQ_2008!OK$3,"SRC REGION",CMAQ_2008!OK$4) -> 6.2686e-06 | OK3: =GETPIVOTDATA("Sum of EC",CMAQ_2008!$R$10,"JDAY",$C3,"SRC CAT",CMAQ_2008!OL$3,"SRC REGION",CMAQ_2008!OL$4) -> 1.4709e-16 | OL3: =GETPIVOTDATA("Sum of EC",CMAQ_2008!$R$10,"JDAY",$C3,"SRC CAT",CMAQ_2008!OM$3,"SRC REGION",CMAQ_2008!OM$4) -> 1.4709e-16 | OM3: =GETPIVOTDATA("Sum of EC",CMAQ_2008!$R$10,"JDAY",$C3,"SRC CAT",CMAQ_2008!ON$3,"SRC REGION",CMAQ_2008!ON$4) -> 0.00046755 | ON3: =GETPIVOTDATA("Sum of EC",CMAQ_2008!$R$10,"JDAY",$C3,"SRC CAT",CMAQ_2008!OO$3,"SRC REGION",CMAQ_2008!OO$4) -> 0.0025937 | OO3: =GETPIVOTDATA("Sum of EC",CMAQ_2008!$R$10,"JDAY",$C3,"SRC CAT",CMAQ_2008!OP$3,"SRC REGION",CMAQ_2008!OP$4) -> 1.4709e-16 | OP3: =GETPIVOTDATA("Sum of EC",CMAQ_2008!$R$10,"JDAY",$C3,"SRC CAT",CMAQ_2008!OQ$3,"SRC REGION",CMAQ_2008!OQ$4) -> 1.4709e-16 | OQ3: =GETPIVOTDATA("Sum of EC",CMAQ_2008!$R$10,"JDAY",$C3,"SRC CAT",CMAQ_2008!OR$3,"SRC REGION",CMAQ_2008!OR$4) -> 4.9104e-05 | OR3: =GETPIVOTDATA("Sum of EC",CMAQ_2008!$R$10,"JDAY",$C3,"SRC CAT",CMAQ_2008!OS$3,"SRC REGION",CMAQ_2008!OS$4) -> 2.1343e-05 | OS3: =GETPIVOTDATA("Sum of EC",CMAQ_2008!$R$10,"JDAY",$C3,"SRC CAT",CMAQ_2008!OT$3,"SRC REGION",CMAQ_2008!OT$4) -> 2.5114e-05 | OT3: =GETPIVOTDATA("Sum of EC",CMAQ_2008!$R$10,"JDAY",$C3,"SRC CAT",CMAQ_2008!OU$3,"SRC REGION",CMAQ_2008!OU$4) -> 1.4742e-05 | OU3: =GETPIVOTDATA("Sum of EC",CMAQ_2008!$R$10,"JDAY",$C3,"SRC CAT",CMAQ_2008!OV$3,"SRC REGION",CMAQ_2008!OV$4) -> 1.4709e-16 | OV3: =GETPIVOTDATA("Sum of EC",CMAQ_2008!$R$10,"JDAY",$C3,"SRC CAT",CMAQ_2008!OW$3,"SRC REGION",CMAQ_2008!OW$4) -> 1.4709e-16 | OW3: =GETPIVOTDATA("Sum of EC",CMAQ_2008!$R$10,"JDAY",$C3,"SRC CAT",CMAQ_2008!OX$3,"SRC REGION",CMAQ_2008!OX$4) -> 1.1132e-06 | OX3: =GETPIVOTDATA("Sum of EC",CMAQ_2008!$R$10,"JDAY",$C3,"SRC CAT",CMAQ_2008!OY$3,"SRC REGION",CMAQ_2008!OY$4) -> 1.0355e-07 | OY3: =GETPIVOTDATA("Sum of EC",CMAQ_2008!$R$10,"JDAY",$C3,"SRC CAT",CMAQ_2008!OZ$3,"SRC REGION",CMAQ_2008!OZ$4) -> 1.4709e-16 | OZ3: =GETPIVOTDATA("Sum of EC",CMAQ_2008!$R$10,"JDAY",$C3,"SRC CAT",CMAQ_2008!PA$3,"SRC REGION",CMAQ_2008!PA$4) -> 1.4709e-16 | PA3: =GETPIVOTDATA("Sum of EC",CMAQ_2008!$R$10,"JDAY",$C3,"SRC CAT",CMAQ_2008!PB$3,"SRC REGION",CMAQ_2008!PB$4) -> 1.4709e-16 | PB3: =GETPIVOTDATA("Sum of EC",CMAQ_2008!$R$10,"JDAY",$C3,"SRC CAT",CMAQ_2008!PC$3,"SRC REGION",CMAQ_2008!PC$4) -> 0.0022333 | PC3: =GETPIVOTDATA("Sum of EC",CMAQ_2008!$R$10,"JDAY",$C3,"SRC CAT",CMAQ_2008!PD$3,"SRC REGION",CMAQ_2008!PD$4) -> 1.4709e-16 | PD3: =GETPIVOTDATA("Sum of EC",CMAQ_2008!$R$10,"JDAY",$C3,"SRC CAT",CMAQ_2008!PE$3,"SRC REGION",CMAQ_2008!PE$4) -> 6.2994e-08 | PE3: =GETPIVOTDATA("Sum of EC",CMAQ_2008!$R$10,"JDAY",$C3,"SRC CAT",CMAQ_2008!PF$3,"SRC REGION",CMAQ_2008!PF$4) -> 4.7279e-07 | PF3: =GETPIVOTDATA("Sum of EC",CMAQ_2008!$R$10,"JDAY",$C3,"SRC CAT",CMAQ_2008!PG$3,"SRC REGION",CMAQ_2008!PG$4) -> 1.4709e-16 | PG3: =GETPIVOTDATA("Sum of EC",CMAQ_2008!$R$10,"JDAY",$C3,"SRC CAT",CMAQ_2008!PH$3,"SRC REGION",CMAQ_2008!PH$4) -> 1.4709e-16 | PH3: =GETPIVOTDATA("Sum of EC",CMAQ_2008!$R$10,"JDAY",$C3,"SRC CAT",CMAQ_2008!PI$3,"SRC REGION",CMAQ_2008!PI$4) -> 5.1149e-05 | PI3: =GETPIVOTDATA("Sum of EC",CMAQ_2008!$R$10,"JDAY",$C3,"SRC CAT",CMAQ_2008!PJ$3,"SRC REGION",CMAQ_2008!PJ$4) -> 0.00015623 | PJ3: =GETPIVOTDATA("Sum of EC",CMAQ_2008!$R$10,"JDAY",$C3,"SRC CAT",CMAQ_2008!PK$3,"SRC REGION",CMAQ_2008!PK$4) -> 1.4709e-16 | PK3: =GETPIVOTDATA("Sum of EC",CMAQ_2008!$R$10,"JDAY",$C3,"SRC CAT",CMAQ_2008!PL$3,"SRC REGION",CMAQ_2008!PL$4) -> 1.4709e-16 | PL3: =GETPIVOTDATA("Sum of EC",CMAQ_2008!$R$10,"JDAY",$C3,"SRC CAT",CMAQ_2008!PM$3,"SRC REGION",CMAQ_2008!PM$4) -> 2.0651e-05 | PM3: =GETPIVOTDATA("Sum of EC",CMAQ_2008!$R$10,"JDAY",$C3,"SRC CAT",CMAQ_2008!PN$3,"SRC REGION",CMAQ_2008!PN$4) -> 1.4709e-16 | PN3: =GETPIVOTDATA("Sum of EC",CMAQ_2008!$R$10,"JDAY",$C3,"SRC CAT",CMAQ_2008!PO$3,"SRC REGION",CMAQ_2008!PO$4) -> 8.7826e-06 | PO3: =GETPIVOTDATA("Sum of EC",CMAQ_2008!$R$10,"JDAY",$C3,"SRC CAT",CMAQ_2008!PP$3,"SRC REGION",CMAQ_2008!PP$4) -> 1.4709e-16 | PP3: =GETPIVOTDATA("Sum of EC",CMAQ_2008!$R$10,"JDAY",$C3,"SRC CAT",CMAQ_2008!PQ$3,"SRC REGION",CMAQ_2008!PQ$4) -> 3.9382e-08 | PQ3: =GETPIVOTDATA("Sum of EC",CMAQ_2008!$R$10,"JDAY",$C3,"SRC CAT",CMAQ_2008!PR$3,"SRC REGION",CMAQ_2008!PR$4) -> 1.4709e-16 | PR3: =GETPIVOTDATA("Sum of EC",CMAQ_2008!$R$10,"JDAY",$C3,"SRC CAT",CMAQ_2008!PS$3,"SRC REGION",CMAQ_2008!PS$4) -> 1.0731e-08 | PS3: =GETPIVOTDATA("Sum of EC",CMAQ_2008!$R$10,"JDAY",$C3,"SRC CAT",CMAQ_2008!PT$3,"SRC REGION",CMAQ_2008!PT$4) -> 1.4709e-16 | PT3: =GETPIVOTDATA("Sum of EC",CMAQ_2008!$R$10,"JDAY",$C3,"SRC CAT",CMAQ_2008!PU$3,"SRC REGION",CMAQ_2008!PU$4) -> 0.0020488 | PU3: =GETPIVOTDATA("Sum of EC",CMAQ_2008!$R$10,"JDAY",$C3,"SRC CAT",CMAQ_2008!PV$3,"SRC REGION",CMAQ_2008!PV$4) -> 2.6554e-10 | PV3: =GETPIVOTDATA("Sum of EC",CMAQ_2008!$R$10,"JDAY",$C3,"SRC CAT",CMAQ_2008!PW$3,"SRC REGION",CMAQ_2008!PW$4) -> 1.4709e-16 | PW3: =GETPIVOTDATA("Sum of EC",CMAQ_2008!$R$10,"JDAY",$C3,"SRC CAT",CMAQ_2008!PX$3,"SRC REGION",CMAQ_2008!PX$4) -> 0.064658 | PX3: =GETPIVOTDATA("Sum of EC",CMAQ_2008!$R$10,"JDAY",$C3,"SRC CAT",CMAQ_2008!PY$3,"SRC REGION",CMAQ_2008!PY$4) -> 7.1415e-08 | PY3: =GETPIVOTDATA("Sum of EC",CMAQ_2008!$R$10,"JDAY",$C3,"SRC CAT",CMAQ_2008!PZ$3,"SRC REGION",CMAQ_2008!PZ$4) -> 1.3636e-06 | PZ3: =GETPIVOTDATA("Sum of EC",CMAQ_2008!$R$10,"JDAY",$C3,"SRC CAT",CMAQ_2008!QA$3,"SRC REGION",CMAQ_2008!QA$4) -> 0.0003335 | QA3: =GETPIVOTDATA("Sum of EC",CMAQ_2008!$R$10,"JDAY",$C3,"SRC CAT",CMAQ_2008!QB$3,"SRC REGION",CMAQ_2008!QB$4) -> 0.012502 | QB3: =GETPIVOTDATA("Sum of EC",CMAQ_2008!$R$10,"JDAY",$C3,"SRC CAT",CMAQ_2008!QC$3,"SRC REGION",CMAQ_2008!QC$4) -> 0.00035359 | QC3: =GETPIVOTDATA("Sum of EC",CMAQ_2008!$R$10,"JDAY",$C3,"SRC CAT",CMAQ_2008!QD$3,"SRC REGION",CMAQ_2008!QD$4) -> 0.0012557 | QD3: =GETPIVOTDATA("Sum of EC",CMAQ_2008!$R$10,"JDAY",$C3,"SRC CAT",CMAQ_2008!QE$3,"SRC REGION",CMAQ_2008!QE$4) -> 0.024928 | QE3: =GETPIVOTDATA("Sum of EC",CMAQ_2008!$R$10,"JDAY",$C3,"SRC CAT",CMAQ_2008!QF$3,"SRC REGION",CMAQ_2008!QF$4) -> 0.00021787 | QF3: =GETPIVOTDATA("Sum of EC",CMAQ_2008!$R$10,"JDAY",$C3,"SRC CAT",CMAQ_2008!QG$3,"SRC REGION",CMAQ_2008!QG$4) -> 0.0009262 | QG3: =GETPIVOTDATA("Sum of EC",CMAQ_2008!$R$10,"JDAY",$C3,"SRC CAT",CMAQ_2008!QH$3,"SRC REGION",CMAQ_2008!QH$4) -> 0.0010436 | QH3: =GETPIVOTDATA("Sum of EC",CMAQ_2008!$R$10,"JDAY",$C3,"SRC CAT",CMAQ_2008!QI$3,"SRC REGION",CMAQ_2008!QI$4) -> 0.00090096 | QI3: =GETPIVOTDATA("Sum of EC",CMAQ_2008!$R$10,"JDAY",$C3,"SRC CAT",CMAQ_2008!QJ$3,"SRC REGION",CMAQ_2008!QJ$4) -> 0.00099452 | QJ3: =GETPIVOTDATA("Sum of EC",CMAQ_2008!$R$10,"JDAY",$C3,"SRC CAT",CMAQ_2008!QK$3,"SRC REGION",CMAQ_2008!QK$4) -> 0.0065905 | QK3: =GETPIVOTDATA("Sum of EC",CMAQ_2008!$R$10,"JDAY",$C3,"SRC CAT",CMAQ_2008!QL$3,"SRC REGION",CMAQ_2008!QL$4) -> 6.1801e-06 | QL3: =GETPIVOTDATA("Sum of EC",CMAQ_2008!$R$10,"JDAY",$C3,"SRC CAT",CMAQ_2008!QM$3,"SRC REGION",CMAQ_2008!QM$4) -> 7.5043e-05 | QM3: =GETPIVOTDATA("Sum of EC",CMAQ_2008!$R$10,"JDAY",$C3,"SRC CAT",CMAQ_2008!QN$3,"SRC REGION",CMAQ_2008!QN$4) -> 5.692e-06 | QN3: =GETPIVOTDATA("Sum of EC",CMAQ_2008!$R$10,"JDAY",$C3,"SRC CAT",CMAQ_2008!QO$3,"SRC REGION",CMAQ_2008!QO$4) -> 5.2421e-07 | QO3: =GETPIVOTDATA("Sum of EC",CMAQ_2008!$R$10,"JDAY",$C3,"SRC CAT",CMAQ_2008!QP$3,"SRC REGION",CMAQ_2008!QP$4) -> 0.012401 | QP3: =GETPIVOTDATA("Sum of EC",CMAQ_2008!$R$10,"JDAY",$C3,"SRC CAT",CMAQ_2008!QQ$3,"SRC REGION",CMAQ_2008!QQ$4) -> 1.5788e-07 | QQ3: =GETPIVOTDATA("Sum of EC",CMAQ_2008!$R$10,"JDAY",$C3,"SRC CAT",CMAQ_2008!QR$3,"SRC REGION",CMAQ_2008!QR$4) -> 1.0154e-05 | QR3: =GETPIVOTDATA("Sum of EC",CMAQ_2008!$R$10,"JDAY",$C3,"SRC CAT",CMAQ_2008!QS$3,"SRC REGION",CMAQ_2008!QS$4) -> 0.01298 | QS3: =GETPIVOTDATA("Sum of EC",CMAQ_2008!$R$10,"JDAY",$C3,"SRC CAT",CMAQ_2008!QT$3,"SRC REGION",CMAQ_2008!QT$4) -> 1.7129e-05 | QU3: =GETPIVOTDATA("Sum of OPM25",CMAQ_2008!$R$10,"JDAY",$C3,"SRC CAT",CMAQ_2008!QV$3,"SRC REGION",CMAQ_2008!QV$4) -> 0.053492 | QV3: =GETPIVOTDATA("Sum of OPM25",CMAQ_2008!$R$10,"JDAY",$C3,"SRC CAT",CMAQ_2008!QW$3,"SRC REGION",CMAQ_2008!QW$4) -> 4.3497e-08 | QW3: =GETPIVOTDATA("Sum of OPM25",CMAQ_2008!$R$10,"JDAY",$C3,"SRC CAT",CMAQ_2008!QX$3,"SRC REGION",CMAQ_2008!QX$4) -> 1.46e-07 | QX3: =GETPIVOTDATA("Sum of OPM25",CMAQ_2008!$R$10,"JDAY",$C3,"SRC CAT",CMAQ_2008!QY$3,"SRC REGION",CMAQ_2008!QY$4) -> 4.5952e-07 | QY3: =GETPIVOTDATA("Sum of OPM25",CMAQ_2008!$R$10,"JDAY",$C3,"SRC CAT",CMAQ_2008!QZ$3,"SRC REGION",CMAQ_2008!QZ$4) -> 0.010527 | QZ3: =GETPIVOTDATA("Sum of OPM25",CMAQ_2008!$R$10,"JDAY",$C3,"SRC CAT",CMAQ_2008!RA$3,"SRC REGION",CMAQ_2008!RA$4) -> 5.6952e-16 | RA3: =GETPIVOTDATA("Sum of OPM25",CMAQ_2008!$R$10,"JDAY",$C3,"SRC CAT",CMAQ_2008!RB$3,"SRC REGION",CMAQ_2008!RB$4) -> 5.6952e-16 | RB3: =GETPIVOTDATA("Sum of OPM25",CMAQ_2008!$R$10,"JDAY",$C3,"SRC CAT",CMAQ_2008!RC$3,"SRC REGION",CMAQ_2008!RC$4) -> 0.036522 | RC3: =GETPIVOTDATA("Sum of OPM25",CMAQ_2008!$R$10,"JDAY",$C3,"SRC CAT",CMAQ_2008!RD$3,"SRC REGION",CMAQ_2008!RD$4) -> 1.2445e-08 | RD3: =GETPIVOTDATA("Sum of OPM25",CMAQ_2008!$R$10,"JDAY",$C3,"SRC CAT",CMAQ_2008!RE$3,"SRC REGION",CMAQ_2008!RE$4) -> 6.4574e-06 | RE3: =GETPIVOTDATA("Sum of OPM25",CMAQ_2008!$R$10,"JDAY",$C3,"SRC CAT",CMAQ_2008!RF$3,"SRC REGION",CMAQ_2008!RF$4) -> 5.6952e-16 | RF3: =GETPIVOTDATA("Sum of OPM25",CMAQ_2008!$R$10,"JDAY",$C3,"SRC CAT",CMAQ_2008!RG$3,"SRC REGION",CMAQ_2008!RG$4) -> 5.6952e-16 | RG3: =GETPIVOTDATA("Sum of OPM25",CMAQ_2008!$R$10,"JDAY",$C3,"SRC CAT",CMAQ_2008!RH$3,"SRC REGION",CMAQ_2008!RH$4) -> 5.6952e-16 | RH3: =GETPIVOTDATA("Sum of OPM25",CMAQ_2008!$R$10,"JDAY",$C3,"SRC CAT",CMAQ_2008!RI$3,"SRC REGION",CMAQ_2008!RI$4) -> 5.6952e-16 | RI3: =GETPIVOTDATA("Sum of OPM25",CMAQ_2008!$R$10,"JDAY",$C3,"SRC CAT",CMAQ_2008!RJ$3,"SRC REGION",CMAQ_2008!RJ$4) -> 1.7465e-07 | RJ3: =GETPIVOTDATA("Sum of OPM25",CMAQ_2008!$R$10,"JDAY",$C3,"SRC CAT",CMAQ_2008!RK$3,"SRC REGION",CMAQ_2008!RK$4) -> 4.0819e-09 | RK3: =GETPIVOTDATA("Sum of OPM25",CMAQ_2008!$R$10,"JDAY",$C3,"SRC CAT",CMAQ_2008!RL$3,"SRC REGION",CMAQ_2008!RL$4) -> 1.2616e-06 | RL3: =GETPIVOTDATA("Sum of OPM25",CMAQ_2008!$R$10,"JDAY",$C3,"SRC CAT",CMAQ_2008!RM$3,"SRC REGION",CMAQ_2008!RM$4) -> 3.6999e-07 | RM3: =GETPIVOTDATA("Sum of OPM25",CMAQ_2008!$R$10,"JDAY",$C3,"SRC CAT",CMAQ_2008!RN$3,"SRC REGION",CMAQ_2008!RN$4) -> 6.5837e-05 | RN3: =GETPIVOTDATA("Sum of OPM25",CMAQ_2008!$R$10,"JDAY",$C3,"SRC CAT",CMAQ_2008!RO$3,"SRC REGION",CMAQ_2008!RO$4) -> 1.1528e-07 | RO3: =GETPIVOTDATA("Sum of OPM25",CMAQ_2008!$R$10,"JDAY",$C3,"SRC CAT",CMAQ_2008!RP$3,"SRC REGION",CMAQ_2008!RP$4) -> 7.1814e-14 | RP3: =GETPIVOTDATA("Sum of OPM25",CMAQ_2008!$R$10,"JDAY",$C3,"SRC CAT",CMAQ_2008!RQ$3,"SRC REGION",CMAQ_2008!RQ$4) -> 0.00021321 | RQ3: =GETPIVOTDATA("Sum of OPM25",CMAQ_2008!$R$10,"JDAY",$C3,"SRC CAT",CMAQ_2008!RR$3,"SRC REGION",CMAQ_2008!RR$4) -> 5.6952e-16 | RR3: =GETPIVOTDATA("Sum of OPM25",CMAQ_2008!$R$10,"JDAY",$C3,"SRC CAT",CMAQ_2008!RS$3,"SRC REGION",CMAQ_2008!RS$4) -> 4.5e-10 | RS3: =GETPIVOTDATA("Sum of OPM25",CMAQ_2008!$R$10,"JDAY",$C3,"SRC CAT",CMAQ_2008!RT$3,"SRC REGION",CMAQ_2008!RT$4) -> 1.855e-06 | RT3: =GETPIVOTDATA("Sum of OPM25",CMAQ_2008!$R$10,"JDAY",$C3,"SRC CAT",CMAQ_2008!RU$3,"SRC REGION",CMAQ_2008!RU$4) -> 0.00056468 | RU3: =GETPIVOTDATA("Sum of OPM25",CMAQ_2008!$R$10,"JDAY",$C3,"SRC CAT",CMAQ_2008!RV$3,"SRC REGION",CMAQ_2008!RV$4) -> 5.6952e-16 | RV3: =GETPIVOTDATA("Sum of OPM25",CMAQ_2008!$R$10,"JDAY",$C3,"SRC CAT",CMAQ_2008!RW$3,"SRC REGION",CMAQ_2008!RW$4) -> 5.6952e-16 | RW3: =GETPIVOTDATA("Sum of OPM25",CMAQ_2008!$R$10,"JDAY",$C3,"SRC CAT",CMAQ_2008!RX$3,"SRC REGION",CMAQ_2008!RX$4) -> 0.001334 | RX3: =GETPIVOTDATA("Sum of OPM25",CMAQ_2008!$R$10,"JDAY",$C3,"SRC CAT",CMAQ_2008!RY$3,"SRC REGION",CMAQ_2008!RY$4) -> 5.6952e-16 | RY3: =GETPIVOTDATA("Sum of OPM25",CMAQ_2008!$R$10,"JDAY",$C3,"SRC CAT",CMAQ_2008!RZ$3,"SRC REGION",CMAQ_2008!RZ$4) -> 5.6952e-16 | RZ3: =GETPIVOTDATA("Sum of OPM25",CMAQ_2008!$R$10,"JDAY",$C3,"SRC CAT",CMAQ_2008!SA$3,"SRC REGION",CMAQ_2008!SA$4) -> 5.6952e-16 | SA3: =GETPIVOTDATA("Sum of OPM25",CMAQ_2008!$R$10,"JDAY",$C3,"SRC CAT",CMAQ_2008!SB$3,"SRC REGION",CMAQ_2008!SB$4) -> 1.9755e-05 | SB3: =GETPIVOTDATA("Sum of OPM25",CMAQ_2008!$R$10,"JDAY",$C3,"SRC CAT",CMAQ_2008!SC$3,"SRC REGION",CMAQ_2008!SC$4) -> 0.00013866 | SC3: =GETPIVOTDATA("Sum of OPM25",CMAQ_2008!$R$10,"JDAY",$C3,"SRC CAT",CMAQ_2008!SD$3,"SRC REGION",CMAQ_2008!SD$4) -> 0.00038202 | SD3: =GETPIVOTDATA("Sum of OPM25",CMAQ_2008!$R$10,"JDAY",$C3,"SRC CAT",CMAQ_2008!SE$3,"SRC REGION",CMAQ_2008!SE$4) -> 5.6952e-16 | SE3: =GETPIVOTDATA("Sum of OPM25",CMAQ_2008!$R$10,"JDAY",$C3,"SRC CAT",CMAQ_2008!SF$3,"SRC REGION",CMAQ_2008!SF$4) -> 5.6952e-16 | SF3: =GETPIVOTDATA("Sum of OPM25",CMAQ_2008!$R$10,"JDAY",$C3,"SRC CAT",CMAQ_2008!SG$3,"SRC REGION",CMAQ_2008!SG$4) -> 1.4686e-06 | SG3: =GETPIVOTDATA("Sum of OPM25",CMAQ_2008!$R$10,"JDAY",$C3,"SRC CAT",CMAQ_2008!SH$3,"SRC REGION",CMAQ_2008!SH$4) -> 5.6952e-16 | SH3: =GETPIVOTDATA("Sum of OPM25",CMAQ_2008!$R$10,"JDAY",$C3,"SRC CAT",CMAQ_2008!SI$3,"SRC REGION",CMAQ_2008!SI$4) -> 0.0016504 | SI3: =GETPIVOTDATA("Sum of OPM25",CMAQ_2008!$R$10,"JDAY",$C3,"SRC CAT",CMAQ_2008!SJ$3,"SRC REGION",CMAQ_2008!SJ$4) -> 5.6952e-16 | SJ3: =GETPIVOTDATA("Sum of OPM25",CMAQ_2008!$R$10,"JDAY",$C3,"SRC CAT",CMAQ_2008!SK$3,"SRC REGION",CMAQ_2008!SK$4) -> 5.6952e-16 | SK3: =GETPIVOTDATA("Sum of OPM25",CMAQ_2008!$R$10,"JDAY",$C3,"SRC CAT",CMAQ_2008!SL$3,"SRC REGION",CMAQ_2008!SL$4) -> 0.00042671 | SL3: =GETPIVOTDATA("Sum of OPM25",CMAQ_2008!$R$10,"JDAY",$C3,"SRC CAT",CMAQ_2008!SM$3,"SRC REGION",CMAQ_2008!SM$4) -> 4.3233e-10 | SM3: =GETPIVOTDATA("Sum of OPM25",CMAQ_2008!$R$10,"JDAY",$C3,"SRC CAT",CMAQ_2008!SN$3,"SRC REGION",CMAQ_2008!SN$4) -> 5.2419e-08 | SN3: =GETPIVOTDATA("Sum of OPM25",CMAQ_2008!$R$10,"JDAY",$C3,"SRC CAT",CMAQ_2008!SO$3,"SRC REGION",CMAQ_2008!SO$4) -> 1.5282e-05 | SO3: =GETPIVOTDATA("Sum of OPM25",CMAQ_2008!$R$10,"JDAY",$C3,"SRC CAT",CMAQ_2008!SP$3,"SRC REGION",CMAQ_2008!SP$4) -> 5.6952e-16 | SP3: =GETPIVOTDATA("Sum of OPM25",CMAQ_2008!$R$10,"JDAY",$C3,"SRC CAT",CMAQ_2008!SQ$3,"SRC REGION",CMAQ_2008!SQ$4) -> 5.6952e-16 | SQ3: =GETPIVOTDATA("Sum of OPM25",CMAQ_2008!$R$10,"JDAY",$C3,"SRC CAT",CMAQ_2008!SR$3,"SRC REGION",CMAQ_2008!SR$4) -> 0.00084453 | SR3: =GETPIVOTDATA("Sum of OPM25",CMAQ_2008!$R$10,"JDAY",$C3,"SRC CAT",CMAQ_2008!SS$3,"SRC REGION",CMAQ_2008!SS$4) -> 0.0049231 | SS3: =GETPIVOTDATA("Sum of OPM25",CMAQ_2008!$R$10,"JDAY",$C3,"SRC CAT",CMAQ_2008!ST$3,"SRC REGION",CMAQ_2008!ST$4) -> 5.6952e-16 | ST3: =GETPIVOTDATA("Sum of OPM25",CMAQ_2008!$R$10,"JDAY",$C3,"SRC CAT",CMAQ_2008!SU$3,"SRC REGION",CMAQ_2008!SU$4) -> 5.6952e-16 | SU3: =GETPIVOTDATA("Sum of OPM25",CMAQ_2008!$R$10,"JDAY",$C3,"SRC CAT",CMAQ_2008!SV$3,"SRC REGION",CMAQ_2008!SV$4) -> 8.982e-05 | SV3: =GETPIVOTDATA("Sum of OPM25",CMAQ_2008!$R$10,"JDAY",$C3,"SRC CAT",CMAQ_2008!SW$3,"SRC REGION",CMAQ_2008!SW$4) -> 4.5311e-05 | SW3: =GETPIVOTDATA("Sum of OPM25",CMAQ_2008!$R$10,"JDAY",$C3,"SRC CAT",CMAQ_2008!SX$3,"SRC REGION",CMAQ_2008!SX$4) -> 5.14e-05 | SX3: =GETPIVOTDATA("Sum of OPM25",CMAQ_2008!$R$10,"JDAY",$C3,"SRC CAT",CMAQ_2008!SY$3,"SRC REGION",CMAQ_2008!SY$4) -> 3.0753e-05 | SY3: =GETPIVOTDATA("Sum of OPM25",CMAQ_2008!$R$10,"JDAY",$C3,"SRC CAT",CMAQ_2008!SZ$3,"SRC REGION",CMAQ_2008!SZ$4) -> 5.6952e-16 | SZ3: =GETPIVOTDATA("Sum of OPM25",CMAQ_2008!$R$10,"JDAY",$C3,"SRC CAT",CMAQ_2008!TA$3,"SRC REGION",CMAQ_2008!TA$4) -> 5.6952e-16 | TA3: =GETPIVOTDATA("Sum of OPM25",CMAQ_2008!$R$10,"JDAY",$C3,"SRC CAT",CMAQ_2008!TB$3,"SRC REGION",CMAQ_2008!TB$4) -> 1.9762e-06 | TB3: =GETPIVOTDATA("Sum of OPM25",CMAQ_2008!$R$10,"JDAY",$C3,"SRC CAT",CMAQ_2008!TC$3,"SRC REGION",CMAQ_2008!TC$4) -> 1.5289e-07 | TC3: =GETPIVOTDATA("Sum of OPM25",CMAQ_2008!$R$10,"JDAY",$C3,"SRC CAT",CMAQ_2008!TD$3,"SRC REGION",CMAQ_2008!TD$4) -> 5.6952e-16 | TD3: =GETPIVOTDATA("Sum of OPM25",CMAQ_2008!$R$10,"JDAY",$C3,"SRC CAT",CMAQ_2008!TE$3,"SRC REGION",CMAQ_2008!TE$4) -> 5.6952e-16 | TE3: =GETPIVOTDATA("Sum of OPM25",CMAQ_2008!$R$10,"JDAY",$C3,"SRC CAT",CMAQ_2008!TF$3,"SRC REGION",CMAQ_2008!TF$4) -> 5.6952e-16 | TF3: =GETPIVOTDATA("Sum of OPM25",CMAQ_2008!$R$10,"JDAY",$C3,"SRC CAT",CMAQ_2008!TG$3,"SRC REGION",CMAQ_2008!TG$4) -> 0.0043534 | TG3: =GETPIVOTDATA("Sum of OPM25",CMAQ_2008!$R$10,"JDAY",$C3,"SRC CAT",CMAQ_2008!TH$3,"SRC REGION",CMAQ_2008!TH$4) -> 5.6952e-16 | TH3: =GETPIVOTDATA("Sum of OPM25",CMAQ_2008!$R$10,"JDAY",$C3,"SRC CAT",CMAQ_2008!TI$3,"SRC REGION",CMAQ_2008!TI$4) -> 1.3311e-07 | TI3: =GETPIVOTDATA("Sum of OPM25",CMAQ_2008!$R$10,"JDAY",$C3,"SRC CAT",CMAQ_2008!TJ$3,"SRC REGION",CMAQ_2008!TJ$4) -> 1.1078e-06 | TJ3: =GETPIVOTDATA("Sum of OPM25",CMAQ_2008!$R$10,"JDAY",$C3,"SRC CAT",CMAQ_2008!TK$3,"SRC REGION",CMAQ_2008!TK$4) -> 5.6952e-16 | TK3: =GETPIVOTDATA("Sum of OPM25",CMAQ_2008!$R$10,"JDAY",$C3,"SRC CAT",CMAQ_2008!TL$3,"SRC REGION",CMAQ_2008!TL$4) -> 5.6952e-16 | TL3: =GETPIVOTDATA("Sum of OPM25",CMAQ_2008!$R$10,"JDAY",$C3,"SRC CAT",CMAQ_2008!TM$3,"SRC REGION",CMAQ_2008!TM$4) -> 0.00011385 | TM3: =GETPIVOTDATA("Sum of OPM25",CMAQ_2008!$R$10,"JDAY",$C3,"SRC CAT",CMAQ_2008!TN$3,"SRC REGION",CMAQ_2008!TN$4) -> 0.00029514 | TN3: =GETPIVOTDATA("Sum of OPM25",CMAQ_2008!$R$10,"JDAY",$C3,"SRC CAT",CMAQ_2008!TO$3,"SRC REGION",CMAQ_2008!TO$4) -> 5.6952e-16 | TO3: =GETPIVOTDATA("Sum of OPM25",CMAQ_2008!$R$10,"JDAY",$C3,"SRC CAT",CMAQ_2008!TP$3,"SRC REGION",CMAQ_2008!TP$4) -> 5.6952e-16 | TP3: =GETPIVOTDATA("Sum of OPM25",CMAQ_2008!$R$10,"JDAY",$C3,"SRC CAT",CMAQ_2008!TQ$3,"SRC REGION",CMAQ_2008!TQ$4) -> 4.5976e-05 | TQ3: =GETPIVOTDATA("Sum of OPM25",CMAQ_2008!$R$10,"JDAY",$C3,"SRC CAT",CMAQ_2008!TR$3,"SRC REGION",CMAQ_2008!TR$4) -> 5.6952e-16 | TR3: =GETPIVOTDATA("Sum of OPM25",CMAQ_2008!$R$10,"JDAY",$C3,"SRC CAT",CMAQ_2008!TS$3,"SRC REGION",CMAQ_2008!TS$4) -> 1.7582e-05 | TS3: =GETPIVOTDATA("Sum of OPM25",CMAQ_2008!$R$10,"JDAY",$C3,"SRC CAT",CMAQ_2008!TT$3,"SRC REGION",CMAQ_2008!TT$4) -> 5.6952e-16 | TT3: =GETPIVOTDATA("Sum of OPM25",CMAQ_2008!$R$10,"JDAY",$C3,"SRC CAT",CMAQ_2008!TU$3,"SRC REGION",CMAQ_2008!TU$4) -> 9.1152e-08 | TU3: =GETPIVOTDATA("Sum of OPM25",CMAQ_2008!$R$10,"JDAY",$C3,"SRC CAT",CMAQ_2008!TV$3,"SRC REGION",CMAQ_2008!TV$4) -> 5.6952e-16 | TV3: =GETPIVOTDATA("Sum of OPM25",CMAQ_2008!$R$10,"JDAY",$C3,"SRC CAT",CMAQ_2008!TW$3,"SRC REGION",CMAQ_2008!TW$4) -> 1.8197e-08 | TW3: =GETPIVOTDATA("Sum of OPM25",CMAQ_2008!$R$10,"JDAY",$C3,"SRC CAT",CMAQ_2008!TX$3,"SRC REGION",CMAQ_2008!TX$4) -> 5.6952e-16 | TX3: =GETPIVOTDATA("Sum of OPM25",CMAQ_2008!$R$10,"JDAY",$C3,"SRC CAT",CMAQ_2008!TY$3,"SRC REGION",CMAQ_2008!TY$4) -> 0.0038878 | TY3: =GETPIVOTDATA("Sum of OPM25",CMAQ_2008!$R$10,"JDAY",$C3,"SRC CAT",CMAQ_2008!TZ$3,"SRC REGION",CMAQ_2008!TZ$4) -> 5.4802e-10 | TZ3: =GETPIVOTDATA("Sum of OPM25",CMAQ_2008!$R$10,"JDAY",$C3,"SRC CAT",CMAQ_2008!UA$3,"SRC REGION",CMAQ_2008!UA$4) -> 5.6952e-16 | UA3: =GETPIVOTDATA("Sum of OPM25",CMAQ_2008!$R$10,"JDAY",$C3,"SRC CAT",CMAQ_2008!UB$3,"SRC REGION",CMAQ_2008!UB$4) -> 0.089141 | UB3: =GETPIVOTDATA("Sum of OPM25",CMAQ_2008!$R$10,"JDAY",$C3,"SRC CAT",CMAQ_2008!UC$3,"SRC REGION",CMAQ_2008!UC$4) -> 4.1959e-07 | UC3: =GETPIVOTDATA("Sum of OPM25",CMAQ_2008!$R$10,"JDAY",$C3,"SRC CAT",CMAQ_2008!UD$3,"SRC REGION",CMAQ_2008!UD$4) -> 2.7894e-06 | UD3: =GETPIVOTDATA("Sum of OPM25",CMAQ_2008!$R$10,"JDAY",$C3,"SRC CAT",CMAQ_2008!UE$3,"SRC REGION",CMAQ_2008!UE$4) -> 0.00099552 | UE3: =GETPIVOTDATA("Sum of OPM25",CMAQ_2008!$R$10,"JDAY",$C3,"SRC CAT",CMAQ_2008!UF$3,"SRC REGION",CMAQ_2008!UF$4) -> 0.095989 | UF3: =GETPIVOTDATA("Sum of OPM25",CMAQ_2008!$R$10,"JDAY",$C3,"SRC CAT",CMAQ_2008!UG$3,"SRC REGION",CMAQ_2008!UG$4) -> 0.0013399 | UG3: =GETPIVOTDATA("Sum of OPM25",CMAQ_2008!$R$10,"JDAY",$C3,"SRC CAT",CMAQ_2008!UH$3,"SRC REGION",CMAQ_2008!UH$4) -> 0.010261 | UH3: =GETPIVOTDATA("Sum of OPM25",CMAQ_2008!$R$10,"JDAY",$C3,"SRC CAT",CMAQ_2008!UI$3,"SRC REGION",CMAQ_2008!UI$4) -> 0.10959 | UI3: =GETPIVOTDATA("Sum of OPM25",CMAQ_2008!$R$10,"JDAY",$C3,"SRC CAT",CMAQ_2008!UJ$3,"SRC REGION",CMAQ_2008!UJ$4) -> 0.00044929 | UJ3: =GETPIVOTDATA("Sum of OPM25",CMAQ_2008!$R$10,"JDAY",$C3,"SRC CAT",CMAQ_2008!UK$3,"SRC REGION",CMAQ_2008!UK$4) -> 0.0017656 | UK3: =GETPIVOTDATA("Sum of OPM25",CMAQ_2008!$R$10,"JDAY",$C3,"SRC CAT",CMAQ_2008!UL$3,"SRC REGION",CMAQ_2008!UL$4) -> 0.019287 | UL3: =GETPIVOTDATA("Sum of OPM25",CMAQ_2008!$R$10,"JDAY",$C3,"SRC CAT",CMAQ_2008!UM$3,"SRC REGION",CMAQ_2008!UM$4) -> 0.0064651 | UM3: =GETPIVOTDATA("Sum of OPM25",CMAQ_2008!$R$10,"JDAY",$C3,"SRC CAT",CMAQ_2008!UN$3,"SRC REGION",CMAQ_2008!UN$4) -> 0.0079491 | UN3: =GETPIVOTDATA("Sum of OPM25",CMAQ_2008!$R$10,"JDAY",$C3,"SRC CAT",CMAQ_2008!UO$3,"SRC REGION",CMAQ_2008!UO$4) -> 0.053688 | UO3: =GETPIVOTDATA("Sum of OPM25",CMAQ_2008!$R$10,"JDAY",$C3,"SRC CAT",CMAQ_2008!UP$3,"SRC REGION",CMAQ_2008!UP$4) -> 3.1476e-05 | UP3: =GETPIVOTDATA("Sum of OPM25",CMAQ_2008!$R$10,"JDAY",$C3,"SRC CAT",CMAQ_2008!UQ$3,"SRC REGION",CMAQ_2008!UQ$4) -> 0.00031834 | UQ3: =GETPIVOTDATA("Sum of OPM25",CMAQ_2008!$R$10,"JDAY",$C3,"SRC CAT",CMAQ_2008!UR$3,"SRC REGION",CMAQ_2008!UR$4) -> 2.5021e-05 | UR3: =GETPIVOTDATA("Sum of OPM25",CMAQ_2008!$R$10,"JDAY",$C3,"SRC CAT",CMAQ_2008!US$3,"SRC REGION",CMAQ_2008!US$4) -> 6.3129e-06 | US3: =GETPIVOTDATA("Sum of OPM25",CMAQ_2008!$R$10,"JDAY",$C3,"SRC CAT",CMAQ_2008!UT$3,"SRC REGION",CMAQ_2008!UT$4) -> 0.1079 | UT3: =GETPIVOTDATA("Sum of OPM25",CMAQ_2008!$R$10,"JDAY",$C3,"SRC CAT",CMAQ_2008!UU$3,"SRC REGION",CMAQ_2008!UU$4) -> 5.0337e-07 | UU3: =GETPIVOTDATA("Sum of OPM25",CMAQ_2008!$R$10,"JDAY",$C3,"SRC CAT",CMAQ_2008!UV$3,"SRC REGION",CMAQ_2008!UV$4) -> 1.7201e-05 | UV3: =GETPIVOTDATA("Sum of OPM25",CMAQ_2008!$R$10,"JDAY",$C3,"SRC CAT",CMAQ_2008!UW$3,"SRC REGION",CMAQ_2008!UW$4) -> 1.1588 | UW3: =GETPIVOTDATA("Sum of OPM25",CMAQ_2008!$R$10,"JDAY",$C3,"SRC CAT",CMAQ_2008!UX$3,"SRC REGION",CMAQ_2008!UX$4) -> 0.00084843 | UY3: =GETPIVOTDATA("Sum of PMC",CMAQ_2008!$R$10,"JDAY",$C3,"SRC CAT",CMAQ_2008!UZ$3,"SRC REGION",CMAQ_2008!UZ$4) -> 0.42028 | UZ3: =GETPIVOTDATA("Sum of PMC",CMAQ_2008!$R$10,"JDAY",$C3,"SRC CAT",CMAQ_2008!VA$3,"SRC REGION",CMAQ_2008!VA$4) -> 1.4722e-07 | VA3: =GETPIVOTDATA("Sum of PMC",CMAQ_2008!$R$10,"JDAY",$C3,"SRC CAT",CMAQ_2008!VB$3,"SRC REGION",CMAQ_2008!VB$4) -> 5.919e-07 | VB3: =GETPIVOTDATA("Sum of PMC",CMAQ_2008!$R$10,"JDAY",$C3,"SRC CAT",CMAQ_2008!VC$3,"SRC REGION",CMAQ_2008!VC$4) -> 1.8954e-06 | VC3: =GETPIVOTDATA("Sum of PMC",CMAQ_2008!$R$10,"JDAY",$C3,"SRC CAT",CMAQ_2008!VD$3,"SRC REGION",CMAQ_2008!VD$4) -> 0.087563 | VD3: =GETPIVOTDATA("Sum of PMC",CMAQ_2008!$R$10,"JDAY",$C3,"SRC CAT",CMAQ_2008!VE$3,"SRC REGION",CMAQ_2008!VE$4) -> 4.5972e-16 | VE3: =GETPIVOTDATA("Sum of PMC",CMAQ_2008!$R$10,"JDAY",$C3,"SRC CAT",CMAQ_2008!VF$3,"SRC REGION",CMAQ_2008!VF$4) -> 4.5972e-16 | VF3: =GETPIVOTDATA("Sum of PMC",CMAQ_2008!$R$10,"JDAY",$C3,"SRC CAT",CMAQ_2008!VG$3,"SRC REGION",CMAQ_2008!VG$4) -> 0.28168 | VG3: =GETPIVOTDATA("Sum of PMC",CMAQ_2008!$R$10,"JDAY",$C3,"SRC CAT",CMAQ_2008!VH$3,"SRC REGION",CMAQ_2008!VH$4) -> 3.3982e-08 | VH3: =GETPIVOTDATA("Sum of PMC",CMAQ_2008!$R$10,"JDAY",$C3,"SRC CAT",CMAQ_2008!VI$3,"SRC REGION",CMAQ_2008!VI$4) -> 2.2459e-05 | VI3: =GETPIVOTDATA("Sum of PMC",CMAQ_2008!$R$10,"JDAY",$C3,"SRC CAT",CMAQ_2008!VJ$3,"SRC REGION",CMAQ_2008!VJ$4) -> 4.5972e-16 | VJ3: =GETPIVOTDATA("Sum of PMC",CMAQ_2008!$R$10,"JDAY",$C3,"SRC CAT",CMAQ_2008!VK$3,"SRC REGION",CMAQ_2008!VK$4) -> 4.5972e-16 | VK3: =GETPIVOTDATA("Sum of PMC",CMAQ_2008!$R$10,"JDAY",$C3,"SRC CAT",CMAQ_2008!VL$3,"SRC REGION",CMAQ_2008!VL$4) -> 4.5972e-16 | VL3: =GETPIVOTDATA("Sum of PMC",CMAQ_2008!$R$10,"JDAY",$C3,"SRC CAT",CMAQ_2008!VM$3,"SRC REGION",CMAQ_2008!VM$4) -> 4.5972e-16 | VM3: =GETPIVOTDATA("Sum of PMC",CMAQ_2008!$R$10,"JDAY",$C3,"SRC CAT",CMAQ_2008!VN$3,"SRC REGION",CMAQ_2008!VN$4) -> 5.9618e-07 | VN3: =GETPIVOTDATA("Sum of PMC",CMAQ_2008!$R$10,"JDAY",$C3,"SRC CAT",CMAQ_2008!VO$3,"SRC REGION",CMAQ_2008!VO$4) -> 1.4682e-08 | VO3: =GETPIVOTDATA("Sum of PMC",CMAQ_2008!$R$10,"JDAY",$C3,"SRC CAT",CMAQ_2008!VP$3,"SRC REGION",CMAQ_2008!VP$4) -> 4.1512e-06 | VP3: =GETPIVOTDATA("Sum of PMC",CMAQ_2008!$R$10,"JDAY",$C3,"SRC CAT",CMAQ_2008!VQ$3,"SRC REGION",CMAQ_2008!VQ$4) -> 1.3988e-06 | VQ3: =GETPIVOTDATA("Sum of PMC",CMAQ_2008!$R$10,"JDAY",$C3,"SRC CAT",CMAQ_2008!VR$3,"SRC REGION",CMAQ_2008!VR$4) -> 0.00029746 | VR3: =GETPIVOTDATA("Sum of PMC",CMAQ_2008!$R$10,"JDAY",$C3,"SRC CAT",CMAQ_2008!VS$3,"SRC REGION",CMAQ_2008!VS$4) -> 3.9389e-07 | VS3: =GETPIVOTDATA("Sum of PMC",CMAQ_2008!$R$10,"JDAY",$C3,"SRC CAT",CMAQ_2008!VT$3,"SRC REGION",CMAQ_2008!VT$4) -> 3.6444e-13 | VT3: =GETPIVOTDATA("Sum of PMC",CMAQ_2008!$R$10,"JDAY",$C3,"SRC CAT",CMAQ_2008!VU$3,"SRC REGION",CMAQ_2008!VU$4) -> 3.0141e-05 | VU3: =GETPIVOTDATA("Sum of PMC",CMAQ_2008!$R$10,"JDAY",$C3,"SRC CAT",CMAQ_2008!VV$3,"SRC REGION",CMAQ_2008!VV$4) -> 4.5972e-16 | VV3: =GETPIVOTDATA("Sum of PMC",CMAQ_2008!$R$10,"JDAY",$C3,"SRC CAT",CMAQ_2008!VW$3,"SRC REGION",CMAQ_2008!VW$4) -> 6.7628e-11 | VW3: =GETPIVOTDATA("Sum of PMC",CMAQ_2008!$R$10,"JDAY",$C3,"SRC CAT",CMAQ_2008!VX$3,"SRC REGION",CMAQ_2008!VX$4) -> 2.6005e-07 | VX3: =GETPIVOTDATA("Sum of PMC",CMAQ_2008!$R$10,"JDAY",$C3,"SRC CAT",CMAQ_2008!VY$3,"SRC REGION",CMAQ_2008!VY$4) -> 9.3117e-05 | VY3: =GETPIVOTDATA("Sum of PMC",CMAQ_2008!$R$10,"JDAY",$C3,"SRC CAT",CMAQ_2008!VZ$3,"SRC REGION",CMAQ_2008!VZ$4) -> 4.5972e-16 | VZ3: =GETPIVOTDATA("Sum of PMC",CMAQ_2008!$R$10,"JDAY",$C3,"SRC CAT",CMAQ_2008!WA$3,"SRC REGION",CMAQ_2008!WA$4) -> 4.5972e-16 | WA3: =GETPIVOTDATA("Sum of PMC",CMAQ_2008!$R$10,"JDAY",$C3,"SRC CAT",CMAQ_2008!WB$3,"SRC REGION",CMAQ_2008!WB$4) -> 0.00017623 | WB3: =GETPIVOTDATA("Sum of PMC",CMAQ_2008!$R$10,"JDAY",$C3,"SRC CAT",CMAQ_2008!WC$3,"SRC REGION",CMAQ_2008!WC$4) -> 4.5972e-16 | WC3: =GETPIVOTDATA("Sum of PMC",CMAQ_2008!$R$10,"JDAY",$C3,"SRC CAT",CMAQ_2008!WD$3,"SRC REGION",CMAQ_2008!WD$4) -> 4.5972e-16 | WD3: =GETPIVOTDATA("Sum of PMC",CMAQ_2008!$R$10,"JDAY",$C3,"SRC CAT",CMAQ_2008!WE$3,"SRC REGION",CMAQ_2008!WE$4) -> 4.5972e-16 | WE3: =GETPIVOTDATA("Sum of PMC",CMAQ_2008!$R$10,"JDAY",$C3,"SRC CAT",CMAQ_2008!WF$3,"SRC REGION",CMAQ_2008!WF$4) -> 2.6513e-06 | WF3: =GETPIVOTDATA("Sum of PMC",CMAQ_2008!$R$10,"JDAY",$C3,"SRC CAT",CMAQ_2008!WG$3,"SRC REGION",CMAQ_2008!WG$4) -> 1.9779e-05 | WG3: =GETPIVOTDATA("Sum of PMC",CMAQ_2008!$R$10,"JDAY",$C3,"SRC CAT",CMAQ_2008!WH$3,"SRC REGION",CMAQ_2008!WH$4) -> 4.3475e-05 | WH3: =GETPIVOTDATA("Sum of PMC",CMAQ_2008!$R$10,"JDAY",$C3,"SRC CAT",CMAQ_2008!WI$3,"SRC REGION",CMAQ_2008!WI$4) -> 4.5972e-16 | WI3: =GETPIVOTDATA("Sum of PMC",CMAQ_2008!$R$10,"JDAY",$C3,"SRC CAT",CMAQ_2008!WJ$3,"SRC REGION",CMAQ_2008!WJ$4) -> 4.5972e-16 | WJ3: =GETPIVOTDATA("Sum of PMC",CMAQ_2008!$R$10,"JDAY",$C3,"SRC CAT",CMAQ_2008!WK$3,"SRC REGION",CMAQ_2008!WK$4) -> 1.7595e-07 | WK3: =GETPIVOTDATA("Sum of PMC",CMAQ_2008!$R$10,"JDAY",$C3,"SRC CAT",CMAQ_2008!WL$3,"SRC REGION",CMAQ_2008!WL$4) -> 4.5972e-16 | WL3: =GETPIVOTDATA("Sum of PMC",CMAQ_2008!$R$10,"JDAY",$C3,"SRC CAT",CMAQ_2008!WM$3,"SRC REGION",CMAQ_2008!WM$4) -> 0.00010828 | WM3: =GETPIVOTDATA("Sum of PMC",CMAQ_2008!$R$10,"JDAY",$C3,"SRC CAT",CMAQ_2008!WN$3,"SRC REGION",CMAQ_2008!WN$4) -> 4.5972e-16 | WN3: =GETPIVOTDATA("Sum of PMC",CMAQ_2008!$R$10,"JDAY",$C3,"SRC CAT",CMAQ_2008!WO$3,"SRC REGION",CMAQ_2008!WO$4) -> 4.5972e-16 | WO3: =GETPIVOTDATA("Sum of PMC",CMAQ_2008!$R$10,"JDAY",$C3,"SRC CAT",CMAQ_2008!WP$3,"SRC REGION",CMAQ_2008!WP$4) -> 0.00015981 | WP3: =GETPIVOTDATA("Sum of PMC",CMAQ_2008!$R$10,"JDAY",$C3,"SRC CAT",CMAQ_2008!WQ$3,"SRC REGION",CMAQ_2008!WQ$4) -> 9.9381e-11 | WQ3: =GETPIVOTDATA("Sum of PMC",CMAQ_2008!$R$10,"JDAY",$C3,"SRC CAT",CMAQ_2008!WR$3,"SRC REGION",CMAQ_2008!WR$4) -> 9.7435e-09 | WR3: =GETPIVOTDATA("Sum of PMC",CMAQ_2008!$R$10,"JDAY",$C3,"SRC CAT",CMAQ_2008!WS$3,"SRC REGION",CMAQ_2008!WS$4) -> 3.038e-06 | WS3: =GETPIVOTDATA("Sum of PMC",CMAQ_2008!$R$10,"JDAY",$C3,"SRC CAT",CMAQ_2008!WT$3,"SRC REGION",CMAQ_2008!WT$4) -> 4.5972e-16 | WT3: =GETPIVOTDATA("Sum of PMC",CMAQ_2008!$R$10,"JDAY",$C3,"SRC CAT",CMAQ_2008!WU$3,"SRC REGION",CMAQ_2008!WU$4) -> 4.5972e-16 | WU3: =GETPIVOTDATA("Sum of PMC",CMAQ_2008!$R$10,"JDAY",$C3,"SRC CAT",CMAQ_2008!WV$3,"SRC REGION",CMAQ_2008!WV$4) -> 0.00030405 | WV3: =GETPIVOTDATA("Sum of PMC",CMAQ_2008!$R$10,"JDAY",$C3,"SRC CAT",CMAQ_2008!WW$3,"SRC REGION",CMAQ_2008!WW$4) -> 0.0023692 | WW3: =GETPIVOTDATA("Sum of PMC",CMAQ_2008!$R$10,"JDAY",$C3,"SRC CAT",CMAQ_2008!WX$3,"SRC REGION",CMAQ_2008!WX$4) -> 4.5972e-16 | WX3: =GETPIVOTDATA("Sum of PMC",CMAQ_2008!$R$10,"JDAY",$C3,"SRC CAT",CMAQ_2008!WY$3,"SRC REGION",CMAQ_2008!WY$4) -> 4.5972e-16 | WY3: =GETPIVOTDATA("Sum of PMC",CMAQ_2008!$R$10,"JDAY",$C3,"SRC CAT",CMAQ_2008!WZ$3,"SRC REGION",CMAQ_2008!WZ$4) -> 7.4792e-05 | WZ3: =GETPIVOTDATA("Sum of PMC",CMAQ_2008!$R$10,"JDAY",$C3,"SRC CAT",CMAQ_2008!XA$3,"SRC REGION",CMAQ_2008!XA$4) -> 9.7738e-05 | XA3: =GETPIVOTDATA("Sum of PMC",CMAQ_2008!$R$10,"JDAY",$C3,"SRC CAT",CMAQ_2008!XB$3,"SRC REGION",CMAQ_2008!XB$4) -> 0.00029202 | XB3: =GETPIVOTDATA("Sum of PMC",CMAQ_2008!$R$10,"JDAY",$C3,"SRC CAT",CMAQ_2008!XC$3,"SRC REGION",CMAQ_2008!XC$4) -> 0.00016261 | XC3: =GETPIVOTDATA("Sum of PMC",CMAQ_2008!$R$10,"JDAY",$C3,"SRC CAT",CMAQ_2008!XD$3,"SRC REGION",CMAQ_2008!XD$4) -> 4.5972e-16 | XD3: =GETPIVOTDATA("Sum of PMC",CMAQ_2008!$R$10,"JDAY",$C3,"SRC CAT",CMAQ_2008!XE$3,"SRC REGION",CMAQ_2008!XE$4) -> 4.5972e-16 | XE3: =GETPIVOTDATA("Sum of PMC",CMAQ_2008!$R$10,"JDAY",$C3,"SRC CAT",CMAQ_2008!XF$3,"SRC REGION",CMAQ_2008!XF$4) -> 6.9857e-07 | XF3: =GETPIVOTDATA("Sum of PMC",CMAQ_2008!$R$10,"JDAY",$C3,"SRC CAT",CMAQ_2008!XG$3,"SRC REGION",CMAQ_2008!XG$4) -> 3.5701e-08 | XG3: =GETPIVOTDATA("Sum of PMC",CMAQ_2008!$R$10,"JDAY",$C3,"SRC CAT",CMAQ_2008!XH$3,"SRC REGION",CMAQ_2008!XH$4) -> 4.5972e-16 | XH3: =GETPIVOTDATA("Sum of PMC",CMAQ_2008!$R$10,"JDAY",$C3,"SRC CAT",CMAQ_2008!XI$3,"SRC REGION",CMAQ_2008!XI$4) -> 4.5972e-16 | XI3: =GETPIVOTDATA("Sum of PMC",CMAQ_2008!$R$10,"JDAY",$C3,"SRC CAT",CMAQ_2008!XJ$3,"SRC REGION",CMAQ_2008!XJ$4) -> 4.5972e-16 | XJ3: =GETPIVOTDATA("Sum of PMC",CMAQ_2008!$R$10,"JDAY",$C3,"SRC CAT",CMAQ_2008!XK$3,"SRC REGION",CMAQ_2008!XK$4) -> 0.0014873 | XK3: =GETPIVOTDATA("Sum of PMC",CMAQ_2008!$R$10,"JDAY",$C3,"SRC CAT",CMAQ_2008!XL$3,"SRC REGION",CMAQ_2008!XL$4) -> 4.5972e-16 | XL3: =GETPIVOTDATA("Sum of PMC",CMAQ_2008!$R$10,"JDAY",$C3,"SRC CAT",CMAQ_2008!XM$3,"SRC REGION",CMAQ_2008!XM$4) -> 2.6424e-08 | XM3: =GETPIVOTDATA("Sum of PMC",CMAQ_2008!$R$10,"JDAY",$C3,"SRC CAT",CMAQ_2008!XN$3,"SRC REGION",CMAQ_2008!XN$4) -> 2.8636e-07 | XN3: =GETPIVOTDATA("Sum of PMC",CMAQ_2008!$R$10,"JDAY",$C3,"SRC CAT",CMAQ_2008!XO$3,"SRC REGION",CMAQ_2008!XO$4) -> 4.5972e-16 | XO3: =GETPIVOTDATA("Sum of PMC",CMAQ_2008!$R$10,"JDAY",$C3,"SRC CAT",CMAQ_2008!XP$3,"SRC REGION",CMAQ_2008!XP$4) -> 4.5972e-16 | XP3: =GETPIVOTDATA("Sum of PMC",CMAQ_2008!$R$10,"JDAY",$C3,"SRC CAT",CMAQ_2008!XQ$3,"SRC REGION",CMAQ_2008!XQ$4) -> 0.00045013 | XQ3: =GETPIVOTDATA("Sum of PMC",CMAQ_2008!$R$10,"JDAY",$C3,"SRC CAT",CMAQ_2008!XR$3,"SRC REGION",CMAQ_2008!XR$4) -> 9.8687e-05 | XR3: =GETPIVOTDATA("Sum of PMC",CMAQ_2008!$R$10,"JDAY",$C3,"SRC CAT",CMAQ_2008!XS$3,"SRC REGION",CMAQ_2008!XS$4) -> 4.5972e-16 | XS3: =GETPIVOTDATA("Sum of PMC",CMAQ_2008!$R$10,"JDAY",$C3,"SRC CAT",CMAQ_2008!XT$3,"SRC REGION",CMAQ_2008!XT$4) -> 4.5972e-16 | XT3: =GETPIVOTDATA("Sum of PMC",CMAQ_2008!$R$10,"JDAY",$C3,"SRC CAT",CMAQ_2008!XU$3,"SRC REGION",CMAQ_2008!XU$4) -> 1.3359e-05 | XU3: =GETPIVOTDATA("Sum of PMC",CMAQ_2008!$R$10,"JDAY",$C3,"SRC CAT",CMAQ_2008!XV$3,"SRC REGION",CMAQ_2008!XV$4) -> 4.5972e-16 | XV3: =GETPIVOTDATA("Sum of PMC",CMAQ_2008!$R$10,"JDAY",$C3,"SRC CAT",CMAQ_2008!XW$3,"SRC REGION",CMAQ_2008!XW$4) -> 9.8255e-05 | XW3: =GETPIVOTDATA("Sum of PMC",CMAQ_2008!$R$10,"JDAY",$C3,"SRC CAT",CMAQ_2008!XX$3,"SRC REGION",CMAQ_2008!XX$4) -> 4.5972e-16 | XX3: =GETPIVOTDATA("Sum of PMC",CMAQ_2008!$R$10,"JDAY",$C3,"SRC CAT",CMAQ_2008!XY$3,"SRC REGION",CMAQ_2008!XY$4) -> 4.4442e-08 | XY3: =GETPIVOTDATA("Sum of PMC",CMAQ_2008!$R$10,"JDAY",$C3,"SRC CAT",CMAQ_2008!XZ$3,"SRC REGION",CMAQ_2008!XZ$4) -> 4.5972e-16 | XZ3: =GETPIVOTDATA("Sum of PMC",CMAQ_2008!$R$10,"JDAY",$C3,"SRC CAT",CMAQ_2008!YA$3,"SRC REGION",CMAQ_2008!YA$4) -> 2.5636e-08 | YA3: =GETPIVOTDATA("Sum of PMC",CMAQ_2008!$R$10,"JDAY",$C3,"SRC CAT",CMAQ_2008!YB$3,"SRC REGION",CMAQ_2008!YB$4) -> 4.5972e-16 | YB3: =GETPIVOTDATA("Sum of PMC",CMAQ_2008!$R$10,"JDAY",$C3,"SRC CAT",CMAQ_2008!YC$3,"SRC REGION",CMAQ_2008!YC$4) -> 0.00087175 | YC3: =GETPIVOTDATA("Sum of PMC",CMAQ_2008!$R$10,"JDAY",$C3,"SRC CAT",CMAQ_2008!YD$3,"SRC REGION",CMAQ_2008!YD$4) -> 2.8038e-10 | YD3: =GETPIVOTDATA("Sum of PMC",CMAQ_2008!$R$10,"JDAY",$C3,"SRC CAT",CMAQ_2008!YE$3,"SRC REGION",CMAQ_2008!YE$4) -> 4.5972e-16 | YE3: =GETPIVOTDATA("Sum of PMC",CMAQ_2008!$R$10,"JDAY",$C3,"SRC CAT",CMAQ_2008!YF$3,"SRC REGION",CMAQ_2008!YF$4) -> 0.4354 | YF3: =GETPIVOTDATA("Sum of PMC",CMAQ_2008!$R$10,"JDAY",$C3,"SRC CAT",CMAQ_2008!YG$3,"SRC REGION",CMAQ_2008!YG$4) -> 4.6822e-07 | YG3: =GETPIVOTDATA("Sum of PMC",CMAQ_2008!$R$10,"JDAY",$C3,"SRC CAT",CMAQ_2008!YH$3,"SRC REGION",CMAQ_2008!YH$4) -> 7.1909e-06 | YH3: =GETPIVOTDATA("Sum of PMC",CMAQ_2008!$R$10,"JDAY",$C3,"SRC CAT",CMAQ_2008!YI$3,"SRC REGION",CMAQ_2008!YI$4) -> 0.00253 | YI3: =GETPIVOTDATA("Sum of PMC",CMAQ_2008!$R$10,"JDAY",$C3,"SRC CAT",CMAQ_2008!YJ$3,"SRC REGION",CMAQ_2008!YJ$4) -> 0.44549 | YJ3: =GETPIVOTDATA("Sum of PMC",CMAQ_2008!$R$10,"JDAY",$C3,"SRC CAT",CMAQ_2008!YK$3,"SRC REGION",CMAQ_2008!YK$4) -> 0.0035319 | YK3: =GETPIVOTDATA("Sum of PMC",CMAQ_2008!$R$10,"JDAY",$C3,"SRC CAT",CMAQ_2008!YL$3,"SRC REGION",CMAQ_2008!YL$4) -> 0.0343 | YL3: =GETPIVOTDATA("Sum of PMC",CMAQ_2008!$R$10,"JDAY",$C3,"SRC CAT",CMAQ_2008!YM$3,"SRC REGION",CMAQ_2008!YM$4) -> 0.47422 | YM3: =GETPIVOTDATA("Sum of PMC",CMAQ_2008!$R$10,"JDAY",$C3,"SRC CAT",CMAQ_2008!YN$3,"SRC REGION",CMAQ_2008!YN$4) -> 0.00076692 | YN3: =GETPIVOTDATA("Sum of PMC",CMAQ_2008!$R$10,"JDAY",$C3,"SRC CAT",CMAQ_2008!YO$3,"SRC REGION",CMAQ_2008!YO$4) -> 0.0025821 | YO3: =GETPIVOTDATA("Sum of PMC",CMAQ_2008!$R$10,"JDAY",$C3,"SRC CAT",CMAQ_2008!YP$3,"SRC REGION",CMAQ_2008!YP$4) -> 0.055031 | YP3: =GETPIVOTDATA("Sum of PMC",CMAQ_2008!$R$10,"JDAY",$C3,"SRC CAT",CMAQ_2008!YQ$3,"SRC REGION",CMAQ_2008!YQ$4) -> 0.016203 | YQ3: =GETPIVOTDATA("Sum of PMC",CMAQ_2008!$R$10,"JDAY",$C3,"SRC CAT",CMAQ_2008!YR$3,"SRC REGION",CMAQ_2008!YR$4) -> 0.026592 | YR3: =GETPIVOTDATA("Sum of PMC",CMAQ_2008!$R$10,"JDAY",$C3,"SRC CAT",CMAQ_2008!YS$3,"SRC REGION",CMAQ_2008!YS$4) -> 0.25184 | YS3: =GETPIVOTDATA("Sum of PMC",CMAQ_2008!$R$10,"JDAY",$C3,"SRC CAT",CMAQ_2008!YT$3,"SRC REGION",CMAQ_2008!YT$4) -> 7.6144e-05 | YT3: =GETPIVOTDATA("Sum of PMC",CMAQ_2008!$R$10,"JDAY",$C3,"SRC CAT",CMAQ_2008!YU$3,"SRC REGION",CMAQ_2008!YU$4) -> 0.0010466 | YU3: =GETPIVOTDATA("Sum of PMC",CMAQ_2008!$R$10,"JDAY",$C3,"SRC CAT",CMAQ_2008!YV$3,"SRC REGION",CMAQ_2008!YV$4) -> 9.6806e-05 | YV3: =GETPIVOTDATA("Sum of PMC",CMAQ_2008!$R$10,"JDAY",$C3,"SRC CAT",CMAQ_2008!YW$3,"SRC REGION",CMAQ_2008!YW$4) -> 2.7359e-05 | YW3: =GETPIVOTDATA("Sum of PMC",CMAQ_2008!$R$10,"JDAY",$C3,"SRC CAT",CMAQ_2008!YX$3,"SRC REGION",CMAQ_2008!YX$4) -> 0.16227 | YX3: =GETPIVOTDATA("Sum of PMC",CMAQ_2008!$R$10,"JDAY",$C3,"SRC CAT",CMAQ_2008!YY$3,"SRC REGION",CMAQ_2008!YY$4) -> 1.1264e-07 | YY3: =GETPIVOTDATA("Sum of PMC",CMAQ_2008!$R$10,"JDAY",$C3,"SRC CAT",CMAQ_2008!YZ$3,"SRC REGION",CMAQ_2008!YZ$4) -> 1.8878e-06 | YZ3: =GETPIVOTDATA("Sum of PMC",CMAQ_2008!$R$10,"JDAY",$C3,"SRC CAT",CMAQ_2008!ZA$3,"SRC REGION",CMAQ_2008!ZA$4) -> 0.2035 | ZA3: =GETPIVOTDATA("Sum of PMC",CMAQ_2008!$R$10,"JDAY",$C3,"SRC CAT",CMAQ_2008!ZB$3,"SRC REGION",CMAQ_2008!ZB$4) -> 7.144e-05
A4: =VLOOKUP(B4,ClassIareas_Mass2008!A:B,2,FALSE) -> AR | B4: =B3 -> CACR1 | C4: 2008003 | D4: 2008-01-03 | E4: 1 | F4: =VLOOKUP(B4&"_"&E4,ClassIareas_Mass2008!F:L,4,FALSE) -> 11 | G4: =VLOOKUP(B4&"_"&E4,ClassIareas_Mass2008!F:L,5,FALSE) -> 3.85 | H4: =VLOOKUP(B4&"_"&E4,ClassIareas_Mass2008!F:L,6,FALSE) -> 2.77 | I4: =VLOOKUP(B4&"_"&E4,ClassIareas_Mass2008!F:L,7,FALSE) -> 3.9 | J4: =IFERROR(VLOOKUP(B4&"_"&C4,ClassIareas_Mass2008!H:T,6,FALSE),"") ->  | K4: =IFERROR(VLOOKUP(B4&"_"&C4,ClassIareas_Mass2008!H:T,7,FALSE),"") ->  | L4: =IFERROR(VLOOKUP(B4&"_"&C4,ClassIareas_Mass2008!H:T,8,FALSE),"") ->  | M4: =IFERROR(VLOOKUP(B4&"_"&C4,ClassIareas_Mass2008!H:T,9,FALSE),"") ->  | N4: =IFERROR(VLOOKUP(B4&"_"&C4,ClassIareas_Mass2008!H:T,10,FALSE),"") ->  | O4: =IFERROR(VLOOKUP(B4&"_"&C4,ClassIareas_Mass2008!H:T,11,FALSE),"") ->  | P4: =IFERROR(VLOOKUP(B4&"_"&C4,ClassIareas_Mass2008!H:T,12,FALSE),"") ->  | Q4: =IFERROR(VLOOKUP(B4&"_"&C4,ClassIareas_Mass2008!H:T,13,FALSE),"") ->  | R4: =GETPIVOTDATA("Sum of SO4",CMAQ_2008!$R$10,"JDAY",$C4,"SRC CAT","TOTAL","SRC REGION","TOTAL") -> 0.73796 | S4: =GETPIVOTDATA("Sum of NO3",CMAQ_2008!$R$10,"JDAY",$C4,"SRC CAT","TOTAL","SRC REGION","TOTAL") -> 2.6558 | T4: =GETPIVOTDATA("Sum of NH4",CMAQ_2008!$R$10,"JDAY",$C4,"SRC CAT","TOTAL","SRC REGION","TOTAL") -> 0.97091 | U4: =GETPIVOTDATA("Sum of EC",CMAQ_2008!$R$10,"JDAY",$C4,"SRC CAT","TOTAL","SRC REGION","TOTAL") -> 0.24762 | V4: =GETPIVOTDATA("Sum of POA",CMAQ_2008!$R$10,"JDAY",$C4,"SRC CAT","TOTAL","SRC REGION","TOTAL") -> 0.73327 | W4: =GETPIVOTDATA("Sum of OPM25",CMAQ_2008!$R$10,"JDAY",$C4,"SRC CAT","TOTAL","SRC REGION","TOTAL") -> 1.6941 | X4: =GETPIVOTDATA("Sum of PMC",CMAQ_2008!$R$10,"JDAY",$C4,"SRC CAT","TOTAL","SRC REGION","TOTAL") -> 1.497 | AA4: =GETPIVOTDATA("Sum of SSA",CMAQ_2008!$R$10,"JDAY",$C4,"SRC CAT","TOTAL","SRC REGION","TOTAL") -> 0.10093 | AB4: =GETPIVOTDATA("Sum of SOAA",CMAQ_2008!$R$10,"JDAY",$C4,"SRC CAT","TOTAL","SRC REGION","TOTAL") -> 0.021228 | AC4: =GETPIVOTDATA("Sum of SOAB",CMAQ_2008!$R$10,"JDAY",$C4,"SRC CAT","TOTAL","SRC REGION","TOTAL") -> 0.19526 | AE4: =GETPIVOTDATA("Sum of SO4",CMAQ_2008!$R$10,"JDAY",$C4,"SRC CAT",CMAQ_2008!AF$3,"SRC REGION",CMAQ_2008!AF$4) -> 0.0002762 | AF4: =GETPIVOTDATA("Sum of SO4",CMAQ_2008!$R$10,"JDAY",$C4,"SRC CAT",CMAQ_2008!AG$3,"SRC REGION",CMAQ_2008!AG$4) -> 3.7111e-14 | AG4: =GETPIVOTDATA("Sum of SO4",CMAQ_2008!$R$10,"JDAY",$C4,"SRC CAT",CMAQ_2008!AH$3,"SRC REGION",CMAQ_2008!AH$4) -> 1.5312e-07 | AH4: =GETPIVOTDATA("Sum of SO4",CMAQ_2008!$R$10,"JDAY",$C4,"SRC CAT",CMAQ_2008!AI$3,"SRC REGION",CMAQ_2008!AI$4) -> 3.7111e-14 | AI4: =GETPIVOTDATA("Sum of SO4",CMAQ_2008!$R$10,"JDAY",$C4,"SRC CAT",CMAQ_2008!AJ$3,"SRC REGION",CMAQ_2008!AJ$4) -> 3.7111e-14 | AJ4: =GETPIVOTDATA("Sum of SO4",CMAQ_2008!$R$10,"JDAY",$C4,"SRC CAT",CMAQ_2008!AK$3,"SRC REGION",CMAQ_2008!AK$4) -> 3.7111e-14 | AK4: =GETPIVOTDATA("Sum of SO4",CMAQ_2008!$R$10,"JDAY",$C4,"SRC CAT",CMAQ_2008!AL$3,"SRC REGION",CMAQ_2008!AL$4) -> 3.7111e-14 | AL4: =GETPIVOTDATA("Sum of SO4",CMAQ_2008!$R$10,"JDAY",$C4,"SRC CAT",CMAQ_2008!AM$3,"SRC REGION",CMAQ_2008!AM$4) -> 3.7111e-14 | AM4: =GETPIVOTDATA("Sum of SO4",CMAQ_2008!$R$10,"JDAY",$C4,"SRC CAT",CMAQ_2008!AN$3,"SRC REGION",CMAQ_2008!AN$4) -> 1.2006e-05 | AN4: =GETPIVOTDATA("Sum of SO4",CMAQ_2008!$R$10,"JDAY",$C4,"SRC CAT",CMAQ_2008!AO$3,"SRC REGION",CMAQ_2008!AO$4) -> 3.9759e-05 | AO4: =GETPIVOTDATA("Sum of SO4",CMAQ_2008!$R$10,"JDAY",$C4,"SRC CAT",CMAQ_2008!AP$3,"SRC REGION",CMAQ_2008!AP$4) -> 3.7111e-14 | AP4: =GETPIVOTDATA("Sum of SO4",CMAQ_2008!$R$10,"JDAY",$C4,"SRC CAT",CMAQ_2008!AQ$3,"SRC REGION",CMAQ_2008!AQ$4) -> 3.7111e-14 | AQ4: =GETPIVOTDATA("Sum of SO4",CMAQ_2008!$R$10,"JDAY",$C4,"SRC CAT",CMAQ_2008!AR$3,"SRC REGION",CMAQ_2008!AR$4) -> 3.7111e-14 | AR4: =GETPIVOTDATA("Sum of SO4",CMAQ_2008!$R$10,"JDAY",$C4,"SRC CAT",CMAQ_2008!AS$3,"SRC REGION",CMAQ_2008!AS$4) -> 3.7111e-14 | AS4: =GETPIVOTDATA("Sum of SO4",CMAQ_2008!$R$10,"JDAY",$C4,"SRC CAT",CMAQ_2008!AT$3,"SRC REGION",CMAQ_2008!AT$4) -> 3.7111e-14 | AT4: =GETPIVOTDATA("Sum of SO4",CMAQ_2008!$R$10,"JDAY",$C4,"SRC CAT",CMAQ_2008!AU$3,"SRC REGION",CMAQ_2008!AU$4) -> 1.3453e-07 | AU4: =GETPIVOTDATA("Sum of SO4",CMAQ_2008!$R$10,"JDAY",$C4,"SRC CAT",CMAQ_2008!AV$3,"SRC REGION",CMAQ_2008!AV$4) -> 5.547e-08 | AV4: =GETPIVOTDATA("Sum of SO4",CMAQ_2008!$R$10,"JDAY",$C4,"SRC CAT",CMAQ_2008!AW$3,"SRC REGION",CMAQ_2008!AW$4) -> 3.7111e-14 | AW4: =GETPIVOTDATA("Sum of SO4",CMAQ_2008!$R$10,"JDAY",$C4,"SRC CAT",CMAQ_2008!AX$3,"SRC REGION",CMAQ_2008!AX$4) -> 0.00093113 | AX4: =GETPIVOTDATA("Sum of SO4",CMAQ_2008!$R$10,"JDAY",$C4,"SRC CAT",CMAQ_2008!AY$3,"SRC REGION",CMAQ_2008!AY$4) -> 5.1933e-09 | AY4: =GETPIVOTDATA("Sum of SO4",CMAQ_2008!$R$10,"JDAY",$C4,"SRC CAT",CMAQ_2008!AZ$3,"SRC REGION",CMAQ_2008!AZ$4) -> 0.0055475 | AZ4: =GETPIVOTDATA("Sum of SO4",CMAQ_2008!$R$10,"JDAY",$C4,"SRC CAT",CMAQ_2008!BA$3,"SRC REGION",CMAQ_2008!BA$4) -> 5.863e-05 | BA4: =GETPIVOTDATA("Sum of SO4",CMAQ_2008!$R$10,"JDAY",$C4,"SRC CAT",CMAQ_2008!BB$3,"SRC REGION",CMAQ_2008!BB$4) -> 3.7111e-14 | BB4: =GETPIVOTDATA("Sum of SO4",CMAQ_2008!$R$10,"JDAY",$C4,"SRC CAT",CMAQ_2008!BC$3,"SRC REGION",CMAQ_2008!BC$4) -> 5.8062e-10 | BC4: =GETPIVOTDATA("Sum of SO4",CMAQ_2008!$R$10,"JDAY",$C4,"SRC CAT",CMAQ_2008!BD$3,"SRC REGION",CMAQ_2008!BD$4) -> 2.1581e-07 | BD4: =GETPIVOTDATA("Sum of SO4",CMAQ_2008!$R$10,"JDAY",$C4,"SRC CAT",CMAQ_2008!BE$3,"SRC REGION",CMAQ_2008!BE$4) -> 8.1254e-06 | BE4: =GETPIVOTDATA("Sum of SO4",CMAQ_2008!$R$10,"JDAY",$C4,"SRC CAT",CMAQ_2008!BF$3,"SRC REGION",CMAQ_2008!BF$4) -> 3.7111e-14 | BF4: =GETPIVOTDATA("Sum of SO4",CMAQ_2008!$R$10,"JDAY",$C4,"SRC CAT",CMAQ_2008!BG$3,"SRC REGION",CMAQ_2008!BG$4) -> 3.7111e-14 | BG4: =GETPIVOTDATA("Sum of SO4",CMAQ_2008!$R$10,"JDAY",$C4,"SRC CAT",CMAQ_2008!BH$3,"SRC REGION",CMAQ_2008!BH$4) -> 8.6084e-05 | BH4: =GETPIVOTDATA("Sum of SO4",CMAQ_2008!$R$10,"JDAY",$C4,"SRC CAT",CMAQ_2008!BI$3,"SRC REGION",CMAQ_2008!BI$4) -> 3.7111e-14 | BI4: =GETPIVOTDATA("Sum of SO4",CMAQ_2008!$R$10,"JDAY",$C4,"SRC CAT",CMAQ_2008!BJ$3,"SRC REGION",CMAQ_2008!BJ$4) -> 3.7111e-14 | BJ4: =GETPIVOTDATA("Sum of SO4",CMAQ_2008!$R$10,"JDAY",$C4,"SRC CAT",CMAQ_2008!BK$3,"SRC REGION",CMAQ_2008!BK$4) -> 3.7111e-14 | BK4: =GETPIVOTDATA("Sum of SO4",CMAQ_2008!$R$10,"JDAY",$C4,"SRC CAT",CMAQ_2008!BL$3,"SRC REGION",CMAQ_2008!BL$4) -> 3.8927e-06 | BL4: =GETPIVOTDATA("Sum of SO4",CMAQ_2008!$R$10,"JDAY",$C4,"SRC CAT",CMAQ_2008!BM$3,"SRC REGION",CMAQ_2008!BM$4) -> 1.6069e-05 | BM4: =GETPIVOTDATA("Sum of SO4",CMAQ_2008!$R$10,"JDAY",$C4,"SRC CAT",CMAQ_2008!BN$3,"SRC REGION",CMAQ_2008!BN$4) -> 1.4626e-05 | BN4: =GETPIVOTDATA("Sum of SO4",CMAQ_2008!$R$10,"JDAY",$C4,"SRC CAT",CMAQ_2008!BO$3,"SRC REGION",CMAQ_2008!BO$4) -> 3.7111e-14 | BO4: =GETPIVOTDATA("Sum of SO4",CMAQ_2008!$R$10,"JDAY",$C4,"SRC CAT",CMAQ_2008!BP$3,"SRC REGION",CMAQ_2008!BP$4) -> 3.7111e-14 | BP4: =GETPIVOTDATA("Sum of SO4",CMAQ_2008!$R$10,"JDAY",$C4,"SRC CAT",CMAQ_2008!BQ$3,"SRC REGION",CMAQ_2008!BQ$4) -> 2.0554e-05 | BQ4: =GETPIVOTDATA("Sum of SO4",CMAQ_2008!$R$10,"JDAY",$C4,"SRC CAT",CMAQ_2008!BR$3,"SRC REGION",CMAQ_2008!BR$4) -> 3.7111e-14 | BR4: =GETPIVOTDATA("Sum of SO4",CMAQ_2008!$R$10,"JDAY",$C4,"SRC CAT",CMAQ_2008!BS$3,"SRC REGION",CMAQ_2008!BS$4) -> 0.00011257 | BS4: =GETPIVOTDATA("Sum of SO4",CMAQ_2008!$R$10,"JDAY",$C4,"SRC CAT",CMAQ_2008!BT$3,"SRC REGION",CMAQ_2008!BT$4) -> 3.7111e-14 | BT4: =GETPIVOTDATA("Sum of SO4",CMAQ_2008!$R$10,"JDAY",$C4,"SRC CAT",CMAQ_2008!BU$3,"SRC REGION",CMAQ_2008!BU$4) -> 3.7111e-14 | BU4: =GETPIVOTDATA("Sum of SO4",CMAQ_2008!$R$10,"JDAY",$C4,"SRC CAT",CMAQ_2008!BV$3,"SRC REGION",CMAQ_2008!BV$4) -> 0.0043298 | BV4: =GETPIVOTDATA("Sum of SO4",CMAQ_2008!$R$10,"JDAY",$C4,"SRC CAT",CMAQ_2008!BW$3,"SRC REGION",CMAQ_2008!BW$4) -> 8.9913e-10 | BW4: =GETPIVOTDATA("Sum of SO4",CMAQ_2008!$R$10,"JDAY",$C4,"SRC CAT",CMAQ_2008!BX$3,"SRC REGION",CMAQ_2008!BX$4) -> 3.7898e-08 | BX4: =GETPIVOTDATA("Sum of SO4",CMAQ_2008!$R$10,"JDAY",$C4,"SRC CAT",CMAQ_2008!BY$3,"SRC REGION",CMAQ_2008!BY$4) -> 2.153e-06 | BY4: =GETPIVOTDATA("Sum of SO4",CMAQ_2008!$R$10,"JDAY",$C4,"SRC CAT",CMAQ_2008!BZ$3,"SRC REGION",CMAQ_2008!BZ$4) -> 3.7111e-14 | BZ4: =GETPIVOTDATA("Sum of SO4",CMAQ_2008!$R$10,"JDAY",$C4,"SRC CAT",CMAQ_2008!CA$3,"SRC REGION",CMAQ_2008!CA$4) -> 3.7111e-14 | CA4: =GETPIVOTDATA("Sum of SO4",CMAQ_2008!$R$10,"JDAY",$C4,"SRC CAT",CMAQ_2008!CB$3,"SRC REGION",CMAQ_2008!CB$4) -> 8.4818e-05 | CB4: =GETPIVOTDATA("Sum of SO4",CMAQ_2008!$R$10,"JDAY",$C4,"SRC CAT",CMAQ_2008!CC$3,"SRC REGION",CMAQ_2008!CC$4) -> 0.00047475 | CC4: =GETPIVOTDATA("Sum of SO4",CMAQ_2008!$R$10,"JDAY",$C4,"SRC CAT",CMAQ_2008!CD$3,"SRC REGION",CMAQ_2008!CD$4) -> 3.7111e-14 | CD4: =GETPIVOTDATA("Sum of SO4",CMAQ_2008!$R$10,"JDAY",$C4,"SRC CAT",CMAQ_2008!CE$3,"SRC REGION",CMAQ_2008!CE$4) -> 3.7111e-14 | CE4: =GETPIVOTDATA("Sum of SO4",CMAQ_2008!$R$10,"JDAY",$C4,"SRC CAT",CMAQ_2008!CF$3,"SRC REGION",CMAQ_2008!CF$4) -> 1.1216e-05 | CF4: =GETPIVOTDATA("Sum of SO4",CMAQ_2008!$R$10,"JDAY",$C4,"SRC CAT",CMAQ_2008!CG$3,"SRC REGION",CMAQ_2008!CG$4) -> 7.1278e-06 | CG4: =GETPIVOTDATA("Sum of SO4",CMAQ_2008!$R$10,"JDAY",$C4,"SRC CAT",CMAQ_2008!CH$3,"SRC REGION",CMAQ_2008!CH$4) -> 1.6914e-05 | CH4: =GETPIVOTDATA("Sum of SO4",CMAQ_2008!$R$10,"JDAY",$C4,"SRC CAT",CMAQ_2008!CI$3,"SRC REGION",CMAQ_2008!CI$4) -> 1.6868e-06 | CI4: =GETPIVOTDATA("Sum of SO4",CMAQ_2008!$R$10,"JDAY",$C4,"SRC CAT",CMAQ_2008!CJ$3,"SRC REGION",CMAQ_2008!CJ$4) -> 3.7111e-14 | CJ4: =GETPIVOTDATA("Sum of SO4",CMAQ_2008!$R$10,"JDAY",$C4,"SRC CAT",CMAQ_2008!CK$3,"SRC REGION",CMAQ_2008!CK$4) -> 3.7111e-14 | CK4: =GETPIVOTDATA("Sum of SO4",CMAQ_2008!$R$10,"JDAY",$C4,"SRC CAT",CMAQ_2008!CL$3,"SRC REGION",CMAQ_2008!CL$4) -> 0.00035514 | CL4: =GETPIVOTDATA("Sum of SO4",CMAQ_2008!$R$10,"JDAY",$C4,"SRC CAT",CMAQ_2008!CM$3,"SRC REGION",CMAQ_2008!CM$4) -> 4.6113e-07 | CM4: =GETPIVOTDATA("Sum of SO4",CMAQ_2008!$R$10,"JDAY",$C4,"SRC CAT",CMAQ_2008!CN$3,"SRC REGION",CMAQ_2008!CN$4) -> 3.7111e-14 | CN4: =GETPIVOTDATA("Sum of SO4",CMAQ_2008!$R$10,"JDAY",$C4,"SRC CAT",CMAQ_2008!CO$3,"SRC REGION",CMAQ_2008!CO$4) -> 3.7111e-14 | CO4: =GETPIVOTDATA("Sum of SO4",CMAQ_2008!$R$10,"JDAY",$C4,"SRC CAT",CMAQ_2008!CP$3,"SRC REGION",CMAQ_2008!CP$4) -> 3.7111e-14 | CP4: =GETPIVOTDATA("Sum of SO4",CMAQ_2008!$R$10,"JDAY",$C4,"SRC CAT",CMAQ_2008!CQ$3,"SRC REGION",CMAQ_2008!CQ$4) -> 0.0022904 | CQ4: =GETPIVOTDATA("Sum of SO4",CMAQ_2008!$R$10,"JDAY",$C4,"SRC CAT",CMAQ_2008!CR$3,"SRC REGION",CMAQ_2008!CR$4) -> 3.7111e-14 | CR4: =GETPIVOTDATA("Sum of SO4",CMAQ_2008!$R$10,"JDAY",$C4,"SRC CAT",CMAQ_2008!CS$3,"SRC REGION",CMAQ_2008!CS$4) -> 9.0418e-08 | CS4: =GETPIVOTDATA("Sum of SO4",CMAQ_2008!$R$10,"JDAY",$C4,"SRC CAT",CMAQ_2008!CT$3,"SRC REGION",CMAQ_2008!CT$4) -> 1.9417e-07 | CT4: =GETPIVOTDATA("Sum of SO4",CMAQ_2008!$R$10,"JDAY",$C4,"SRC CAT",CMAQ_2008!CU$3,"SRC REGION",CMAQ_2008!CU$4) -> 3.7111e-14 | CU4: =GETPIVOTDATA("Sum of SO4",CMAQ_2008!$R$10,"JDAY",$C4,"SRC CAT",CMAQ_2008!CV$3,"SRC REGION",CMAQ_2008!CV$4) -> 3.7111e-14 | CV4: =GETPIVOTDATA("Sum of SO4",CMAQ_2008!$R$10,"JDAY",$C4,"SRC CAT",CMAQ_2008!CW$3,"SRC REGION",CMAQ_2008!CW$4) -> 1.0893e-05 | CW4: =GETPIVOTDATA("Sum of SO4",CMAQ_2008!$R$10,"JDAY",$C4,"SRC CAT",CMAQ_2008!CX$3,"SRC REGION",CMAQ_2008!CX$4) -> 3.2554e-05 | CX4: =GETPIVOTDATA("Sum of SO4",CMAQ_2008!$R$10,"JDAY",$C4,"SRC CAT",CMAQ_2008!CY$3,"SRC REGION",CMAQ_2008!CY$4) -> 3.7111e-14 | CY4: =GETPIVOTDATA("Sum of SO4",CMAQ_2008!$R$10,"JDAY",$C4,"SRC CAT",CMAQ_2008!CZ$3,"SRC REGION",CMAQ_2008!CZ$4) -> 3.7111e-14 | CZ4: =GETPIVOTDATA("Sum of SO4",CMAQ_2008!$R$10,"JDAY",$C4,"SRC CAT",CMAQ_2008!DA$3,"SRC REGION",CMAQ_2008!DA$4) -> 3.5448e-06 | DA4: =GETPIVOTDATA("Sum of SO4",CMAQ_2008!$R$10,"JDAY",$C4,"SRC CAT",CMAQ_2008!DB$3,"SRC REGION",CMAQ_2008!DB$4) -> 3.7111e-14 | DB4: =GETPIVOTDATA("Sum of SO4",CMAQ_2008!$R$10,"JDAY",$C4,"SRC CAT",CMAQ_2008!DC$3,"SRC REGION",CMAQ_2008!DC$4) -> 5.8348e-06 | DC4: =GETPIVOTDATA("Sum of SO4",CMAQ_2008!$R$10,"JDAY",$C4,"SRC CAT",CMAQ_2008!DD$3,"SRC REGION",CMAQ_2008!DD$4) -> 3.7111e-14 | DD4: =GETPIVOTDATA("Sum of SO4",CMAQ_2008!$R$10,"JDAY",$C4,"SRC CAT",CMAQ_2008!DE$3,"SRC REGION",CMAQ_2008!DE$4) -> 4.7817e-08 | DE4: =GETPIVOTDATA("Sum of SO4",CMAQ_2008!$R$10,"JDAY",$C4,"SRC CAT",CMAQ_2008!DF$3,"SRC REGION",CMAQ_2008!DF$4) -> 3.7111e-14 | DF4: =GETPIVOTDATA("Sum of SO4",CMAQ_2008!$R$10,"JDAY",$C4,"SRC CAT",CMAQ_2008!DG$3,"SRC REGION",CMAQ_2008!DG$4) -> 2.477e-07 | DG4: =GETPIVOTDATA("Sum of SO4",CMAQ_2008!$R$10,"JDAY",$C4,"SRC CAT",CMAQ_2008!DH$3,"SRC REGION",CMAQ_2008!DH$4) -> 3.7111e-14 | DH4: =GETPIVOTDATA("Sum of SO4",CMAQ_2008!$R$10,"JDAY",$C4,"SRC CAT",CMAQ_2008!DI$3,"SRC REGION",CMAQ_2008!DI$4) -> 0.00094391 | DI4: =GETPIVOTDATA("Sum of SO4",CMAQ_2008!$R$10,"JDAY",$C4,"SRC CAT",CMAQ_2008!DJ$3,"SRC REGION",CMAQ_2008!DJ$4) -> 6.6181e-10 | DJ4: =GETPIVOTDATA("Sum of SO4",CMAQ_2008!$R$10,"JDAY",$C4,"SRC CAT",CMAQ_2008!DK$3,"SRC REGION",CMAQ_2008!DK$4) -> 3.7111e-14 | DK4: =GETPIVOTDATA("Sum of SO4",CMAQ_2008!$R$10,"JDAY",$C4,"SRC CAT",CMAQ_2008!DL$3,"SRC REGION",CMAQ_2008!DL$4) -> 0.10803 | DL4: =GETPIVOTDATA("Sum of SO4",CMAQ_2008!$R$10,"JDAY",$C4,"SRC CAT",CMAQ_2008!DM$3,"SRC REGION",CMAQ_2008!DM$4) -> 8.303e-06 | DM4: =GETPIVOTDATA("Sum of SO4",CMAQ_2008!$R$10,"JDAY",$C4,"SRC CAT",CMAQ_2008!DN$3,"SRC REGION",CMAQ_2008!DN$4) -> 4.1944e-06 | DN4: =GETPIVOTDATA("Sum of SO4",CMAQ_2008!$R$10,"JDAY",$C4,"SRC CAT",CMAQ_2008!DO$3,"SRC REGION",CMAQ_2008!DO$4) -> 0.0013695 | DO4: =GETPIVOTDATA("Sum of SO4",CMAQ_2008!$R$10,"JDAY",$C4,"SRC CAT",CMAQ_2008!DP$3,"SRC REGION",CMAQ_2008!DP$4) -> 0.029534 | DP4: =GETPIVOTDATA("Sum of SO4",CMAQ_2008!$R$10,"JDAY",$C4,"SRC CAT",CMAQ_2008!DQ$3,"SRC REGION",CMAQ_2008!DQ$4) -> 0.0015348 | DQ4: =GETPIVOTDATA("Sum of SO4",CMAQ_2008!$R$10,"JDAY",$C4,"SRC CAT",CMAQ_2008!DR$3,"SRC REGION",CMAQ_2008!DR$4) -> 0.018239 | DR4: =GETPIVOTDATA("Sum of SO4",CMAQ_2008!$R$10,"JDAY",$C4,"SRC CAT",CMAQ_2008!DS$3,"SRC REGION",CMAQ_2008!DS$4) -> 0.033654 | DS4: =GETPIVOTDATA("Sum of SO4",CMAQ_2008!$R$10,"JDAY",$C4,"SRC CAT",CMAQ_2008!DT$3,"SRC REGION",CMAQ_2008!DT$4) -> 0.0022243 | DT4: =GETPIVOTDATA("Sum of SO4",CMAQ_2008!$R$10,"JDAY",$C4,"SRC CAT",CMAQ_2008!DU$3,"SRC REGION",CMAQ_2008!DU$4) -> 0.0059389 | DU4: =GETPIVOTDATA("Sum of SO4",CMAQ_2008!$R$10,"JDAY",$C4,"SRC CAT",CMAQ_2008!DV$3,"SRC REGION",CMAQ_2008!DV$4) -> 0.010301 | DV4: =GETPIVOTDATA("Sum of SO4",CMAQ_2008!$R$10,"JDAY",$C4,"SRC CAT",CMAQ_2008!DW$3,"SRC REGION",CMAQ_2008!DW$4) -> 0.045368 | DW4: =GETPIVOTDATA("Sum of SO4",CMAQ_2008!$R$10,"JDAY",$C4,"SRC CAT",CMAQ_2008!DX$3,"SRC REGION",CMAQ_2008!DX$4) -> 0.00048603 | DX4: =GETPIVOTDATA("Sum of SO4",CMAQ_2008!$R$10,"JDAY",$C4,"SRC CAT",CMAQ_2008!DY$3,"SRC REGION",CMAQ_2008!DY$4) -> 0.0092381 | DY4: =GETPIVOTDATA("Sum of SO4",CMAQ_2008!$R$10,"JDAY",$C4,"SRC CAT",CMAQ_2008!DZ$3,"SRC REGION",CMAQ_2008!DZ$4) -> 0.00013768 | DZ4: =GETPIVOTDATA("Sum of SO4",CMAQ_2008!$R$10,"JDAY",$C4,"SRC CAT",CMAQ_2008!EA$3,"SRC REGION",CMAQ_2008!EA$4) -> 0.00034043 | EA4: =GETPIVOTDATA("Sum of SO4",CMAQ_2008!$R$10,"JDAY",$C4,"SRC CAT",CMAQ_2008!EB$3,"SRC REGION",CMAQ_2008!EB$4) -> 0.0072087 | EB4: =GETPIVOTDATA("Sum of SO4",CMAQ_2008!$R$10,"JDAY",$C4,"SRC CAT",CMAQ_2008!EC$3,"SRC REGION",CMAQ_2008!EC$4) -> 3.6194e-05 | EC4: =GETPIVOTDATA("Sum of SO4",CMAQ_2008!$R$10,"JDAY",$C4,"SRC CAT",CMAQ_2008!ED$3,"SRC REGION",CMAQ_2008!ED$4) -> 0.18593 | ED4: =GETPIVOTDATA("Sum of SO4",CMAQ_2008!$R$10,"JDAY",$C4,"SRC CAT",CMAQ_2008!EE$3,"SRC REGION",CMAQ_2008!EE$4) -> 9.7493e-05 | EE4: =GETPIVOTDATA("Sum of SO4",CMAQ_2008!$R$10,"JDAY",$C4,"SRC CAT",CMAQ_2008!EF$3,"SRC REGION",CMAQ_2008!EF$4) -> 0.00034974 | EF4: =GETPIVOTDATA("Sum of SO4",CMAQ_2008!$R$10,"JDAY",$C4,"SRC CAT",CMAQ_2008!EG$3,"SRC REGION",CMAQ_2008!EG$4) -> 0.26032 | EG4: =GETPIVOTDATA("Sum of SO4",CMAQ_2008!$R$10,"JDAY",$C4,"SRC CAT",CMAQ_2008!EH$3,"SRC REGION",CMAQ_2008!EH$4) -> 0.0019127 | EI4: =GETPIVOTDATA("Sum of NO3",CMAQ_2008!$R$10,"JDAY",$C4,"SRC CAT",CMAQ_2008!EJ$3,"SRC REGION",CMAQ_2008!EJ$4) -> 0.0011889 | EJ4: =GETPIVOTDATA("Sum of NO3",CMAQ_2008!$R$10,"JDAY",$C4,"SRC CAT",CMAQ_2008!EK$3,"SRC REGION",CMAQ_2008!EK$4) -> 8.085e-09 | EK4: =GETPIVOTDATA("Sum of NO3",CMAQ_2008!$R$10,"JDAY",$C4,"SRC CAT",CMAQ_2008!EL$3,"SRC REGION",CMAQ_2008!EL$4) -> 7.3338e-07 | EL4: =GETPIVOTDATA("Sum of NO3",CMAQ_2008!$R$10,"JDAY",$C4,"SRC CAT",CMAQ_2008!EM$3,"SRC REGION",CMAQ_2008!EM$4) -> 2.2813e-08 | EM4: =GETPIVOTDATA("Sum of NO3",CMAQ_2008!$R$10,"JDAY",$C4,"SRC CAT",CMAQ_2008!EN$3,"SRC REGION",CMAQ_2008!EN$4) -> 1.4891e-05 | EN4: =GETPIVOTDATA("Sum of NO3",CMAQ_2008!$R$10,"JDAY",$C4,"SRC CAT",CMAQ_2008!EO$3,"SRC REGION",CMAQ_2008!EO$4) -> 3.4679e-07 | EO4: =GETPIVOTDATA("Sum of NO3",CMAQ_2008!$R$10,"JDAY",$C4,"SRC CAT",CMAQ_2008!EP$3,"SRC REGION",CMAQ_2008!EP$4) -> 1.2085e-05 | EP4: =GETPIVOTDATA("Sum of NO3",CMAQ_2008!$R$10,"JDAY",$C4,"SRC CAT",CMAQ_2008!EQ$3,"SRC REGION",CMAQ_2008!EQ$4) -> 0.00014591 | EQ4: =GETPIVOTDATA("Sum of NO3",CMAQ_2008!$R$10,"JDAY",$C4,"SRC CAT",CMAQ_2008!ER$3,"SRC REGION",CMAQ_2008!ER$4) -> 6.2932e-06 | ER4: =GETPIVOTDATA("Sum of NO3",CMAQ_2008!$R$10,"JDAY",$C4,"SRC CAT",CMAQ_2008!ES$3,"SRC REGION",CMAQ_2008!ES$4) -> 1.0856e-05 | ES4: =GETPIVOTDATA("Sum of NO3",CMAQ_2008!$R$10,"JDAY",$C4,"SRC CAT",CMAQ_2008!ET$3,"SRC REGION",CMAQ_2008!ET$4) -> 1.755e-07 | ET4: =GETPIVOTDATA("Sum of NO3",CMAQ_2008!$R$10,"JDAY",$C4,"SRC CAT",CMAQ_2008!EU$3,"SRC REGION",CMAQ_2008!EU$4) -> 3.455e-13 | EU4: =GETPIVOTDATA("Sum of NO3",CMAQ_2008!$R$10,"JDAY",$C4,"SRC CAT",CMAQ_2008!EV$3,"SRC REGION",CMAQ_2008!EV$4) -> 7.3132e-07 | EV4: =GETPIVOTDATA("Sum of NO3",CMAQ_2008!$R$10,"JDAY",$C4,"SRC CAT",CMAQ_2008!EW$3,"SRC REGION",CMAQ_2008!EW$4) -> 1.5779e-06 | EW4: =GETPIVOTDATA("Sum of NO3",CMAQ_2008!$R$10,"JDAY",$C4,"SRC CAT",CMAQ_2008!EX$3,"SRC REGION",CMAQ_2008!EX$4) -> 7.7994e-08 | EX4: =GETPIVOTDATA("Sum of NO3",CMAQ_2008!$R$10,"JDAY",$C4,"SRC CAT",CMAQ_2008!EY$3,"SRC REGION",CMAQ_2008!EY$4) -> 1.518e-08 | EY4: =GETPIVOTDATA("Sum of NO3",CMAQ_2008!$R$10,"JDAY",$C4,"SRC CAT",CMAQ_2008!EZ$3,"SRC REGION",CMAQ_2008!EZ$4) -> 3.6975e-05 | EZ4: =GETPIVOTDATA("Sum of NO3",CMAQ_2008!$R$10,"JDAY",$C4,"SRC CAT",CMAQ_2008!FA$3,"SRC REGION",CMAQ_2008!FA$4) -> 1.0716e-07 | FA4: =GETPIVOTDATA("Sum of NO3",CMAQ_2008!$R$10,"JDAY",$C4,"SRC CAT",CMAQ_2008!FB$3,"SRC REGION",CMAQ_2008!FB$4) -> 0.00012205 | FB4: =GETPIVOTDATA("Sum of NO3",CMAQ_2008!$R$10,"JDAY",$C4,"SRC CAT",CMAQ_2008!FC$3,"SRC REGION",CMAQ_2008!FC$4) -> 1.019e-07 | FC4: =GETPIVOTDATA("Sum of NO3",CMAQ_2008!$R$10,"JDAY",$C4,"SRC CAT",CMAQ_2008!FD$3,"SRC REGION",CMAQ_2008!FD$4) -> 0.002833 | FD4: =GETPIVOTDATA("Sum of NO3",CMAQ_2008!$R$10,"JDAY",$C4,"SRC CAT",CMAQ_2008!FE$3,"SRC REGION",CMAQ_2008!FE$4) -> 0.00053609 | FE4: =GETPIVOTDATA("Sum of NO3",CMAQ_2008!$R$10,"JDAY",$C4,"SRC CAT",CMAQ_2008!FF$3,"SRC REGION",CMAQ_2008!FF$4) -> 3.455e-13 | FF4: =GETPIVOTDATA("Sum of NO3",CMAQ_2008!$R$10,"JDAY",$C4,"SRC CAT",CMAQ_2008!FG$3,"SRC REGION",CMAQ_2008!FG$4) -> 1.4204e-09 | FG4: =GETPIVOTDATA("Sum of NO3",CMAQ_2008!$R$10,"JDAY",$C4,"SRC CAT",CMAQ_2008!FH$3,"SRC REGION",CMAQ_2008!FH$4) -> 1.0153e-06 | FH4: =GETPIVOTDATA("Sum of NO3",CMAQ_2008!$R$10,"JDAY",$C4,"SRC CAT",CMAQ_2008!FI$3,"SRC REGION",CMAQ_2008!FI$4) -> 0.00013326 | FI4: =GETPIVOTDATA("Sum of NO3",CMAQ_2008!$R$10,"JDAY",$C4,"SRC CAT",CMAQ_2008!FJ$3,"SRC REGION",CMAQ_2008!FJ$4) -> 3.455e-13 | FJ4: =GETPIVOTDATA("Sum of NO3",CMAQ_2008!$R$10,"JDAY",$C4,"SRC CAT",CMAQ_2008!FK$3,"SRC REGION",CMAQ_2008!FK$4) -> 3.455e-13 | FK4: =GETPIVOTDATA("Sum of NO3",CMAQ_2008!$R$10,"JDAY",$C4,"SRC CAT",CMAQ_2008!FL$3,"SRC REGION",CMAQ_2008!FL$4) -> 0.00090012 | FL4: =GETPIVOTDATA("Sum of NO3",CMAQ_2008!$R$10,"JDAY",$C4,"SRC CAT",CMAQ_2008!FM$3,"SRC REGION",CMAQ_2008!FM$4) -> 3.455e-13 | FM4: =GETPIVOTDATA("Sum of NO3",CMAQ_2008!$R$10,"JDAY",$C4,"SRC CAT",CMAQ_2008!FN$3,"SRC REGION",CMAQ_2008!FN$4) -> 3.455e-13 | FN4: =GETPIVOTDATA("Sum of NO3",CMAQ_2008!$R$10,"JDAY",$C4,"SRC CAT",CMAQ_2008!FO$3,"SRC REGION",CMAQ_2008!FO$4) -> 3.455e-13 | FO4: =GETPIVOTDATA("Sum of NO3",CMAQ_2008!$R$10,"JDAY",$C4,"SRC CAT",CMAQ_2008!FP$3,"SRC REGION",CMAQ_2008!FP$4) -> 2.0062e-05 | FP4: =GETPIVOTDATA("Sum of NO3",CMAQ_2008!$R$10,"JDAY",$C4,"SRC CAT",CMAQ_2008!FQ$3,"SRC REGION",CMAQ_2008!FQ$4) -> 0.00015762 | FQ4: =GETPIVOTDATA("Sum of NO3",CMAQ_2008!$R$10,"JDAY",$C4,"SRC CAT",CMAQ_2008!FR$3,"SRC REGION",CMAQ_2008!FR$4) -> 0.00024263 | FR4: =GETPIVOTDATA("Sum of NO3",CMAQ_2008!$R$10,"JDAY",$C4,"SRC CAT",CMAQ_2008!FS$3,"SRC REGION",CMAQ_2008!FS$4) -> 3.455e-13 | FS4: =GETPIVOTDATA("Sum of NO3",CMAQ_2008!$R$10,"JDAY",$C4,"SRC CAT",CMAQ_2008!FT$3,"SRC REGION",CMAQ_2008!FT$4) -> 3.455e-13 | FT4: =GETPIVOTDATA("Sum of NO3",CMAQ_2008!$R$10,"JDAY",$C4,"SRC CAT",CMAQ_2008!FU$3,"SRC REGION",CMAQ_2008!FU$4) -> 0.00010033 | FU4: =GETPIVOTDATA("Sum of NO3",CMAQ_2008!$R$10,"JDAY",$C4,"SRC CAT",CMAQ_2008!FV$3,"SRC REGION",CMAQ_2008!FV$4) -> 3.455e-13 | FV4: =GETPIVOTDATA("Sum of NO3",CMAQ_2008!$R$10,"JDAY",$C4,"SRC CAT",CMAQ_2008!FW$3,"SRC REGION",CMAQ_2008!FW$4) -> 0.00054379 | FW4: =GETPIVOTDATA("Sum of NO3",CMAQ_2008!$R$10,"JDAY",$C4,"SRC CAT",CMAQ_2008!FX$3,"SRC REGION",CMAQ_2008!FX$4) -> 3.455e-13 | FX4: =GETPIVOTDATA("Sum of NO3",CMAQ_2008!$R$10,"JDAY",$C4,"SRC CAT",CMAQ_2008!FY$3,"SRC REGION",CMAQ_2008!FY$4) -> 3.455e-13 | FY4: =GETPIVOTDATA("Sum of NO3",CMAQ_2008!$R$10,"JDAY",$C4,"SRC CAT",CMAQ_2008!FZ$3,"SRC REGION",CMAQ_2008!FZ$4) -> 0.011597 | FZ4: =GETPIVOTDATA("Sum of NO3",CMAQ_2008!$R$10,"JDAY",$C4,"SRC CAT",CMAQ_2008!GA$3,"SRC REGION",CMAQ_2008!GA$4) -> 1.6509e-09 | GA4: =GETPIVOTDATA("Sum of NO3",CMAQ_2008!$R$10,"JDAY",$C4,"SRC CAT",CMAQ_2008!GB$3,"SRC REGION",CMAQ_2008!GB$4) -> 3.6537e-07 | GB4: =GETPIVOTDATA("Sum of NO3",CMAQ_2008!$R$10,"JDAY",$C4,"SRC CAT",CMAQ_2008!GC$3,"SRC REGION",CMAQ_2008!GC$4) -> 5.6438e-06 | GC4: =GETPIVOTDATA("Sum of NO3",CMAQ_2008!$R$10,"JDAY",$C4,"SRC CAT",CMAQ_2008!GD$3,"SRC REGION",CMAQ_2008!GD$4) -> 3.455e-13 | GD4: =GETPIVOTDATA("Sum of NO3",CMAQ_2008!$R$10,"JDAY",$C4,"SRC CAT",CMAQ_2008!GE$3,"SRC REGION",CMAQ_2008!GE$4) -> 3.455e-13 | GE4: =GETPIVOTDATA("Sum of NO3",CMAQ_2008!$R$10,"JDAY",$C4,"SRC CAT",CMAQ_2008!GF$3,"SRC REGION",CMAQ_2008!GF$4) -> 0.00029499 | GF4: =GETPIVOTDATA("Sum of NO3",CMAQ_2008!$R$10,"JDAY",$C4,"SRC CAT",CMAQ_2008!GG$3,"SRC REGION",CMAQ_2008!GG$4) -> 0.0020416 | GG4: =GETPIVOTDATA("Sum of NO3",CMAQ_2008!$R$10,"JDAY",$C4,"SRC CAT",CMAQ_2008!GH$3,"SRC REGION",CMAQ_2008!GH$4) -> 3.455e-13 | GH4: =GETPIVOTDATA("Sum of NO3",CMAQ_2008!$R$10,"JDAY",$C4,"SRC CAT",CMAQ_2008!GI$3,"SRC REGION",CMAQ_2008!GI$4) -> 3.455e-13 | GI4: =GETPIVOTDATA("Sum of NO3",CMAQ_2008!$R$10,"JDAY",$C4,"SRC CAT",CMAQ_2008!GJ$3,"SRC REGION",CMAQ_2008!GJ$4) -> 4.2748e-05 | GJ4: =GETPIVOTDATA("Sum of NO3",CMAQ_2008!$R$10,"JDAY",$C4,"SRC CAT",CMAQ_2008!GK$3,"SRC REGION",CMAQ_2008!GK$4) -> 4.1423e-05 | GK4: =GETPIVOTDATA("Sum of NO3",CMAQ_2008!$R$10,"JDAY",$C4,"SRC CAT",CMAQ_2008!GL$3,"SRC REGION",CMAQ_2008!GL$4) -> 9.2639e-05 | GL4: =GETPIVOTDATA("Sum of NO3",CMAQ_2008!$R$10,"JDAY",$C4,"SRC CAT",CMAQ_2008!GM$3,"SRC REGION",CMAQ_2008!GM$4) -> 4.4681e-05 | GM4: =GETPIVOTDATA("Sum of NO3",CMAQ_2008!$R$10,"JDAY",$C4,"SRC CAT",CMAQ_2008!GN$3,"SRC REGION",CMAQ_2008!GN$4) -> 3.455e-13 | GN4: =GETPIVOTDATA("Sum of NO3",CMAQ_2008!$R$10,"JDAY",$C4,"SRC CAT",CMAQ_2008!GO$3,"SRC REGION",CMAQ_2008!GO$4) -> 3.455e-13 | GO4: =GETPIVOTDATA("Sum of NO3",CMAQ_2008!$R$10,"JDAY",$C4,"SRC CAT",CMAQ_2008!GP$3,"SRC REGION",CMAQ_2008!GP$4) -> 0.00067407 | GP4: =GETPIVOTDATA("Sum of NO3",CMAQ_2008!$R$10,"JDAY",$C4,"SRC CAT",CMAQ_2008!GQ$3,"SRC REGION",CMAQ_2008!GQ$4) -> 9.6501e-07 | GQ4: =GETPIVOTDATA("Sum of NO3",CMAQ_2008!$R$10,"JDAY",$C4,"SRC CAT",CMAQ_2008!GR$3,"SRC REGION",CMAQ_2008!GR$4) -> 3.455e-13 | GR4: =GETPIVOTDATA("Sum of NO3",CMAQ_2008!$R$10,"JDAY",$C4,"SRC CAT",CMAQ_2008!GS$3,"SRC REGION",CMAQ_2008!GS$4) -> 3.455e-13 | GS4: =GETPIVOTDATA("Sum of NO3",CMAQ_2008!$R$10,"JDAY",$C4,"SRC CAT",CMAQ_2008!GT$3,"SRC REGION",CMAQ_2008!GT$4) -> 3.455e-13 | GT4: =GETPIVOTDATA("Sum of NO3",CMAQ_2008!$R$10,"JDAY",$C4,"SRC CAT",CMAQ_2008!GU$3,"SRC REGION",CMAQ_2008!GU$4) -> 0.01163 | GU4: =GETPIVOTDATA("Sum of NO3",CMAQ_2008!$R$10,"JDAY",$C4,"SRC CAT",CMAQ_2008!GV$3,"SRC REGION",CMAQ_2008!GV$4) -> 3.455e-13 | GV4: =GETPIVOTDATA("Sum of NO3",CMAQ_2008!$R$10,"JDAY",$C4,"SRC CAT",CMAQ_2008!GW$3,"SRC REGION",CMAQ_2008!GW$4) -> 1.9911e-07 | GW4: =GETPIVOTDATA("Sum of NO3",CMAQ_2008!$R$10,"JDAY",$C4,"SRC CAT",CMAQ_2008!GX$3,"SRC REGION",CMAQ_2008!GX$4) -> 6.0574e-07 | GX4: =GETPIVOTDATA("Sum of NO3",CMAQ_2008!$R$10,"JDAY",$C4,"SRC CAT",CMAQ_2008!GY$3,"SRC REGION",CMAQ_2008!GY$4) -> 3.455e-13 | GY4: =GETPIVOTDATA("Sum of NO3",CMAQ_2008!$R$10,"JDAY",$C4,"SRC CAT",CMAQ_2008!GZ$3,"SRC REGION",CMAQ_2008!GZ$4) -> 3.455e-13 | GZ4: =GETPIVOTDATA("Sum of NO3",CMAQ_2008!$R$10,"JDAY",$C4,"SRC CAT",CMAQ_2008!HA$3,"SRC REGION",CMAQ_2008!HA$4) -> 0.00014469 | HA4: =GETPIVOTDATA("Sum of NO3",CMAQ_2008!$R$10,"JDAY",$C4,"SRC CAT",CMAQ_2008!HB$3,"SRC REGION",CMAQ_2008!HB$4) -> 0.00014071 | HB4: =GETPIVOTDATA("Sum of NO3",CMAQ_2008!$R$10,"JDAY",$C4,"SRC CAT",CMAQ_2008!HC$3,"SRC REGION",CMAQ_2008!HC$4) -> 3.455e-13 | HC4: =GETPIVOTDATA("Sum of NO3",CMAQ_2008!$R$10,"JDAY",$C4,"SRC CAT",CMAQ_2008!HD$3,"SRC REGION",CMAQ_2008!HD$4) -> 3.455e-13 | HD4: =GETPIVOTDATA("Sum of NO3",CMAQ_2008!$R$10,"JDAY",$C4,"SRC CAT",CMAQ_2008!HE$3,"SRC REGION",CMAQ_2008!HE$4) -> 1.3481e-05 | HE4: =GETPIVOTDATA("Sum of NO3",CMAQ_2008!$R$10,"JDAY",$C4,"SRC CAT",CMAQ_2008!HF$3,"SRC REGION",CMAQ_2008!HF$4) -> 3.455e-13 | HF4: =GETPIVOTDATA("Sum of NO3",CMAQ_2008!$R$10,"JDAY",$C4,"SRC CAT",CMAQ_2008!HG$3,"SRC REGION",CMAQ_2008!HG$4) -> 3.1429e-05 | HG4: =GETPIVOTDATA("Sum of NO3",CMAQ_2008!$R$10,"JDAY",$C4,"SRC CAT",CMAQ_2008!HH$3,"SRC REGION",CMAQ_2008!HH$4) -> 3.455e-13 | HH4: =GETPIVOTDATA("Sum of NO3",CMAQ_2008!$R$10,"JDAY",$C4,"SRC CAT",CMAQ_2008!HI$3,"SRC REGION",CMAQ_2008!HI$4) -> 1.5434e-07 | HI4: =GETPIVOTDATA("Sum of NO3",CMAQ_2008!$R$10,"JDAY",$C4,"SRC CAT",CMAQ_2008!HJ$3,"SRC REGION",CMAQ_2008!HJ$4) -> 3.455e-13 | HJ4: =GETPIVOTDATA("Sum of NO3",CMAQ_2008!$R$10,"JDAY",$C4,"SRC CAT",CMAQ_2008!HK$3,"SRC REGION",CMAQ_2008!HK$4) -> 7.2803e-07 | HK4: =GETPIVOTDATA("Sum of NO3",CMAQ_2008!$R$10,"JDAY",$C4,"SRC CAT",CMAQ_2008!HL$3,"SRC REGION",CMAQ_2008!HL$4) -> 3.455e-13 | HL4: =GETPIVOTDATA("Sum of NO3",CMAQ_2008!$R$10,"JDAY",$C4,"SRC CAT",CMAQ_2008!HM$3,"SRC REGION",CMAQ_2008!HM$4) -> 0.0021362 | HM4: =GETPIVOTDATA("Sum of NO3",CMAQ_2008!$R$10,"JDAY",$C4,"SRC CAT",CMAQ_2008!HN$3,"SRC REGION",CMAQ_2008!HN$4) -> 2.2718e-09 | HN4: =GETPIVOTDATA("Sum of NO3",CMAQ_2008!$R$10,"JDAY",$C4,"SRC CAT",CMAQ_2008!HO$3,"SRC REGION",CMAQ_2008!HO$4) -> 3.455e-13 | HO4: =GETPIVOTDATA("Sum of NO3",CMAQ_2008!$R$10,"JDAY",$C4,"SRC CAT",CMAQ_2008!HP$3,"SRC REGION",CMAQ_2008!HP$4) -> 1.2617 | HP4: =GETPIVOTDATA("Sum of NO3",CMAQ_2008!$R$10,"JDAY",$C4,"SRC CAT",CMAQ_2008!HQ$3,"SRC REGION",CMAQ_2008!HQ$4) -> 9.6005e-06 | HQ4: =GETPIVOTDATA("Sum of NO3",CMAQ_2008!$R$10,"JDAY",$C4,"SRC CAT",CMAQ_2008!HR$3,"SRC REGION",CMAQ_2008!HR$4) -> 8.8762e-05 | HR4: =GETPIVOTDATA("Sum of NO3",CMAQ_2008!$R$10,"JDAY",$C4,"SRC CAT",CMAQ_2008!HS$3,"SRC REGION",CMAQ_2008!HS$4) -> 0.0029679 | HS4: =GETPIVOTDATA("Sum of NO3",CMAQ_2008!$R$10,"JDAY",$C4,"SRC CAT",CMAQ_2008!HT$3,"SRC REGION",CMAQ_2008!HT$4) -> 0.19004 | HT4: =GETPIVOTDATA("Sum of NO3",CMAQ_2008!$R$10,"JDAY",$C4,"SRC CAT",CMAQ_2008!HU$3,"SRC REGION",CMAQ_2008!HU$4) -> 0.0042661 | HU4: =GETPIVOTDATA("Sum of NO3",CMAQ_2008!$R$10,"JDAY",$C4,"SRC CAT",CMAQ_2008!HV$3,"SRC REGION",CMAQ_2008!HV$4) -> 0.027971 | HV4: =GETPIVOTDATA("Sum of NO3",CMAQ_2008!$R$10,"JDAY",$C4,"SRC CAT",CMAQ_2008!HW$3,"SRC REGION",CMAQ_2008!HW$4) -> 0.36522 | HW4: =GETPIVOTDATA("Sum of NO3",CMAQ_2008!$R$10,"JDAY",$C4,"SRC CAT",CMAQ_2008!HX$3,"SRC REGION",CMAQ_2008!HX$4) -> 0.0055795 | HX4: =GETPIVOTDATA("Sum of NO3",CMAQ_2008!$R$10,"JDAY",$C4,"SRC CAT",CMAQ_2008!HY$3,"SRC REGION",CMAQ_2008!HY$4) -> 0.020356 | HY4: =GETPIVOTDATA("Sum of NO3",CMAQ_2008!$R$10,"JDAY",$C4,"SRC CAT",CMAQ_2008!HZ$3,"SRC REGION",CMAQ_2008!HZ$4) -> 0.017196 | HZ4: =GETPIVOTDATA("Sum of NO3",CMAQ_2008!$R$10,"JDAY",$C4,"SRC CAT",CMAQ_2008!IA$3,"SRC REGION",CMAQ_2008!IA$4) -> 0.055 | IA4: =GETPIVOTDATA("Sum of NO3",CMAQ_2008!$R$10,"JDAY",$C4,"SRC CAT",CMAQ_2008!IB$3,"SRC REGION",CMAQ_2008!IB$4) -> 0.01312 | IB4: =GETPIVOTDATA("Sum of NO3",CMAQ_2008!$R$10,"JDAY",$C4,"SRC CAT",CMAQ_2008!IC$3,"SRC REGION",CMAQ_2008!IC$4) -> 0.10626 | IC4: =GETPIVOTDATA("Sum of NO3",CMAQ_2008!$R$10,"JDAY",$C4,"SRC CAT",CMAQ_2008!ID$3,"SRC REGION",CMAQ_2008!ID$4) -> 0.00023296 | ID4: =GETPIVOTDATA("Sum of NO3",CMAQ_2008!$R$10,"JDAY",$C4,"SRC CAT",CMAQ_2008!IE$3,"SRC REGION",CMAQ_2008!IE$4) -> 0.0013384 | IE4: =GETPIVOTDATA("Sum of NO3",CMAQ_2008!$R$10,"JDAY",$C4,"SRC CAT",CMAQ_2008!IF$3,"SRC REGION",CMAQ_2008!IF$4) -> 0.040621 | IF4: =GETPIVOTDATA("Sum of NO3",CMAQ_2008!$R$10,"JDAY",$C4,"SRC CAT",CMAQ_2008!IG$3,"SRC REGION",CMAQ_2008!IG$4) -> 6.3766e-05 | IG4: =GETPIVOTDATA("Sum of NO3",CMAQ_2008!$R$10,"JDAY",$C4,"SRC CAT",CMAQ_2008!IH$3,"SRC REGION",CMAQ_2008!IH$4) -> 0.33488 | IH4: =GETPIVOTDATA("Sum of NO3",CMAQ_2008!$R$10,"JDAY",$C4,"SRC CAT",CMAQ_2008!II$3,"SRC REGION",CMAQ_2008!II$4) -> 1.771e-05 | II4: =GETPIVOTDATA("Sum of NO3",CMAQ_2008!$R$10,"JDAY",$C4,"SRC CAT",CMAQ_2008!IJ$3,"SRC REGION",CMAQ_2008!IJ$4) -> 0.0011803 | IJ4: =GETPIVOTDATA("Sum of NO3",CMAQ_2008!$R$10,"JDAY",$C4,"SRC CAT",CMAQ_2008!IK$3,"SRC REGION",CMAQ_2008!IK$4) -> 0.17104 | IK4: =GETPIVOTDATA("Sum of NO3",CMAQ_2008!$R$10,"JDAY",$C4,"SRC CAT",CMAQ_2008!IL$3,"SRC REGION",CMAQ_2008!IL$4) -> 0.00062885 | IM4: =GETPIVOTDATA("Sum of POA",CMAQ_2008!$R$10,"JDAY",$C4,"SRC CAT",CMAQ_2008!IN$3,"SRC REGION",CMAQ_2008!IN$4) -> 1.6982e-16 | IN4: =GETPIVOTDATA("Sum of POA",CMAQ_2008!$R$10,"JDAY",$C4,"SRC CAT",CMAQ_2008!IO$3,"SRC REGION",CMAQ_2008!IO$4) -> 1.6982e-16 | IO4: =GETPIVOTDATA("Sum of POA",CMAQ_2008!$R$10,"JDAY",$C4,"SRC CAT",CMAQ_2008!IP$3,"SRC REGION",CMAQ_2008!IP$4) -> 1.6982e-16 | IP4: =GETPIVOTDATA("Sum of POA",CMAQ_2008!$R$10,"JDAY",$C4,"SRC CAT",CMAQ_2008!IQ$3,"SRC REGION",CMAQ_2008!IQ$4) -> 1.6982e-16 | IQ4: =GETPIVOTDATA("Sum of POA",CMAQ_2008!$R$10,"JDAY",$C4,"SRC CAT",CMAQ_2008!IR$3,"SRC REGION",CMAQ_2008!IR$4) -> 1.6982e-16 | IR4: =GETPIVOTDATA("Sum of POA",CMAQ_2008!$R$10,"JDAY",$C4,"SRC CAT",CMAQ_2008!IS$3,"SRC REGION",CMAQ_2008!IS$4) -> 1.6982e-16 | IS4: =GETPIVOTDATA("Sum of POA",CMAQ_2008!$R$10,"JDAY",$C4,"SRC CAT",CMAQ_2008!IT$3,"SRC REGION",CMAQ_2008!IT$4) -> 1.6982e-16 | IT4: =GETPIVOTDATA("Sum of POA",CMAQ_2008!$R$10,"JDAY",$C4,"SRC CAT",CMAQ_2008!IU$3,"SRC REGION",CMAQ_2008!IU$4) -> 1.6982e-16 | IU4: =GETPIVOTDATA("Sum of POA",CMAQ_2008!$R$10,"JDAY",$C4,"SRC CAT",CMAQ_2008!IV$3,"SRC REGION",CMAQ_2008!IV$4) -> 1.6982e-16 | IV4: =GETPIVOTDATA("Sum of POA",CMAQ_2008!$R$10,"JDAY",$C4,"SRC CAT",CMAQ_2008!IW$3,"SRC REGION",CMAQ_2008!IW$4) -> 1.6982e-16 | IW4: =GETPIVOTDATA("Sum of POA",CMAQ_2008!$R$10,"JDAY",$C4,"SRC CAT",CMAQ_2008!IX$3,"SRC REGION",CMAQ_2008!IX$4) -> 1.6982e-16 | IX4: =GETPIVOTDATA("Sum of POA",CMAQ_2008!$R$10,"JDAY",$C4,"SRC CAT",CMAQ_2008!IY$3,"SRC REGION",CMAQ_2008!IY$4) -> 1.6982e-16 | IY4: =GETPIVOTDATA("Sum of POA",CMAQ_2008!$R$10,"JDAY",$C4,"SRC CAT",CMAQ_2008!IZ$3,"SRC REGION",CMAQ_2008!IZ$4) -> 1.6982e-16 | IZ4: =GETPIVOTDATA("Sum of POA",CMAQ_2008!$R$10,"JDAY",$C4,"SRC CAT",CMAQ_2008!JA$3,"SRC REGION",CMAQ_2008!JA$4) -> 1.6982e-16 | JA4: =GETPIVOTDATA("Sum of POA",CMAQ_2008!$R$10,"JDAY",$C4,"SRC CAT",CMAQ_2008!JB$3,"SRC REGION",CMAQ_2008!JB$4) -> 1.6982e-16 | JB4: =GETPIVOTDATA("Sum of POA",CMAQ_2008!$R$10,"JDAY",$C4,"SRC CAT",CMAQ_2008!JC$3,"SRC REGION",CMAQ_2008!JC$4) -> 1.6982e-16 | JC4: =GETPIVOTDATA("Sum of POA",CMAQ_2008!$R$10,"JDAY",$C4,"SRC CAT",CMAQ_2008!JD$3,"SRC REGION",CMAQ_2008!JD$4) -> 1.6982e-16 | JD4: =GETPIVOTDATA("Sum of POA",CMAQ_2008!$R$10,"JDAY",$C4,"SRC CAT",CMAQ_2008!JE$3,"SRC REGION",CMAQ_2008!JE$4) -> 1.6982e-16 | JE4: =GETPIVOTDATA("Sum of POA",CMAQ_2008!$R$10,"JDAY",$C4,"SRC CAT",CMAQ_2008!JF$3,"SRC REGION",CMAQ_2008!JF$4) -> 1.6982e-16 | JF4: =GETPIVOTDATA("Sum of POA",CMAQ_2008!$R$10,"JDAY",$C4,"SRC CAT",CMAQ_2008!JG$3,"SRC REGION",CMAQ_2008!JG$4) -> 1.6982e-16 | JG4: =GETPIVOTDATA("Sum of POA",CMAQ_2008!$R$10,"JDAY",$C4,"SRC CAT",CMAQ_2008!JH$3,"SRC REGION",CMAQ_2008!JH$4) -> 1.6982e-16 | JH4: =GETPIVOTDATA("Sum of POA",CMAQ_2008!$R$10,"JDAY",$C4,"SRC CAT",CMAQ_2008!JI$3,"SRC REGION",CMAQ_2008!JI$4) -> 0.003881 | JI4: =GETPIVOTDATA("Sum of POA",CMAQ_2008!$R$10,"JDAY",$C4,"SRC CAT",CMAQ_2008!JJ$3,"SRC REGION",CMAQ_2008!JJ$4) -> 1.6982e-16 | JJ4: =GETPIVOTDATA("Sum of POA",CMAQ_2008!$R$10,"JDAY",$C4,"SRC CAT",CMAQ_2008!JK$3,"SRC REGION",CMAQ_2008!JK$4) -> 4.1866e-09 | JK4: =GETPIVOTDATA("Sum of POA",CMAQ_2008!$R$10,"JDAY",$C4,"SRC CAT",CMAQ_2008!JL$3,"SRC REGION",CMAQ_2008!JL$4) -> 2.229e-06 | JL4: =GETPIVOTDATA("Sum of POA",CMAQ_2008!$R$10,"JDAY",$C4,"SRC CAT",CMAQ_2008!JM$3,"SRC REGION",CMAQ_2008!JM$4) -> 0.00032642 | JM4: =GETPIVOTDATA("Sum of POA",CMAQ_2008!$R$10,"JDAY",$C4,"SRC CAT",CMAQ_2008!JN$3,"SRC REGION",CMAQ_2008!JN$4) -> 1.6982e-16 | JN4: =GETPIVOTDATA("Sum of POA",CMAQ_2008!$R$10,"JDAY",$C4,"SRC CAT",CMAQ_2008!JO$3,"SRC REGION",CMAQ_2008!JO$4) -> 1.6983e-16 | JO4: =GETPIVOTDATA("Sum of POA",CMAQ_2008!$R$10,"JDAY",$C4,"SRC CAT",CMAQ_2008!JP$3,"SRC REGION",CMAQ_2008!JP$4) -> 0.0051894 | JP4: =GETPIVOTDATA("Sum of POA",CMAQ_2008!$R$10,"JDAY",$C4,"SRC CAT",CMAQ_2008!JQ$3,"SRC REGION",CMAQ_2008!JQ$4) -> 1.6982e-16 | JQ4: =GETPIVOTDATA("Sum of POA",CMAQ_2008!$R$10,"JDAY",$C4,"SRC CAT",CMAQ_2008!JR$3,"SRC REGION",CMAQ_2008!JR$4) -> 1.6982e-16 | JR4: =GETPIVOTDATA("Sum of POA",CMAQ_2008!$R$10,"JDAY",$C4,"SRC CAT",CMAQ_2008!JS$3,"SRC REGION",CMAQ_2008!JS$4) -> 1.6982e-16 | JS4: =GETPIVOTDATA("Sum of POA",CMAQ_2008!$R$10,"JDAY",$C4,"SRC CAT",CMAQ_2008!JT$3,"SRC REGION",CMAQ_2008!JT$4) -> 3.2877e-05 | JT4: =GETPIVOTDATA("Sum of POA",CMAQ_2008!$R$10,"JDAY",$C4,"SRC CAT",CMAQ_2008!JU$3,"SRC REGION",CMAQ_2008!JU$4) -> 0.00044993 | JU4: =GETPIVOTDATA("Sum of POA",CMAQ_2008!$R$10,"JDAY",$C4,"SRC CAT",CMAQ_2008!JV$3,"SRC REGION",CMAQ_2008!JV$4) -> 0.00051997 | JV4: =GETPIVOTDATA("Sum of POA",CMAQ_2008!$R$10,"JDAY",$C4,"SRC CAT",CMAQ_2008!JW$3,"SRC REGION",CMAQ_2008!JW$4) -> 1.6982e-16 | JW4: =GETPIVOTDATA("Sum of POA",CMAQ_2008!$R$10,"JDAY",$C4,"SRC CAT",CMAQ_2008!JX$3,"SRC REGION",CMAQ_2008!JX$4) -> 1.6982e-16 | JX4: =GETPIVOTDATA("Sum of POA",CMAQ_2008!$R$10,"JDAY",$C4,"SRC CAT",CMAQ_2008!JY$3,"SRC REGION",CMAQ_2008!JY$4) -> 0.0013158 | JY4: =GETPIVOTDATA("Sum of POA",CMAQ_2008!$R$10,"JDAY",$C4,"SRC CAT",CMAQ_2008!JZ$3,"SRC REGION",CMAQ_2008!JZ$4) -> 1.6982e-16 | JZ4: =GETPIVOTDATA("Sum of POA",CMAQ_2008!$R$10,"JDAY",$C4,"SRC CAT",CMAQ_2008!KA$3,"SRC REGION",CMAQ_2008!KA$4) -> 0.002425 | KA4: =GETPIVOTDATA("Sum of POA",CMAQ_2008!$R$10,"JDAY",$C4,"SRC CAT",CMAQ_2008!KB$3,"SRC REGION",CMAQ_2008!KB$4) -> 1.6982e-16 | KB4: =GETPIVOTDATA("Sum of POA",CMAQ_2008!$R$10,"JDAY",$C4,"SRC CAT",CMAQ_2008!KC$3,"SRC REGION",CMAQ_2008!KC$4) -> 1.6982e-16 | KC4: =GETPIVOTDATA("Sum of POA",CMAQ_2008!$R$10,"JDAY",$C4,"SRC CAT",CMAQ_2008!KD$3,"SRC REGION",CMAQ_2008!KD$4) -> 0.099555 | KD4: =GETPIVOTDATA("Sum of POA",CMAQ_2008!$R$10,"JDAY",$C4,"SRC CAT",CMAQ_2008!KE$3,"SRC REGION",CMAQ_2008!KE$4) -> 5.1583e-09 | KE4: =GETPIVOTDATA("Sum of POA",CMAQ_2008!$R$10,"JDAY",$C4,"SRC CAT",CMAQ_2008!KF$3,"SRC REGION",CMAQ_2008!KF$4) -> 2.1409e-07 | KF4: =GETPIVOTDATA("Sum of POA",CMAQ_2008!$R$10,"JDAY",$C4,"SRC CAT",CMAQ_2008!KG$3,"SRC REGION",CMAQ_2008!KG$4) -> 1.8596e-05 | KG4: =GETPIVOTDATA("Sum of POA",CMAQ_2008!$R$10,"JDAY",$C4,"SRC CAT",CMAQ_2008!KH$3,"SRC REGION",CMAQ_2008!KH$4) -> 1.6982e-16 | KH4: =GETPIVOTDATA("Sum of POA",CMAQ_2008!$R$10,"JDAY",$C4,"SRC CAT",CMAQ_2008!KI$3,"SRC REGION",CMAQ_2008!KI$4) -> 1.6982e-16 | KI4: =GETPIVOTDATA("Sum of POA",CMAQ_2008!$R$10,"JDAY",$C4,"SRC CAT",CMAQ_2008!KJ$3,"SRC REGION",CMAQ_2008!KJ$4) -> 0.00085893 | KJ4: =GETPIVOTDATA("Sum of POA",CMAQ_2008!$R$10,"JDAY",$C4,"SRC CAT",CMAQ_2008!KK$3,"SRC REGION",CMAQ_2008!KK$4) -> 0.010351 | KK4: =GETPIVOTDATA("Sum of POA",CMAQ_2008!$R$10,"JDAY",$C4,"SRC CAT",CMAQ_2008!KL$3,"SRC REGION",CMAQ_2008!KL$4) -> 1.6982e-16 | KL4: =GETPIVOTDATA("Sum of POA",CMAQ_2008!$R$10,"JDAY",$C4,"SRC CAT",CMAQ_2008!KM$3,"SRC REGION",CMAQ_2008!KM$4) -> 1.6983e-16 | KM4: =GETPIVOTDATA("Sum of POA",CMAQ_2008!$R$10,"JDAY",$C4,"SRC CAT",CMAQ_2008!KN$3,"SRC REGION",CMAQ_2008!KN$4) -> 0.00011002 | KN4: =GETPIVOTDATA("Sum of POA",CMAQ_2008!$R$10,"JDAY",$C4,"SRC CAT",CMAQ_2008!KO$3,"SRC REGION",CMAQ_2008!KO$4) -> 6.8724e-05 | KO4: =GETPIVOTDATA("Sum of POA",CMAQ_2008!$R$10,"JDAY",$C4,"SRC CAT",CMAQ_2008!KP$3,"SRC REGION",CMAQ_2008!KP$4) -> 8.6475e-05 | KP4: =GETPIVOTDATA("Sum of POA",CMAQ_2008!$R$10,"JDAY",$C4,"SRC CAT",CMAQ_2008!KQ$3,"SRC REGION",CMAQ_2008!KQ$4) -> 5.3934e-05 | KQ4: =GETPIVOTDATA("Sum of POA",CMAQ_2008!$R$10,"JDAY",$C4,"SRC CAT",CMAQ_2008!KR$3,"SRC REGION",CMAQ_2008!KR$4) -> 1.6982e-16 | KR4: =GETPIVOTDATA("Sum of POA",CMAQ_2008!$R$10,"JDAY",$C4,"SRC CAT",CMAQ_2008!KS$3,"SRC REGION",CMAQ_2008!KS$4) -> 1.6982e-16 | KS4: =GETPIVOTDATA("Sum of POA",CMAQ_2008!$R$10,"JDAY",$C4,"SRC CAT",CMAQ_2008!KT$3,"SRC REGION",CMAQ_2008!KT$4) -> 0.0081421 | KT4: =GETPIVOTDATA("Sum of POA",CMAQ_2008!$R$10,"JDAY",$C4,"SRC CAT",CMAQ_2008!KU$3,"SRC REGION",CMAQ_2008!KU$4) -> 3.3406e-06 | KU4: =GETPIVOTDATA("Sum of POA",CMAQ_2008!$R$10,"JDAY",$C4,"SRC CAT",CMAQ_2008!KV$3,"SRC REGION",CMAQ_2008!KV$4) -> 1.6982e-16 | KV4: =GETPIVOTDATA("Sum of POA",CMAQ_2008!$R$10,"JDAY",$C4,"SRC CAT",CMAQ_2008!KW$3,"SRC REGION",CMAQ_2008!KW$4) -> 1.6982e-16 | KW4: =GETPIVOTDATA("Sum of POA",CMAQ_2008!$R$10,"JDAY",$C4,"SRC CAT",CMAQ_2008!KX$3,"SRC REGION",CMAQ_2008!KX$4) -> 1.6982e-16 | KX4: =GETPIVOTDATA("Sum of POA",CMAQ_2008!$R$10,"JDAY",$C4,"SRC CAT",CMAQ_2008!KY$3,"SRC REGION",CMAQ_2008!KY$4) -> 0.051229 | KY4: =GETPIVOTDATA("Sum of POA",CMAQ_2008!$R$10,"JDAY",$C4,"SRC CAT",CMAQ_2008!KZ$3,"SRC REGION",CMAQ_2008!KZ$4) -> 1.6982e-16 | KZ4: =GETPIVOTDATA("Sum of POA",CMAQ_2008!$R$10,"JDAY",$C4,"SRC CAT",CMAQ_2008!LA$3,"SRC REGION",CMAQ_2008!LA$4) -> 4.9596e-07 | LA4: =GETPIVOTDATA("Sum of POA",CMAQ_2008!$R$10,"JDAY",$C4,"SRC CAT",CMAQ_2008!LB$3,"SRC REGION",CMAQ_2008!LB$4) -> 1.5447e-06 | LB4: =GETPIVOTDATA("Sum of POA",CMAQ_2008!$R$10,"JDAY",$C4,"SRC CAT",CMAQ_2008!LC$3,"SRC REGION",CMAQ_2008!LC$4) -> 1.6982e-16 | LC4: =GETPIVOTDATA("Sum of POA",CMAQ_2008!$R$10,"JDAY",$C4,"SRC CAT",CMAQ_2008!LD$3,"SRC REGION",CMAQ_2008!LD$4) -> 1.6982e-16 | LD4: =GETPIVOTDATA("Sum of POA",CMAQ_2008!$R$10,"JDAY",$C4,"SRC CAT",CMAQ_2008!LE$3,"SRC REGION",CMAQ_2008!LE$4) -> 0.00015227 | LE4: =GETPIVOTDATA("Sum of POA",CMAQ_2008!$R$10,"JDAY",$C4,"SRC CAT",CMAQ_2008!LF$3,"SRC REGION",CMAQ_2008!LF$4) -> 0.00057185 | LF4: =GETPIVOTDATA("Sum of POA",CMAQ_2008!$R$10,"JDAY",$C4,"SRC CAT",CMAQ_2008!LG$3,"SRC REGION",CMAQ_2008!LG$4) -> 1.6982e-16 | LG4: =GETPIVOTDATA("Sum of POA",CMAQ_2008!$R$10,"JDAY",$C4,"SRC CAT",CMAQ_2008!LH$3,"SRC REGION",CMAQ_2008!LH$4) -> 1.6982e-16 | LH4: =GETPIVOTDATA("Sum of POA",CMAQ_2008!$R$10,"JDAY",$C4,"SRC CAT",CMAQ_2008!LI$3,"SRC REGION",CMAQ_2008!LI$4) -> 4.24e-05 | LI4: =GETPIVOTDATA("Sum of POA",CMAQ_2008!$R$10,"JDAY",$C4,"SRC CAT",CMAQ_2008!LJ$3,"SRC REGION",CMAQ_2008!LJ$4) -> 1.6982e-16 | LJ4: =GETPIVOTDATA("Sum of POA",CMAQ_2008!$R$10,"JDAY",$C4,"SRC CAT",CMAQ_2008!LK$3,"SRC REGION",CMAQ_2008!LK$4) -> 3.0648e-05 | LK4: =GETPIVOTDATA("Sum of POA",CMAQ_2008!$R$10,"JDAY",$C4,"SRC CAT",CMAQ_2008!LL$3,"SRC REGION",CMAQ_2008!LL$4) -> 1.6982e-16 | LL4: =GETPIVOTDATA("Sum of POA",CMAQ_2008!$R$10,"JDAY",$C4,"SRC CAT",CMAQ_2008!LM$3,"SRC REGION",CMAQ_2008!LM$4) -> 3.1338e-07 | LM4: =GETPIVOTDATA("Sum of POA",CMAQ_2008!$R$10,"JDAY",$C4,"SRC CAT",CMAQ_2008!LN$3,"SRC REGION",CMAQ_2008!LN$4) -> 1.6982e-16 | LN4: =GETPIVOTDATA("Sum of POA",CMAQ_2008!$R$10,"JDAY",$C4,"SRC CAT",CMAQ_2008!LO$3,"SRC REGION",CMAQ_2008!LO$4) -> 4.7618e-06 | LO4: =GETPIVOTDATA("Sum of POA",CMAQ_2008!$R$10,"JDAY",$C4,"SRC CAT",CMAQ_2008!LP$3,"SRC REGION",CMAQ_2008!LP$4) -> 1.6983e-16 | LP4: =GETPIVOTDATA("Sum of POA",CMAQ_2008!$R$10,"JDAY",$C4,"SRC CAT",CMAQ_2008!LQ$3,"SRC REGION",CMAQ_2008!LQ$4) -> 0.0070123 | LQ4: =GETPIVOTDATA("Sum of POA",CMAQ_2008!$R$10,"JDAY",$C4,"SRC CAT",CMAQ_2008!LR$3,"SRC REGION",CMAQ_2008!LR$4) -> 4.3425e-09 | LR4: =GETPIVOTDATA("Sum of POA",CMAQ_2008!$R$10,"JDAY",$C4,"SRC CAT",CMAQ_2008!LS$3,"SRC REGION",CMAQ_2008!LS$4) -> 1.6982e-16 | LS4: =GETPIVOTDATA("Sum of POA",CMAQ_2008!$R$10,"JDAY",$C4,"SRC CAT",CMAQ_2008!LT$3,"SRC REGION",CMAQ_2008!LT$4) -> 0.40906 | LT4: =GETPIVOTDATA("Sum of POA",CMAQ_2008!$R$10,"JDAY",$C4,"SRC CAT",CMAQ_2008!LU$3,"SRC REGION",CMAQ_2008!LU$4) -> 4.6214e-07 | LU4: =GETPIVOTDATA("Sum of POA",CMAQ_2008!$R$10,"JDAY",$C4,"SRC CAT",CMAQ_2008!LV$3,"SRC REGION",CMAQ_2008!LV$4) -> 2.3965e-05 | LV4: =GETPIVOTDATA("Sum of POA",CMAQ_2008!$R$10,"JDAY",$C4,"SRC CAT",CMAQ_2008!LW$3,"SRC REGION",CMAQ_2008!LW$4) -> 0.00028971 | LW4: =GETPIVOTDATA("Sum of POA",CMAQ_2008!$R$10,"JDAY",$C4,"SRC CAT",CMAQ_2008!LX$3,"SRC REGION",CMAQ_2008!LX$4) -> 0.013994 | LX4: =GETPIVOTDATA("Sum of POA",CMAQ_2008!$R$10,"JDAY",$C4,"SRC CAT",CMAQ_2008!LY$3,"SRC REGION",CMAQ_2008!LY$4) -> 0.00094829 | LY4: =GETPIVOTDATA("Sum of POA",CMAQ_2008!$R$10,"JDAY",$C4,"SRC CAT",CMAQ_2008!LZ$3,"SRC REGION",CMAQ_2008!LZ$4) -> 0.0021036 | LZ4: =GETPIVOTDATA("Sum of POA",CMAQ_2008!$R$10,"JDAY",$C4,"SRC CAT",CMAQ_2008!MA$3,"SRC REGION",CMAQ_2008!MA$4) -> 0.036675 | MA4: =GETPIVOTDATA("Sum of POA",CMAQ_2008!$R$10,"JDAY",$C4,"SRC CAT",CMAQ_2008!MB$3,"SRC REGION",CMAQ_2008!MB$4) -> 0.00072357 | MB4: =GETPIVOTDATA("Sum of POA",CMAQ_2008!$R$10,"JDAY",$C4,"SRC CAT",CMAQ_2008!MC$3,"SRC REGION",CMAQ_2008!MC$4) -> 0.0026688 | MC4: =GETPIVOTDATA("Sum of POA",CMAQ_2008!$R$10,"JDAY",$C4,"SRC CAT",CMAQ_2008!MD$3,"SRC REGION",CMAQ_2008!MD$4) -> 0.0010217 | MD4: =GETPIVOTDATA("Sum of POA",CMAQ_2008!$R$10,"JDAY",$C4,"SRC CAT",CMAQ_2008!ME$3,"SRC REGION",CMAQ_2008!ME$4) -> 0.0020898 | ME4: =GETPIVOTDATA("Sum of POA",CMAQ_2008!$R$10,"JDAY",$C4,"SRC CAT",CMAQ_2008!MF$3,"SRC REGION",CMAQ_2008!MF$4) -> 0.0027566 | MF4: =GETPIVOTDATA("Sum of POA",CMAQ_2008!$R$10,"JDAY",$C4,"SRC CAT",CMAQ_2008!MG$3,"SRC REGION",CMAQ_2008!MG$4) -> 0.010749 | MG4: =GETPIVOTDATA("Sum of POA",CMAQ_2008!$R$10,"JDAY",$C4,"SRC CAT",CMAQ_2008!MH$3,"SRC REGION",CMAQ_2008!MH$4) -> 1.4859e-05 | MH4: =GETPIVOTDATA("Sum of POA",CMAQ_2008!$R$10,"JDAY",$C4,"SRC CAT",CMAQ_2008!MI$3,"SRC REGION",CMAQ_2008!MI$4) -> 0.00019445 | MI4: =GETPIVOTDATA("Sum of POA",CMAQ_2008!$R$10,"JDAY",$C4,"SRC CAT",CMAQ_2008!MJ$3,"SRC REGION",CMAQ_2008!MJ$4) -> 0.014191 | MJ4: =GETPIVOTDATA("Sum of POA",CMAQ_2008!$R$10,"JDAY",$C4,"SRC CAT",CMAQ_2008!MK$3,"SRC REGION",CMAQ_2008!MK$4) -> 7.2552e-06 | MK4: =GETPIVOTDATA("Sum of POA",CMAQ_2008!$R$10,"JDAY",$C4,"SRC CAT",CMAQ_2008!ML$3,"SRC REGION",CMAQ_2008!ML$4) -> 0.025183 | ML4: =GETPIVOTDATA("Sum of POA",CMAQ_2008!$R$10,"JDAY",$C4,"SRC CAT",CMAQ_2008!MM$3,"SRC REGION",CMAQ_2008!MM$4) -> 6.838e-07 | MM4: =GETPIVOTDATA("Sum of POA",CMAQ_2008!$R$10,"JDAY",$C4,"SRC CAT",CMAQ_2008!MN$3,"SRC REGION",CMAQ_2008!MN$4) -> 1.1951e-05 | MN4: =GETPIVOTDATA("Sum of POA",CMAQ_2008!$R$10,"JDAY",$C4,"SRC CAT",CMAQ_2008!MO$3,"SRC REGION",CMAQ_2008!MO$4) -> 0.018078 | MO4: =GETPIVOTDATA("Sum of POA",CMAQ_2008!$R$10,"JDAY",$C4,"SRC CAT",CMAQ_2008!MP$3,"SRC REGION",CMAQ_2008!MP$4) -> 5.0208e-05 | MQ4: =GETPIVOTDATA("Sum of EC",CMAQ_2008!$R$10,"JDAY",$C4,"SRC CAT",CMAQ_2008!MR$3,"SRC REGION",CMAQ_2008!MR$4) -> 1.4665e-16 | MR4: =GETPIVOTDATA("Sum of EC",CMAQ_2008!$R$10,"JDAY",$C4,"SRC CAT",CMAQ_2008!MS$3,"SRC REGION",CMAQ_2008!MS$4) -> 1.4665e-16 | MS4: =GETPIVOTDATA("Sum of EC",CMAQ_2008!$R$10,"JDAY",$C4,"SRC CAT",CMAQ_2008!MT$3,"SRC REGION",CMAQ_2008!MT$4) -> 1.4665e-16 | MT4: =GETPIVOTDATA("Sum of EC",CMAQ_2008!$R$10,"JDAY",$C4,"SRC CAT",CMAQ_2008!MU$3,"SRC REGION",CMAQ_2008!MU$4) -> 1.4665e-16 | MU4: =GETPIVOTDATA("Sum of EC",CMAQ_2008!$R$10,"JDAY",$C4,"SRC CAT",CMAQ_2008!MV$3,"SRC REGION",CMAQ_2008!MV$4) -> 1.4665e-16 | MV4: =GETPIVOTDATA("Sum of EC",CMAQ_2008!$R$10,"JDAY",$C4,"SRC CAT",CMAQ_2008!MW$3,"SRC REGION",CMAQ_2008!MW$4) -> 1.4665e-16 | MW4: =GETPIVOTDATA("Sum of EC",CMAQ_2008!$R$10,"JDAY",$C4,"SRC CAT",CMAQ_2008!MX$3,"SRC REGION",CMAQ_2008!MX$4) -> 1.4665e-16 | MX4: =GETPIVOTDATA("Sum of EC",CMAQ_2008!$R$10,"JDAY",$C4,"SRC CAT",CMAQ_2008!MY$3,"SRC REGION",CMAQ_2008!MY$4) -> 1.4665e-16 | MY4: =GETPIVOTDATA("Sum of EC",CMAQ_2008!$R$10,"JDAY",$C4,"SRC CAT",CMAQ_2008!MZ$3,"SRC REGION",CMAQ_2008!MZ$4) -> 1.4665e-16 | MZ4: =GETPIVOTDATA("Sum of EC",CMAQ_2008!$R$10,"JDAY",$C4,"SRC CAT",CMAQ_2008!NA$3,"SRC REGION",CMAQ_2008!NA$4) -> 1.4665e-16 | NA4: =GETPIVOTDATA("Sum of EC",CMAQ_2008!$R$10,"JDAY",$C4,"SRC CAT",CMAQ_2008!NB$3,"SRC REGION",CMAQ_2008!NB$4) -> 1.4665e-16 | NB4: =GETPIVOTDATA("Sum of EC",CMAQ_2008!$R$10,"JDAY",$C4,"SRC CAT",CMAQ_2008!NC$3,"SRC REGION",CMAQ_2008!NC$4) -> 1.4665e-16 | NC4: =GETPIVOTDATA("Sum of EC",CMAQ_2008!$R$10,"JDAY",$C4,"SRC CAT",CMAQ_2008!ND$3,"SRC REGION",CMAQ_2008!ND$4) -> 1.4665e-16 | ND4: =GETPIVOTDATA("Sum of EC",CMAQ_2008!$R$10,"JDAY",$C4,"SRC CAT",CMAQ_2008!NE$3,"SRC REGION",CMAQ_2008!NE$4) -> 1.4665e-16 | NE4: =GETPIVOTDATA("Sum of EC",CMAQ_2008!$R$10,"JDAY",$C4,"SRC CAT",CMAQ_2008!NF$3,"SRC REGION",CMAQ_2008!NF$4) -> 1.4665e-16 | NF4: =GETPIVOTDATA("Sum of EC",CMAQ_2008!$R$10,"JDAY",$C4,"SRC CAT",CMAQ_2008!NG$3,"SRC REGION",CMAQ_2008!NG$4) -> 1.4665e-16 | NG4: =GETPIVOTDATA("Sum of EC",CMAQ_2008!$R$10,"JDAY",$C4,"SRC CAT",CMAQ_2008!NH$3,"SRC REGION",CMAQ_2008!NH$4) -> 1.4665e-16 | NH4: =GETPIVOTDATA("Sum of EC",CMAQ_2008!$R$10,"JDAY",$C4,"SRC CAT",CMAQ_2008!NI$3,"SRC REGION",CMAQ_2008!NI$4) -> 1.4665e-16 | NI4: =GETPIVOTDATA("Sum of EC",CMAQ_2008!$R$10,"JDAY",$C4,"SRC CAT",CMAQ_2008!NJ$3,"SRC REGION",CMAQ_2008!NJ$4) -> 1.4665e-16 | NJ4: =GETPIVOTDATA("Sum of EC",CMAQ_2008!$R$10,"JDAY",$C4,"SRC CAT",CMAQ_2008!NK$3,"SRC REGION",CMAQ_2008!NK$4) -> 1.4665e-16 | NK4: =GETPIVOTDATA("Sum of EC",CMAQ_2008!$R$10,"JDAY",$C4,"SRC CAT",CMAQ_2008!NL$3,"SRC REGION",CMAQ_2008!NL$4) -> 1.4665e-16 | NL4: =GETPIVOTDATA("Sum of EC",CMAQ_2008!$R$10,"JDAY",$C4,"SRC CAT",CMAQ_2008!NM$3,"SRC REGION",CMAQ_2008!NM$4) -> 0.0007373 | NM4: =GETPIVOTDATA("Sum of EC",CMAQ_2008!$R$10,"JDAY",$C4,"SRC CAT",CMAQ_2008!NN$3,"SRC REGION",CMAQ_2008!NN$4) -> 1.4665e-16 | NN4: =GETPIVOTDATA("Sum of EC",CMAQ_2008!$R$10,"JDAY",$C4,"SRC CAT",CMAQ_2008!NO$3,"SRC REGION",CMAQ_2008!NO$4) -> 8.514e-10 | NO4: =GETPIVOTDATA("Sum of EC",CMAQ_2008!$R$10,"JDAY",$C4,"SRC CAT",CMAQ_2008!NP$3,"SRC REGION",CMAQ_2008!NP$4) -> 4.4169e-07 | NP4: =GETPIVOTDATA("Sum of EC",CMAQ_2008!$R$10,"JDAY",$C4,"SRC CAT",CMAQ_2008!NQ$3,"SRC REGION",CMAQ_2008!NQ$4) -> 6.4932e-05 | NQ4: =GETPIVOTDATA("Sum of EC",CMAQ_2008!$R$10,"JDAY",$C4,"SRC CAT",CMAQ_2008!NR$3,"SRC REGION",CMAQ_2008!NR$4) -> 1.4665e-16 | NR4: =GETPIVOTDATA("Sum of EC",CMAQ_2008!$R$10,"JDAY",$C4,"SRC CAT",CMAQ_2008!NS$3,"SRC REGION",CMAQ_2008!NS$4) -> 1.4666e-16 | NS4: =GETPIVOTDATA("Sum of EC",CMAQ_2008!$R$10,"JDAY",$C4,"SRC CAT",CMAQ_2008!NT$3,"SRC REGION",CMAQ_2008!NT$4) -> 0.0010276 | NT4: =GETPIVOTDATA("Sum of EC",CMAQ_2008!$R$10,"JDAY",$C4,"SRC CAT",CMAQ_2008!NU$3,"SRC REGION",CMAQ_2008!NU$4) -> 1.4665e-16 | NU4: =GETPIVOTDATA("Sum of EC",CMAQ_2008!$R$10,"JDAY",$C4,"SRC CAT",CMAQ_2008!NV$3,"SRC REGION",CMAQ_2008!NV$4) -> 1.4665e-16 | NV4: =GETPIVOTDATA("Sum of EC",CMAQ_2008!$R$10,"JDAY",$C4,"SRC CAT",CMAQ_2008!NW$3,"SRC REGION",CMAQ_2008!NW$4) -> 1.4665e-16 | NW4: =GETPIVOTDATA("Sum of EC",CMAQ_2008!$R$10,"JDAY",$C4,"SRC CAT",CMAQ_2008!NX$3,"SRC REGION",CMAQ_2008!NX$4) -> 6.0466e-06 | NX4: =GETPIVOTDATA("Sum of EC",CMAQ_2008!$R$10,"JDAY",$C4,"SRC CAT",CMAQ_2008!NY$3,"SRC REGION",CMAQ_2008!NY$4) -> 8.6103e-05 | NY4: =GETPIVOTDATA("Sum of EC",CMAQ_2008!$R$10,"JDAY",$C4,"SRC CAT",CMAQ_2008!NZ$3,"SRC REGION",CMAQ_2008!NZ$4) -> 0.00010386 | NZ4: =GETPIVOTDATA("Sum of EC",CMAQ_2008!$R$10,"JDAY",$C4,"SRC CAT",CMAQ_2008!OA$3,"SRC REGION",CMAQ_2008!OA$4) -> 1.4665e-16 | OA4: =GETPIVOTDATA("Sum of EC",CMAQ_2008!$R$10,"JDAY",$C4,"SRC CAT",CMAQ_2008!OB$3,"SRC REGION",CMAQ_2008!OB$4) -> 1.4665e-16 | OB4: =GETPIVOTDATA("Sum of EC",CMAQ_2008!$R$10,"JDAY",$C4,"SRC CAT",CMAQ_2008!OC$3,"SRC REGION",CMAQ_2008!OC$4) -> 0.00025813 | OC4: =GETPIVOTDATA("Sum of EC",CMAQ_2008!$R$10,"JDAY",$C4,"SRC CAT",CMAQ_2008!OD$3,"SRC REGION",CMAQ_2008!OD$4) -> 1.4665e-16 | OD4: =GETPIVOTDATA("Sum of EC",CMAQ_2008!$R$10,"JDAY",$C4,"SRC CAT",CMAQ_2008!OE$3,"SRC REGION",CMAQ_2008!OE$4) -> 0.00046711 | OE4: =GETPIVOTDATA("Sum of EC",CMAQ_2008!$R$10,"JDAY",$C4,"SRC CAT",CMAQ_2008!OF$3,"SRC REGION",CMAQ_2008!OF$4) -> 1.4665e-16 | OF4: =GETPIVOTDATA("Sum of EC",CMAQ_2008!$R$10,"JDAY",$C4,"SRC CAT",CMAQ_2008!OG$3,"SRC REGION",CMAQ_2008!OG$4) -> 1.4665e-16 | OG4: =GETPIVOTDATA("Sum of EC",CMAQ_2008!$R$10,"JDAY",$C4,"SRC CAT",CMAQ_2008!OH$3,"SRC REGION",CMAQ_2008!OH$4) -> 0.018831 | OH4: =GETPIVOTDATA("Sum of EC",CMAQ_2008!$R$10,"JDAY",$C4,"SRC CAT",CMAQ_2008!OI$3,"SRC REGION",CMAQ_2008!OI$4) -> 9.9163e-10 | OI4: =GETPIVOTDATA("Sum of EC",CMAQ_2008!$R$10,"JDAY",$C4,"SRC CAT",CMAQ_2008!OJ$3,"SRC REGION",CMAQ_2008!OJ$4) -> 4.1791e-08 | OJ4: =GETPIVOTDATA("Sum of EC",CMAQ_2008!$R$10,"JDAY",$C4,"SRC CAT",CMAQ_2008!OK$3,"SRC REGION",CMAQ_2008!OK$4) -> 3.9955e-06 | OK4: =GETPIVOTDATA("Sum of EC",CMAQ_2008!$R$10,"JDAY",$C4,"SRC CAT",CMAQ_2008!OL$3,"SRC REGION",CMAQ_2008!OL$4) -> 1.4665e-16 | OL4: =GETPIVOTDATA("Sum of EC",CMAQ_2008!$R$10,"JDAY",$C4,"SRC CAT",CMAQ_2008!OM$3,"SRC REGION",CMAQ_2008!OM$4) -> 1.4665e-16 | OM4: =GETPIVOTDATA("Sum of EC",CMAQ_2008!$R$10,"JDAY",$C4,"SRC CAT",CMAQ_2008!ON$3,"SRC REGION",CMAQ_2008!ON$4) -> 0.00015532 | ON4: =GETPIVOTDATA("Sum of EC",CMAQ_2008!$R$10,"JDAY",$C4,"SRC CAT",CMAQ_2008!OO$3,"SRC REGION",CMAQ_2008!OO$4) -> 0.0020384 | OO4: =GETPIVOTDATA("Sum of EC",CMAQ_2008!$R$10,"JDAY",$C4,"SRC CAT",CMAQ_2008!OP$3,"SRC REGION",CMAQ_2008!OP$4) -> 1.4665e-16 | OP4: =GETPIVOTDATA("Sum of EC",CMAQ_2008!$R$10,"JDAY",$C4,"SRC CAT",CMAQ_2008!OQ$3,"SRC REGION",CMAQ_2008!OQ$4) -> 1.4665e-16 | OQ4: =GETPIVOTDATA("Sum of EC",CMAQ_2008!$R$10,"JDAY",$C4,"SRC CAT",CMAQ_2008!OR$3,"SRC REGION",CMAQ_2008!OR$4) -> 1.9777e-05 | OR4: =GETPIVOTDATA("Sum of EC",CMAQ_2008!$R$10,"JDAY",$C4,"SRC CAT",CMAQ_2008!OS$3,"SRC REGION",CMAQ_2008!OS$4) -> 1.2693e-05 | OS4: =GETPIVOTDATA("Sum of EC",CMAQ_2008!$R$10,"JDAY",$C4,"SRC CAT",CMAQ_2008!OT$3,"SRC REGION",CMAQ_2008!OT$4) -> 1.629e-05 | OT4: =GETPIVOTDATA("Sum of EC",CMAQ_2008!$R$10,"JDAY",$C4,"SRC CAT",CMAQ_2008!OU$3,"SRC REGION",CMAQ_2008!OU$4) -> 1.0888e-05 | OU4: =GETPIVOTDATA("Sum of EC",CMAQ_2008!$R$10,"JDAY",$C4,"SRC CAT",CMAQ_2008!OV$3,"SRC REGION",CMAQ_2008!OV$4) -> 1.4665e-16 | OV4: =GETPIVOTDATA("Sum of EC",CMAQ_2008!$R$10,"JDAY",$C4,"SRC CAT",CMAQ_2008!OW$3,"SRC REGION",CMAQ_2008!OW$4) -> 1.4665e-16 | OW4: =GETPIVOTDATA("Sum of EC",CMAQ_2008!$R$10,"JDAY",$C4,"SRC CAT",CMAQ_2008!OX$3,"SRC REGION",CMAQ_2008!OX$4) -> 0.0015893 | OX4: =GETPIVOTDATA("Sum of EC",CMAQ_2008!$R$10,"JDAY",$C4,"SRC CAT",CMAQ_2008!OY$3,"SRC REGION",CMAQ_2008!OY$4) -> 7.1506e-07 | OY4: =GETPIVOTDATA("Sum of EC",CMAQ_2008!$R$10,"JDAY",$C4,"SRC CAT",CMAQ_2008!OZ$3,"SRC REGION",CMAQ_2008!OZ$4) -> 1.4665e-16 | OZ4: =GETPIVOTDATA("Sum of EC",CMAQ_2008!$R$10,"JDAY",$C4,"SRC CAT",CMAQ_2008!PA$3,"SRC REGION",CMAQ_2008!PA$4) -> 1.4665e-16 | PA4: =GETPIVOTDATA("Sum of EC",CMAQ_2008!$R$10,"JDAY",$C4,"SRC CAT",CMAQ_2008!PB$3,"SRC REGION",CMAQ_2008!PB$4) -> 1.4665e-16 | PB4: =GETPIVOTDATA("Sum of EC",CMAQ_2008!$R$10,"JDAY",$C4,"SRC CAT",CMAQ_2008!PC$3,"SRC REGION",CMAQ_2008!PC$4) -> 0.0098003 | PC4: =GETPIVOTDATA("Sum of EC",CMAQ_2008!$R$10,"JDAY",$C4,"SRC CAT",CMAQ_2008!PD$3,"SRC REGION",CMAQ_2008!PD$4) -> 1.4665e-16 | PD4: =GETPIVOTDATA("Sum of EC",CMAQ_2008!$R$10,"JDAY",$C4,"SRC CAT",CMAQ_2008!PE$3,"SRC REGION",CMAQ_2008!PE$4) -> 1.0498e-07 | PE4: =GETPIVOTDATA("Sum of EC",CMAQ_2008!$R$10,"JDAY",$C4,"SRC CAT",CMAQ_2008!PF$3,"SRC REGION",CMAQ_2008!PF$4) -> 3.7002e-07 | PF4: =GETPIVOTDATA("Sum of EC",CMAQ_2008!$R$10,"JDAY",$C4,"SRC CAT",CMAQ_2008!PG$3,"SRC REGION",CMAQ_2008!PG$4) -> 1.4665e-16 | PG4: =GETPIVOTDATA("Sum of EC",CMAQ_2008!$R$10,"JDAY",$C4,"SRC CAT",CMAQ_2008!PH$3,"SRC REGION",CMAQ_2008!PH$4) -> 1.4665e-16 | PH4: =GETPIVOTDATA("Sum of EC",CMAQ_2008!$R$10,"JDAY",$C4,"SRC CAT",CMAQ_2008!PI$3,"SRC REGION",CMAQ_2008!PI$4) -> 2.9752e-05 | PI4: =GETPIVOTDATA("Sum of EC",CMAQ_2008!$R$10,"JDAY",$C4,"SRC CAT",CMAQ_2008!PJ$3,"SRC REGION",CMAQ_2008!PJ$4) -> 0.00011815 | PJ4: =GETPIVOTDATA("Sum of EC",CMAQ_2008!$R$10,"JDAY",$C4,"SRC CAT",CMAQ_2008!PK$3,"SRC REGION",CMAQ_2008!PK$4) -> 1.4665e-16 | PK4: =GETPIVOTDATA("Sum of EC",CMAQ_2008!$R$10,"JDAY",$C4,"SRC CAT",CMAQ_2008!PL$3,"SRC REGION",CMAQ_2008!PL$4) -> 1.4665e-16 | PL4: =GETPIVOTDATA("Sum of EC",CMAQ_2008!$R$10,"JDAY",$C4,"SRC CAT",CMAQ_2008!PM$3,"SRC REGION",CMAQ_2008!PM$4) -> 7.9758e-06 | PM4: =GETPIVOTDATA("Sum of EC",CMAQ_2008!$R$10,"JDAY",$C4,"SRC CAT",CMAQ_2008!PN$3,"SRC REGION",CMAQ_2008!PN$4) -> 1.4665e-16 | PN4: =GETPIVOTDATA("Sum of EC",CMAQ_2008!$R$10,"JDAY",$C4,"SRC CAT",CMAQ_2008!PO$3,"SRC REGION",CMAQ_2008!PO$4) -> 5.8338e-06 | PO4: =GETPIVOTDATA("Sum of EC",CMAQ_2008!$R$10,"JDAY",$C4,"SRC CAT",CMAQ_2008!PP$3,"SRC REGION",CMAQ_2008!PP$4) -> 1.4665e-16 | PP4: =GETPIVOTDATA("Sum of EC",CMAQ_2008!$R$10,"JDAY",$C4,"SRC CAT",CMAQ_2008!PQ$3,"SRC REGION",CMAQ_2008!PQ$4) -> 5.542e-08 | PQ4: =GETPIVOTDATA("Sum of EC",CMAQ_2008!$R$10,"JDAY",$C4,"SRC CAT",CMAQ_2008!PR$3,"SRC REGION",CMAQ_2008!PR$4) -> 1.4665e-16 | PR4: =GETPIVOTDATA("Sum of EC",CMAQ_2008!$R$10,"JDAY",$C4,"SRC CAT",CMAQ_2008!PS$3,"SRC REGION",CMAQ_2008!PS$4) -> 9.2887e-07 | PS4: =GETPIVOTDATA("Sum of EC",CMAQ_2008!$R$10,"JDAY",$C4,"SRC CAT",CMAQ_2008!PT$3,"SRC REGION",CMAQ_2008!PT$4) -> 1.4665e-16 | PT4: =GETPIVOTDATA("Sum of EC",CMAQ_2008!$R$10,"JDAY",$C4,"SRC CAT",CMAQ_2008!PU$3,"SRC REGION",CMAQ_2008!PU$4) -> 0.001296 | PU4: =GETPIVOTDATA("Sum of EC",CMAQ_2008!$R$10,"JDAY",$C4,"SRC CAT",CMAQ_2008!PV$3,"SRC REGION",CMAQ_2008!PV$4) -> 8.5179e-10 | PV4: =GETPIVOTDATA("Sum of EC",CMAQ_2008!$R$10,"JDAY",$C4,"SRC CAT",CMAQ_2008!PW$3,"SRC REGION",CMAQ_2008!PW$4) -> 1.4665e-16 | PW4: =GETPIVOTDATA("Sum of EC",CMAQ_2008!$R$10,"JDAY",$C4,"SRC CAT",CMAQ_2008!PX$3,"SRC REGION",CMAQ_2008!PX$4) -> 0.15581 | PX4: =GETPIVOTDATA("Sum of EC",CMAQ_2008!$R$10,"JDAY",$C4,"SRC CAT",CMAQ_2008!PY$3,"SRC REGION",CMAQ_2008!PY$4) -> 1.6126e-07 | PY4: =GETPIVOTDATA("Sum of EC",CMAQ_2008!$R$10,"JDAY",$C4,"SRC CAT",CMAQ_2008!PZ$3,"SRC REGION",CMAQ_2008!PZ$4) -> 2.1451e-06 | PZ4: =GETPIVOTDATA("Sum of EC",CMAQ_2008!$R$10,"JDAY",$C4,"SRC CAT",CMAQ_2008!QA$3,"SRC REGION",CMAQ_2008!QA$4) -> 9.6638e-05 | QA4: =GETPIVOTDATA("Sum of EC",CMAQ_2008!$R$10,"JDAY",$C4,"SRC CAT",CMAQ_2008!QB$3,"SRC REGION",CMAQ_2008!QB$4) -> 0.0066059 | QB4: =GETPIVOTDATA("Sum of EC",CMAQ_2008!$R$10,"JDAY",$C4,"SRC CAT",CMAQ_2008!QC$3,"SRC REGION",CMAQ_2008!QC$4) -> 0.00023255 | QC4: =GETPIVOTDATA("Sum of EC",CMAQ_2008!$R$10,"JDAY",$C4,"SRC CAT",CMAQ_2008!QD$3,"SRC REGION",CMAQ_2008!QD$4) -> 0.00068983 | QD4: =GETPIVOTDATA("Sum of EC",CMAQ_2008!$R$10,"JDAY",$C4,"SRC CAT",CMAQ_2008!QE$3,"SRC REGION",CMAQ_2008!QE$4) -> 0.016197 | QE4: =GETPIVOTDATA("Sum of EC",CMAQ_2008!$R$10,"JDAY",$C4,"SRC CAT",CMAQ_2008!QF$3,"SRC REGION",CMAQ_2008!QF$4) -> 0.00015291 | QF4: =GETPIVOTDATA("Sum of EC",CMAQ_2008!$R$10,"JDAY",$C4,"SRC CAT",CMAQ_2008!QG$3,"SRC REGION",CMAQ_2008!QG$4) -> 0.00059721 | QG4: =GETPIVOTDATA("Sum of EC",CMAQ_2008!$R$10,"JDAY",$C4,"SRC CAT",CMAQ_2008!QH$3,"SRC REGION",CMAQ_2008!QH$4) -> 0.00036301 | QH4: =GETPIVOTDATA("Sum of EC",CMAQ_2008!$R$10,"JDAY",$C4,"SRC CAT",CMAQ_2008!QI$3,"SRC REGION",CMAQ_2008!QI$4) -> 0.00084629 | QI4: =GETPIVOTDATA("Sum of EC",CMAQ_2008!$R$10,"JDAY",$C4,"SRC CAT",CMAQ_2008!QJ$3,"SRC REGION",CMAQ_2008!QJ$4) -> 0.00097507 | QJ4: =GETPIVOTDATA("Sum of EC",CMAQ_2008!$R$10,"JDAY",$C4,"SRC CAT",CMAQ_2008!QK$3,"SRC REGION",CMAQ_2008!QK$4) -> 0.0046622 | QK4: =GETPIVOTDATA("Sum of EC",CMAQ_2008!$R$10,"JDAY",$C4,"SRC CAT",CMAQ_2008!QL$3,"SRC REGION",CMAQ_2008!QL$4) -> 8.5645e-06 | QL4: =GETPIVOTDATA("Sum of EC",CMAQ_2008!$R$10,"JDAY",$C4,"SRC CAT",CMAQ_2008!QM$3,"SRC REGION",CMAQ_2008!QM$4) -> 5.9584e-05 | QM4: =GETPIVOTDATA("Sum of EC",CMAQ_2008!$R$10,"JDAY",$C4,"SRC CAT",CMAQ_2008!QN$3,"SRC REGION",CMAQ_2008!QN$4) -> 0.0054986 | QN4: =GETPIVOTDATA("Sum of EC",CMAQ_2008!$R$10,"JDAY",$C4,"SRC CAT",CMAQ_2008!QO$3,"SRC REGION",CMAQ_2008!QO$4) -> 2.4236e-06 | QO4: =GETPIVOTDATA("Sum of EC",CMAQ_2008!$R$10,"JDAY",$C4,"SRC CAT",CMAQ_2008!QP$3,"SRC REGION",CMAQ_2008!QP$4) -> 0.0071706 | QP4: =GETPIVOTDATA("Sum of EC",CMAQ_2008!$R$10,"JDAY",$C4,"SRC CAT",CMAQ_2008!QQ$3,"SRC REGION",CMAQ_2008!QQ$4) -> 3.305e-07 | QQ4: =GETPIVOTDATA("Sum of EC",CMAQ_2008!$R$10,"JDAY",$C4,"SRC CAT",CMAQ_2008!QR$3,"SRC REGION",CMAQ_2008!QR$4) -> 7.8164e-06 | QR4: =GETPIVOTDATA("Sum of EC",CMAQ_2008!$R$10,"JDAY",$C4,"SRC CAT",CMAQ_2008!QS$3,"SRC REGION",CMAQ_2008!QS$4) -> 0.010924 | QS4: =GETPIVOTDATA("Sum of EC",CMAQ_2008!$R$10,"JDAY",$C4,"SRC CAT",CMAQ_2008!QT$3,"SRC REGION",CMAQ_2008!QT$4) -> 2.8604e-05 | QU4: =GETPIVOTDATA("Sum of OPM25",CMAQ_2008!$R$10,"JDAY",$C4,"SRC CAT",CMAQ_2008!QV$3,"SRC REGION",CMAQ_2008!QV$4) -> 0.0048244 | QV4: =GETPIVOTDATA("Sum of OPM25",CMAQ_2008!$R$10,"JDAY",$C4,"SRC CAT",CMAQ_2008!QW$3,"SRC REGION",CMAQ_2008!QW$4) -> 1.4887e-07 | QW4: =GETPIVOTDATA("Sum of OPM25",CMAQ_2008!$R$10,"JDAY",$C4,"SRC CAT",CMAQ_2008!QX$3,"SRC REGION",CMAQ_2008!QX$4) -> 4.1263e-07 | QX4: =GETPIVOTDATA("Sum of OPM25",CMAQ_2008!$R$10,"JDAY",$C4,"SRC CAT",CMAQ_2008!QY$3,"SRC REGION",CMAQ_2008!QY$4) -> 2.8318e-07 | QY4: =GETPIVOTDATA("Sum of OPM25",CMAQ_2008!$R$10,"JDAY",$C4,"SRC CAT",CMAQ_2008!QZ$3,"SRC REGION",CMAQ_2008!QZ$4) -> 0.0054199 | QZ4: =GETPIVOTDATA("Sum of OPM25",CMAQ_2008!$R$10,"JDAY",$C4,"SRC CAT",CMAQ_2008!RA$3,"SRC REGION",CMAQ_2008!RA$4) -> 5.5852e-16 | RA4: =GETPIVOTDATA("Sum of OPM25",CMAQ_2008!$R$10,"JDAY",$C4,"SRC CAT",CMAQ_2008!RB$3,"SRC REGION",CMAQ_2008!RB$4) -> 5.5851e-16 | RB4: =GETPIVOTDATA("Sum of OPM25",CMAQ_2008!$R$10,"JDAY",$C4,"SRC CAT",CMAQ_2008!RC$3,"SRC REGION",CMAQ_2008!RC$4) -> 0.0048983 | RC4: =GETPIVOTDATA("Sum of OPM25",CMAQ_2008!$R$10,"JDAY",$C4,"SRC CAT",CMAQ_2008!RD$3,"SRC REGION",CMAQ_2008!RD$4) -> 2.0832e-08 | RD4: =GETPIVOTDATA("Sum of OPM25",CMAQ_2008!$R$10,"JDAY",$C4,"SRC CAT",CMAQ_2008!RE$3,"SRC REGION",CMAQ_2008!RE$4) -> 5.0167e-06 | RE4: =GETPIVOTDATA("Sum of OPM25",CMAQ_2008!$R$10,"JDAY",$C4,"SRC CAT",CMAQ_2008!RF$3,"SRC REGION",CMAQ_2008!RF$4) -> 5.5851e-16 | RF4: =GETPIVOTDATA("Sum of OPM25",CMAQ_2008!$R$10,"JDAY",$C4,"SRC CAT",CMAQ_2008!RG$3,"SRC REGION",CMAQ_2008!RG$4) -> 5.5851e-16 | RG4: =GETPIVOTDATA("Sum of OPM25",CMAQ_2008!$R$10,"JDAY",$C4,"SRC CAT",CMAQ_2008!RH$3,"SRC REGION",CMAQ_2008!RH$4) -> 5.5851e-16 | RH4: =GETPIVOTDATA("Sum of OPM25",CMAQ_2008!$R$10,"JDAY",$C4,"SRC CAT",CMAQ_2008!RI$3,"SRC REGION",CMAQ_2008!RI$4) -> 5.5851e-16 | RI4: =GETPIVOTDATA("Sum of OPM25",CMAQ_2008!$R$10,"JDAY",$C4,"SRC CAT",CMAQ_2008!RJ$3,"SRC REGION",CMAQ_2008!RJ$4) -> 4.7508e-07 | RJ4: =GETPIVOTDATA("Sum of OPM25",CMAQ_2008!$R$10,"JDAY",$C4,"SRC CAT",CMAQ_2008!RK$3,"SRC REGION",CMAQ_2008!RK$4) -> 1.19e-08 | RK4: =GETPIVOTDATA("Sum of OPM25",CMAQ_2008!$R$10,"JDAY",$C4,"SRC CAT",CMAQ_2008!RL$3,"SRC REGION",CMAQ_2008!RL$4) -> 3.1499e-06 | RL4: =GETPIVOTDATA("Sum of OPM25",CMAQ_2008!$R$10,"JDAY",$C4,"SRC CAT",CMAQ_2008!RM$3,"SRC REGION",CMAQ_2008!RM$4) -> 9.7468e-07 | RM4: =GETPIVOTDATA("Sum of OPM25",CMAQ_2008!$R$10,"JDAY",$C4,"SRC CAT",CMAQ_2008!RN$3,"SRC REGION",CMAQ_2008!RN$4) -> 3.4988e-05 | RN4: =GETPIVOTDATA("Sum of OPM25",CMAQ_2008!$R$10,"JDAY",$C4,"SRC CAT",CMAQ_2008!RO$3,"SRC REGION",CMAQ_2008!RO$4) -> 2.9769e-07 | RO4: =GETPIVOTDATA("Sum of OPM25",CMAQ_2008!$R$10,"JDAY",$C4,"SRC CAT",CMAQ_2008!RP$3,"SRC REGION",CMAQ_2008!RP$4) -> 8.4303e-13 | RP4: =GETPIVOTDATA("Sum of OPM25",CMAQ_2008!$R$10,"JDAY",$C4,"SRC CAT",CMAQ_2008!RQ$3,"SRC REGION",CMAQ_2008!RQ$4) -> 0.0014604 | RQ4: =GETPIVOTDATA("Sum of OPM25",CMAQ_2008!$R$10,"JDAY",$C4,"SRC CAT",CMAQ_2008!RR$3,"SRC REGION",CMAQ_2008!RR$4) -> 5.5851e-16 | RR4: =GETPIVOTDATA("Sum of OPM25",CMAQ_2008!$R$10,"JDAY",$C4,"SRC CAT",CMAQ_2008!RS$3,"SRC REGION",CMAQ_2008!RS$4) -> 8.0539e-10 | RS4: =GETPIVOTDATA("Sum of OPM25",CMAQ_2008!$R$10,"JDAY",$C4,"SRC CAT",CMAQ_2008!RT$3,"SRC REGION",CMAQ_2008!RT$4) -> 7.0395e-07 | RT4: =GETPIVOTDATA("Sum of OPM25",CMAQ_2008!$R$10,"JDAY",$C4,"SRC CAT",CMAQ_2008!RU$3,"SRC REGION",CMAQ_2008!RU$4) -> 0.0001246 | RU4: =GETPIVOTDATA("Sum of OPM25",CMAQ_2008!$R$10,"JDAY",$C4,"SRC CAT",CMAQ_2008!RV$3,"SRC REGION",CMAQ_2008!RV$4) -> 5.5851e-16 | RV4: =GETPIVOTDATA("Sum of OPM25",CMAQ_2008!$R$10,"JDAY",$C4,"SRC CAT",CMAQ_2008!RW$3,"SRC REGION",CMAQ_2008!RW$4) -> 5.5851e-16 | RW4: =GETPIVOTDATA("Sum of OPM25",CMAQ_2008!$R$10,"JDAY",$C4,"SRC CAT",CMAQ_2008!RX$3,"SRC REGION",CMAQ_2008!RX$4) -> 0.0020811 | RX4: =GETPIVOTDATA("Sum of OPM25",CMAQ_2008!$R$10,"JDAY",$C4,"SRC CAT",CMAQ_2008!RY$3,"SRC REGION",CMAQ_2008!RY$4) -> 5.5851e-16 | RY4: =GETPIVOTDATA("Sum of OPM25",CMAQ_2008!$R$10,"JDAY",$C4,"SRC CAT",CMAQ_2008!RZ$3,"SRC REGION",CMAQ_2008!RZ$4) -> 5.5851e-16 | RZ4: =GETPIVOTDATA("Sum of OPM25",CMAQ_2008!$R$10,"JDAY",$C4,"SRC CAT",CMAQ_2008!SA$3,"SRC REGION",CMAQ_2008!SA$4) -> 5.5851e-16 | SA4: =GETPIVOTDATA("Sum of OPM25",CMAQ_2008!$R$10,"JDAY",$C4,"SRC CAT",CMAQ_2008!SB$3,"SRC REGION",CMAQ_2008!SB$4) -> 1.1568e-05 | SB4: =GETPIVOTDATA("Sum of OPM25",CMAQ_2008!$R$10,"JDAY",$C4,"SRC CAT",CMAQ_2008!SC$3,"SRC REGION",CMAQ_2008!SC$4) -> 0.00016815 | SC4: =GETPIVOTDATA("Sum of OPM25",CMAQ_2008!$R$10,"JDAY",$C4,"SRC CAT",CMAQ_2008!SD$3,"SRC REGION",CMAQ_2008!SD$4) -> 0.00019384 | SD4: =GETPIVOTDATA("Sum of OPM25",CMAQ_2008!$R$10,"JDAY",$C4,"SRC CAT",CMAQ_2008!SE$3,"SRC REGION",CMAQ_2008!SE$4) -> 5.5851e-16 | SE4: =GETPIVOTDATA("Sum of OPM25",CMAQ_2008!$R$10,"JDAY",$C4,"SRC CAT",CMAQ_2008!SF$3,"SRC REGION",CMAQ_2008!SF$4) -> 5.5851e-16 | SF4: =GETPIVOTDATA("Sum of OPM25",CMAQ_2008!$R$10,"JDAY",$C4,"SRC CAT",CMAQ_2008!SG$3,"SRC REGION",CMAQ_2008!SG$4) -> 0.00050166 | SG4: =GETPIVOTDATA("Sum of OPM25",CMAQ_2008!$R$10,"JDAY",$C4,"SRC CAT",CMAQ_2008!SH$3,"SRC REGION",CMAQ_2008!SH$4) -> 5.5851e-16 | SH4: =GETPIVOTDATA("Sum of OPM25",CMAQ_2008!$R$10,"JDAY",$C4,"SRC CAT",CMAQ_2008!SI$3,"SRC REGION",CMAQ_2008!SI$4) -> 0.00093744 | SI4: =GETPIVOTDATA("Sum of OPM25",CMAQ_2008!$R$10,"JDAY",$C4,"SRC CAT",CMAQ_2008!SJ$3,"SRC REGION",CMAQ_2008!SJ$4) -> 5.5851e-16 | SJ4: =GETPIVOTDATA("Sum of OPM25",CMAQ_2008!$R$10,"JDAY",$C4,"SRC CAT",CMAQ_2008!SK$3,"SRC REGION",CMAQ_2008!SK$4) -> 5.5851e-16 | SK4: =GETPIVOTDATA("Sum of OPM25",CMAQ_2008!$R$10,"JDAY",$C4,"SRC CAT",CMAQ_2008!SL$3,"SRC REGION",CMAQ_2008!SL$4) -> 0.034079 | SL4: =GETPIVOTDATA("Sum of OPM25",CMAQ_2008!$R$10,"JDAY",$C4,"SRC CAT",CMAQ_2008!SM$3,"SRC REGION",CMAQ_2008!SM$4) -> 8.9237e-10 | SM4: =GETPIVOTDATA("Sum of OPM25",CMAQ_2008!$R$10,"JDAY",$C4,"SRC CAT",CMAQ_2008!SN$3,"SRC REGION",CMAQ_2008!SN$4) -> 7.1957e-08 | SN4: =GETPIVOTDATA("Sum of OPM25",CMAQ_2008!$R$10,"JDAY",$C4,"SRC CAT",CMAQ_2008!SO$3,"SRC REGION",CMAQ_2008!SO$4) -> 4.9626e-06 | SO4: =GETPIVOTDATA("Sum of OPM25",CMAQ_2008!$R$10,"JDAY",$C4,"SRC CAT",CMAQ_2008!SP$3,"SRC REGION",CMAQ_2008!SP$4) -> 5.5851e-16 | SP4: =GETPIVOTDATA("Sum of OPM25",CMAQ_2008!$R$10,"JDAY",$C4,"SRC CAT",CMAQ_2008!SQ$3,"SRC REGION",CMAQ_2008!SQ$4) -> 5.5851e-16 | SQ4: =GETPIVOTDATA("Sum of OPM25",CMAQ_2008!$R$10,"JDAY",$C4,"SRC CAT",CMAQ_2008!SR$3,"SRC REGION",CMAQ_2008!SR$4) -> 0.00028056 | SR4: =GETPIVOTDATA("Sum of OPM25",CMAQ_2008!$R$10,"JDAY",$C4,"SRC CAT",CMAQ_2008!SS$3,"SRC REGION",CMAQ_2008!SS$4) -> 0.0039072 | SS4: =GETPIVOTDATA("Sum of OPM25",CMAQ_2008!$R$10,"JDAY",$C4,"SRC CAT",CMAQ_2008!ST$3,"SRC REGION",CMAQ_2008!ST$4) -> 5.5851e-16 | ST4: =GETPIVOTDATA("Sum of OPM25",CMAQ_2008!$R$10,"JDAY",$C4,"SRC CAT",CMAQ_2008!SU$3,"SRC REGION",CMAQ_2008!SU$4) -> 5.5851e-16 | SU4: =GETPIVOTDATA("Sum of OPM25",CMAQ_2008!$R$10,"JDAY",$C4,"SRC CAT",CMAQ_2008!SV$3,"SRC REGION",CMAQ_2008!SV$4) -> 3.4763e-05 | SV4: =GETPIVOTDATA("Sum of OPM25",CMAQ_2008!$R$10,"JDAY",$C4,"SRC CAT",CMAQ_2008!SW$3,"SRC REGION",CMAQ_2008!SW$4) -> 2.4879e-05 | SW4: =GETPIVOTDATA("Sum of OPM25",CMAQ_2008!$R$10,"JDAY",$C4,"SRC CAT",CMAQ_2008!SX$3,"SRC REGION",CMAQ_2008!SX$4) -> 3.0708e-05 | SX4: =GETPIVOTDATA("Sum of OPM25",CMAQ_2008!$R$10,"JDAY",$C4,"SRC CAT",CMAQ_2008!SY$3,"SRC REGION",CMAQ_2008!SY$4) -> 2.0564e-05 | SY4: =GETPIVOTDATA("Sum of OPM25",CMAQ_2008!$R$10,"JDAY",$C4,"SRC CAT",CMAQ_2008!SZ$3,"SRC REGION",CMAQ_2008!SZ$4) -> 5.5851e-16 | SZ4: =GETPIVOTDATA("Sum of OPM25",CMAQ_2008!$R$10,"JDAY",$C4,"SRC CAT",CMAQ_2008!TA$3,"SRC REGION",CMAQ_2008!TA$4) -> 5.5851e-16 | TA4: =GETPIVOTDATA("Sum of OPM25",CMAQ_2008!$R$10,"JDAY",$C4,"SRC CAT",CMAQ_2008!TB$3,"SRC REGION",CMAQ_2008!TB$4) -> 0.002817 | TB4: =GETPIVOTDATA("Sum of OPM25",CMAQ_2008!$R$10,"JDAY",$C4,"SRC CAT",CMAQ_2008!TC$3,"SRC REGION",CMAQ_2008!TC$4) -> 5.6467e-07 | TC4: =GETPIVOTDATA("Sum of OPM25",CMAQ_2008!$R$10,"JDAY",$C4,"SRC CAT",CMAQ_2008!TD$3,"SRC REGION",CMAQ_2008!TD$4) -> 5.5851e-16 | TD4: =GETPIVOTDATA("Sum of OPM25",CMAQ_2008!$R$10,"JDAY",$C4,"SRC CAT",CMAQ_2008!TE$3,"SRC REGION",CMAQ_2008!TE$4) -> 5.5851e-16 | TE4: =GETPIVOTDATA("Sum of OPM25",CMAQ_2008!$R$10,"JDAY",$C4,"SRC CAT",CMAQ_2008!TF$3,"SRC REGION",CMAQ_2008!TF$4) -> 5.5851e-16 | TF4: =GETPIVOTDATA("Sum of OPM25",CMAQ_2008!$R$10,"JDAY",$C4,"SRC CAT",CMAQ_2008!TG$3,"SRC REGION",CMAQ_2008!TG$4) -> 0.018635 | TG4: =GETPIVOTDATA("Sum of OPM25",CMAQ_2008!$R$10,"JDAY",$C4,"SRC CAT",CMAQ_2008!TH$3,"SRC REGION",CMAQ_2008!TH$4) -> 5.5851e-16 | TH4: =GETPIVOTDATA("Sum of OPM25",CMAQ_2008!$R$10,"JDAY",$C4,"SRC CAT",CMAQ_2008!TI$3,"SRC REGION",CMAQ_2008!TI$4) -> 1.8887e-07 | TI4: =GETPIVOTDATA("Sum of OPM25",CMAQ_2008!$R$10,"JDAY",$C4,"SRC CAT",CMAQ_2008!TJ$3,"SRC REGION",CMAQ_2008!TJ$4) -> 3.3558e-07 | TJ4: =GETPIVOTDATA("Sum of OPM25",CMAQ_2008!$R$10,"JDAY",$C4,"SRC CAT",CMAQ_2008!TK$3,"SRC REGION",CMAQ_2008!TK$4) -> 5.5851e-16 | TK4: =GETPIVOTDATA("Sum of OPM25",CMAQ_2008!$R$10,"JDAY",$C4,"SRC CAT",CMAQ_2008!TL$3,"SRC REGION",CMAQ_2008!TL$4) -> 5.5851e-16 | TL4: =GETPIVOTDATA("Sum of OPM25",CMAQ_2008!$R$10,"JDAY",$C4,"SRC CAT",CMAQ_2008!TM$3,"SRC REGION",CMAQ_2008!TM$4) -> 5.9268e-05 | TM4: =GETPIVOTDATA("Sum of OPM25",CMAQ_2008!$R$10,"JDAY",$C4,"SRC CAT",CMAQ_2008!TN$3,"SRC REGION",CMAQ_2008!TN$4) -> 0.00022576 | TN4: =GETPIVOTDATA("Sum of OPM25",CMAQ_2008!$R$10,"JDAY",$C4,"SRC CAT",CMAQ_2008!TO$3,"SRC REGION",CMAQ_2008!TO$4) -> 5.5851e-16 | TO4: =GETPIVOTDATA("Sum of OPM25",CMAQ_2008!$R$10,"JDAY",$C4,"SRC CAT",CMAQ_2008!TP$3,"SRC REGION",CMAQ_2008!TP$4) -> 5.5851e-16 | TP4: =GETPIVOTDATA("Sum of OPM25",CMAQ_2008!$R$10,"JDAY",$C4,"SRC CAT",CMAQ_2008!TQ$3,"SRC REGION",CMAQ_2008!TQ$4) -> 1.5565e-05 | TQ4: =GETPIVOTDATA("Sum of OPM25",CMAQ_2008!$R$10,"JDAY",$C4,"SRC CAT",CMAQ_2008!TR$3,"SRC REGION",CMAQ_2008!TR$4) -> 5.5851e-16 | TR4: =GETPIVOTDATA("Sum of OPM25",CMAQ_2008!$R$10,"JDAY",$C4,"SRC CAT",CMAQ_2008!TS$3,"SRC REGION",CMAQ_2008!TS$4) -> 1.0699e-05 | TS4: =GETPIVOTDATA("Sum of OPM25",CMAQ_2008!$R$10,"JDAY",$C4,"SRC CAT",CMAQ_2008!TT$3,"SRC REGION",CMAQ_2008!TT$4) -> 5.5851e-16 | TT4: =GETPIVOTDATA("Sum of OPM25",CMAQ_2008!$R$10,"JDAY",$C4,"SRC CAT",CMAQ_2008!TU$3,"SRC REGION",CMAQ_2008!TU$4) -> 1.1704e-07 | TU4: =GETPIVOTDATA("Sum of OPM25",CMAQ_2008!$R$10,"JDAY",$C4,"SRC CAT",CMAQ_2008!TV$3,"SRC REGION",CMAQ_2008!TV$4) -> 5.5851e-16 | TV4: =GETPIVOTDATA("Sum of OPM25",CMAQ_2008!$R$10,"JDAY",$C4,"SRC CAT",CMAQ_2008!TW$3,"SRC REGION",CMAQ_2008!TW$4) -> 1.6846e-06 | TW4: =GETPIVOTDATA("Sum of OPM25",CMAQ_2008!$R$10,"JDAY",$C4,"SRC CAT",CMAQ_2008!TX$3,"SRC REGION",CMAQ_2008!TX$4) -> 5.5851e-16 | TX4: =GETPIVOTDATA("Sum of OPM25",CMAQ_2008!$R$10,"JDAY",$C4,"SRC CAT",CMAQ_2008!TY$3,"SRC REGION",CMAQ_2008!TY$4) -> 0.0022245 | TY4: =GETPIVOTDATA("Sum of OPM25",CMAQ_2008!$R$10,"JDAY",$C4,"SRC CAT",CMAQ_2008!TZ$3,"SRC REGION",CMAQ_2008!TZ$4) -> 1.2565e-09 | TZ4: =GETPIVOTDATA("Sum of OPM25",CMAQ_2008!$R$10,"JDAY",$C4,"SRC CAT",CMAQ_2008!UA$3,"SRC REGION",CMAQ_2008!UA$4) -> 5.5851e-16 | UA4: =GETPIVOTDATA("Sum of OPM25",CMAQ_2008!$R$10,"JDAY",$C4,"SRC CAT",CMAQ_2008!UB$3,"SRC REGION",CMAQ_2008!UB$4) -> 0.22412 | UB4: =GETPIVOTDATA("Sum of OPM25",CMAQ_2008!$R$10,"JDAY",$C4,"SRC CAT",CMAQ_2008!UC$3,"SRC REGION",CMAQ_2008!UC$4) -> 7.5573e-07 | UC4: =GETPIVOTDATA("Sum of OPM25",CMAQ_2008!$R$10,"JDAY",$C4,"SRC CAT",CMAQ_2008!UD$3,"SRC REGION",CMAQ_2008!UD$4) -> 3.7538e-06 | UD4: =GETPIVOTDATA("Sum of OPM25",CMAQ_2008!$R$10,"JDAY",$C4,"SRC CAT",CMAQ_2008!UE$3,"SRC REGION",CMAQ_2008!UE$4) -> 0.00028466 | UE4: =GETPIVOTDATA("Sum of OPM25",CMAQ_2008!$R$10,"JDAY",$C4,"SRC CAT",CMAQ_2008!UF$3,"SRC REGION",CMAQ_2008!UF$4) -> 0.033769 | UF4: =GETPIVOTDATA("Sum of OPM25",CMAQ_2008!$R$10,"JDAY",$C4,"SRC CAT",CMAQ_2008!UG$3,"SRC REGION",CMAQ_2008!UG$4) -> 0.00081274 | UG4: =GETPIVOTDATA("Sum of OPM25",CMAQ_2008!$R$10,"JDAY",$C4,"SRC CAT",CMAQ_2008!UH$3,"SRC REGION",CMAQ_2008!UH$4) -> 0.0049657 | UH4: =GETPIVOTDATA("Sum of OPM25",CMAQ_2008!$R$10,"JDAY",$C4,"SRC CAT",CMAQ_2008!UI$3,"SRC REGION",CMAQ_2008!UI$4) -> 0.069673 | UI4: =GETPIVOTDATA("Sum of OPM25",CMAQ_2008!$R$10,"JDAY",$C4,"SRC CAT",CMAQ_2008!UJ$3,"SRC REGION",CMAQ_2008!UJ$4) -> 0.00024542 | UJ4: =GETPIVOTDATA("Sum of OPM25",CMAQ_2008!$R$10,"JDAY",$C4,"SRC CAT",CMAQ_2008!UK$3,"SRC REGION",CMAQ_2008!UK$4) -> 0.00097533 | UK4: =GETPIVOTDATA("Sum of OPM25",CMAQ_2008!$R$10,"JDAY",$C4,"SRC CAT",CMAQ_2008!UL$3,"SRC REGION",CMAQ_2008!UL$4) -> 0.0065437 | UL4: =GETPIVOTDATA("Sum of OPM25",CMAQ_2008!$R$10,"JDAY",$C4,"SRC CAT",CMAQ_2008!UM$3,"SRC REGION",CMAQ_2008!UM$4) -> 0.0057283 | UM4: =GETPIVOTDATA("Sum of OPM25",CMAQ_2008!$R$10,"JDAY",$C4,"SRC CAT",CMAQ_2008!UN$3,"SRC REGION",CMAQ_2008!UN$4) -> 0.0084939 | UN4: =GETPIVOTDATA("Sum of OPM25",CMAQ_2008!$R$10,"JDAY",$C4,"SRC CAT",CMAQ_2008!UO$3,"SRC REGION",CMAQ_2008!UO$4) -> 0.033912 | UO4: =GETPIVOTDATA("Sum of OPM25",CMAQ_2008!$R$10,"JDAY",$C4,"SRC CAT",CMAQ_2008!UP$3,"SRC REGION",CMAQ_2008!UP$4) -> 3.9814e-05 | UP4: =GETPIVOTDATA("Sum of OPM25",CMAQ_2008!$R$10,"JDAY",$C4,"SRC CAT",CMAQ_2008!UQ$3,"SRC REGION",CMAQ_2008!UQ$4) -> 0.0001901 | UQ4: =GETPIVOTDATA("Sum of OPM25",CMAQ_2008!$R$10,"JDAY",$C4,"SRC CAT",CMAQ_2008!UR$3,"SRC REGION",CMAQ_2008!UR$4) -> 0.012434 | UR4: =GETPIVOTDATA("Sum of OPM25",CMAQ_2008!$R$10,"JDAY",$C4,"SRC CAT",CMAQ_2008!US$3,"SRC REGION",CMAQ_2008!US$4) -> 1.5996e-05 | US4: =GETPIVOTDATA("Sum of OPM25",CMAQ_2008!$R$10,"JDAY",$C4,"SRC CAT",CMAQ_2008!UT$3,"SRC REGION",CMAQ_2008!UT$4) -> 0.054968 | UT4: =GETPIVOTDATA("Sum of OPM25",CMAQ_2008!$R$10,"JDAY",$C4,"SRC CAT",CMAQ_2008!UU$3,"SRC REGION",CMAQ_2008!UU$4) -> 9.1901e-07 | UU4: =GETPIVOTDATA("Sum of OPM25",CMAQ_2008!$R$10,"JDAY",$C4,"SRC CAT",CMAQ_2008!UV$3,"SRC REGION",CMAQ_2008!UV$4) -> 1.2247e-05 | UV4: =GETPIVOTDATA("Sum of OPM25",CMAQ_2008!$R$10,"JDAY",$C4,"SRC CAT",CMAQ_2008!UW$3,"SRC REGION",CMAQ_2008!UW$4) -> 1.0512 | UW4: =GETPIVOTDATA("Sum of OPM25",CMAQ_2008!$R$10,"JDAY",$C4,"SRC CAT",CMAQ_2008!UX$3,"SRC REGION",CMAQ_2008!UX$4) -> 0.0017926 | UY4: =GETPIVOTDATA("Sum of PMC",CMAQ_2008!$R$10,"JDAY",$C4,"SRC CAT",CMAQ_2008!UZ$3,"SRC REGION",CMAQ_2008!UZ$4) -> 0.02018 | UZ4: =GETPIVOTDATA("Sum of PMC",CMAQ_2008!$R$10,"JDAY",$C4,"SRC CAT",CMAQ_2008!VA$3,"SRC REGION",CMAQ_2008!VA$4) -> 3.5947e-07 | VA4: =GETPIVOTDATA("Sum of PMC",CMAQ_2008!$R$10,"JDAY",$C4,"SRC CAT",CMAQ_2008!VB$3,"SRC REGION",CMAQ_2008!VB$4) -> 1.2748e-06 | VB4: =GETPIVOTDATA("Sum of PMC",CMAQ_2008!$R$10,"JDAY",$C4,"SRC CAT",CMAQ_2008!VC$3,"SRC REGION",CMAQ_2008!VC$4) -> 8.6024e-07 | VC4: =GETPIVOTDATA("Sum of PMC",CMAQ_2008!$R$10,"JDAY",$C4,"SRC CAT",CMAQ_2008!VD$3,"SRC REGION",CMAQ_2008!VD$4) -> 0.019706 | VD4: =GETPIVOTDATA("Sum of PMC",CMAQ_2008!$R$10,"JDAY",$C4,"SRC CAT",CMAQ_2008!VE$3,"SRC REGION",CMAQ_2008!VE$4) -> 3.5468e-16 | VE4: =GETPIVOTDATA("Sum of PMC",CMAQ_2008!$R$10,"JDAY",$C4,"SRC CAT",CMAQ_2008!VF$3,"SRC REGION",CMAQ_2008!VF$4) -> 3.5467e-16 | VF4: =GETPIVOTDATA("Sum of PMC",CMAQ_2008!$R$10,"JDAY",$C4,"SRC CAT",CMAQ_2008!VG$3,"SRC REGION",CMAQ_2008!VG$4) -> 0.019789 | VG4: =GETPIVOTDATA("Sum of PMC",CMAQ_2008!$R$10,"JDAY",$C4,"SRC CAT",CMAQ_2008!VH$3,"SRC REGION",CMAQ_2008!VH$4) -> 4.6494e-08 | VH4: =GETPIVOTDATA("Sum of PMC",CMAQ_2008!$R$10,"JDAY",$C4,"SRC CAT",CMAQ_2008!VI$3,"SRC REGION",CMAQ_2008!VI$4) -> 1.4176e-05 | VI4: =GETPIVOTDATA("Sum of PMC",CMAQ_2008!$R$10,"JDAY",$C4,"SRC CAT",CMAQ_2008!VJ$3,"SRC REGION",CMAQ_2008!VJ$4) -> 3.5467e-16 | VJ4: =GETPIVOTDATA("Sum of PMC",CMAQ_2008!$R$10,"JDAY",$C4,"SRC CAT",CMAQ_2008!VK$3,"SRC REGION",CMAQ_2008!VK$4) -> 3.5467e-16 | VK4: =GETPIVOTDATA("Sum of PMC",CMAQ_2008!$R$10,"JDAY",$C4,"SRC CAT",CMAQ_2008!VL$3,"SRC REGION",CMAQ_2008!VL$4) -> 3.5467e-16 | VL4: =GETPIVOTDATA("Sum of PMC",CMAQ_2008!$R$10,"JDAY",$C4,"SRC CAT",CMAQ_2008!VM$3,"SRC REGION",CMAQ_2008!VM$4) -> 3.5467e-16 | VM4: =GETPIVOTDATA("Sum of PMC",CMAQ_2008!$R$10,"JDAY",$C4,"SRC CAT",CMAQ_2008!VN$3,"SRC REGION",CMAQ_2008!VN$4) -> 1.2012e-06 | VN4: =GETPIVOTDATA("Sum of PMC",CMAQ_2008!$R$10,"JDAY",$C4,"SRC CAT",CMAQ_2008!VO$3,"SRC REGION",CMAQ_2008!VO$4) -> 3.0412e-08 | VO4: =GETPIVOTDATA("Sum of PMC",CMAQ_2008!$R$10,"JDAY",$C4,"SRC CAT",CMAQ_2008!VP$3,"SRC REGION",CMAQ_2008!VP$4) -> 7.4065e-06 | VP4: =GETPIVOTDATA("Sum of PMC",CMAQ_2008!$R$10,"JDAY",$C4,"SRC CAT",CMAQ_2008!VQ$3,"SRC REGION",CMAQ_2008!VQ$4) -> 2.787e-06 | VQ4: =GETPIVOTDATA("Sum of PMC",CMAQ_2008!$R$10,"JDAY",$C4,"SRC CAT",CMAQ_2008!VR$3,"SRC REGION",CMAQ_2008!VR$4) -> 0.00010501 | VR4: =GETPIVOTDATA("Sum of PMC",CMAQ_2008!$R$10,"JDAY",$C4,"SRC CAT",CMAQ_2008!VS$3,"SRC REGION",CMAQ_2008!VS$4) -> 7.5979e-07 | VS4: =GETPIVOTDATA("Sum of PMC",CMAQ_2008!$R$10,"JDAY",$C4,"SRC CAT",CMAQ_2008!VT$3,"SRC REGION",CMAQ_2008!VT$4) -> 3.3742e-12 | VT4: =GETPIVOTDATA("Sum of PMC",CMAQ_2008!$R$10,"JDAY",$C4,"SRC CAT",CMAQ_2008!VU$3,"SRC REGION",CMAQ_2008!VU$4) -> 0.00018453 | VU4: =GETPIVOTDATA("Sum of PMC",CMAQ_2008!$R$10,"JDAY",$C4,"SRC CAT",CMAQ_2008!VV$3,"SRC REGION",CMAQ_2008!VV$4) -> 3.5467e-16 | VV4: =GETPIVOTDATA("Sum of PMC",CMAQ_2008!$R$10,"JDAY",$C4,"SRC CAT",CMAQ_2008!VW$3,"SRC REGION",CMAQ_2008!VW$4) -> 9.3488e-11 | VW4: =GETPIVOTDATA("Sum of PMC",CMAQ_2008!$R$10,"JDAY",$C4,"SRC CAT",CMAQ_2008!VX$3,"SRC REGION",CMAQ_2008!VX$4) -> 6.8504e-08 | VX4: =GETPIVOTDATA("Sum of PMC",CMAQ_2008!$R$10,"JDAY",$C4,"SRC CAT",CMAQ_2008!VY$3,"SRC REGION",CMAQ_2008!VY$4) -> 1.1934e-05 | VY4: =GETPIVOTDATA("Sum of PMC",CMAQ_2008!$R$10,"JDAY",$C4,"SRC CAT",CMAQ_2008!VZ$3,"SRC REGION",CMAQ_2008!VZ$4) -> 3.5467e-16 | VZ4: =GETPIVOTDATA("Sum of PMC",CMAQ_2008!$R$10,"JDAY",$C4,"SRC CAT",CMAQ_2008!WA$3,"SRC REGION",CMAQ_2008!WA$4) -> 3.5467e-16 | WA4: =GETPIVOTDATA("Sum of PMC",CMAQ_2008!$R$10,"JDAY",$C4,"SRC CAT",CMAQ_2008!WB$3,"SRC REGION",CMAQ_2008!WB$4) -> 0.00021235 | WB4: =GETPIVOTDATA("Sum of PMC",CMAQ_2008!$R$10,"JDAY",$C4,"SRC CAT",CMAQ_2008!WC$3,"SRC REGION",CMAQ_2008!WC$4) -> 3.5467e-16 | WC4: =GETPIVOTDATA("Sum of PMC",CMAQ_2008!$R$10,"JDAY",$C4,"SRC CAT",CMAQ_2008!WD$3,"SRC REGION",CMAQ_2008!WD$4) -> 3.5467e-16 | WD4: =GETPIVOTDATA("Sum of PMC",CMAQ_2008!$R$10,"JDAY",$C4,"SRC CAT",CMAQ_2008!WE$3,"SRC REGION",CMAQ_2008!WE$4) -> 3.5467e-16 | WE4: =GETPIVOTDATA("Sum of PMC",CMAQ_2008!$R$10,"JDAY",$C4,"SRC CAT",CMAQ_2008!WF$3,"SRC REGION",CMAQ_2008!WF$4) -> 1.1528e-06 | WF4: =GETPIVOTDATA("Sum of PMC",CMAQ_2008!$R$10,"JDAY",$C4,"SRC CAT",CMAQ_2008!WG$3,"SRC REGION",CMAQ_2008!WG$4) -> 1.6733e-05 | WG4: =GETPIVOTDATA("Sum of PMC",CMAQ_2008!$R$10,"JDAY",$C4,"SRC CAT",CMAQ_2008!WH$3,"SRC REGION",CMAQ_2008!WH$4) -> 1.3683e-05 | WH4: =GETPIVOTDATA("Sum of PMC",CMAQ_2008!$R$10,"JDAY",$C4,"SRC CAT",CMAQ_2008!WI$3,"SRC REGION",CMAQ_2008!WI$4) -> 3.5467e-16 | WI4: =GETPIVOTDATA("Sum of PMC",CMAQ_2008!$R$10,"JDAY",$C4,"SRC CAT",CMAQ_2008!WJ$3,"SRC REGION",CMAQ_2008!WJ$4) -> 3.5467e-16 | WJ4: =GETPIVOTDATA("Sum of PMC",CMAQ_2008!$R$10,"JDAY",$C4,"SRC CAT",CMAQ_2008!WK$3,"SRC REGION",CMAQ_2008!WK$4) -> 7.1023e-05 | WK4: =GETPIVOTDATA("Sum of PMC",CMAQ_2008!$R$10,"JDAY",$C4,"SRC CAT",CMAQ_2008!WL$3,"SRC REGION",CMAQ_2008!WL$4) -> 3.5467e-16 | WL4: =GETPIVOTDATA("Sum of PMC",CMAQ_2008!$R$10,"JDAY",$C4,"SRC CAT",CMAQ_2008!WM$3,"SRC REGION",CMAQ_2008!WM$4) -> 4.6523e-05 | WM4: =GETPIVOTDATA("Sum of PMC",CMAQ_2008!$R$10,"JDAY",$C4,"SRC CAT",CMAQ_2008!WN$3,"SRC REGION",CMAQ_2008!WN$4) -> 3.5467e-16 | WN4: =GETPIVOTDATA("Sum of PMC",CMAQ_2008!$R$10,"JDAY",$C4,"SRC CAT",CMAQ_2008!WO$3,"SRC REGION",CMAQ_2008!WO$4) -> 3.5467e-16 | WO4: =GETPIVOTDATA("Sum of PMC",CMAQ_2008!$R$10,"JDAY",$C4,"SRC CAT",CMAQ_2008!WP$3,"SRC REGION",CMAQ_2008!WP$4) -> 0.0081675 | WP4: =GETPIVOTDATA("Sum of PMC",CMAQ_2008!$R$10,"JDAY",$C4,"SRC CAT",CMAQ_2008!WQ$3,"SRC REGION",CMAQ_2008!WQ$4) -> 1.5262e-10 | WQ4: =GETPIVOTDATA("Sum of PMC",CMAQ_2008!$R$10,"JDAY",$C4,"SRC CAT",CMAQ_2008!WR$3,"SRC REGION",CMAQ_2008!WR$4) -> 1.0277e-08 | WR4: =GETPIVOTDATA("Sum of PMC",CMAQ_2008!$R$10,"JDAY",$C4,"SRC CAT",CMAQ_2008!WS$3,"SRC REGION",CMAQ_2008!WS$4) -> 8.3667e-07 | WS4: =GETPIVOTDATA("Sum of PMC",CMAQ_2008!$R$10,"JDAY",$C4,"SRC CAT",CMAQ_2008!WT$3,"SRC REGION",CMAQ_2008!WT$4) -> 3.5467e-16 | WT4: =GETPIVOTDATA("Sum of PMC",CMAQ_2008!$R$10,"JDAY",$C4,"SRC CAT",CMAQ_2008!WU$3,"SRC REGION",CMAQ_2008!WU$4) -> 3.5467e-16 | WU4: =GETPIVOTDATA("Sum of PMC",CMAQ_2008!$R$10,"JDAY",$C4,"SRC CAT",CMAQ_2008!WV$3,"SRC REGION",CMAQ_2008!WV$4) -> 7.9075e-05 | WV4: =GETPIVOTDATA("Sum of PMC",CMAQ_2008!$R$10,"JDAY",$C4,"SRC CAT",CMAQ_2008!WW$3,"SRC REGION",CMAQ_2008!WW$4) -> 0.0009272 | WW4: =GETPIVOTDATA("Sum of PMC",CMAQ_2008!$R$10,"JDAY",$C4,"SRC CAT",CMAQ_2008!WX$3,"SRC REGION",CMAQ_2008!WX$4) -> 3.5467e-16 | WX4: =GETPIVOTDATA("Sum of PMC",CMAQ_2008!$R$10,"JDAY",$C4,"SRC CAT",CMAQ_2008!WY$3,"SRC REGION",CMAQ_2008!WY$4) -> 3.5467e-16 | WY4: =GETPIVOTDATA("Sum of PMC",CMAQ_2008!$R$10,"JDAY",$C4,"SRC CAT",CMAQ_2008!WZ$3,"SRC REGION",CMAQ_2008!WZ$4) -> 1.9415e-05 | WZ4: =GETPIVOTDATA("Sum of PMC",CMAQ_2008!$R$10,"JDAY",$C4,"SRC CAT",CMAQ_2008!XA$3,"SRC REGION",CMAQ_2008!XA$4) -> 3.9267e-05 | XA4: =GETPIVOTDATA("Sum of PMC",CMAQ_2008!$R$10,"JDAY",$C4,"SRC CAT",CMAQ_2008!XB$3,"SRC REGION",CMAQ_2008!XB$4) -> 0.00013004 | XB4: =GETPIVOTDATA("Sum of PMC",CMAQ_2008!$R$10,"JDAY",$C4,"SRC CAT",CMAQ_2008!XC$3,"SRC REGION",CMAQ_2008!XC$4) -> 7.0221e-05 | XC4: =GETPIVOTDATA("Sum of PMC",CMAQ_2008!$R$10,"JDAY",$C4,"SRC CAT",CMAQ_2008!XD$3,"SRC REGION",CMAQ_2008!XD$4) -> 3.5467e-16 | XD4: =GETPIVOTDATA("Sum of PMC",CMAQ_2008!$R$10,"JDAY",$C4,"SRC CAT",CMAQ_2008!XE$3,"SRC REGION",CMAQ_2008!XE$4) -> 3.5467e-16 | XE4: =GETPIVOTDATA("Sum of PMC",CMAQ_2008!$R$10,"JDAY",$C4,"SRC CAT",CMAQ_2008!XF$3,"SRC REGION",CMAQ_2008!XF$4) -> 0.00068119 | XF4: =GETPIVOTDATA("Sum of PMC",CMAQ_2008!$R$10,"JDAY",$C4,"SRC CAT",CMAQ_2008!XG$3,"SRC REGION",CMAQ_2008!XG$4) -> 1.3857e-07 | XG4: =GETPIVOTDATA("Sum of PMC",CMAQ_2008!$R$10,"JDAY",$C4,"SRC CAT",CMAQ_2008!XH$3,"SRC REGION",CMAQ_2008!XH$4) -> 3.5467e-16 | XH4: =GETPIVOTDATA("Sum of PMC",CMAQ_2008!$R$10,"JDAY",$C4,"SRC CAT",CMAQ_2008!XI$3,"SRC REGION",CMAQ_2008!XI$4) -> 3.5467e-16 | XI4: =GETPIVOTDATA("Sum of PMC",CMAQ_2008!$R$10,"JDAY",$C4,"SRC CAT",CMAQ_2008!XJ$3,"SRC REGION",CMAQ_2008!XJ$4) -> 3.5467e-16 | XJ4: =GETPIVOTDATA("Sum of PMC",CMAQ_2008!$R$10,"JDAY",$C4,"SRC CAT",CMAQ_2008!XK$3,"SRC REGION",CMAQ_2008!XK$4) -> 0.0058405 | XK4: =GETPIVOTDATA("Sum of PMC",CMAQ_2008!$R$10,"JDAY",$C4,"SRC CAT",CMAQ_2008!XL$3,"SRC REGION",CMAQ_2008!XL$4) -> 3.5467e-16 | XL4: =GETPIVOTDATA("Sum of PMC",CMAQ_2008!$R$10,"JDAY",$C4,"SRC CAT",CMAQ_2008!XM$3,"SRC REGION",CMAQ_2008!XM$4) -> 2.7843e-08 | XM4: =GETPIVOTDATA("Sum of PMC",CMAQ_2008!$R$10,"JDAY",$C4,"SRC CAT",CMAQ_2008!XN$3,"SRC REGION",CMAQ_2008!XN$4) -> 8.1417e-08 | XN4: =GETPIVOTDATA("Sum of PMC",CMAQ_2008!$R$10,"JDAY",$C4,"SRC CAT",CMAQ_2008!XO$3,"SRC REGION",CMAQ_2008!XO$4) -> 3.5467e-16 | XO4: =GETPIVOTDATA("Sum of PMC",CMAQ_2008!$R$10,"JDAY",$C4,"SRC CAT",CMAQ_2008!XP$3,"SRC REGION",CMAQ_2008!XP$4) -> 3.5467e-16 | XP4: =GETPIVOTDATA("Sum of PMC",CMAQ_2008!$R$10,"JDAY",$C4,"SRC CAT",CMAQ_2008!XQ$3,"SRC REGION",CMAQ_2008!XQ$4) -> 0.00014159 | XQ4: =GETPIVOTDATA("Sum of PMC",CMAQ_2008!$R$10,"JDAY",$C4,"SRC CAT",CMAQ_2008!XR$3,"SRC REGION",CMAQ_2008!XR$4) -> 5.2306e-05 | XR4: =GETPIVOTDATA("Sum of PMC",CMAQ_2008!$R$10,"JDAY",$C4,"SRC CAT",CMAQ_2008!XS$3,"SRC REGION",CMAQ_2008!XS$4) -> 3.5467e-16 | XS4: =GETPIVOTDATA("Sum of PMC",CMAQ_2008!$R$10,"JDAY",$C4,"SRC CAT",CMAQ_2008!XT$3,"SRC REGION",CMAQ_2008!XT$4) -> 3.5467e-16 | XT4: =GETPIVOTDATA("Sum of PMC",CMAQ_2008!$R$10,"JDAY",$C4,"SRC CAT",CMAQ_2008!XU$3,"SRC REGION",CMAQ_2008!XU$4) -> 3.2579e-06 | XU4: =GETPIVOTDATA("Sum of PMC",CMAQ_2008!$R$10,"JDAY",$C4,"SRC CAT",CMAQ_2008!XV$3,"SRC REGION",CMAQ_2008!XV$4) -> 3.5467e-16 | XV4: =GETPIVOTDATA("Sum of PMC",CMAQ_2008!$R$10,"JDAY",$C4,"SRC CAT",CMAQ_2008!XW$3,"SRC REGION",CMAQ_2008!XW$4) -> 4.4769e-05 | XW4: =GETPIVOTDATA("Sum of PMC",CMAQ_2008!$R$10,"JDAY",$C4,"SRC CAT",CMAQ_2008!XX$3,"SRC REGION",CMAQ_2008!XX$4) -> 3.5467e-16 | XX4: =GETPIVOTDATA("Sum of PMC",CMAQ_2008!$R$10,"JDAY",$C4,"SRC CAT",CMAQ_2008!XY$3,"SRC REGION",CMAQ_2008!XY$4) -> 4.1872e-08 | XY4: =GETPIVOTDATA("Sum of PMC",CMAQ_2008!$R$10,"JDAY",$C4,"SRC CAT",CMAQ_2008!XZ$3,"SRC REGION",CMAQ_2008!XZ$4) -> 3.5467e-16 | XZ4: =GETPIVOTDATA("Sum of PMC",CMAQ_2008!$R$10,"JDAY",$C4,"SRC CAT",CMAQ_2008!YA$3,"SRC REGION",CMAQ_2008!YA$4) -> 4.8868e-07 | YA4: =GETPIVOTDATA("Sum of PMC",CMAQ_2008!$R$10,"JDAY",$C4,"SRC CAT",CMAQ_2008!YB$3,"SRC REGION",CMAQ_2008!YB$4) -> 3.5467e-16 | YB4: =GETPIVOTDATA("Sum of PMC",CMAQ_2008!$R$10,"JDAY",$C4,"SRC CAT",CMAQ_2008!YC$3,"SRC REGION",CMAQ_2008!YC$4) -> 0.00038588 | YC4: =GETPIVOTDATA("Sum of PMC",CMAQ_2008!$R$10,"JDAY",$C4,"SRC CAT",CMAQ_2008!YD$3,"SRC REGION",CMAQ_2008!YD$4) -> 5.1074e-10 | YD4: =GETPIVOTDATA("Sum of PMC",CMAQ_2008!$R$10,"JDAY",$C4,"SRC CAT",CMAQ_2008!YE$3,"SRC REGION",CMAQ_2008!YE$4) -> 3.5467e-16 | YE4: =GETPIVOTDATA("Sum of PMC",CMAQ_2008!$R$10,"JDAY",$C4,"SRC CAT",CMAQ_2008!YF$3,"SRC REGION",CMAQ_2008!YF$4) -> 0.7114 | YF4: =GETPIVOTDATA("Sum of PMC",CMAQ_2008!$R$10,"JDAY",$C4,"SRC CAT",CMAQ_2008!YG$3,"SRC REGION",CMAQ_2008!YG$4) -> 6.5795e-07 | YG4: =GETPIVOTDATA("Sum of PMC",CMAQ_2008!$R$10,"JDAY",$C4,"SRC CAT",CMAQ_2008!YH$3,"SRC REGION",CMAQ_2008!YH$4) -> 7.4001e-06 | YH4: =GETPIVOTDATA("Sum of PMC",CMAQ_2008!$R$10,"JDAY",$C4,"SRC CAT",CMAQ_2008!YI$3,"SRC REGION",CMAQ_2008!YI$4) -> 0.00043164 | YI4: =GETPIVOTDATA("Sum of PMC",CMAQ_2008!$R$10,"JDAY",$C4,"SRC CAT",CMAQ_2008!YJ$3,"SRC REGION",CMAQ_2008!YJ$4) -> 0.093699 | YJ4: =GETPIVOTDATA("Sum of PMC",CMAQ_2008!$R$10,"JDAY",$C4,"SRC CAT",CMAQ_2008!YK$3,"SRC REGION",CMAQ_2008!YK$4) -> 0.0017414 | YK4: =GETPIVOTDATA("Sum of PMC",CMAQ_2008!$R$10,"JDAY",$C4,"SRC CAT",CMAQ_2008!YL$3,"SRC REGION",CMAQ_2008!YL$4) -> 0.010876 | YL4: =GETPIVOTDATA("Sum of PMC",CMAQ_2008!$R$10,"JDAY",$C4,"SRC CAT",CMAQ_2008!YM$3,"SRC REGION",CMAQ_2008!YM$4) -> 0.22517 | YM4: =GETPIVOTDATA("Sum of PMC",CMAQ_2008!$R$10,"JDAY",$C4,"SRC CAT",CMAQ_2008!YN$3,"SRC REGION",CMAQ_2008!YN$4) -> 0.00036856 | YN4: =GETPIVOTDATA("Sum of PMC",CMAQ_2008!$R$10,"JDAY",$C4,"SRC CAT",CMAQ_2008!YO$3,"SRC REGION",CMAQ_2008!YO$4) -> 0.0012219 | YO4: =GETPIVOTDATA("Sum of PMC",CMAQ_2008!$R$10,"JDAY",$C4,"SRC CAT",CMAQ_2008!YP$3,"SRC REGION",CMAQ_2008!YP$4) -> 0.010688 | YP4: =GETPIVOTDATA("Sum of PMC",CMAQ_2008!$R$10,"JDAY",$C4,"SRC CAT",CMAQ_2008!YQ$3,"SRC REGION",CMAQ_2008!YQ$4) -> 0.0088287 | YQ4: =GETPIVOTDATA("Sum of PMC",CMAQ_2008!$R$10,"JDAY",$C4,"SRC CAT",CMAQ_2008!YR$3,"SRC REGION",CMAQ_2008!YR$4) -> 0.019436 | YR4: =GETPIVOTDATA("Sum of PMC",CMAQ_2008!$R$10,"JDAY",$C4,"SRC CAT",CMAQ_2008!YS$3,"SRC REGION",CMAQ_2008!YS$4) -> 0.10141 | YS4: =GETPIVOTDATA("Sum of PMC",CMAQ_2008!$R$10,"JDAY",$C4,"SRC CAT",CMAQ_2008!YT$3,"SRC REGION",CMAQ_2008!YT$4) -> 7.096e-05 | YT4: =GETPIVOTDATA("Sum of PMC",CMAQ_2008!$R$10,"JDAY",$C4,"SRC CAT",CMAQ_2008!YU$3,"SRC REGION",CMAQ_2008!YU$4) -> 0.00035544 | YU4: =GETPIVOTDATA("Sum of PMC",CMAQ_2008!$R$10,"JDAY",$C4,"SRC CAT",CMAQ_2008!YV$3,"SRC REGION",CMAQ_2008!YV$4) -> 0.054875 | YV4: =GETPIVOTDATA("Sum of PMC",CMAQ_2008!$R$10,"JDAY",$C4,"SRC CAT",CMAQ_2008!YW$3,"SRC REGION",CMAQ_2008!YW$4) -> 6.1567e-05 | YW4: =GETPIVOTDATA("Sum of PMC",CMAQ_2008!$R$10,"JDAY",$C4,"SRC CAT",CMAQ_2008!YX$3,"SRC REGION",CMAQ_2008!YX$4) -> 0.058806 | YX4: =GETPIVOTDATA("Sum of PMC",CMAQ_2008!$R$10,"JDAY",$C4,"SRC CAT",CMAQ_2008!YY$3,"SRC REGION",CMAQ_2008!YY$4) -> 1.5648e-07 | YY4: =GETPIVOTDATA("Sum of PMC",CMAQ_2008!$R$10,"JDAY",$C4,"SRC CAT",CMAQ_2008!YZ$3,"SRC REGION",CMAQ_2008!YZ$4) -> 1.1098e-06 | YZ4: =GETPIVOTDATA("Sum of PMC",CMAQ_2008!$R$10,"JDAY",$C4,"SRC CAT",CMAQ_2008!ZA$3,"SRC REGION",CMAQ_2008!ZA$4) -> 0.12052 | ZA4: =GETPIVOTDATA("Sum of PMC",CMAQ_2008!$R$10,"JDAY",$C4,"SRC CAT",CMAQ_2008!ZB$3,"SRC REGION",CMAQ_2008!ZB$4) -> 0.00011885
